{"text_format":"1","workbook":"xlsx","n_sheets":21,"sheets":["11-państw.fund.cel.","20-państw.szk.wyż.","31-instytucje gosp budż","41-państw.inst.kult.","42-samorz.inst.kult.","50-PAN i jedn.tworz.przez PAN","61-samodz.publ.ZOZ państw.","62-samodz.publ.ZOZ samorz.","63-Narodowy Fundusz Zdrowia","71-ZUS","72-fund.zarz.przez ZUS","73-KRUS","81-państw.osoba prawna","82-samorz.osoba prawna","90-agencja wykonawcza","99-zbiorczo","RBZE","RBZF","RBZO","RBZC","RBZD"],"not_rendered":{"charts":0,"images":0,"macros":1,"external_links":0,"defined_names":33,"comments":0,"pivot_tables":0},"unopened":[],"bounds":{"document_bytes":16777216,"sheet_cells":100000,"rows_first":2000,"rows_last":500,"rows_between":2000,"halvings":0,"cell_chars":16384,"cell_head_chars":4096},"cells_cut":0,"cells_raw":0,"read":"whole","date_system":"1900"}

{"sheet":"11-państw.fund.cel.","index":0,"n_rows":106,"n_cols":21,"rows_kept":106,"cut":false,"hidden":false,"merged":[[52,7,53,7],[54,1,54,4],[55,1,55,4],[56,1,56,4],[52,0,53,0],[52,1,53,4],[81,0,81,1],[78,0,78,1],[59,0,59,2],[60,0,60,2],[61,0,61,2],[64,0,66,2],[72,0,72,2],[73,0,73,2],[74,0,74,2],[67,0,67,2],[68,0,68,2],[69,0,69,2],[70,0,70,2],[71,0,71,2],[2,0,2,1],[5,0,5,1],[7,0,7,1],[8,2,8,4],[92,5,92,7],[44,0,44,4],[41,0,41,4],[52,5,53,5],[45,0,45,4],[47,0,47,4],[46,0,46,4],[86,0,86,1],[87,0,87,1],[85,0,85,1],[79,0,79,1],[80,0,80,1],[3,13,6,16],[38,6,38,11],[23,0,23,1],[9,2,9,4],[10,2,10,4],[16,0,16,1],[64,3,66,3],[64,4,64,8],[64,9,66,9],[65,4,66,4],[65,5,66,5],[65,7,66,7],[65,8,66,8]]}
[null,null,null,null,null,null,null,null,null,null,null,null,null,null,null,null,null,null,null,null,0]
["Nazwa jednostki sprawozdawczej ",null,null,"Rb-Z   KWARTALNE SPRAWOZDANIE O STANIE ZOBOWIĄZAŃ WG TYTUŁÓW DŁUŻNYCH ORAZ PORĘCZEŃ I GWARANCJI",null,null,null,null,null,null,null,null,null,null,null,null,null,null,null,null,0]
[null,null,null,null,null,null,null,null,null,null,null,null,null,"Adresat"]
[null,null,null,null,null,"państwowego funduszu celowego posiadającego osobowość prawną",null,null,null,null,null,null,null,null,null,null,null,null,null,null,{"$f":"IF(A8=0,\"\",VALUE(A8))","v":""}]
["Adres jednostki sprawozdawczej"]
[]
["Numer identyfikacyjny REGON",null,"liczba identyfik.jedn."]
[null,null,null,null,null,"wg stanu na koniec",null,null,"kwartału","  roku"]
["Nazwa województwa",null,null,null,null,null,null,"SYMBOLE"]
["Nazwa powiatu / związku",null,null,null,null,"WOJ.","POWIAT","GMINA","TYP GM.","ZWIĄZEK JST","TYP ZW.","GRUPA","CZĘŚĆ BUDŻ.",null,null,null,null,null,null,null,0]
["Nazwa gminy / związku",null,null,null,null,null,null,null,null,null,null,11]
[]
[" A. Zobowiązania według tytułów dłużnych"]
[]
[null,null,null,null,null,null,null,"w i e r z y c i e l e   k r a j o w i",null,null,null,null,null,null,null,"             w i e r z y c i e l e   z a g r a n i c z n i "]
[null,null,"kwota"]
["Wyszczególnienie",null,"zadłużenia",null,"sektor",null,null,null,null,null,null,null,null,null,"instytucje"]
[null,null,"ogółem","ogółem","finansów","grupa I","grupa II","grupa III","grupa IV","bank","banki","pozostałe","przedsiębiorstwa ","gospodarstwa","niekomercyjne",null,"podmioty","pozostałe"]
[null,null,"(kol. 3+15)","(kol 4+9+10+11+","publicznych",null,null,null,null,"centralny",null,"krajowe","niefinansowe","domowe","działające ","ogółem","należące ","podmioty"]
[null,null,null,"12+13+14)","ogółem",null,null,null,null,null,null,"instytucje",null,null,"na rzecz",null,"do strefy","zagraniczne"]
[null,null,null,null,"(kol 5+6+7+8)",null,null,null,null,null,null,"finansowe",null,null,"gospodarstw","(kol. 16+17)","euro"]
[null,null,null,null,null,null,null,null,null,null,null,null,null,null,"domowych"]
[1,null,2,3,4,5,6,7,8,9,10,11,12,13,14,15,16,17]
["E. ZOBOWIĄZANIA WG TYTUŁÓW DŁUŻNYCH (E1+E2+E3+E4)",null,{"$f":"C26+C29+C32+C33","v":0},0,0,0,0,0,0,0,0,0,0,0,0,{"$f":"P26+P29+P32+P33","v":0},{"$f":"Q26+Q29+Q32+Q33","v":0},{"$f":"R26+R29+R32+R33","v":0}]
[]
["E1. papiery wartościowe (E1.1+E1.2)",null,{"$f":"C27+C28","v":0},{"$f":"D27+D28","v":0},{"$f":"E27+E28","v":0},{"$f":"F27+F28","v":0},{"$f":"G27+G28","v":0},0,0,0,0,0,0,0,0,{"$f":"P27+P28","v":0},{"$f":"Q27+Q28","v":0},{"$f":"R27+R28","v":0}]
["      E1.1. krótkoterminowe",null,{"$f":"D27+P27","v":0},{"$f":"E27+J27+K27+L27+M27+N27+O27","v":0},{"$f":"F27+G27+H27+I27","v":0},null,null,null,null,null,null,null,null,null,null,{"$f":"Q27+R27","v":0}]
["      E1.2. długoterminowe",null,{"$f":"D28+P28","v":0},{"$f":"E28+J28+K28+L28+M28+N28+O28","v":0},{"$f":"F28+G28+H28+I28","v":0},null,null,null,null,null,null,null,null,null,null,{"$f":"Q28+R28","v":0}]
["E2. kredyty i pożyczki (E2.1+E2.2)",null,{"$f":"C30+C31","v":0},{"$f":"D30+D31","v":0},{"$f":"E30+E31","v":0},{"$f":"F30+F31","v":0},{"$f":"G30+G31","v":0},0,0,0,0,0,0,0,0,{"$f":"P30+P31","v":0},{"$f":"Q30+Q31","v":0},{"$f":"R30+R31","v":0}]
["      E2.1. krótkoterminowe",null,{"$f":"D30+P30","v":0},{"$f":"E30+J30+K30+L30+M30+N30+O30","v":0},{"$f":"F30+G30+H30+I30","v":0},null,null,null,null,null,null,null,null,null,null,{"$f":"Q30+R30","v":0}]
["      E2.2. długoterminowe",null,{"$f":"D31+P31","v":0},{"$f":"E31+J31+K31+L31+M31+N31+O31","v":0},{"$f":"F31+G31+H31+I31","v":0},null,null,null,null,null,null,null,null,null,null,{"$f":"Q31+R31","v":0}]
["E3. przyjęte depozyty",null,{"$f":"D32+P32","v":0},{"$f":"E32+J32+K32+L32+M32+N32+O32","v":0},{"$f":"F32+G32+H32+I32","v":0},null,null,null,null,null,null,null,null,null,null,{"$f":"Q32+R32","v":0}]
["E4. wymagalne zobowiązania (E4.1+E4.2)",null,{"$f":"C34+C35","v":0},{"$f":"D34+D35","v":0},{"$f":"E34+E35","v":0},{"$f":"F34+F35","v":0},{"$f":"G34+G35","v":0},0,0,0,0,0,0,0,0,{"$f":"P34+P35","v":0},{"$f":"Q34+Q35","v":0},{"$f":"R34+R35","v":0}]
["      E4.1. z tyt. dostaw towarów i usług",null,{"$f":"D34+P34","v":0},{"$f":"E34+J34+K34+L34+M34+N34+O34","v":0},{"$f":"F34+G34+H34+I34","v":0},null,null,null,null,null,null,null,null,null,null,{"$f":"Q34+R34","v":0}]
["      E4.2. pozostałe",null,{"$f":"D35+P35","v":0},{"$f":"E35+J35+K35+L35+M35+N35+O35","v":0},{"$f":"F35+G35+H35+I35","v":0},null,null,null,null,null,null,null,null,null,null,{"$f":"Q35+R35","v":0}]
[]
[" B. Poręczenia i gwarancje"]
[]
[null,null,null,null,null,null,"w i e r z y c i e l e "]
[null,null,null,null,null,"Kwota ","podmioty"]
[null,null,null,null,null,"zobowiązań","sektora","grupa  I","grupa II","grupa III","grupa IV","pozostałe "]
["Wyszczególnienie",null,null,null,null,"ogółem","finansów",null,null,null,null,"podmioty"]
[null,null,null,null,null,"(kol. 3+8)","publicznych"]
[null,null,null,null,null,null,"(kol.4+5+6+7)"]
[1,null,null,null,null,2,3,4,5,6,7,8]
["F1. wartość nominalna niewymagalnych (potencjalnych) zobowiązań z tytułu udzielonych poręczeń i gwarancji na koniec okresu sprawozdawczego",null,null,null,null,{"$f":"G46+L46","v":0},{"$f":"H46+I46+J46+K46","v":0}]
["F2. wartość nominalna wymagalnych zobowiązań z tytułu udzielonych poręczeń i gwarancji na koniec okresu sprawozdawczego",null,null,null,null,{"$f":"G47+L47","v":0},{"$f":"H47+I47+J47+K47","v":0}]
["F3. wartość poręczeń i gwarancji udzielonych w okresie sprawozdawczym",null,null,null,null,{"$f":"G48+L48","v":0},{"$f":"H48+I48+J48+K48","v":0}]
[]
["C. Uzupełniające dane o niektórych zobowiązaniach jednostki samorządu terytorialnego"]
[]
["C1. Kredyty i pożyczki oraz wyemitowane papiery wartościowe na realizację programów, projektów lub zadań finansowanych z udziałem środków, o których mowa w art. 5 ust. 1 pkt 2 ustawy"]
["Lp.","Wyszczególnienie",null,null,null,"Z budżetu państwa\n ogółem ","w tym","Z innych źródeł\n ogółem","w tym"]
[null,null,null,null,null,null," długoterminowe",null,"długoterminowe"]
[1,2,null,null,null,3,4,5,6]
[1,"Ogółem kredyty i pożyczki oraz wyemitowane papiery wartościowe\nw tym:"]
[2," na współfinansowanie\n       (udział własny)",null,null,null,"X","X"]
[]
["C2. Zobowiązania związku współtworzonego przez jednostkę samorządu terytorialnego "]
["Wyszczególnienie ",null,null,"Plan","Wykonanie"]
[1,null,null,2,3]
["Zobowiązania związku współtworzonego przez jednostkę samorządu terytorialnego w okresie sprawozdawczym"]
[]
["C3. Zobowiązania zaliczane do tytułu dłużnego - kredyty i pożyczki "]
["Rodzaje zobowiązań zaliczanych do kredytów i pożyczek (E2. - część A)",null,null,"ogółem (kol. 3+4+6+7+8)","wierzyciele krajowi",null,null,null,null,"wierzyciele zagraniczni "]
[null,null,null,null,"banki","pozostałe krajowe instytucje finansowe   ogółem","w  tym","przedsiębiorstwa niefinansowe","pozostali wierzyciele"]
[null,null,null,null,null,null,"instytucje parabankowe"]
[1,null,null,2,3,4,5,6,7,8]
["1. umowy kredytu i pożyczki",null,null,{"$f":"E69+F69+H69+I69+J69","v":0}]
["2. umowy partnerstwa publiczno-prywatnego",null,null,{"$f":"E70+F70+H70+I70+J70","v":0}]
["3. papiery wartościowe, których zbywalność jest ograniczona ",null,null,0]
["4. sprzedaż na raty",null,null,0]
["5. leasing finansowy",null,null,0]
["6. umowy nienazwane o charakterze kredytu lub pożyczki ",null,null,0]
["Ogółem ",null,null,{"$f":"E75+F75+H75+I75+J75","v":0},{"$f":"SUM(E69:E74)","v":0},{"$f":"SUM(F69:F74)","v":0},0,0,0,{"$f":"SUM(J69:J74)","v":0}]
[]
["D. Dane o krótkoterminowych zobowiązaniach wynikających z umów nienazwanych związanych z finansowaniem usług, dostaw, robót budowlanych"]
[]
["Wyszczególnienie",null,"Kwota zobowiązań ogółem"]
[1,null,2]
["A. krótkoterminowe zobowiązania przejęte przez instytucje finansowe"]
["B. krótkoterminowe zobowiązania zrestrukturyzowane"]
[]
["E. Zobowiązania z tytułu odsetek jednostek posiadających osobowość prawną z wyłączeniem jednostek samorządu terytorialnego"]
[]
["Wyszczególnienie",null,"kwota zobowiązań ogółem\n(kol. 3+4)","odsetki naliczone od zobowiązań niewymagalnych","odsetki naliczone od zobowiązań wymagalnych"]
[1,null,2,3,4]
["Wartość odsetek ",null,{"$f":"D88+E88","v":0}]
[]
["F. Lista jednostek sporządzajacych sprawozdania"]
[]
["Lp.","REGON","REGON 9-cyfrowy","REGON 14-cyfrowy","Brak nr REGON","Nazwa jednostki"]
[1,null,null,null,null,null,null,null,{"$f":"regon9(B93)","v":false}]
[]
[]
[]
[]
[]
["…………………",null,null,"………………",null,"………………",null,null,"…………………"]
["Główny Księgowy* / Skarbnik",null,null,"telefon",null,"rok m-c dzień",null,null,"Kierownik jednostki (jednostki obsługującej)/ Przewodniczący Zarządu"]
["* Nie dotyczy sprawozdań zbiorczych sporządzanych przez RIO. W przypadku braku głównego księgowego podpisuje tylko kierownik jednostki."]
[]
[]
[]
[]
[null,null,null,null,null,null,null,null,null,null,null,null," "]

{"sheet":"20-państw.szk.wyż.","index":1,"n_rows":106,"n_cols":21,"rows_kept":106,"cut":false,"hidden":false,"merged":[[60,0,60,2],[92,5,92,7],[85,0,85,1],[86,0,86,1],[87,0,87,1],[61,0,61,2],[80,0,80,1],[81,0,81,1],[78,0,78,1],[79,0,79,1],[64,0,66,2],[64,3,66,3],[64,4,64,8],[72,0,72,2],[73,0,73,2],[74,0,74,2],[59,0,59,2],[3,13,6,16],[23,0,23,1],[38,6,38,11],[22,0,22,1],[10,2,10,4],[16,0,16,1],[56,1,56,4],[52,5,53,5],[52,0,53,0],[52,7,53,7],[54,1,54,4],[55,1,55,4],[45,0,45,4],[47,0,47,4],[52,1,53,4],[2,0,2,1],[5,0,5,1],[7,0,7,1],[46,0,46,4],[9,2,9,4],[8,2,8,4],[41,0,41,4],[44,0,44,4],[64,9,66,9],[65,4,66,4],[65,5,66,5],[65,7,66,7],[65,8,66,8],[67,0,67,2],[68,0,68,2],[69,0,69,2],[70,0,70,2],[71,0,71,2]]}
[]
["Nazwa jednostki sprawozdawczej ",null,null,"Rb-Z   KWARTALNE SPRAWOZDANIE O STANIE ZOBOWIĄZAŃ WG TYTUŁÓW DŁUŻNYCH ORAZ PORĘCZEŃ I GWARANCJI"]
[null,null,null,null,null,null,null,null,null,null,null,null,null,"Adresat"]
[null,null,null,null,null,"uczelni publicznej",null,null,null,null,null,null,null,null,null,null,null,null,null,null,{"$f":"IF(A8=0,\"\",VALUE(A8))","v":""}]
["Adres jednostki sprawozdawczej"]
[]
["Numer identyfikacyjny REGON",null,"liczba identyfik.jedn."]
[null,null,null,null,null,"wg stanu na koniec",null,null,"kwartału","  roku"]
["Nazwa województwa",null,null,null,null,null,null,"SYMBOLE"]
["Nazwa powiatu / związku",null,null,null,null,"WOJ.","POWIAT","GMINA","TYP GM.","ZWIĄZEK JST","TYP ZW.","GRUPA","CZĘŚĆ BUDŻ."]
["Nazwa gminy / związku",null,null,null,null,null,null,null,null,null,null,20]
[]
[" A. Zobowiązania według tytułów dłużnych"]
[]
[null,null,null,null,null,null,null,"w i e r z y c i e l e   k r a j o w i",null,null,null,null,null,null,null,"             w i e r z y c i e l e   z a g r a n i c z n i "]
[null,null,"kwota"]
["Wyszczególnienie",null,"zadłużenia",null,"sektor",null,null,null,null,null,null,null,null,null,"instytucje"]
[null,null,"ogółem","ogółem","finansów","grupa I","grupa II","grupa III","grupa IV","bank","banki","pozostałe","przedsiębiorstwa ","gospodarstwa","niekomercyjne",null,"podmioty","pozostałe"]
[null,null,"(kol. 3+15)","(kol 4+9+10+11+","publicznych",null,null,null,null,"centralny",null,"krajowe","niefinansowe","domowe","działające ","ogółem","należące ","podmioty"]
[null,null,null,"12+13+14)","ogółem",null,null,null,null,null,null,"instytucje",null,null,"na rzecz",null,"do strefy","zagraniczne"]
[null,null,null,null,"(kol 5+6+7+8)",null,null,null,null,null,null,"finansowe",null,null,"gospodarstw","(kol. 16+17)","euro"]
[null,null,null,null,null,null,null,null,null,null,null,null,null,null,"domowych"]
[1,null,2,3,4,5,6,7,8,9,10,11,12,13,14,15,16,17]
["E. ZOBOWIĄZANIA WG TYTUŁÓW DŁUŻNYCH (E1+E2+E3+E4)",null,{"$f":"C26+C29+C32+C33","v":0},0,0,0,0,0,0,0,0,0,0,0,0,{"$f":"P26+P29+P32+P33","v":0},{"$f":"Q26+Q29+Q32+Q33","v":0},{"$f":"R26+R29+R32+R33","v":0}]
[]
["E1. papiery wartościowe (E1.1+E1.2)",null,{"$f":"C27+C28","v":0},{"$f":"D27+D28","v":0},{"$f":"E27+E28","v":0},{"$f":"F27+F28","v":0},{"$f":"G27+G28","v":0},0,0,0,0,0,0,0,0,{"$f":"P27+P28","v":0},{"$f":"Q27+Q28","v":0},{"$f":"R27+R28","v":0}]
["      E1.1. krótkoterminowe",null,{"$f":"D27+P27","v":0},{"$f":"E27+J27+K27+L27+M27+N27+O27","v":0},{"$f":"F27+G27+H27+I27","v":0},null,null,null,null,null,null,null,null,null,null,{"$f":"Q27+R27","v":0}]
["      E1.2. długoterminowe",null,{"$f":"D28+P28","v":0},{"$f":"E28+J28+K28+L28+M28+N28+O28","v":0},{"$f":"F28+G28+H28+I28","v":0},null,null,null,null,null,null,null,null,null,null,{"$f":"Q28+R28","v":0}]
["E2. kredyty i pożyczki (E2.1+E2.2)",null,{"$f":"C30+C31","v":0},{"$f":"D30+D31","v":0},{"$f":"E30+E31","v":0},{"$f":"F30+F31","v":0},{"$f":"G30+G31","v":0},0,0,0,0,0,0,0,0,{"$f":"P30+P31","v":0},{"$f":"Q30+Q31","v":0},{"$f":"R30+R31","v":0}]
["      E2.1. krótkoterminowe",null,{"$f":"D30+P30","v":0},{"$f":"E30+J30+K30+L30+M30+N30+O30","v":0},{"$f":"F30+G30+H30+I30","v":0},null,null,null,null,null,null,null,null,null,null,{"$f":"Q30+R30","v":0}]
["      E2.2. długoterminowe",null,{"$f":"D31+P31","v":0},{"$f":"E31+J31+K31+L31+M31+N31+O31","v":0},{"$f":"F31+G31+H31+I31","v":0},null,null,null,null,null,null,null,null,null,null,{"$f":"Q31+R31","v":0}]
["E3. przyjęte depozyty",null,{"$f":"D32+P32","v":0},{"$f":"E32+J32+K32+L32+M32+N32+O32","v":0},{"$f":"F32+G32+H32+I32","v":0},null,null,null,null,null,null,null,null,null,null,{"$f":"Q32+R32","v":0}]
["E4. wymagalne zobowiązania (E4.1+E4.2)",null,{"$f":"C34+C35","v":0},0,0,0,0,0,0,0,{"$f":"K34+K35","v":0},0,0,0,0,0,0,0]
["      E4.1. z tyt. dostaw towarów i usług",null,{"$f":"D34+P34","v":0},{"$f":"E34+J34+K34+L34+M34+N34+O34","v":0},{"$f":"F34+G34+H34+I34","v":0},null,null,null,null,null,null,null,null,null,null,{"$f":"Q34+R34","v":0}]
["      E4.2. pozostałe",null,{"$f":"D35+P35","v":0},{"$f":"E35+J35+K35+L35+M35+N35+O35","v":0},{"$f":"F35+G35+H35+I35","v":0},null,null,null,null,null,null,null,null,null,null,{"$f":"Q35+R35","v":0}]
[]
[" B. Poręczenia i gwarancje"]
[]
[null,null,null,null,null,null,"w i e r z y c i e l e "]
[null,null,null,null,null,"Kwota ","podmioty"]
[null,null,null,null,null,"zobowiązań","sektora","grupa  I","grupa II","grupa III","grupa IV","pozostałe "]
["Wyszczególnienie",null,null,null,null,"ogółem","finansów",null,null,null,null,"podmioty"]
[null,null,null,null,null,"(kol. 3+8)","publicznych"]
[null,null,null,null,null,null,"(kol.4+5+6+7)"]
[1,null,null,null,null,2,3,4,5,6,7,8]
["F1. wartość nominalna niewymagalnych (potencjalnych) zobowiązań z tytułu udzielonych poręczeń i gwarancji na koniec okresu sprawozdawczego",null,null,null,null,{"$f":"G46+L46","v":0},{"$f":"H46+I46+J46+K46","v":0}]
["F2. wartość nominalna wymagalnych zobowiązań z tytułu udzielonych poręczeń i gwarancji na koniec okresu sprawozdawczego",null,null,null,null,{"$f":"G47+L47","v":0},{"$f":"H47+I47+J47+K47","v":0}]
["F3. wartość poręczeń i gwarancji udzielonych w okresie sprawozdawczym",null,null,null,null,{"$f":"G48+L48","v":0},{"$f":"H48+I48+J48+K48","v":0}]
[]
["C. Uzupełniające dane o niektórych zobowiązaniach jednostki samorządu terytorialnego"]
[]
["C1. Kredyty i pożyczki oraz wyemitowane papiery wartościowe na realizację programów, projektów lub zadań finansowanych z udziałem środków, o których mowa w art. 5 ust. 1 pkt 2 ustawy"]
["Lp.","Wyszczególnienie",null,null,null,"Z budżetu państwa\n ogółem ","w tym","Z innych źródeł\n ogółem","w tym"]
[null,null,null,null,null,null," długoterminowe",null,"długoterminowe"]
[1,2,null,null,null,3,4,5,6]
[1,"Ogółem kredyty i pożyczki oraz wyemitowane papiery wartościowe\nw tym:"]
[2," na współfinansowanie\n       (udział własny)",null,null,null,"X","X"]
[]
["C2. Zobowiązania związku współtworzonego przez jednostkę samorządu terytorialnego "]
["Wyszczególnienie ",null,null,"Plan","Wykonanie"]
[1,null,null,2,3]
["Zobowiązania związku współtworzonego przez jednostkę samorządu terytorialnego w okresie sprawozdawczym"]
[]
["C3. Zobowiązania zaliczane do tytułu dłużnego - kredyty i pożyczki "]
["Rodzaje zobowiązań zaliczanych do kredytów i pożyczek (E2. - część A)",null,null,"ogółem (kol. 3+4+6+7+8)","wierzyciele krajowi",null,null,null,null,"wierzyciele zagraniczni "]
[null,null,null,null,"banki","pozostałe krajowe instytucje finansowe   ogółem","w  tym","przedsiębiorstwa niefinansowe","pozostali wierzyciele"]
[null,null,null,null,null,null,"instytucje parabankowe"]
[1,null,null,2,3,4,5,6,7,8]
["1. umowy kredytu i pożyczki",null,null,{"$f":"E69+F69+H69+I69+J69","v":0}]
["2. umowy partnerstwa publiczno-prywatnego",null,null,{"$f":"E70+F70+H70+I70+J70","v":0}]
["3. papiery wartościowe, których zbywalność jest ograniczona ",null,null,0]
["4. sprzedaż na raty",null,null,0]
["5. leasing finansowy",null,null,0]
["6. umowy nienazwane o charakterze kredytu lub pożyczki ",null,null,0]
["Ogółem ",null,null,{"$f":"E75+F75+H75+I75+J75","v":0},{"$f":"SUM(E69:E74)","v":0},{"$f":"SUM(F69:F74)","v":0},0,0,0,{"$f":"SUM(J69:J74)","v":0}]
[]
["D. Dane o krótkoterminowych zobowiązaniach wynikających z umów nienazwanych związanych z finansowaniem usług, dostaw, robót budowlanych"]
[]
["Wyszczególnienie",null,"Kwota zobowiązań ogółem"]
[1,null,2]
["A. krótkoterminowe zobowiązania przejęte przez instytucje finansowe"]
["B. krótkoterminowe zobowiązania zrestrukturyzowane"]
[]
["E. Zobowiązania z tytułu odsetek jednostek posiadających osobowość prawną z wyłączeniem jednostek samorządu terytorialnego"]
[]
["Wyszczególnienie",null,"kwota zobowiązań ogółem\n(kol. 3+4)","odsetki naliczone od zobowiązań niewymagalnych","odsetki naliczone od zobowiązań wymagalnych"]
[1,null,2,3,4]
["Wartość odsetek ",null,{"$f":"D88+E88","v":0}]
[]
["F. Lista jednostek sporządzajacych sprawozdania"]
[]
["Lp.","REGON","REGON 9-cyfrowy","REGON 14-cyfrowy","Brak nr REGON","Nazwa jednostki"]
[1,null,null,null,null,null,null,null,{"$f":"regon9(B93)","v":false}]
[]
[]
[]
[]
[]
["…………………",null,null,"………………",null,"………………",null,null,"…………………"]
["Główny Księgowy* / Skarbnik",null,null,"telefon",null,"rok m-c dzień",null,null,"Kierownik jednostki (jednostki obsługującej)/ Przewodniczący Zarządu"]
["* Nie dotyczy sprawozdań zbiorczych sporządzanych przez RIO. W przypadku braku głównego księgowego podpisuje tylko kierownik jednostki."]
[]
[]
[]
[]
[null,null,null,null,null,null,null,null,null,null,null,null," "]

{"sheet":"31-instytucje gosp budż","index":2,"n_rows":106,"n_cols":21,"rows_kept":106,"cut":false,"hidden":false,"merged":[[60,0,60,2],[92,5,92,7],[85,0,85,1],[86,0,86,1],[87,0,87,1],[61,0,61,2],[80,0,80,1],[81,0,81,1],[78,0,78,1],[79,0,79,1],[64,0,66,2],[64,3,66,3],[64,4,64,8],[72,0,72,2],[73,0,73,2],[74,0,74,2],[59,0,59,2],[3,13,6,16],[23,0,23,1],[38,6,38,11],[22,0,22,1],[10,2,10,4],[16,0,16,1],[56,1,56,4],[52,5,53,5],[52,0,53,0],[52,7,53,7],[54,1,54,4],[55,1,55,4],[45,0,45,4],[47,0,47,4],[52,1,53,4],[2,0,2,1],[5,0,5,1],[7,0,7,1],[46,0,46,4],[9,2,9,4],[8,2,8,4],[41,0,41,4],[44,0,44,4],[64,9,66,9],[65,4,66,4],[65,5,66,5],[65,7,66,7],[65,8,66,8],[67,0,67,2],[68,0,68,2],[69,0,69,2],[70,0,70,2],[71,0,71,2]]}
[]
["Nazwa jednostki sprawozdawczej ",null,null,"Rb-Z   KWARTALNE SPRAWOZDANIE O STANIE ZOBOWIĄZAŃ WG TYTUŁÓW DŁUŻNYCH ORAZ PORĘCZEŃ I GWARANCJI"]
[null,null,null,null,null,null,null,null,null,null,null,null,null,"Adresat"]
[null,null,null,null,null,"instytucji gospodarki budżetowej",null,null,null,null,null,null,null,null,null,null,null,null,null,null,{"$f":"IF(A8=0,\"\",VALUE(A8))","v":""}]
["Adres jednostki sprawozdawczej"]
[]
["Numer identyfikacyjny REGON",null,"liczba identyfik.jedn."]
[null,null,null,null,null,"wg stanu na koniec",null,null,"kwartału","  roku"]
["Nazwa województwa",null,null,null,null,null,null,"SYMBOLE"]
["Nazwa powiatu / związku",null,null,null,null,"WOJ.","POWIAT","GMINA","TYP GM.","ZWIĄZEK JST","TYP ZW.","GRUPA","CZĘŚĆ BUDŻ."]
["Nazwa gminy / związku",null,null,null,null,null,null,null,null,null,null,31]
[]
[" A. Zobowiązania według tytułów dłużnych"]
[]
[null,null,null,null,null,null,null,"w i e r z y c i e l e   k r a j o w i",null,null,null,null,null,null,null,"             w i e r z y c i e l e   z a g r a n i c z n i "]
[null,null,"kwota"]
["Wyszczególnienie",null,"zadłużenia",null,"sektor",null,null,null,null,null,null,null,null,null,"instytucje"]
[null,null,"ogółem","ogółem","finansów","grupa I","grupa II","grupa III","grupa IV","bank","banki","pozostałe","przedsiębiorstwa ","gospodarstwa","niekomercyjne",null,"podmioty","pozostałe"]
[null,null,"(kol. 3+15)","(kol 4+9+10+11+","publicznych",null,null,null,null,"centralny",null,"krajowe","niefinansowe","domowe","działające ","ogółem","należące ","podmioty"]
[null,null,null,"12+13+14)","ogółem",null,null,null,null,null,null,"instytucje",null,null,"na rzecz",null,"do strefy","zagraniczne"]
[null,null,null,null,"(kol 5+6+7+8)",null,null,null,null,null,null,"finansowe",null,null,"gospodarstw","(kol. 16+17)","euro"]
[null,null,null,null,null,null,null,null,null,null,null,null,null,null,"domowych"]
[1,null,2,3,4,5,6,7,8,9,10,11,12,13,14,15,16,17]
["E. ZOBOWIĄZANIA WG TYTUŁÓW DŁUŻNYCH (E1+E2+E3+E4)",null,{"$f":"C26+C29+C32+C33","v":0},0,0,0,0,0,0,0,0,0,0,0,0,{"$f":"P26+P29+P32+P33","v":0},{"$f":"Q26+Q29+Q32+Q33","v":0},{"$f":"R26+R29+R32+R33","v":0}]
[]
["E1. papiery wartościowe (E1.1+E1.2)",null,{"$f":"C27+C28","v":0},{"$f":"D27+D28","v":0},{"$f":"E27+E28","v":0},{"$f":"F27+F28","v":0},{"$f":"G27+G28","v":0},0,0,0,0,0,0,0,0,{"$f":"P27+P28","v":0},{"$f":"Q27+Q28","v":0},{"$f":"R27+R28","v":0}]
["      E1.1. krótkoterminowe",null,{"$f":"D27+P27","v":0},{"$f":"E27+J27+K27+L27+M27+N27+O27","v":0},{"$f":"F27+G27+H27+I27","v":0},null,null,null,null,null,null,null,null,null,null,{"$f":"Q27+R27","v":0}]
["      E1.2. długoterminowe",null,{"$f":"D28+P28","v":0},{"$f":"E28+J28+K28+L28+M28+N28+O28","v":0},{"$f":"F28+G28+H28+I28","v":0},null,null,null,null,null,null,null,null,null,null,{"$f":"Q28+R28","v":0}]
["E2. kredyty i pożyczki (E2.1+E2.2)",null,{"$f":"C30+C31","v":0},{"$f":"D30+D31","v":0},{"$f":"E30+E31","v":0},{"$f":"F30+F31","v":0},{"$f":"G30+G31","v":0},0,0,0,0,0,0,0,0,{"$f":"P30+P31","v":0},{"$f":"Q30+Q31","v":0},{"$f":"R30+R31","v":0}]
["      E2.1. krótkoterminowe",null,{"$f":"D30+P30","v":0},{"$f":"E30+J30+K30+L30+M30+N30+O30","v":0},{"$f":"F30+G30+H30+I30","v":0},null,null,null,null,null,null,null,null,null,null,{"$f":"Q30+R30","v":0}]
["      E2.2. długoterminowe",null,{"$f":"D31+P31","v":0},{"$f":"E31+J31+K31+L31+M31+N31+O31","v":0},{"$f":"F31+G31+H31+I31","v":0},null,null,null,null,null,null,null,null,null,null,{"$f":"Q31+R31","v":0}]
["E3. przyjęte depozyty",null,{"$f":"D32+P32","v":0},{"$f":"E32+J32+K32+L32+M32+N32+O32","v":0},{"$f":"F32+G32+H32+I32","v":0},null,null,null,null,null,null,null,null,null,null,{"$f":"Q32+R32","v":0}]
["E4. wymagalne zobowiązania (E4.1+E4.2)",null,{"$f":"C34+C35","v":0},{"$f":"D34+D35","v":0},{"$f":"E34+E35","v":0},{"$f":"F34+F35","v":0},{"$f":"G34+G35","v":0},0,0,0,0,0,0,0,0,{"$f":"P34+P35","v":0},{"$f":"Q34+Q35","v":0},{"$f":"R34+R35","v":0}]
["      E4.1. z tyt. dostaw towarów i usług",null,{"$f":"D34+P34","v":0},{"$f":"E34+J34+K34+L34+M34+N34+O34","v":0},{"$f":"F34+G34+H34+I34","v":0},null,null,null,null,null,null,null,null,null,null,{"$f":"Q34+R34","v":0}]
["      E4.2. pozostałe",null,{"$f":"D35+P35","v":0},{"$f":"E35+J35+K35+L35+M35+N35+O35","v":0},{"$f":"F35+G35+H35+I35","v":0},null,null,null,null,null,null,null,null,null,null,{"$f":"Q35+R35","v":0}]
[]
[" B. Poręczenia i gwarancje"]
[]
[null,null,null,null,null,null,"w i e r z y c i e l e "]
[null,null,null,null,null,"Kwota ","podmioty"]
[null,null,null,null,null,"zobowiązań","sektora","grupa  I","grupa II","grupa III","grupa IV","pozostałe "]
["Wyszczególnienie",null,null,null,null,"ogółem","finansów",null,null,null,null,"podmioty"]
[null,null,null,null,null,"(kol. 3+8)","publicznych"]
[null,null,null,null,null,null,"(kol.4+5+6+7)"]
[1,null,null,null,null,2,3,4,5,6,7,8]
["F1. wartość nominalna niewymagalnych (potencjalnych) zobowiązań z tytułu udzielonych poręczeń i gwarancji na koniec okresu sprawozdawczego",null,null,null,null,{"$f":"G46+L46","v":0},{"$f":"H46+I46+J46+K46","v":0}]
["F2. wartość nominalna wymagalnych zobowiązań z tytułu udzielonych poręczeń i gwarancji na koniec okresu sprawozdawczego",null,null,null,null,{"$f":"G47+L47","v":0},{"$f":"H47+I47+J47+K47","v":0}]
["F3. wartość poręczeń i gwarancji udzielonych w okresie sprawozdawczym",null,null,null,null,{"$f":"G48+L48","v":0},{"$f":"H48+I48+J48+K48","v":0}]
[]
["C. Uzupełniające dane o niektórych zobowiązaniach jednostki samorządu terytorialnego"]
[]
["C1. Kredyty i pożyczki oraz wyemitowane papiery wartościowe na realizację programów, projektów lub zadań finansowanych z udziałem środków, o których mowa w art. 5 ust. 1 pkt 2 ustawy"]
["Lp.","Wyszczególnienie",null,null,null,"Z budżetu państwa\n ogółem ","w tym","Z innych źródeł\n ogółem","w tym"]
[null,null,null,null,null,null," długoterminowe",null,"długoterminowe"]
[1,2,null,null,null,3,4,5,6]
[1,"Ogółem kredyty i pożyczki oraz wyemitowane papiery wartościowe\nw tym:"]
[2," na współfinansowanie\n       (udział własny)",null,null,null,"X","X"]
[]
["C2. Zobowiązania związku współtworzonego przez jednostkę samorządu terytorialnego "]
["Wyszczególnienie ",null,null,"Plan","Wykonanie"]
[1,null,null,2,3]
["Zobowiązania związku współtworzonego przez jednostkę samorządu terytorialnego w okresie sprawozdawczym"]
[]
["C3. Zobowiązania zaliczane do tytułu dłużnego - kredyty i pożyczki "]
["Rodzaje zobowiązań zaliczanych do kredytów i pożyczek (E2. - część A)",null,null,"ogółem (kol. 3+4+6+7+8)","wierzyciele krajowi",null,null,null,null,"wierzyciele zagraniczni "]
[null,null,null,null,"banki","pozostałe krajowe instytucje finansowe   ogółem","w  tym","przedsiębiorstwa niefinansowe","pozostali wierzyciele"]
[null,null,null,null,null,null,"instytucje parabankowe"]
[1,null,null,2,3,4,5,6,7,8]
["1. umowy kredytu i pożyczki",null,null,{"$f":"E69+F69+H69+I69+J69","v":0}]
["2. umowy partnerstwa publiczno-prywatnego",null,null,{"$f":"E70+F70+H70+I70+J70","v":0}]
["3. papiery wartościowe, których zbywalność jest ograniczona ",null,null,0]
["4. sprzedaż na raty",null,null,0]
["5. leasing finansowy",null,null,0]
["6. umowy nienazwane o charakterze kredytu lub pożyczki ",null,null,0]
["Ogółem ",null,null,{"$f":"E75+F75+H75+I75+J75","v":0},{"$f":"SUM(E69:E74)","v":0},{"$f":"SUM(F69:F74)","v":0},0,0,0,{"$f":"SUM(J69:J74)","v":0}]
[]
["D. Dane o krótkoterminowych zobowiązaniach wynikających z umów nienazwanych związanych z finansowaniem usług, dostaw, robót budowlanych"]
[]
["Wyszczególnienie",null,"Kwota zobowiązań ogółem"]
[1,null,2]
["A. krótkoterminowe zobowiązania przejęte przez instytucje finansowe"]
["B. krótkoterminowe zobowiązania zrestrukturyzowane"]
[]
["E. Zobowiązania z tytułu odsetek jednostek posiadających osobowość prawną z wyłączeniem jednostek samorządu terytorialnego"]
[]
["Wyszczególnienie",null,"kwota zobowiązań ogółem\n(kol. 3+4)","odsetki naliczone od zobowiązań niewymagalnych","odsetki naliczone od zobowiązań wymagalnych"]
[1,null,2,3,4]
["Wartość odsetek ",null,{"$f":"D88+E88","v":0}]
[]
["F. Lista jednostek sporządzajacych sprawozdania"]
[]
["Lp.","REGON","REGON 9-cyfrowy","REGON 14-cyfrowy","Brak nr REGON","Nazwa jednostki"]
[1,null,null,null,null,null,null,null,{"$f":"regon9(B93)","v":false}]
[]
[]
[]
[]
[]
["…………………",null,null,"………………",null,"………………",null,null,"…………………"]
["Główny Księgowy* / Skarbnik",null,null,"telefon",null,"rok m-c dzień",null,null,"Kierownik jednostki (jednostki obsługującej)/ Przewodniczący Zarządu"]
["* Nie dotyczy sprawozdań zbiorczych sporządzanych przez RIO. W przypadku braku głównego księgowego podpisuje tylko kierownik jednostki."]
[]
[]
[]
[]
[null,null,null,null,null,null,null,null,null,null,null,null," "]

{"sheet":"41-państw.inst.kult.","index":3,"n_rows":106,"n_cols":21,"rows_kept":106,"cut":false,"hidden":false,"merged":[[60,0,60,2],[92,5,92,7],[85,0,85,1],[86,0,86,1],[87,0,87,1],[61,0,61,2],[80,0,80,1],[81,0,81,1],[78,0,78,1],[79,0,79,1],[64,0,66,2],[64,3,66,3],[64,4,64,8],[72,0,72,2],[73,0,73,2],[74,0,74,2],[59,0,59,2],[3,13,6,16],[23,0,23,1],[38,6,38,11],[22,0,22,1],[10,2,10,4],[16,0,16,1],[56,1,56,4],[52,5,53,5],[52,0,53,0],[52,7,53,7],[54,1,54,4],[55,1,55,4],[45,0,45,4],[47,0,47,4],[52,1,53,4],[2,0,2,1],[5,0,5,1],[7,0,7,1],[46,0,46,4],[9,2,9,4],[8,2,8,4],[41,0,41,4],[44,0,44,4],[64,9,66,9],[65,4,66,4],[65,5,66,5],[65,7,66,7],[65,8,66,8],[67,0,67,2],[68,0,68,2],[69,0,69,2],[70,0,70,2],[71,0,71,2]]}
[]
["Nazwa jednostki sprawozdawczej ",null,null,"Rb-Z   KWARTALNE SPRAWOZDANIE O STANIE ZOBOWIĄZAŃ WG TYTUŁÓW DŁUŻNYCH ORAZ PORĘCZEŃ I GWARANCJI"]
[null,null,null,null,null,null,null,null,null,null,null,null,null,"Adresat"]
[null,null,null,null,"państwowej instytucji kultury",null,null,null,null,null,null,null,null,null,null,null,null,null,null,null,{"$f":"IF(A8=0,\"\",VALUE(A8))","v":""}]
["Adres jednostki sprawozdawczej"]
[]
["Numer identyfikacyjny REGON",null,"liczba identyfik.jedn."]
[null,null,null,null,null,"wg stanu na koniec",null,null,"kwartału","  roku"]
["Nazwa województwa",null,null,null,null,null,null,"SYMBOLE"]
["Nazwa powiatu / związku",null,null,null,null,"WOJ.","POWIAT","GMINA","TYP GM.","ZWIĄZEK JST","TYP ZW.","GRUPA","CZĘŚĆ BUDŻ."]
["Nazwa gminy / związku",null,null,null,null,null,null,null,null,null,null,41]
[]
[" A. Zobowiązania według tytułów dłużnych"]
[]
[null,null,null,null,null,null,null,"w i e r z y c i e l e   k r a j o w i",null,null,null,null,null,null,null,"             w i e r z y c i e l e   z a g r a n i c z n i "]
[null,null,"kwota"]
["Wyszczególnienie",null,"zadłużenia",null,"sektor",null,null,null,null,null,null,null,null,null,"instytucje"]
[null,null,"ogółem","ogółem","finansów","grupa I","grupa II","grupa III","grupa IV","bank","banki","pozostałe","przedsiębiorstwa ","gospodarstwa","niekomercyjne",null,"podmioty","pozostałe"]
[null,null,"(kol. 3+15)","(kol 4+9+10+11+","publicznych",null,null,null,null,"centralny",null,"krajowe","niefinansowe","domowe","działające ","ogółem","należące ","podmioty"]
[null,null,null,"12+13+14)","ogółem",null,null,null,null,null,null,"instytucje",null,null,"na rzecz",null,"do strefy","zagraniczne"]
[null,null,null,null,"(kol 5+6+7+8)",null,null,null,null,null,null,"finansowe",null,null,"gospodarstw","(kol. 16+17)","euro"]
[null,null,null,null,null,null,null,null,null,null,null,null,null,null,"domowych"]
[1,null,2,3,4,5,6,7,8,9,10,11,12,13,14,15,16,17]
["E. ZOBOWIĄZANIA WG TYTUŁÓW DŁUŻNYCH (E1+E2+E3+E4)",null,{"$f":"C26+C29+C32+C33","v":0},0,0,0,0,0,0,0,0,0,0,0,0,{"$f":"P26+P29+P32+P33","v":0},{"$f":"Q26+Q29+Q32+Q33","v":0},{"$f":"R26+R29+R32+R33","v":0}]
[]
["E1. papiery wartościowe (E1.1+E1.2)",null,{"$f":"C27+C28","v":0},{"$f":"D27+D28","v":0},{"$f":"E27+E28","v":0},{"$f":"F27+F28","v":0},{"$f":"G27+G28","v":0},0,0,0,0,0,0,0,0,{"$f":"P27+P28","v":0},{"$f":"Q27+Q28","v":0},{"$f":"R27+R28","v":0}]
["      E1.1. krótkoterminowe",null,{"$f":"D27+P27","v":0},{"$f":"E27+J27+K27+L27+M27+N27+O27","v":0},{"$f":"F27+G27+H27+I27","v":0},null,null,null,null,null,null,null,null,null,null,{"$f":"Q27+R27","v":0}]
["      E1.2. długoterminowe",null,{"$f":"D28+P28","v":0},{"$f":"E28+J28+K28+L28+M28+N28+O28","v":0},{"$f":"F28+G28+H28+I28","v":0},null,null,null,null,null,null,null,null,null,null,{"$f":"Q28+R28","v":0}]
["E2. kredyty i pożyczki (E2.1+E2.2)",null,{"$f":"C30+C31","v":0},{"$f":"D30+D31","v":0},{"$f":"E30+E31","v":0},{"$f":"F30+F31","v":0},{"$f":"G30+G31","v":0},0,0,0,0,0,0,0,0,{"$f":"P30+P31","v":0},{"$f":"Q30+Q31","v":0},{"$f":"R30+R31","v":0}]
["      E2.1. krótkoterminowe",null,{"$f":"D30+P30","v":0},{"$f":"E30+J30+K30+L30+M30+N30+O30","v":0},{"$f":"F30+G30+H30+I30","v":0},null,null,null,null,null,null,null,null,null,null,{"$f":"Q30+R30","v":0}]
["      E2.2. długoterminowe",null,{"$f":"D31+P31","v":0},{"$f":"E31+J31+K31+L31+M31+N31+O31","v":0},{"$f":"F31+G31+H31+I31","v":0},null,null,null,null,null,null,null,null,null,null,{"$f":"Q31+R31","v":0}]
["E3. przyjęte depozyty",null,{"$f":"D32+P32","v":0},{"$f":"E32+J32+K32+L32+M32+N32+O32","v":0},{"$f":"F32+G32+H32+I32","v":0},null,null,null,null,null,null,null,null,null,null,{"$f":"Q32+R32","v":0}]
["E4. wymagalne zobowiązania (E4.1+E4.2)",null,{"$f":"C34+C35","v":0},{"$f":"D34+D35","v":0},{"$f":"E34+E35","v":0},{"$f":"F34+F35","v":0},{"$f":"G34+G35","v":0},0,0,0,0,0,0,0,0,{"$f":"P34+P35","v":0},{"$f":"Q34+Q35","v":0},{"$f":"R34+R35","v":0}]
["      E4.1. z tyt. dostaw towarów i usług",null,{"$f":"D34+P34","v":0},{"$f":"E34+J34+K34+L34+M34+N34+O34","v":0},{"$f":"F34+G34+H34+I34","v":0},null,null,null,null,null,null,null,null,null,null,{"$f":"Q34+R34","v":0}]
["      E4.2. pozostałe",null,{"$f":"D35+P35","v":0},{"$f":"E35+J35+K35+L35+M35+N35+O35","v":0},{"$f":"F35+G35+H35+I35","v":0},null,null,null,null,null,null,null,null,null,null,{"$f":"Q35+R35","v":0}]
[]
[" B. Poręczenia i gwarancje"]
[]
[null,null,null,null,null,null,"w i e r z y c i e l e "]
[null,null,null,null,null,"Kwota ","podmioty"]
[null,null,null,null,null,"zobowiązań","sektora","grupa  I","grupa II","grupa III","grupa IV","pozostałe "]
["Wyszczególnienie",null,null,null,null,"ogółem","finansów",null,null,null,null,"podmioty"]
[null,null,null,null,null,"(kol. 3+8)","publicznych"]
[null,null,null,null,null,null,"(kol.4+5+6+7)"]
[1,null,null,null,null,2,3,4,5,6,7,8]
["F1. wartość nominalna niewymagalnych (potencjalnych) zobowiązań z tytułu udzielonych poręczeń i gwarancji na koniec okresu sprawozdawczego",null,null,null,null,{"$f":"G46+L46","v":0},{"$f":"H46+I46+J46+K46","v":0}]
["F2. wartość nominalna wymagalnych zobowiązań z tytułu udzielonych poręczeń i gwarancji na koniec okresu sprawozdawczego",null,null,null,null,{"$f":"G47+L47","v":0},{"$f":"H47+I47+J47+K47","v":0}]
["F3. wartość poręczeń i gwarancji udzielonych w okresie sprawozdawczym",null,null,null,null,{"$f":"G48+L48","v":0},{"$f":"H48+I48+J48+K48","v":0}]
[]
["C. Uzupełniające dane o niektórych zobowiązaniach jednostki samorządu terytorialnego"]
[]
["C1. Kredyty i pożyczki oraz wyemitowane papiery wartościowe na realizację programów, projektów lub zadań finansowanych z udziałem środków, o których mowa w art. 5 ust. 1 pkt 2 ustawy"]
["Lp.","Wyszczególnienie",null,null,null,"Z budżetu państwa\n ogółem ","w tym","Z innych źródeł\n ogółem","w tym"]
[null,null,null,null,null,null," długoterminowe",null,"długoterminowe"]
[1,2,null,null,null,3,4,5,6]
[1,"Ogółem kredyty i pożyczki oraz wyemitowane papiery wartościowe\nw tym:"]
[2," na współfinansowanie\n       (udział własny)",null,null,null,"X","X"]
[]
["C2. Zobowiązania związku współtworzonego przez jednostkę samorządu terytorialnego "]
["Wyszczególnienie ",null,null,"Plan","Wykonanie"]
[1,null,null,2,3]
["Zobowiązania związku współtworzonego przez jednostkę samorządu terytorialnego w okresie sprawozdawczym"]
[]
["C3. Zobowiązania zaliczane do tytułu dłużnego - kredyty i pożyczki "]
["Rodzaje zobowiązań zaliczanych do kredytów i pożyczek (E2. - część A)",null,null,"ogółem (kol. 3+4+6+7+8)","wierzyciele krajowi",null,null,null,null,"wierzyciele zagraniczni "]
[null,null,null,null,"banki","pozostałe krajowe instytucje finansowe   ogółem","w  tym","przedsiębiorstwa niefinansowe","pozostali wierzyciele"]
[null,null,null,null,null,null,"instytucje parabankowe"]
[1,null,null,2,3,4,5,6,7,8]
["1. umowy kredytu i pożyczki",null,null,{"$f":"E69+F69+H69+I69+J69","v":0}]
["2. umowy partnerstwa publiczno-prywatnego",null,null,{"$f":"E70+F70+H70+I70+J70","v":0}]
["3. papiery wartościowe, których zbywalność jest ograniczona ",null,null,0]
["4. sprzedaż na raty",null,null,0]
["5. leasing finansowy",null,null,0]
["6. umowy nienazwane o charakterze kredytu lub pożyczki ",null,null,0]
["Ogółem ",null,null,{"$f":"E75+F75+H75+I75+J75","v":0},{"$f":"SUM(E69:E74)","v":0},{"$f":"SUM(F69:F74)","v":0},0,0,0,{"$f":"SUM(J69:J74)","v":0}]
[]
["D. Dane o krótkoterminowych zobowiązaniach wynikających z umów nienazwanych związanych z finansowaniem usług, dostaw, robót budowlanych"]
[]
["Wyszczególnienie",null,"Kwota zobowiązań ogółem"]
[1,null,2]
["A. krótkoterminowe zobowiązania przejęte przez instytucje finansowe"]
["B. krótkoterminowe zobowiązania zrestrukturyzowane"]
[]
["E. Zobowiązania z tytułu odsetek jednostek posiadających osobowość prawną z wyłączeniem jednostek samorządu terytorialnego"]
[]
["Wyszczególnienie",null,"kwota zobowiązań ogółem\n(kol. 3+4)","odsetki naliczone od zobowiązań niewymagalnych","odsetki naliczone od zobowiązań wymagalnych"]
[1,null,2,3,4]
["Wartość odsetek ",null,{"$f":"D88+E88","v":0}]
[]
["F. Lista jednostek sporządzajacych sprawozdania"]
[]
["Lp.","REGON","REGON 9-cyfrowy","REGON 14-cyfrowy","Brak nr REGON","Nazwa jednostki"]
[1,null,null,null,null,null,null,null,{"$f":"regon9(B93)","v":false}]
[]
[]
[]
[]
[]
["…………………",null,null,"………………",null,"………………",null,null,"…………………"]
["Główny Księgowy* / Skarbnik",null,null,"telefon",null,"rok m-c dzień",null,null,"Kierownik jednostki (jednostki obsługującej)/ Przewodniczący Zarządu"]
["* Nie dotyczy sprawozdań zbiorczych sporządzanych przez RIO. W przypadku braku głównego księgowego podpisuje tylko kierownik jednostki."]
[]
[]
[]
[]
[null,null,null,null,null,null,null,null,null,null,null,null," "]

{"sheet":"42-samorz.inst.kult.","index":4,"n_rows":106,"n_cols":21,"rows_kept":106,"cut":false,"hidden":false,"merged":[[60,0,60,2],[92,5,92,7],[85,0,85,1],[86,0,86,1],[87,0,87,1],[61,0,61,2],[80,0,80,1],[81,0,81,1],[78,0,78,1],[79,0,79,1],[64,0,66,2],[64,3,66,3],[64,4,64,8],[72,0,72,2],[73,0,73,2],[74,0,74,2],[59,0,59,2],[3,13,6,16],[23,0,23,1],[38,6,38,11],[22,0,22,1],[10,2,10,4],[16,0,16,1],[56,1,56,4],[52,5,53,5],[52,0,53,0],[52,7,53,7],[54,1,54,4],[55,1,55,4],[45,0,45,4],[47,0,47,4],[52,1,53,4],[2,0,2,1],[5,0,5,1],[7,0,7,1],[46,0,46,4],[9,2,9,4],[8,2,8,4],[41,0,41,4],[44,0,44,4],[64,9,66,9],[65,4,66,4],[65,5,66,5],[65,7,66,7],[65,8,66,8],[67,0,67,2],[68,0,68,2],[69,0,69,2],[70,0,70,2],[71,0,71,2]]}
[]
["Nazwa jednostki sprawozdawczej ",null,null,"Rb-Z   KWARTALNE SPRAWOZDANIE O STANIE ZOBOWIĄZAŃ WG TYTUŁÓW DŁUŻNYCH ORAZ PORĘCZEŃ I GWARANCJI"]
[null,null,null,null,null,null,null,null,null,null,null,null,null,"Adresat"]
[null,null,null,null,null,"samorządowej instytucji kultury",null,null,null,null,null,null,null,null,null,null,null,null,null,null,{"$f":"IF(A8=0,\"\",VALUE(A8))","v":""}]
["Adres jednostki sprawozdawczej"]
[]
["Numer identyfikacyjny REGON",null,"liczba identyfik.jedn."]
[null,null,null,null,null,"wg stanu na koniec",null,null,"kwartału","  roku"]
["Nazwa województwa",null,null,null,null,null,null,"SYMBOLE"]
["Nazwa powiatu / związku",null,null,null,null,"WOJ.","POWIAT","GMINA","TYP GM.","ZWIĄZEK JST","TYP ZW.","GRUPA","CZĘŚĆ BUDŻ."]
["Nazwa gminy / związku",null,null,null,null,null,null,null,null,null,null,42]
[]
[" A. Zobowiązania według tytułów dłużnych"]
[]
[null,null,null,null,null,null,null,"w i e r z y c i e l e   k r a j o w i",null,null,null,null,null,null,null,"             w i e r z y c i e l e   z a g r a n i c z n i "]
[null,null,"kwota"]
["Wyszczególnienie",null,"zadłużenia",null,"sektor",null,null,null,null,null,null,null,null,null,"instytucje"]
[null,null,"ogółem","ogółem","finansów","grupa I","grupa II","grupa III","grupa IV","bank","banki","pozostałe","przedsiębiorstwa ","gospodarstwa","niekomercyjne",null,"podmioty","pozostałe"]
[null,null,"(kol. 3+15)","(kol 4+9+10+11+","publicznych",null,null,null,null,"centralny",null,"krajowe","niefinansowe","domowe","działające ","ogółem","należące ","podmioty"]
[null,null,null,"12+13+14)","ogółem",null,null,null,null,null,null,"instytucje",null,null,"na rzecz",null,"do strefy","zagraniczne"]
[null,null,null,null,"(kol 5+6+7+8)",null,null,null,null,null,null,"finansowe",null,null,"gospodarstw","(kol. 16+17)","euro"]
[null,null,null,null,null,null,null,null,null,null,null,null,null,null,"domowych"]
[1,null,2,3,4,5,6,7,8,9,10,11,12,13,14,15,16,17]
["E. ZOBOWIĄZANIA WG TYTUŁÓW DŁUŻNYCH (E1+E2+E3+E4)",null,{"$f":"C26+C29+C32+C33","v":0},0,0,0,0,0,0,0,0,0,0,0,0,{"$f":"P26+P29+P32+P33","v":0},{"$f":"Q26+Q29+Q32+Q33","v":0},{"$f":"R26+R29+R32+R33","v":0}]
[]
["E1. papiery wartościowe (E1.1+E1.2)",null,{"$f":"C27+C28","v":0},{"$f":"D27+D28","v":0},{"$f":"E27+E28","v":0},{"$f":"F27+F28","v":0},{"$f":"G27+G28","v":0},0,0,0,0,0,0,0,0,{"$f":"P27+P28","v":0},{"$f":"Q27+Q28","v":0},{"$f":"R27+R28","v":0}]
["      E1.1. krótkoterminowe",null,{"$f":"D27+P27","v":0},{"$f":"E27+J27+K27+L27+M27+N27+O27","v":0},{"$f":"F27+G27+H27+I27","v":0},null,null,null,null,null,null,null,null,null,null,{"$f":"Q27+R27","v":0}]
["      E1.2. długoterminowe",null,{"$f":"D28+P28","v":0},{"$f":"E28+J28+K28+L28+M28+N28+O28","v":0},{"$f":"F28+G28+H28+I28","v":0},null,null,null,null,null,null,null,null,null,null,{"$f":"Q28+R28","v":0}]
["E2. kredyty i pożyczki (E2.1+E2.2)",null,{"$f":"C30+C31","v":0},{"$f":"D30+D31","v":0},{"$f":"E30+E31","v":0},{"$f":"F30+F31","v":0},{"$f":"G30+G31","v":0},0,0,0,0,0,0,0,0,{"$f":"P30+P31","v":0},{"$f":"Q30+Q31","v":0},{"$f":"R30+R31","v":0}]
["      E2.1. krótkoterminowe",null,{"$f":"D30+P30","v":0},{"$f":"E30+J30+K30+L30+M30+N30+O30","v":0},{"$f":"F30+G30+H30+I30","v":0},null,null,null,null,null,null,null,null,null,null,{"$f":"Q30+R30","v":0}]
["      E2.2. długoterminowe",null,{"$f":"D31+P31","v":0},{"$f":"E31+J31+K31+L31+M31+N31+O31","v":0},{"$f":"F31+G31+H31+I31","v":0},null,null,null,null,null,null,null,null,null,null,{"$f":"Q31+R31","v":0}]
["E3. przyjęte depozyty",null,{"$f":"D32+P32","v":0},{"$f":"E32+J32+K32+L32+M32+N32+O32","v":0},{"$f":"F32+G32+H32+I32","v":0},null,null,null,null,null,null,null,null,null,null,{"$f":"Q32+R32","v":0}]
["E4. wymagalne zobowiązania (E4.1+E4.2)",null,{"$f":"C34+C35","v":0},{"$f":"D34+D35","v":0},{"$f":"E34+E35","v":0},{"$f":"F34+F35","v":0},{"$f":"G34+G35","v":0},0,0,0,0,0,0,0,0,{"$f":"P34+P35","v":0},{"$f":"Q34+Q35","v":0},{"$f":"R34+R35","v":0}]
["      E4.1. z tyt. dostaw towarów i usług",null,{"$f":"D34+P34","v":0},{"$f":"E34+J34+K34+L34+M34+N34+O34","v":0},{"$f":"F34+G34+H34+I34","v":0},null,null,null,null,null,null,null,null,null,null,{"$f":"Q34+R34","v":0}]
["      E4.2. pozostałe",null,{"$f":"D35+P35","v":0},{"$f":"E35+J35+K35+L35+M35+N35+O35","v":0},{"$f":"F35+G35+H35+I35","v":0},null,null,null,null,null,null,null,null,null,null,{"$f":"Q35+R35","v":0}]
[]
[" B. Poręczenia i gwarancje"]
[]
[null,null,null,null,null,null,"w i e r z y c i e l e "]
[null,null,null,null,null,"Kwota ","podmioty"]
[null,null,null,null,null,"zobowiązań","sektora","grupa  I","grupa II","grupa III","grupa IV","pozostałe "]
["Wyszczególnienie",null,null,null,null,"ogółem","finansów",null,null,null,null,"podmioty"]
[null,null,null,null,null,"(kol. 3+8)","publicznych"]
[null,null,null,null,null,null,"(kol.4+5+6+7)"]
[1,null,null,null,null,2,3,4,5,6,7,8]
["F1. wartość nominalna niewymagalnych (potencjalnych) zobowiązań z tytułu udzielonych poręczeń i gwarancji na koniec okresu sprawozdawczego",null,null,null,null,{"$f":"G46+L46","v":0},{"$f":"H46+I46+J46+K46","v":0}]
["F2. wartość nominalna wymagalnych zobowiązań z tytułu udzielonych poręczeń i gwarancji na koniec okresu sprawozdawczego",null,null,null,null,{"$f":"G47+L47","v":0},{"$f":"H47+I47+J47+K47","v":0}]
["F3. wartość poręczeń i gwarancji udzielonych w okresie sprawozdawczym",null,null,null,null,{"$f":"G48+L48","v":0},{"$f":"H48+I48+J48+K48","v":0}]
[]
["C. Uzupełniające dane o niektórych zobowiązaniach jednostki samorządu terytorialnego"]
[]
["C1. Kredyty i pożyczki oraz wyemitowane papiery wartościowe na realizację programów, projektów lub zadań finansowanych z udziałem środków, o których mowa w art. 5 ust. 1 pkt 2 ustawy"]
["Lp.","Wyszczególnienie",null,null,null,"Z budżetu państwa\n ogółem ","w tym","Z innych źródeł\n ogółem","w tym"]
[null,null,null,null,null,null," długoterminowe",null,"długoterminowe"]
[1,2,null,null,null,3,4,5,6]
[1,"Ogółem kredyty i pożyczki oraz wyemitowane papiery wartościowe\nw tym:"]
[2," na współfinansowanie\n       (udział własny)",null,null,null,"X","X"]
[]
["C2. Zobowiązania związku współtworzonego przez jednostkę samorządu terytorialnego "]
["Wyszczególnienie ",null,null,"Plan","Wykonanie"]
[1,null,null,2,3]
["Zobowiązania związku współtworzonego przez jednostkę samorządu terytorialnego w okresie sprawozdawczym"]
[]
["C3. Zobowiązania zaliczane do tytułu dłużnego - kredyty i pożyczki "]
["Rodzaje zobowiązań zaliczanych do kredytów i pożyczek (E2. - część A)",null,null,"ogółem (kol. 3+4+6+7+8)","wierzyciele krajowi",null,null,null,null,"wierzyciele zagraniczni "]
[null,null,null,null,"banki","pozostałe krajowe instytucje finansowe   ogółem","w  tym","przedsiębiorstwa niefinansowe","pozostali wierzyciele"]
[null,null,null,null,null,null,"instytucje parabankowe"]
[1,null,null,2,3,4,5,6,7,8]
["1. umowy kredytu i pożyczki",null,null,{"$f":"E69+F69+H69+I69+J69","v":0}]
["2. umowy partnerstwa publiczno-prywatnego",null,null,{"$f":"E70+F70+H70+I70+J70","v":0}]
["3. papiery wartościowe, których zbywalność jest ograniczona ",null,null,0]
["4. sprzedaż na raty",null,null,0]
["5. leasing finansowy",null,null,0]
["6. umowy nienazwane o charakterze kredytu lub pożyczki ",null,null,0]
["Ogółem ",null,null,{"$f":"E75+F75+H75+I75+J75","v":0},{"$f":"SUM(E69:E74)","v":0},{"$f":"SUM(F69:F74)","v":0},0,0,0,{"$f":"SUM(J69:J74)","v":0}]
[]
["D. Dane o krótkoterminowych zobowiązaniach wynikających z umów nienazwanych związanych z finansowaniem usług, dostaw, robót budowlanych"]
[]
["Wyszczególnienie",null,"Kwota zobowiązań ogółem"]
[1,null,2]
["A. krótkoterminowe zobowiązania przejęte przez instytucje finansowe"]
["B. krótkoterminowe zobowiązania zrestrukturyzowane"]
[]
["E. Zobowiązania z tytułu odsetek jednostek posiadających osobowość prawną z wyłączeniem jednostek samorządu terytorialnego"]
[]
["Wyszczególnienie",null,"kwota zobowiązań ogółem\n(kol. 3+4)","odsetki naliczone od zobowiązań niewymagalnych","odsetki naliczone od zobowiązań wymagalnych"]
[1,null,2,3,4]
["Wartość odsetek ",null,{"$f":"D88+E88","v":0}]
[]
["F. Lista jednostek sporządzajacych sprawozdania"]
[]
["Lp.","REGON","REGON 9-cyfrowy","REGON 14-cyfrowy","Brak nr REGON","Nazwa jednostki"]
[1,null,null,null,null,null,null,null,{"$f":"regon9(B93)","v":false}]
[]
[]
[]
[]
[]
["…………………",null,null,"………………",null,"………………",null,null,"…………………"]
["Główny Księgowy* / Skarbnik",null,null,"telefon",null,"rok m-c dzień",null,null,"Kierownik jednostki (jednostki obsługującej)/ Przewodniczący Zarządu"]
["* Nie dotyczy sprawozdań zbiorczych sporządzanych przez RIO. W przypadku braku głównego księgowego podpisuje tylko kierownik jednostki."]
[]
[]
[]
[]
[null,null,null,null,null,null,null,null,null,null,null,null," "]

{"sheet":"50-PAN i jedn.tworz.przez PAN","index":5,"n_rows":106,"n_cols":21,"rows_kept":106,"cut":false,"hidden":false,"merged":[[60,0,60,2],[92,5,92,7],[85,0,85,1],[86,0,86,1],[87,0,87,1],[61,0,61,2],[80,0,80,1],[81,0,81,1],[78,0,78,1],[79,0,79,1],[64,0,66,2],[64,3,66,3],[64,4,64,8],[72,0,72,2],[73,0,73,2],[74,0,74,2],[59,0,59,2],[3,13,6,16],[23,0,23,1],[38,6,38,11],[22,0,22,1],[10,2,10,4],[16,0,16,1],[56,1,56,4],[52,5,53,5],[52,0,53,0],[52,7,53,7],[54,1,54,4],[55,1,55,4],[45,0,45,4],[47,0,47,4],[52,1,53,4],[2,0,2,1],[5,0,5,1],[7,0,7,1],[46,0,46,4],[9,2,9,4],[8,2,8,4],[41,0,41,4],[44,0,44,4],[64,9,66,9],[65,4,66,4],[65,5,66,5],[65,7,66,7],[65,8,66,8],[67,0,67,2],[68,0,68,2],[69,0,69,2],[70,0,70,2],[71,0,71,2]]}
[]
["Nazwa jednostki sprawozdawczej ",null,null,"Rb-Z   KWARTALNE SPRAWOZDANIE O STANIE ZOBOWIĄZAŃ WG TYTUŁÓW DŁUŻNYCH ORAZ PORĘCZEŃ I GWARANCJI"]
[null,null,null,null,null,null,null,null,null,null,null,null,null,"Adresat"]
[null,null,null,null,null,"PAN i jednostki organizacyjnej tworzonej przez PAN",null,null,null,null,null,null,null,null,null,null,null,null,null,null,{"$f":"IF(A8=0,\"\",VALUE(A8))","v":""}]
["Adres jednostki sprawozdawczej"]
[]
["Numer identyfikacyjny REGON",null,"liczba identyfik.jedn."]
[null,null,null,null,null,"wg stanu na koniec",null,null,"kwartału","  roku"]
["Nazwa województwa",null,null,null,null,null,null,"SYMBOLE"]
["Nazwa powiatu / związku",null,null,null,null,"WOJ.","POWIAT","GMINA","TYP GM.","ZWIĄZEK JST","TYP ZW.","GRUPA","CZĘŚĆ BUDŻ."]
["Nazwa gminy / związku",null,null,null,null,null,null,null,null,null,null,50]
[]
[" A. Zobowiązania według tytułów dłużnych"]
[]
[null,null,null,null,null,null,null,"w i e r z y c i e l e   k r a j o w i",null,null,null,null,null,null,null,"             w i e r z y c i e l e   z a g r a n i c z n i "]
[null,null,"kwota"]
["Wyszczególnienie",null,"zadłużenia",null,"sektor",null,null,null,null,null,null,null,null,null,"instytucje"]
[null,null,"ogółem","ogółem","finansów","grupa I","grupa II","grupa III","grupa IV","bank","banki","pozostałe","przedsiębiorstwa ","gospodarstwa","niekomercyjne",null,"podmioty","pozostałe"]
[null,null,"(kol. 3+15)","(kol 4+9+10+11+","publicznych",null,null,null,null,"centralny",null,"krajowe","niefinansowe","domowe","działające ","ogółem","należące ","podmioty"]
[null,null,null,"12+13+14)","ogółem",null,null,null,null,null,null,"instytucje",null,null,"na rzecz",null,"do strefy","zagraniczne"]
[null,null,null,null,"(kol 5+6+7+8)",null,null,null,null,null,null,"finansowe",null,null,"gospodarstw","(kol. 16+17)","euro"]
[null,null,null,null,null,null,null,null,null,null,null,null,null,null,"domowych"]
[1,null,2,3,4,5,6,7,8,9,10,11,12,13,14,15,16,17]
["E. ZOBOWIĄZANIA WG TYTUŁÓW DŁUŻNYCH (E1+E2+E3+E4)",null,{"$f":"C26+C29+C32+C33","v":0},0,0,0,0,0,0,0,0,0,0,0,0,{"$f":"P26+P29+P32+P33","v":0},{"$f":"Q26+Q29+Q32+Q33","v":0},{"$f":"R26+R29+R32+R33","v":0}]
[]
["E1. papiery wartościowe (E1.1+E1.2)",null,{"$f":"C27+C28","v":0},{"$f":"D27+D28","v":0},{"$f":"E27+E28","v":0},{"$f":"F27+F28","v":0},{"$f":"G27+G28","v":0},0,0,0,0,0,0,0,0,{"$f":"P27+P28","v":0},{"$f":"Q27+Q28","v":0},{"$f":"R27+R28","v":0}]
["      E1.1. krótkoterminowe",null,{"$f":"D27+P27","v":0},{"$f":"E27+J27+K27+L27+M27+N27+O27","v":0},{"$f":"F27+G27+H27+I27","v":0},null,null,null,null,null,null,null,null,null,null,{"$f":"Q27+R27","v":0}]
["      E1.2. długoterminowe",null,{"$f":"D28+P28","v":0},{"$f":"E28+J28+K28+L28+M28+N28+O28","v":0},{"$f":"F28+G28+H28+I28","v":0},null,null,null,null,null,null,null,null,null,null,{"$f":"Q28+R28","v":0}]
["E2. kredyty i pożyczki (E2.1+E2.2)",null,{"$f":"C30+C31","v":0},{"$f":"D30+D31","v":0},{"$f":"E30+E31","v":0},{"$f":"F30+F31","v":0},{"$f":"G30+G31","v":0},0,0,0,0,0,0,0,0,{"$f":"P30+P31","v":0},{"$f":"Q30+Q31","v":0},{"$f":"R30+R31","v":0}]
["      E2.1. krótkoterminowe",null,{"$f":"D30+P30","v":0},{"$f":"E30+J30+K30+L30+M30+N30+O30","v":0},{"$f":"F30+G30+H30+I30","v":0},null,null,null,null,null,null,null,null,null,null,{"$f":"Q30+R30","v":0}]
["      E2.2. długoterminowe",null,{"$f":"D31+P31","v":0},{"$f":"E31+J31+K31+L31+M31+N31+O31","v":0},{"$f":"F31+G31+H31+I31","v":0},null,null,null,null,null,null,null,null,null,null,{"$f":"Q31+R31","v":0}]
["E3. przyjęte depozyty",null,{"$f":"D32+P32","v":0},{"$f":"E32+J32+K32+L32+M32+N32+O32","v":0},{"$f":"F32+G32+H32+I32","v":0},null,null,null,null,null,null,null,null,null,null,{"$f":"Q32+R32","v":0}]
["E4. wymagalne zobowiązania (E4.1+E4.2)",null,{"$f":"C34+C35","v":0},{"$f":"D34+D35","v":0},{"$f":"E34+E35","v":0},{"$f":"F34+F35","v":0},{"$f":"G34+G35","v":0},0,0,0,0,0,0,0,0,{"$f":"P34+P35","v":0},{"$f":"Q34+Q35","v":0},{"$f":"R34+R35","v":0}]
["      E4.1. z tyt. dostaw towarów i usług",null,{"$f":"D34+P34","v":0},{"$f":"E34+J34+K34+L34+M34+N34+O34","v":0},{"$f":"F34+G34+H34+I34","v":0},null,null,null,null,null,null,null,null,null,null,{"$f":"Q34+R34","v":0}]
["      E4.2. pozostałe",null,{"$f":"D35+P35","v":0},{"$f":"E35+J35+K35+L35+M35+N35+O35","v":0},{"$f":"F35+G35+H35+I35","v":0},null,null,null,null,null,null,null,null,null,null,{"$f":"Q35+R35","v":0}]
[]
[" B. Poręczenia i gwarancje"]
[]
[null,null,null,null,null,null,"w i e r z y c i e l e "]
[null,null,null,null,null,"Kwota ","podmioty"]
[null,null,null,null,null,"zobowiązań","sektora","grupa  I","grupa II","grupa III","grupa IV","pozostałe "]
["Wyszczególnienie",null,null,null,null,"ogółem","finansów",null,null,null,null,"podmioty"]
[null,null,null,null,null,"(kol. 3+8)","publicznych"]
[null,null,null,null,null,null,"(kol.4+5+6+7)"]
[1,null,null,null,null,2,3,4,5,6,7,8]
["F1. wartość nominalna niewymagalnych (potencjalnych) zobowiązań z tytułu udzielonych poręczeń i gwarancji na koniec okresu sprawozdawczego",null,null,null,null,{"$f":"G46+L46","v":0},{"$f":"H46+I46+J46+K46","v":0}]
["F2. wartość nominalna wymagalnych zobowiązań z tytułu udzielonych poręczeń i gwarancji na koniec okresu sprawozdawczego",null,null,null,null,{"$f":"G47+L47","v":0},{"$f":"H47+I47+J47+K47","v":0}]
["F3. wartość poręczeń i gwarancji udzielonych w okresie sprawozdawczym",null,null,null,null,{"$f":"G48+L48","v":0},{"$f":"H48+I48+J48+K48","v":0}]
[]
["C. Uzupełniające dane o niektórych zobowiązaniach jednostki samorządu terytorialnego"]
[]
["C1. Kredyty i pożyczki oraz wyemitowane papiery wartościowe na realizację programów, projektów lub zadań finansowanych z udziałem środków, o których mowa w art. 5 ust. 1 pkt 2 ustawy"]
["Lp.","Wyszczególnienie",null,null,null,"Z budżetu państwa\n ogółem ","w tym","Z innych źródeł\n ogółem","w tym"]
[null,null,null,null,null,null," długoterminowe",null,"długoterminowe"]
[1,2,null,null,null,3,4,5,6]
[1,"Ogółem kredyty i pożyczki oraz wyemitowane papiery wartościowe\nw tym:"]
[2," na współfinansowanie\n       (udział własny)",null,null,null,"X","X"]
[]
["C2. Zobowiązania związku współtworzonego przez jednostkę samorządu terytorialnego "]
["Wyszczególnienie ",null,null,"Plan","Wykonanie"]
[1,null,null,2,3]
["Zobowiązania związku współtworzonego przez jednostkę samorządu terytorialnego w okresie sprawozdawczym"]
[]
["C3. Zobowiązania zaliczane do tytułu dłużnego - kredyty i pożyczki "]
["Rodzaje zobowiązań zaliczanych do kredytów i pożyczek (E2. - część A)",null,null,"ogółem (kol. 3+4+6+7+8)","wierzyciele krajowi",null,null,null,null,"wierzyciele zagraniczni "]
[null,null,null,null,"banki","pozostałe krajowe instytucje finansowe   ogółem","w  tym","przedsiębiorstwa niefinansowe","pozostali wierzyciele"]
[null,null,null,null,null,null,"instytucje parabankowe"]
[1,null,null,2,3,4,5,6,7,8]
["1. umowy kredytu i pożyczki",null,null,{"$f":"E69+F69+H69+I69+J69","v":0}]
["2. umowy partnerstwa publiczno-prywatnego",null,null,{"$f":"E70+F70+H70+I70+J70","v":0}]
["3. papiery wartościowe, których zbywalność jest ograniczona ",null,null,0]
["4. sprzedaż na raty",null,null,0]
["5. leasing finansowy",null,null,0]
["6. umowy nienazwane o charakterze kredytu lub pożyczki ",null,null,0]
["Ogółem ",null,null,{"$f":"E75+F75+H75+I75+J75","v":0},{"$f":"SUM(E69:E74)","v":0},{"$f":"SUM(F69:F74)","v":0},0,0,0,{"$f":"SUM(J69:J74)","v":0}]
[]
["D. Dane o krótkoterminowych zobowiązaniach wynikających z umów nienazwanych związanych z finansowaniem usług, dostaw, robót budowlanych"]
[]
["Wyszczególnienie",null,"Kwota zobowiązań ogółem"]
[1,null,2]
["A. krótkoterminowe zobowiązania przejęte przez instytucje finansowe"]
["B. krótkoterminowe zobowiązania zrestrukturyzowane"]
[]
["E. Zobowiązania z tytułu odsetek jednostek posiadających osobowość prawną z wyłączeniem jednostek samorządu terytorialnego"]
[]
["Wyszczególnienie",null,"kwota zobowiązań ogółem\n(kol. 3+4)","odsetki naliczone od zobowiązań niewymagalnych","odsetki naliczone od zobowiązań wymagalnych"]
[1,null,2,3,4]
["Wartość odsetek ",null,{"$f":"D88+E88","v":0}]
[]
["F. Lista jednostek sporządzajacych sprawozdania"]
[]
["Lp.","REGON","REGON 9-cyfrowy","REGON 14-cyfrowy","Brak nr REGON","Nazwa jednostki"]
[1,null,null,null,null,null,null,null,{"$f":"regon9(B93)","v":false}]
[]
[]
[]
[]
[]
["…………………",null,null,"………………",null,"………………",null,null,"…………………"]
["Główny Księgowy* / Skarbnik",null,null,"telefon",null,"rok m-c dzień",null,null,"Kierownik jednostki (jednostki obsługującej)/ Przewodniczący Zarządu"]
["* Nie dotyczy sprawozdań zbiorczych sporządzanych przez RIO. W przypadku braku głównego księgowego podpisuje tylko kierownik jednostki."]
[]
[]
[]
[]
[null,null,null,null,null,null,null,null,null,null,null,null," "]

{"sheet":"61-samodz.publ.ZOZ państw.","index":6,"n_rows":106,"n_cols":21,"rows_kept":106,"cut":false,"hidden":false,"merged":[[78,0,78,1],[79,0,79,1],[54,1,54,4],[55,1,55,4],[56,1,56,4],[64,0,66,2],[64,3,66,3],[64,4,64,8],[72,0,72,2],[73,0,73,2],[74,0,74,2],[67,0,67,2],[68,0,68,2],[69,0,69,2],[70,0,70,2],[71,0,71,2],[3,13,6,16],[92,5,92,7],[85,0,85,1],[86,0,86,1],[87,0,87,1],[38,6,38,11],[22,0,22,1],[45,0,45,4],[47,0,47,4],[46,0,46,4],[52,0,53,0],[59,0,59,2],[60,0,60,2],[61,0,61,2],[80,0,80,1],[81,0,81,1],[52,7,53,7],[44,0,44,4],[10,2,10,4],[16,0,16,1],[9,2,9,4],[41,0,41,4],[52,1,53,4],[52,5,53,5],[3,3,3,10],[2,0,2,1],[5,0,5,1],[7,0,7,1],[23,0,23,1],[8,2,8,4],[64,9,66,9],[65,4,66,4],[65,5,66,5],[65,7,66,7],[65,8,66,8]]}
[]
["Nazwa jednostki sprawozdawczej ",null,null,"Rb-Z   KWARTALNE SPRAWOZDANIE O STANIE ZOBOWIĄZAŃ WG TYTUŁÓW DŁUŻNYCH ORAZ PORĘCZEŃ I GWARANCJI"]
[null,null,null,null,null,null,null,null,null,null,null,null,null,"Adresat"]
[null,null,null,"samodzielnego publicznego zakładu opieki zdrowotnej, dla którego podmiotem tworzącym jest minister, centralny organ administracji rządowej, wojewoda,  uczelnia medyczna",null,null,null,null,null,null,null,null,null,null,null,null,null,null,null,null,{"$f":"IF(A8=0,\"\",VALUE(A8))","v":""}]
["Adres jednostki sprawozdawczej"]
[]
["Numer identyfikacyjny REGON",null,"liczba identyfik.jedn."]
[null,null,null,null,null,"wg stanu na koniec",null,null,"kwartału","  roku"]
["Nazwa województwa",null,null,null,null,null,null,"SYMBOLE"]
["Nazwa powiatu / związku",null,null,null,null,"WOJ.","POWIAT","GMINA","TYP GM.","ZWIĄZEK JST","TYP ZW.","GRUPA","CZĘŚĆ BUDŻ."]
["Nazwa gminy / związku",null,null,null,null,null,null,null,null,null,null,61]
[]
[" A. Zobowiązania według tytułów dłużnych"]
[]
[null,null,null,null,null,null,null,"w i e r z y c i e l e   k r a j o w i",null,null,null,null,null,null,null,"             w i e r z y c i e l e   z a g r a n i c z n i "]
[null,null,"kwota"]
["Wyszczególnienie",null,"zadłużenia",null,"sektor",null,null,null,null,null,null,null,null,null,"instytucje"]
[null,null,"ogółem","ogółem","finansów","grupa I","grupa II","grupa III","grupa IV","bank","banki","pozostałe","przedsiębiorstwa ","gospodarstwa","niekomercyjne",null,"podmioty","pozostałe"]
[null,null,"(kol. 3+15)","(kol 4+9+10+11+","publicznych",null,null,null,null,"centralny",null,"krajowe","niefinansowe","domowe","działające ","ogółem","należące ","podmioty"]
[null,null,null,"12+13+14)","ogółem",null,null,null,null,null,null,"instytucje",null,null,"na rzecz",null,"do strefy","zagraniczne"]
[null,null,null,null,"(kol 5+6+7+8)",null,null,null,null,null,null,"finansowe",null,null,"gospodarstw","(kol. 16+17)","euro"]
[null,null,null,null,null,null,null,null,null,null,null,null,null,null,"domowych"]
[1,null,2,3,4,5,6,7,8,9,10,11,12,13,14,15,16,17]
["E. ZOBOWIĄZANIA WG TYTUŁÓW DŁUŻNYCH (E1+E2+E3+E4)",null,{"$f":"C26+C29+C32+C33","v":0},0,0,0,0,0,0,0,0,0,0,0,0,{"$f":"P26+P29+P32+P33","v":0},{"$f":"Q26+Q29+Q32+Q33","v":0},{"$f":"R26+R29+R32+R33","v":0}]
[]
["E1. papiery wartościowe (E1.1+E1.2)",null,{"$f":"C27+C28","v":0},{"$f":"D27+D28","v":0},{"$f":"E27+E28","v":0},{"$f":"F27+F28","v":0},{"$f":"G27+G28","v":0},0,0,0,0,0,0,0,0,{"$f":"P27+P28","v":0},{"$f":"Q27+Q28","v":0},{"$f":"R27+R28","v":0}]
["      E1.1. krótkoterminowe",null,{"$f":"D27+P27","v":0},{"$f":"E27+J27+K27+L27+M27+N27+O27","v":0},{"$f":"F27+G27+H27+I27","v":0},null,null,null,null,null,null,null,null,null,null,{"$f":"Q27+R27","v":0}]
["      E1.2. długoterminowe",null,{"$f":"D28+P28","v":0},{"$f":"E28+J28+K28+L28+M28+N28+O28","v":0},{"$f":"F28+G28+H28+I28","v":0},null,null,null,null,null,null,null,null,null,null,{"$f":"Q28+R28","v":0}]
["E2. kredyty i pożyczki (E2.1+E2.2)",null,{"$f":"C30+C31","v":0},{"$f":"D30+D31","v":0},{"$f":"E30+E31","v":0},{"$f":"F30+F31","v":0},{"$f":"G30+G31","v":0},0,0,0,0,0,0,0,0,{"$f":"P30+P31","v":0},{"$f":"Q30+Q31","v":0},{"$f":"R30+R31","v":0}]
["      E2.1. krótkoterminowe",null,{"$f":"D30+P30","v":0},{"$f":"E30+J30+K30+L30+M30+N30+O30","v":0},{"$f":"F30+G30+H30+I30","v":0},null,null,null,null,null,null,null,null,null,null,{"$f":"Q30+R30","v":0}]
["      E2.2. długoterminowe",null,{"$f":"D31+P31","v":0},{"$f":"E31+J31+K31+L31+M31+N31+O31","v":0},{"$f":"F31+G31+H31+I31","v":0},null,null,null,null,null,null,null,null,null,null,{"$f":"Q31+R31","v":0}]
["E3. przyjęte depozyty",null,{"$f":"D32+P32","v":0},{"$f":"E32+J32+K32+L32+M32+N32+O32","v":0},{"$f":"F32+G32+H32+I32","v":0},null,null,null,null,null,null,null,null,null,null,{"$f":"Q32+R32","v":0}]
["E4. wymagalne zobowiązania (E4.1+E4.2)",null,{"$f":"C34+C35","v":0},{"$f":"D34+D35","v":0},{"$f":"E34+E35","v":0},{"$f":"F34+F35","v":0},{"$f":"G34+G35","v":0},0,0,0,0,0,0,0,0,{"$f":"P34+P35","v":0},{"$f":"Q34+Q35","v":0},{"$f":"R34+R35","v":0}]
["      E4.1. z tyt. dostaw towarów i usług",null,{"$f":"D34+P34","v":0},{"$f":"E34+J34+K34+L34+M34+N34+O34","v":0},{"$f":"F34+G34+H34+I34","v":0},null,null,null,null,null,null,null,null,null,null,{"$f":"Q34+R34","v":0}]
["      E4.2. pozostałe",null,{"$f":"D35+P35","v":0},{"$f":"E35+J35+K35+L35+M35+N35+O35","v":0},{"$f":"F35+G35+H35+I35","v":0},null,null,null,null,null,null,null,null,null,null,{"$f":"Q35+R35","v":0}]
[]
[" B. Poręczenia i gwarancje"]
[]
[null,null,null,null,null,null,"w i e r z y c i e l e "]
[null,null,null,null,null,"Kwota ","podmioty"]
[null,null,null,null,null,"zobowiązań","sektora","grupa  I","grupa II","grupa III","grupa IV","pozostałe "]
["Wyszczególnienie",null,null,null,null,"ogółem","finansów",null,null,null,null,"podmioty"]
[null,null,null,null,null,"(kol. 3+8)","publicznych"]
[null,null,null,null,null,null,"(kol.4+5+6+7)"]
[1,null,null,null,null,2,3,4,5,6,7,8]
["F1. wartość nominalna niewymagalnych (potencjalnych) zobowiązań z tytułu udzielonych poręczeń i gwarancji na koniec okresu sprawozdawczego",null,null,null,null,{"$f":"G46+L46","v":0},{"$f":"H46+I46+J46+K46","v":0}]
["F2. wartość nominalna wymagalnych zobowiązań z tytułu udzielonych poręczeń i gwarancji na koniec okresu sprawozdawczego",null,null,null,null,{"$f":"G47+L47","v":0},{"$f":"H47+I47+J47+K47","v":0}]
["F3. wartość poręczeń i gwarancji udzielonych w okresie sprawozdawczym",null,null,null,null,{"$f":"G48+L48","v":0},{"$f":"H48+I48+J48+K48","v":0}]
[]
["C. Uzupełniające dane o niektórych zobowiązaniach jednostki samorządu terytorialnego"]
[]
["C1. Kredyty i pożyczki oraz wyemitowane papiery wartościowe na realizację programów, projektów lub zadań finansowanych z udziałem środków, o których mowa w art. 5 ust. 1 pkt 2 ustawy"]
["Lp.","Wyszczególnienie",null,null,null,"Z budżetu państwa\n ogółem ","w tym","Z innych źródeł\n ogółem","w tym"]
[null,null,null,null,null,null," długoterminowe",null,"długoterminowe"]
[1,2,null,null,null,3,4,5,6]
[1,"Ogółem kredyty i pożyczki oraz wyemitowane papiery wartościowe\nw tym:"]
[2," na współfinansowanie\n       (udział własny)",null,null,null,"X","X"]
[]
["C2. Zobowiązania związku współtworzonego przez jednostkę samorządu terytorialnego "]
["Wyszczególnienie ",null,null,"Plan","Wykonanie"]
[1,null,null,2,3]
["Zobowiązania związku współtworzonego przez jednostkę samorządu terytorialnego w okresie sprawozdawczym"]
[]
["C3. Zobowiązania zaliczane do tytułu dłużnego - kredyty i pożyczki "]
["Rodzaje zobowiązań zaliczanych do kredytów i pożyczek (E2. - część A)",null,null,"ogółem (kol. 3+4+6+7+8)","wierzyciele krajowi",null,null,null,null,"wierzyciele zagraniczni "]
[null,null,null,null,"banki","pozostałe krajowe instytucje finansowe   ogółem","w  tym","przedsiębiorstwa niefinansowe","pozostali wierzyciele"]
[null,null,null,null,null,null,"instytucje parabankowe"]
[1,null,null,2,3,4,5,6,7,8]
["1. umowy kredytu i pożyczki",null,null,{"$f":"E69+F69+H69+I69+J69","v":0}]
["2. umowy partnerstwa publiczno-prywatnego",null,null,{"$f":"E70+F70+H70+I70+J70","v":0}]
["3. papiery wartościowe, których zbywalność jest ograniczona ",null,null,0]
["4. sprzedaż na raty",null,null,0]
["5. leasing finansowy",null,null,0]
["6. umowy nienazwane o charakterze kredytu lub pożyczki ",null,null,0]
["Ogółem ",null,null,{"$f":"E75+F75+H75+I75+J75","v":0},{"$f":"SUM(E69:E74)","v":0},{"$f":"SUM(F69:F74)","v":0},0,0,0,{"$f":"SUM(J69:J74)","v":0}]
[]
["D. Dane o krótkoterminowych zobowiązaniach wynikających z umów nienazwanych związanych z finansowaniem usług, dostaw, robót budowlanych"]
[]
["Wyszczególnienie",null,"Kwota zobowiązań ogółem"]
[1,null,2]
["A. krótkoterminowe zobowiązania przejęte przez instytucje finansowe"]
["B. krótkoterminowe zobowiązania zrestrukturyzowane"]
[]
["E. Zobowiązania z tytułu odsetek jednostek posiadających osobowość prawną z wyłączeniem jednostek samorządu terytorialnego"]
[]
["Wyszczególnienie",null,"kwota zobowiązań ogółem\n(kol. 3+4)","odsetki naliczone od zobowiązań niewymagalnych","odsetki naliczone od zobowiązań wymagalnych"]
[1,null,2,3,4]
["Wartość odsetek ",null,{"$f":"D88+E88","v":0}]
[]
["F. Lista jednostek sporządzajacych sprawozdania"]
[]
["Lp.","REGON","REGON 9-cyfrowy","REGON 14-cyfrowy","Brak nr REGON","Nazwa jednostki"]
[1,null,null,null,null,null,null,null,{"$f":"regon9(B93)","v":false}]
[]
[]
[]
[]
[]
["…………………",null,null,"………………",null,"………………",null,null,"…………………"]
["Główny Księgowy* / Skarbnik",null,null,"telefon",null,"rok m-c dzień",null,null,"Kierownik jednostki (jednostki obsługującej)/ Przewodniczący Zarządu"]
["* Nie dotyczy sprawozdań zbiorczych sporządzanych przez RIO. W przypadku braku głównego księgowego podpisuje tylko kierownik jednostki."]
[]
[]
[]
[]
[null,null,null,null,null,null,null,null,null,null,null,null," "]

{"sheet":"62-samodz.publ.ZOZ samorz.","index":7,"n_rows":106,"n_cols":21,"rows_kept":106,"cut":false,"hidden":false,"merged":[[60,0,60,2],[92,5,92,7],[85,0,85,1],[86,0,86,1],[87,0,87,1],[61,0,61,2],[80,0,80,1],[81,0,81,1],[78,0,78,1],[79,0,79,1],[64,0,66,2],[64,3,66,3],[64,4,64,8],[72,0,72,2],[73,0,73,2],[74,0,74,2],[59,0,59,2],[3,13,6,16],[23,0,23,1],[38,6,38,11],[22,0,22,1],[10,2,10,4],[16,0,16,1],[56,1,56,4],[52,5,53,5],[52,0,53,0],[52,7,53,7],[54,1,54,4],[55,1,55,4],[45,0,45,4],[47,0,47,4],[52,1,53,4],[2,0,2,1],[5,0,5,1],[7,0,7,1],[46,0,46,4],[9,2,9,4],[8,2,8,4],[41,0,41,4],[44,0,44,4],[64,9,66,9],[65,4,66,4],[65,5,66,5],[65,7,66,7],[65,8,66,8],[67,0,67,2],[68,0,68,2],[69,0,69,2],[70,0,70,2],[71,0,71,2]]}
[]
["Nazwa jednostki sprawozdawczej ",null,null,"Rb-Z   KWARTALNE SPRAWOZDANIE O STANIE ZOBOWIĄZAŃ WG TYTUŁÓW DŁUŻNYCH ORAZ PORĘCZEŃ I GWARANCJI"]
[null,null,null,null,null,null,null,null,null,null,null,null,null,"Adresat"]
[null,null,null,null,"samodzielnego publicznego zakładu opieki zdrowotnej, dla którego podmiotem tworzącym jest jednostka samorządu terytorialnego",null,null,null,null,null,null,null,null,null,null,null,null,null,null,null,{"$f":"IF(A8=0,\"\",VALUE(A8))","v":""}]
["Adres jednostki sprawozdawczej"]
[]
["Numer identyfikacyjny REGON",null,"liczba identyfik.jedn."]
[null,null,null,null,null,"wg stanu na koniec",null,null,"kwartału","  roku"]
["Nazwa województwa",null,null,null,null,null,null,"SYMBOLE"]
["Nazwa powiatu / związku",null,null,null,null,"WOJ.","POWIAT","GMINA","TYP GM.","ZWIĄZEK JST","TYP ZW.","GRUPA","CZĘŚĆ BUDŻ."]
["Nazwa gminy / związku",null,null,null,null,null,null,null,null,null,null,62]
[]
[" A. Zobowiązania według tytułów dłużnych"]
[]
[null,null,null,null,null,null,null,"w i e r z y c i e l e   k r a j o w i",null,null,null,null,null,null,null,"             w i e r z y c i e l e   z a g r a n i c z n i "]
[null,null,"kwota"]
["Wyszczególnienie",null,"zadłużenia",null,"sektor",null,null,null,null,null,null,null,null,null,"instytucje"]
[null,null,"ogółem","ogółem","finansów","grupa I","grupa II","grupa III","grupa IV","bank","banki","pozostałe","przedsiębiorstwa ","gospodarstwa","niekomercyjne",null,"podmioty","pozostałe"]
[null,null,"(kol. 3+15)","(kol 4+9+10+11+","publicznych",null,null,null,null,"centralny",null,"krajowe","niefinansowe","domowe","działające ","ogółem","należące ","podmioty"]
[null,null,null,"12+13+14)","ogółem",null,null,null,null,null,null,"instytucje",null,null,"na rzecz",null,"do strefy","zagraniczne"]
[null,null,null,null,"(kol 5+6+7+8)",null,null,null,null,null,null,"finansowe",null,null,"gospodarstw","(kol. 16+17)","euro"]
[null,null,null,null,null,null,null,null,null,null,null,null,null,null,"domowych"]
[1,null,2,3,4,5,6,7,8,9,10,11,12,13,14,15,16,17]
["E. ZOBOWIĄZANIA WG TYTUŁÓW DŁUŻNYCH (E1+E2+E3+E4)",null,{"$f":"C26+C29+C32+C33","v":0},0,0,0,0,0,0,0,0,0,0,0,0,{"$f":"P26+P29+P32+P33","v":0},{"$f":"Q26+Q29+Q32+Q33","v":0},{"$f":"R26+R29+R32+R33","v":0}]
[]
["E1. papiery wartościowe (E1.1+E1.2)",null,{"$f":"C27+C28","v":0},{"$f":"D27+D28","v":0},{"$f":"E27+E28","v":0},{"$f":"F27+F28","v":0},{"$f":"G27+G28","v":0},0,0,0,0,0,0,0,0,{"$f":"P27+P28","v":0},{"$f":"Q27+Q28","v":0},{"$f":"R27+R28","v":0}]
["      E1.1. krótkoterminowe",null,{"$f":"D27+P27","v":0},{"$f":"E27+J27+K27+L27+M27+N27+O27","v":0},{"$f":"F27+G27+H27+I27","v":0},null,null,null,null,null,null,null,null,null,null,{"$f":"Q27+R27","v":0}]
["      E1.2. długoterminowe",null,{"$f":"D28+P28","v":0},{"$f":"E28+J28+K28+L28+M28+N28+O28","v":0},{"$f":"F28+G28+H28+I28","v":0},null,null,null,null,null,null,null,null,null,null,{"$f":"Q28+R28","v":0}]
["E2. kredyty i pożyczki (E2.1+E2.2)",null,{"$f":"C30+C31","v":0},{"$f":"D30+D31","v":0},{"$f":"E30+E31","v":0},{"$f":"F30+F31","v":0},{"$f":"G30+G31","v":0},0,0,0,0,0,0,0,0,{"$f":"P30+P31","v":0},{"$f":"Q30+Q31","v":0},{"$f":"R30+R31","v":0}]
["      E2.1. krótkoterminowe",null,{"$f":"D30+P30","v":0},{"$f":"E30+J30+K30+L30+M30+N30+O30","v":0},{"$f":"F30+G30+H30+I30","v":0},null,null,null,null,null,null,null,null,null,null,{"$f":"Q30+R30","v":0}]
["      E2.2. długoterminowe",null,{"$f":"D31+P31","v":0},{"$f":"E31+J31+K31+L31+M31+N31+O31","v":0},{"$f":"F31+G31+H31+I31","v":0},null,null,null,null,null,null,null,null,null,null,{"$f":"Q31+R31","v":0}]
["E3. przyjęte depozyty",null,{"$f":"D32+P32","v":0},{"$f":"E32+J32+K32+L32+M32+N32+O32","v":0},{"$f":"F32+G32+H32+I32","v":0},null,null,null,null,null,null,null,null,null,null,{"$f":"Q32+R32","v":0}]
["E4. wymagalne zobowiązania (E4.1+E4.2)",null,{"$f":"C34+C35","v":0},{"$f":"D34+D35","v":0},{"$f":"E34+E35","v":0},{"$f":"F34+F35","v":0},{"$f":"G34+G35","v":0},0,0,0,0,0,0,0,0,{"$f":"P34+P35","v":0},{"$f":"Q34+Q35","v":0},{"$f":"R34+R35","v":0}]
["      E4.1. z tyt. dostaw towarów i usług",null,{"$f":"D34+P34","v":0},{"$f":"E34+J34+K34+L34+M34+N34+O34","v":0},{"$f":"F34+G34+H34+I34","v":0},null,null,null,null,null,null,null,null,null,null,{"$f":"Q34+R34","v":0}]
["      E4.2. pozostałe",null,{"$f":"D35+P35","v":0},{"$f":"E35+J35+K35+L35+M35+N35+O35","v":0},{"$f":"F35+G35+H35+I35","v":0},null,null,null,null,null,null,null,null,null,null,{"$f":"Q35+R35","v":0}]
[]
[" B. Poręczenia i gwarancje"]
[]
[null,null,null,null,null,null,"w i e r z y c i e l e "]
[null,null,null,null,null,"Kwota ","podmioty"]
[null,null,null,null,null,"zobowiązań","sektora","grupa  I","grupa II","grupa III","grupa IV","pozostałe "]
["Wyszczególnienie",null,null,null,null,"ogółem","finansów",null,null,null,null,"podmioty"]
[null,null,null,null,null,"(kol. 3+8)","publicznych"]
[null,null,null,null,null,null,"(kol.4+5+6+7)"]
[1,null,null,null,null,2,3,4,5,6,7,8]
["F1. wartość nominalna niewymagalnych (potencjalnych) zobowiązań z tytułu udzielonych poręczeń i gwarancji na koniec okresu sprawozdawczego",null,null,null,null,{"$f":"G46+L46","v":0},{"$f":"H46+I46+J46+K46","v":0}]
["F2. wartość nominalna wymagalnych zobowiązań z tytułu udzielonych poręczeń i gwarancji na koniec okresu sprawozdawczego",null,null,null,null,{"$f":"G47+L47","v":0},{"$f":"H47+I47+J47+K47","v":0}]
["F3. wartość poręczeń i gwarancji udzielonych w okresie sprawozdawczym",null,null,null,null,{"$f":"G48+L48","v":0},{"$f":"H48+I48+J48+K48","v":0}]
[]
["C. Uzupełniające dane o niektórych zobowiązaniach jednostki samorządu terytorialnego"]
[]
["C1. Kredyty i pożyczki oraz wyemitowane papiery wartościowe na realizację programów, projektów lub zadań finansowanych z udziałem środków, o których mowa w art. 5 ust. 1 pkt 2 ustawy"]
["Lp.","Wyszczególnienie",null,null,null,"Z budżetu państwa\n ogółem ","w tym","Z innych źródeł\n ogółem","w tym"]
[null,null,null,null,null,null," długoterminowe",null,"długoterminowe"]
[1,2,null,null,null,3,4,5,6]
[1,"Ogółem kredyty i pożyczki oraz wyemitowane papiery wartościowe\nw tym:"]
[2," na współfinansowanie\n       (udział własny)",null,null,null,"X","X"]
[]
["C2. Zobowiązania związku współtworzonego przez jednostkę samorządu terytorialnego "]
["Wyszczególnienie ",null,null,"Plan","Wykonanie"]
[1,null,null,2,3]
["Zobowiązania związku współtworzonego przez jednostkę samorządu terytorialnego w okresie sprawozdawczym"]
[]
["C3. Zobowiązania zaliczane do tytułu dłużnego - kredyty i pożyczki "]
["Rodzaje zobowiązań zaliczanych do kredytów i pożyczek (E2. - część A)",null,null,"ogółem (kol. 3+4+6+7+8)","wierzyciele krajowi",null,null,null,null,"wierzyciele zagraniczni "]
[null,null,null,null,"banki","pozostałe krajowe instytucje finansowe   ogółem","w  tym","przedsiębiorstwa niefinansowe","pozostali wierzyciele"]
[null,null,null,null,null,null,"instytucje parabankowe"]
[1,null,null,2,3,4,5,6,7,8]
["1. umowy kredytu i pożyczki",null,null,{"$f":"E69+F69+H69+I69+J69","v":0}]
["2. umowy partnerstwa publiczno-prywatnego",null,null,{"$f":"E70+F70+H70+I70+J70","v":0}]
["3. papiery wartościowe, których zbywalność jest ograniczona ",null,null,0]
["4. sprzedaż na raty",null,null,0]
["5. leasing finansowy",null,null,0]
["6. umowy nienazwane o charakterze kredytu lub pożyczki ",null,null,0]
["Ogółem ",null,null,{"$f":"E75+F75+H75+I75+J75","v":0},{"$f":"SUM(E69:E74)","v":0},{"$f":"SUM(F69:F74)","v":0},0,0,0,{"$f":"SUM(J69:J74)","v":0}]
[]
["D. Dane o krótkoterminowych zobowiązaniach wynikających z umów nienazwanych związanych z finansowaniem usług, dostaw, robót budowlanych"]
[]
["Wyszczególnienie",null,"Kwota zobowiązań ogółem"]
[1,null,2]
["A. krótkoterminowe zobowiązania przejęte przez instytucje finansowe"]
["B. krótkoterminowe zobowiązania zrestrukturyzowane"]
[]
["E. Zobowiązania z tytułu odsetek jednostek posiadających osobowość prawną z wyłączeniem jednostek samorządu terytorialnego"]
[]
["Wyszczególnienie",null,"kwota zobowiązań ogółem\n(kol. 3+4)","odsetki naliczone od zobowiązań niewymagalnych","odsetki naliczone od zobowiązań wymagalnych"]
[1,null,2,3,4]
["Wartość odsetek ",null,{"$f":"D88+E88","v":0}]
[]
["F. Lista jednostek sporządzajacych sprawozdania"]
[]
["Lp.","REGON","REGON 9-cyfrowy","REGON 14-cyfrowy","Brak nr REGON","Nazwa jednostki"]
[1,null,null,null,null,null,null,null,{"$f":"regon9(B93)","v":false}]
[]
[]
[]
[]
[]
["…………………",null,null,"………………",null,"………………",null,null,"…………………"]
["Główny Księgowy* / Skarbnik",null,null,"telefon",null,"rok m-c dzień",null,null,"Kierownik jednostki (jednostki obsługującej)/ Przewodniczący Zarządu"]
["* Nie dotyczy sprawozdań zbiorczych sporządzanych przez RIO. W przypadku braku głównego księgowego podpisuje tylko kierownik jednostki."]
[]
[]
[]
[]
[null,null,null,null,null,null,null,null,null,null,null,null," "]

{"sheet":"63-Narodowy Fundusz Zdrowia","index":8,"n_rows":106,"n_cols":21,"rows_kept":106,"cut":false,"hidden":false,"merged":[[60,0,60,2],[92,5,92,7],[85,0,85,1],[86,0,86,1],[87,0,87,1],[61,0,61,2],[80,0,80,1],[81,0,81,1],[78,0,78,1],[79,0,79,1],[64,0,66,2],[64,3,66,3],[64,4,64,8],[72,0,72,2],[73,0,73,2],[74,0,74,2],[59,0,59,2],[3,13,6,16],[23,0,23,1],[38,6,38,11],[22,0,22,1],[10,2,10,4],[16,0,16,1],[56,1,56,4],[52,5,53,5],[52,0,53,0],[52,7,53,7],[54,1,54,4],[55,1,55,4],[45,0,45,4],[47,0,47,4],[52,1,53,4],[2,0,2,1],[5,0,5,1],[7,0,7,1],[46,0,46,4],[9,2,9,4],[8,2,8,4],[41,0,41,4],[44,0,44,4],[64,9,66,9],[65,4,66,4],[65,5,66,5],[65,7,66,7],[65,8,66,8],[67,0,67,2],[68,0,68,2],[69,0,69,2],[70,0,70,2],[71,0,71,2]]}
[]
["Nazwa jednostki sprawozdawczej ",null,null,"Rb-Z   KWARTALNE SPRAWOZDANIE O STANIE ZOBOWIĄZAŃ WG TYTUŁÓW DŁUŻNYCH ORAZ PORĘCZEŃ I GWARANCJI"]
[null,null,null,null,null,null,null,null,null,null,null,null,null,"Adresat"]
[null,null,null,null,null,"Narodowego Funduszu Zdrowia",null,null,null,null,null,null,null,null,null,null,null,null,null,null,{"$f":"IF(A8=0,\"\",VALUE(A8))","v":""}]
["Adres jednostki sprawozdawczej"]
[]
["Numer identyfikacyjny REGON",null,"liczba identyfik.jedn."]
[null,null,null,null,null,"wg stanu na koniec",null,null,"kwartału","  roku"]
["Nazwa województwa",null,null,null,null,null,null,"SYMBOLE"]
["Nazwa powiatu / związku",null,null,null,null,"WOJ.","POWIAT","GMINA","TYP GM.","ZWIĄZEK JST","TYP ZW.","GRUPA","CZĘŚĆ BUDŻ."]
["Nazwa gminy / związku",null,null,null,null,null,null,null,null,null,null,63]
[]
[" A. Zobowiązania według tytułów dłużnych"]
[]
[null,null,null,null,null,null,null,"w i e r z y c i e l e   k r a j o w i",null,null,null,null,null,null,null,"             w i e r z y c i e l e   z a g r a n i c z n i "]
[null,null,"kwota"]
["Wyszczególnienie",null,"zadłużenia",null,"sektor",null,null,null,null,null,null,null,null,null,"instytucje"]
[null,null,"ogółem","ogółem","finansów","grupa I","grupa II","grupa III","grupa IV","bank","banki","pozostałe","przedsiębiorstwa ","gospodarstwa","niekomercyjne",null,"podmioty","pozostałe"]
[null,null,"(kol. 3+15)","(kol 4+9+10+11+","publicznych",null,null,null,null,"centralny",null,"krajowe","niefinansowe","domowe","działające ","ogółem","należące ","podmioty"]
[null,null,null,"12+13+14)","ogółem",null,null,null,null,null,null,"instytucje",null,null,"na rzecz",null,"do strefy","zagraniczne"]
[null,null,null,null,"(kol 5+6+7+8)",null,null,null,null,null,null,"finansowe",null,null,"gospodarstw","(kol. 16+17)","euro"]
[null,null,null,null,null,null,null,null,null,null,null,null,null,null,"domowych"]
[1,null,2,3,4,5,6,7,8,9,10,11,12,13,14,15,16,17]
["E. ZOBOWIĄZANIA WG TYTUŁÓW DŁUŻNYCH (E1+E2+E3+E4)",null,{"$f":"C26+C29+C32+C33","v":0},0,0,0,0,0,0,0,0,0,0,0,0,{"$f":"P26+P29+P32+P33","v":0},{"$f":"Q26+Q29+Q32+Q33","v":0},{"$f":"R26+R29+R32+R33","v":0}]
[]
["E1. papiery wartościowe (E1.1+E1.2)",null,{"$f":"C27+C28","v":0},{"$f":"D27+D28","v":0},{"$f":"E27+E28","v":0},{"$f":"F27+F28","v":0},{"$f":"G27+G28","v":0},0,0,0,0,0,0,0,0,{"$f":"P27+P28","v":0},{"$f":"Q27+Q28","v":0},{"$f":"R27+R28","v":0}]
["      E1.1. krótkoterminowe",null,{"$f":"D27+P27","v":0},{"$f":"E27+J27+K27+L27+M27+N27+O27","v":0},{"$f":"F27+G27+H27+I27","v":0},null,null,null,null,null,null,null,null,null,null,{"$f":"Q27+R27","v":0}]
["      E1.2. długoterminowe",null,{"$f":"D28+P28","v":0},{"$f":"E28+J28+K28+L28+M28+N28+O28","v":0},{"$f":"F28+G28+H28+I28","v":0},null,null,null,null,null,null,null,null,null,null,{"$f":"Q28+R28","v":0}]
["E2. kredyty i pożyczki (E2.1+E2.2)",null,{"$f":"C30+C31","v":0},{"$f":"D30+D31","v":0},{"$f":"E30+E31","v":0},{"$f":"F30+F31","v":0},{"$f":"G30+G31","v":0},0,0,0,0,0,0,0,0,{"$f":"P30+P31","v":0},{"$f":"Q30+Q31","v":0},{"$f":"R30+R31","v":0}]
["      E2.1. krótkoterminowe",null,{"$f":"D30+P30","v":0},{"$f":"E30+J30+K30+L30+M30+N30+O30","v":0},{"$f":"F30+G30+H30+I30","v":0},null,null,null,null,null,null,null,null,null,null,{"$f":"Q30+R30","v":0}]
["      E2.2. długoterminowe",null,{"$f":"D31+P31","v":0},{"$f":"E31+J31+K31+L31+M31+N31+O31","v":0},{"$f":"F31+G31+H31+I31","v":0},null,null,null,null,null,null,null,null,null,null,{"$f":"Q31+R31","v":0}]
["E3. przyjęte depozyty",null,{"$f":"D32+P32","v":0},{"$f":"E32+J32+K32+L32+M32+N32+O32","v":0},{"$f":"F32+G32+H32+I32","v":0},null,null,null,null,null,null,null,null,null,null,{"$f":"Q32+R32","v":0}]
["E4. wymagalne zobowiązania (E4.1+E4.2)",null,{"$f":"C34+C35","v":0},{"$f":"D34+D35","v":0},{"$f":"E34+E35","v":0},{"$f":"F34+F35","v":0},{"$f":"G34+G35","v":0},0,0,0,0,0,0,0,0,{"$f":"P34+P35","v":0},{"$f":"Q34+Q35","v":0},{"$f":"R34+R35","v":0}]
["      E4.1. z tyt. dostaw towarów i usług",null,{"$f":"D34+P34","v":0},{"$f":"E34+J34+K34+L34+M34+N34+O34","v":0},{"$f":"F34+G34+H34+I34","v":0},null,null,null,null,null,null,null,null,null,null,{"$f":"Q34+R34","v":0}]
["      E4.2. pozostałe",null,{"$f":"D35+P35","v":0},{"$f":"E35+J35+K35+L35+M35+N35+O35","v":0},{"$f":"F35+G35+H35+I35","v":0},null,null,null,null,null,null,null,null,null,null,{"$f":"Q35+R35","v":0}]
[]
[" B. Poręczenia i gwarancje"]
[]
[null,null,null,null,null,null,"w i e r z y c i e l e "]
[null,null,null,null,null,"Kwota ","podmioty"]
[null,null,null,null,null,"zobowiązań","sektora","grupa  I","grupa II","grupa III","grupa IV","pozostałe "]
["Wyszczególnienie",null,null,null,null,"ogółem","finansów",null,null,null,null,"podmioty"]
[null,null,null,null,null,"(kol. 3+8)","publicznych"]
[null,null,null,null,null,null,"(kol.4+5+6+7)"]
[1,null,null,null,null,2,3,4,5,6,7,8]
["F1. wartość nominalna niewymagalnych (potencjalnych) zobowiązań z tytułu udzielonych poręczeń i gwarancji na koniec okresu sprawozdawczego",null,null,null,null,{"$f":"G46+L46","v":0},{"$f":"H46+I46+J46+K46","v":0}]
["F2. wartość nominalna wymagalnych zobowiązań z tytułu udzielonych poręczeń i gwarancji na koniec okresu sprawozdawczego",null,null,null,null,{"$f":"G47+L47","v":0},{"$f":"H47+I47+J47+K47","v":0}]
["F3. wartość poręczeń i gwarancji udzielonych w okresie sprawozdawczym",null,null,null,null,{"$f":"G48+L48","v":0},{"$f":"H48+I48+J48+K48","v":0}]
[]
["C. Uzupełniające dane o niektórych zobowiązaniach jednostki samorządu terytorialnego"]
[]
["C1. Kredyty i pożyczki oraz wyemitowane papiery wartościowe na realizację programów, projektów lub zadań finansowanych z udziałem środków, o których mowa w art. 5 ust. 1 pkt 2 ustawy"]
["Lp.","Wyszczególnienie",null,null,null,"Z budżetu państwa\n ogółem ","w tym","Z innych źródeł\n ogółem","w tym"]
[null,null,null,null,null,null," długoterminowe",null,"długoterminowe"]
[1,2,null,null,null,3,4,5,6]
[1,"Ogółem kredyty i pożyczki oraz wyemitowane papiery wartościowe\nw tym:"]
[2," na współfinansowanie\n       (udział własny)",null,null,null,"X","X"]
[]
["C2. Zobowiązania związku współtworzonego przez jednostkę samorządu terytorialnego "]
["Wyszczególnienie ",null,null,"Plan","Wykonanie"]
[1,null,null,2,3]
["Zobowiązania związku współtworzonego przez jednostkę samorządu terytorialnego w okresie sprawozdawczym"]
[]
["C3. Zobowiązania zaliczane do tytułu dłużnego - kredyty i pożyczki "]
["Rodzaje zobowiązań zaliczanych do kredytów i pożyczek (E2. - część A)",null,null,"ogółem (kol. 3+4+6+7+8)","wierzyciele krajowi",null,null,null,null,"wierzyciele zagraniczni "]
[null,null,null,null,"banki","pozostałe krajowe instytucje finansowe   ogółem","w  tym","przedsiębiorstwa niefinansowe","pozostali wierzyciele"]
[null,null,null,null,null,null,"instytucje parabankowe"]
[1,null,null,2,3,4,5,6,7,8]
["1. umowy kredytu i pożyczki",null,null,{"$f":"E69+F69+H69+I69+J69","v":0}]
["2. umowy partnerstwa publiczno-prywatnego",null,null,{"$f":"E70+F70+H70+I70+J70","v":0}]
["3. papiery wartościowe, których zbywalność jest ograniczona ",null,null,0]
["4. sprzedaż na raty",null,null,0]
["5. leasing finansowy",null,null,0]
["6. umowy nienazwane o charakterze kredytu lub pożyczki ",null,null,0]
["Ogółem ",null,null,{"$f":"E75+F75+H75+I75+J75","v":0},{"$f":"SUM(E69:E74)","v":0},{"$f":"SUM(F69:F74)","v":0},0,0,0,{"$f":"SUM(J69:J74)","v":0}]
[]
["D. Dane o krótkoterminowych zobowiązaniach wynikających z umów nienazwanych związanych z finansowaniem usług, dostaw, robót budowlanych"]
[]
["Wyszczególnienie",null,"Kwota zobowiązań ogółem"]
[1,null,2]
["A. krótkoterminowe zobowiązania przejęte przez instytucje finansowe"]
["B. krótkoterminowe zobowiązania zrestrukturyzowane"]
[]
["E. Zobowiązania z tytułu odsetek jednostek posiadających osobowość prawną z wyłączeniem jednostek samorządu terytorialnego"]
[]
["Wyszczególnienie",null,"kwota zobowiązań ogółem\n(kol. 3+4)","odsetki naliczone od zobowiązań niewymagalnych","odsetki naliczone od zobowiązań wymagalnych"]
[1,null,2,3,4]
["Wartość odsetek ",null,{"$f":"D88+E88","v":0}]
[]
["F. Lista jednostek sporządzajacych sprawozdania"]
[]
["Lp.","REGON","REGON 9-cyfrowy","REGON 14-cyfrowy","Brak nr REGON","Nazwa jednostki"]
[1,null,null,null,null,null,null,null,{"$f":"regon9(B93)","v":false}]
[]
[]
[]
[]
[]
["…………………",null,null,"………………",null,"………………",null,null,"…………………"]
["Główny Księgowy* / Skarbnik",null,null,"telefon",null,"rok m-c dzień",null,null,"Kierownik jednostki (jednostki obsługującej)/ Przewodniczący Zarządu"]
["* Nie dotyczy sprawozdań zbiorczych sporządzanych przez RIO. W przypadku braku głównego księgowego podpisuje tylko kierownik jednostki."]
[]
[]
[]
[]
[null,null,null,null,null,null,null,null,null,null,null,null," "]

{"sheet":"71-ZUS","index":9,"n_rows":106,"n_cols":21,"rows_kept":106,"cut":false,"hidden":false,"merged":[[80,0,80,1],[60,0,60,2],[61,0,61,2],[78,0,78,1],[79,0,79,1],[64,0,66,2],[67,0,67,2],[68,0,68,2],[69,0,69,2],[70,0,70,2],[71,0,71,2],[72,0,72,2],[73,0,73,2],[74,0,74,2],[92,5,92,7],[85,0,85,1],[86,0,86,1],[87,0,87,1],[81,0,81,1],[3,13,6,16],[46,0,46,4],[47,0,47,4],[41,0,41,4],[38,6,38,11],[8,2,8,4],[9,2,9,4],[44,0,44,4],[23,0,23,1],[2,0,2,1],[5,0,5,1],[7,0,7,1],[52,0,53,0],[52,1,53,4],[22,0,22,1],[45,0,45,4],[10,2,10,4],[16,0,16,1],[52,7,53,7],[64,9,66,9],[65,4,66,4],[65,5,66,5],[65,7,66,7],[65,8,66,8],[52,5,53,5],[54,1,54,4],[55,1,55,4],[59,0,59,2],[56,1,56,4],[64,3,66,3],[64,4,64,8]]}
[]
["Nazwa jednostki sprawozdawczej ",null,null,"Rb-Z   KWARTALNE SPRAWOZDANIE O STANIE ZOBOWIĄZAŃ WG TYTUŁÓW DŁUŻNYCH ORAZ PORĘCZEŃ I GWARANCJI"]
[null,null,null,null,null,null,null,null,null,null,null,null,null,"Adresat"]
[null,null,null,null,null,"ZUS",null,null,null,null,null,null,null,null,null,null,null,null,null,null,{"$f":"IF(A8=0,\"\",VALUE(A8))","v":""}]
["Adres jednostki sprawozdawczej"]
[]
["Numer identyfikacyjny REGON",null,"liczba identyfik.jedn."]
[null,null,null,null,null,"wg stanu na koniec",null,null,"kwartału","  roku"]
["Nazwa województwa",null,null,null,null,null,null,"SYMBOLE"]
["Nazwa powiatu / związku",null,null,null,null,"WOJ.","POWIAT","GMINA","TYP GM.","ZWIĄZEK JST","TYP ZW.","GRUPA","CZĘŚĆ BUDŻ."]
["Nazwa gminy / związku",null,null,null,null,null,null,null,null,null,null,71]
[]
[" A. Zobowiązania według tytułów dłużnych"]
[]
[null,null,null,null,null,null,null,"w i e r z y c i e l e   k r a j o w i",null,null,null,null,null,null,null,"             w i e r z y c i e l e   z a g r a n i c z n i "]
[null,null,"kwota"]
["Wyszczególnienie",null,"zadłużenia",null,"sektor",null,null,null,null,null,null,null,null,null,"instytucje"]
[null,null,"ogółem","ogółem","finansów","grupa I","grupa II","grupa III","grupa IV","bank","banki","pozostałe","przedsiębiorstwa ","gospodarstwa","niekomercyjne",null,"podmioty","pozostałe"]
[null,null,"(kol. 3+15)","(kol 4+9+10+11+","publicznych",null,null,null,null,"centralny",null,"krajowe","niefinansowe","domowe","działające ","ogółem","należące ","podmioty"]
[null,null,null,"12+13+14)","ogółem",null,null,null,null,null,null,"instytucje",null,null,"na rzecz",null,"do strefy","zagraniczne"]
[null,null,null,null,"(kol 5+6+7+8)",null,null,null,null,null,null,"finansowe",null,null,"gospodarstw","(kol. 16+17)","euro"]
[null,null,null,null,null,null,null,null,null,null,null,null,null,null,"domowych"]
[1,null,2,3,4,5,6,7,8,9,10,11,12,13,14,15,16,17]
["E. ZOBOWIĄZANIA WG TYTUŁÓW DŁUŻNYCH (E1+E2+E3+E4)",null,{"$f":"C26+C29+C32+C33","v":0},0,0,0,0,0,0,0,0,0,0,0,0,0,0,0]
[]
["E1. papiery wartościowe (E1.1+E1.2)",null,{"$f":"C27+C28","v":0},0,0,0,0,0,0,0,0,0,0,0,0,0,0,0]
["      E1.1. krótkoterminowe",null,{"$f":"D27+P27","v":0},{"$f":"E27+J27+K27+L27+M27+N27+O27","v":0},{"$f":"F27+G27+H27+I27","v":0},null,null,null,null,null,null,null,null,null,null,{"$f":"Q27+R27","v":0}]
["      E1.2. długoterminowe",null,{"$f":"D28+P28","v":0},{"$f":"E28+J28+K28+L28+M28+N28+O28","v":0},{"$f":"F28+G28+H28+I28","v":0},null,null,null,null,null,null,null,null,null,null,{"$f":"Q28+R28","v":0}]
["E2. kredyty i pożyczki (E2.1+E2.2)",null,{"$f":"C30+C31","v":0},0,0,0,0,0,0,0,0,0,0,0,0,0,0,0]
["      E2.1. krótkoterminowe",null,{"$f":"D30+P30","v":0},{"$f":"E30+J30+K30+L30+M30+N30+O30","v":0},{"$f":"F30+G30+H30+I30","v":0},null,null,null,null,null,null,null,null,null,null,{"$f":"Q30+R30","v":0}]
["      E2.2. długoterminowe",null,{"$f":"D31+P31","v":0},{"$f":"E31+J31+K31+L31+M31+N31+O31","v":0},{"$f":"F31+G31+H31+I31","v":0},null,null,null,null,null,null,null,null,null,null,{"$f":"Q31+R31","v":0}]
["E3. przyjęte depozyty",null,{"$f":"D32+P32","v":0},{"$f":"E32+J32+K32+L32+M32+N32+O32","v":0},{"$f":"F32+G32+H32+I32","v":0},null,null,null,null,null,null,null,null,null,null,{"$f":"Q32+R32","v":0}]
["E4. wymagalne zobowiązania (E4.1+E4.2)",null,{"$f":"C34+C35","v":0},0,0,0,0,0,0,0,0,0,0,0,0,0,0,0]
["      E4.1. z tyt. dostaw towarów i usług",null,{"$f":"D34+P34","v":0},{"$f":"E34+J34+K34+L34+M34+N34+O34","v":0},{"$f":"F34+G34+H34+I34","v":0},null,null,null,null,null,null,null,null,null,null,{"$f":"Q34+R34","v":0}]
["      E4.2. pozostałe",null,{"$f":"D35+P35","v":0},{"$f":"E35+J35+K35+L35+M35+N35+O35","v":0},{"$f":"F35+G35+H35+I35","v":0},null,null,null,null,null,null,null,null,null,null,{"$f":"Q35+R35","v":0}]
[]
[" B. Poręczenia i gwarancje"]
[]
[null,null,null,null,null,null,"w i e r z y c i e l e "]
[null,null,null,null,null,"Kwota ","podmioty"]
[null,null,null,null,null,"zobowiązań","sektora","grupa  I","grupa II","grupa III","grupa IV","pozostałe "]
["Wyszczególnienie",null,null,null,null,"ogółem","finansów",null,null,null,null,"podmioty"]
[null,null,null,null,null,"(kol. 3+8)","publicznych"]
[null,null,null,null,null,null,"(kol.4+5+6+7)"]
[1,null,null,null,null,2,3,4,5,6,7,8]
["F1. wartość nominalna niewymagalnych (potencjalnych) zobowiązań z tytułu udzielonych poręczeń i gwarancji na koniec okresu sprawozdawczego",null,null,null,null,{"$f":"G46+L46","v":0},{"$f":"H46+I46+J46+K46","v":0}]
["F2. wartość nominalna wymagalnych zobowiązań z tytułu udzielonych poręczeń i gwarancji na koniec okresu sprawozdawczego",null,null,null,null,{"$f":"G47+L47","v":0},{"$f":"H47+I47+J47+K47","v":0}]
["F3. wartość poręczeń i gwarancji udzielonych w okresie sprawozdawczym",null,null,null,null,{"$f":"G48+L48","v":0},{"$f":"H48+I48+J48+K48","v":0}]
[]
["C. Uzupełniające dane o niektórych zobowiązaniach jednostki samorządu terytorialnego"]
[]
["C1. Kredyty i pożyczki oraz wyemitowane papiery wartościowe na realizację programów, projektów lub zadań finansowanych z udziałem środków, o których mowa w art. 5 ust. 1 pkt 2 ustawy"]
["Lp.","Wyszczególnienie",null,null,null,"Z budżetu państwa\n ogółem ","w tym","Z innych źródeł\n ogółem","w tym"]
[null,null,null,null,null,null," długoterminowe",null,"długoterminowe"]
[1,2,null,null,null,3,4,5,6]
[1,"Ogółem kredyty i pożyczki oraz wyemitowane papiery wartościowe\nw tym:"]
[2," na współfinansowanie\n       (udział własny)",null,null,null,"X","X"]
[]
["C2. Zobowiązania związku współtworzonego przez jednostkę samorządu terytorialnego "]
["Wyszczególnienie ",null,null,"Plan","Wykonanie"]
[1,null,null,2,3]
["Zobowiązania związku współtworzonego przez jednostkę samorządu terytorialnego w okresie sprawozdawczym"]
[]
["C3. Zobowiązania zaliczane do tytułu dłużnego - kredyty i pożyczki "]
["Rodzaje zobowiązań zaliczanych do kredytów i pożyczek (E2. - część A)",null,null,"ogółem (kol. 3+4+6+7+8)","wierzyciele krajowi",null,null,null,null,"wierzyciele zagraniczni "]
[null,null,null,null,"banki","pozostałe krajowe instytucje finansowe   ogółem","w  tym","przedsiębiorstwa niefinansowe","pozostali wierzyciele"]
[null,null,null,null,null,null,"instytucje parabankowe"]
[1,null,null,2,3,4,5,6,7,8]
["1. umowy kredytu i pożyczki",null,null,{"$f":"E69+F69+H69+I69+J69","v":0}]
["2. umowy partnerstwa publiczno-prywatnego",null,null,{"$f":"E70+F70+H70+I70+J70","v":0}]
["3. papiery wartościowe, których zbywalność jest ograniczona ",null,null,0]
["4. sprzedaż na raty",null,null,0]
["5. leasing finansowy",null,null,0]
["6. umowy nienazwane o charakterze kredytu lub pożyczki ",null,null,0]
["Ogółem ",null,null,{"$f":"E75+F75+H75+I75+J75","v":0},{"$f":"SUM(E69:E74)","v":0},{"$f":"SUM(F69:F74)","v":0},0,0,0,{"$f":"SUM(J69:J74)","v":0}]
[]
["D. Dane o krótkoterminowych zobowiązaniach wynikających z umów nienazwanych związanych z finansowaniem usług, dostaw, robót budowlanych"]
[]
["Wyszczególnienie",null,"Kwota zobowiązań ogółem"]
[1,null,2]
["A. krótkoterminowe zobowiązania przejęte przez instytucje finansowe"]
["B. krótkoterminowe zobowiązania zrestrukturyzowane"]
[]
["E. Zobowiązania z tytułu odsetek jednostek posiadających osobowość prawną z wyłączeniem jednostek samorządu terytorialnego"]
[]
["Wyszczególnienie",null,"kwota zobowiązań ogółem\n(kol. 3+4)","odsetki naliczone od zobowiązań niewymagalnych","odsetki naliczone od zobowiązań wymagalnych"]
[1,null,2,3,4]
["Wartość odsetek ",null,{"$f":"D88+E88","v":0}]
[]
["F. Lista jednostek sporządzajacych sprawozdania"]
[]
["Lp.","REGON","REGON 9-cyfrowy","REGON 14-cyfrowy","Brak nr REGON","Nazwa jednostki"]
[1,null,null,null,null,null,null,null,{"$f":"regon9(B93)","v":false}]
[]
[]
[]
[]
[]
["…………………",null,null,"………………",null,"………………",null,null,"…………………"]
["Główny Księgowy* / Skarbnik",null,null,"telefon",null,"rok m-c dzień",null,null,"Kierownik jednostki (jednostki obsługującej)/ Przewodniczący Zarządu"]
["* Nie dotyczy sprawozdań zbiorczych sporządzanych przez RIO. W przypadku braku głównego księgowego podpisuje tylko kierownik jednostki."]
[]
[]
[]
[]
[null,null,null,null,null,null,null,null,null,null,null,null," "]

{"sheet":"72-fund.zarz.przez ZUS","index":10,"n_rows":106,"n_cols":21,"rows_kept":106,"cut":false,"hidden":false,"merged":[[59,0,59,2],[52,5,53,5],[52,7,53,7],[54,1,54,4],[55,1,55,4],[56,1,56,4],[52,0,53,0],[52,1,53,4],[80,0,80,1],[81,0,81,1],[64,0,66,2],[67,0,67,2],[68,0,68,2],[69,0,69,2],[70,0,70,2],[71,0,71,2],[72,0,72,2],[73,0,73,2],[74,0,74,2],[87,0,87,1],[92,5,92,7],[3,13,6,16],[38,6,38,11],[22,0,22,1],[23,0,23,1],[9,2,9,4],[10,2,10,4],[16,0,16,1],[47,0,47,4],[85,0,85,1],[86,0,86,1],[60,0,60,2],[61,0,61,2],[78,0,78,1],[79,0,79,1],[45,0,45,4],[46,0,46,4],[2,0,2,1],[5,0,5,1],[7,0,7,1],[8,2,8,4],[41,0,41,4],[44,0,44,4],[64,3,66,3],[64,4,64,8],[64,9,66,9],[65,4,66,4],[65,5,66,5],[65,7,66,7],[65,8,66,8]]}
[]
["Nazwa jednostki sprawozdawczej ",null,null,"Rb-Z   KWARTALNE SPRAWOZDANIE O STANIE ZOBOWIĄZAŃ WG TYTUŁÓW DŁUŻNYCH ORAZ PORĘCZEŃ I GWARANCJI"]
[null,null,null,null,null,null,null,null,null,null,null,null,null,"Adresat"]
[null,null,null,null,null,"funduszy zarządzanych przez ZUS",null,null,null,null,null,null,null,null,null,null,null,null,null,null,{"$f":"IF(A8=0,\"\",VALUE(A8))","v":""}]
["Adres jednostki sprawozdawczej"]
[]
["Numer identyfikacyjny REGON",null,"liczba identyfik.jedn."]
[null,null,null,null,null,"wg stanu na koniec",null,null,"kwartału","  roku"]
["Nazwa województwa",null,null,null,null,null,null,"SYMBOLE"]
["Nazwa powiatu / związku",null,null,null,null,"WOJ.","POWIAT","GMINA","TYP GM.","ZWIĄZEK JST","TYP ZW.","GRUPA","CZĘŚĆ BUDŻ."]
["Nazwa gminy / związku",null,null,null,null,null,null,null,null,null,null,72]
[]
[" A. Zobowiązania według tytułów dłużnych"]
[]
[null,null,null,null,null,null,null,"w i e r z y c i e l e   k r a j o w i",null,null,null,null,null,null,null,"             w i e r z y c i e l e   z a g r a n i c z n i "]
[null,null,"kwota"]
["Wyszczególnienie",null,"zadłużenia",null,"sektor",null,null,null,null,null,null,null,null,null,"instytucje"]
[null,null,"ogółem","ogółem","finansów","grupa I","grupa II","grupa III","grupa IV","bank","banki","pozostałe","przedsiębiorstwa ","gospodarstwa","niekomercyjne",null,"podmioty","pozostałe"]
[null,null,"(kol. 3+15)","(kol 4+9+10+11+","publicznych",null,null,null,null,"centralny",null,"krajowe","niefinansowe","domowe","działające ","ogółem","należące ","podmioty"]
[null,null,null,"12+13+14)","ogółem",null,null,null,null,null,null,"instytucje",null,null,"na rzecz",null,"do strefy","zagraniczne"]
[null,null,null,null,"(kol 5+6+7+8)",null,null,null,null,null,null,"finansowe",null,null,"gospodarstw","(kol. 16+17)","euro"]
[null,null,null,null,null,null,null,null,null,null,null,null,null,null,"domowych"]
[1,null,2,3,4,5,6,7,8,9,10,11,12,13,14,15,16,17]
["E. ZOBOWIĄZANIA WG TYTUŁÓW DŁUŻNYCH (E1+E2+E3+E4)",null,{"$f":"C26+C29+C32+C33","v":0},0,0,0,0,0,0,0,0,0,0,0,0,{"$f":"P26+P29+P32+P33","v":0},{"$f":"Q26+Q29+Q32+Q33","v":0},{"$f":"R26+R29+R32+R33","v":0}]
[]
["E1. papiery wartościowe (E1.1+E1.2)",null,{"$f":"C27+C28","v":0},{"$f":"D27+D28","v":0},{"$f":"E27+E28","v":0},{"$f":"F27+F28","v":0},{"$f":"G27+G28","v":0},0,0,0,0,0,0,0,0,{"$f":"P27+P28","v":0},{"$f":"Q27+Q28","v":0},{"$f":"R27+R28","v":0}]
["      E1.1. krótkoterminowe",null,{"$f":"D27+P27","v":0},{"$f":"E27+J27+K27+L27+M27+N27+O27","v":0},{"$f":"F27+G27+H27+I27","v":0},null,null,null,null,null,null,null,null,null,null,{"$f":"Q27+R27","v":0}]
["      E1.2. długoterminowe",null,{"$f":"D28+P28","v":0},{"$f":"E28+J28+K28+L28+M28+N28+O28","v":0},{"$f":"F28+G28+H28+I28","v":0},null,null,null,null,null,null,null,null,null,null,{"$f":"Q28+R28","v":0}]
["E2. kredyty i pożyczki (E2.1+E2.2)",null,{"$f":"C30+C31","v":0},{"$f":"D30+D31","v":0},{"$f":"E30+E31","v":0},{"$f":"F30+F31","v":0},{"$f":"G30+G31","v":0},0,0,0,0,0,0,0,0,{"$f":"P30+P31","v":0},{"$f":"Q30+Q31","v":0},{"$f":"R30+R31","v":0}]
["      E2.1. krótkoterminowe",null,{"$f":"D30+P30","v":0},{"$f":"E30+J30+K30+L30+M30+N30+O30","v":0},{"$f":"F30+G30+H30+I30","v":0},null,null,null,null,null,null,null,null,null,null,{"$f":"Q30+R30","v":0}]
["      E2.2. długoterminowe",null,{"$f":"D31+P31","v":0},{"$f":"E31+J31+K31+L31+M31+N31+O31","v":0},{"$f":"F31+G31+H31+I31","v":0},null,null,null,null,null,null,null,null,null,null,{"$f":"Q31+R31","v":0}]
["E3. przyjęte depozyty",null,{"$f":"D32+P32","v":0},{"$f":"E32+J32+K32+L32+M32+N32+O32","v":0},{"$f":"F32+G32+H32+I32","v":0},null,null,null,null,null,null,null,null,null,null,{"$f":"Q32+R32","v":0}]
["E4. wymagalne zobowiązania (E4.1+E4.2)",null,{"$f":"C34+C35","v":0},{"$f":"D34+D35","v":0},{"$f":"E34+E35","v":0},{"$f":"F34+F35","v":0},{"$f":"G34+G35","v":0},0,0,0,0,0,0,0,0,{"$f":"P34+P35","v":0},{"$f":"Q34+Q35","v":0},{"$f":"R34+R35","v":0}]
["      E4.1. z tyt. dostaw towarów i usług",null,{"$f":"D34+P34","v":0},{"$f":"E34+J34+K34+L34+M34+N34+O34","v":0},{"$f":"F34+G34+H34+I34","v":0},null,null,null,null,null,null,null,null,null,null,{"$f":"Q34+R34","v":0}]
["      E4.2. pozostałe",null,{"$f":"D35+P35","v":0},{"$f":"E35+J35+K35+L35+M35+N35+O35","v":0},{"$f":"F35+G35+H35+I35","v":0},null,null,null,null,null,null,null,null,null,null,{"$f":"Q35+R35","v":0}]
[]
[" B. Poręczenia i gwarancje"]
[]
[null,null,null,null,null,null,"w i e r z y c i e l e "]
[null,null,null,null,null,"Kwota ","podmioty"]
[null,null,null,null,null,"zobowiązań","sektora","grupa  I","grupa II","grupa III","grupa IV","pozostałe "]
["Wyszczególnienie",null,null,null,null,"ogółem","finansów",null,null,null,null,"podmioty"]
[null,null,null,null,null,"(kol. 3+8)","publicznych"]
[null,null,null,null,null,null,"(kol.4+5+6+7)"]
[1,null,null,null,null,2,3,4,5,6,7,8]
["F1. wartość nominalna niewymagalnych (potencjalnych) zobowiązań z tytułu udzielonych poręczeń i gwarancji na koniec okresu sprawozdawczego",null,null,null,null,{"$f":"G46+L46","v":0},{"$f":"H46+I46+J46+K46","v":0}]
["F2. wartość nominalna wymagalnych zobowiązań z tytułu udzielonych poręczeń i gwarancji na koniec okresu sprawozdawczego",null,null,null,null,{"$f":"G47+L47","v":0},{"$f":"H47+I47+J47+K47","v":0}]
["F3. wartość poręczeń i gwarancji udzielonych w okresie sprawozdawczym",null,null,null,null,{"$f":"G48+L48","v":0},{"$f":"H48+I48+J48+K48","v":0}]
[]
["C. Uzupełniające dane o niektórych zobowiązaniach jednostki samorządu terytorialnego"]
[]
["C1. Kredyty i pożyczki oraz wyemitowane papiery wartościowe na realizację programów, projektów lub zadań finansowanych z udziałem środków, o których mowa w art. 5 ust. 1 pkt 2 ustawy"]
["Lp.","Wyszczególnienie",null,null,null,"Z budżetu państwa\n ogółem ","w tym","Z innych źródeł\n ogółem","w tym"]
[null,null,null,null,null,null," długoterminowe",null,"długoterminowe"]
[1,2,null,null,null,3,4,5,6]
[1,"Ogółem kredyty i pożyczki oraz wyemitowane papiery wartościowe\nw tym:"]
[2," na współfinansowanie\n       (udział własny)",null,null,null,"X","X"]
[]
["C2. Zobowiązania związku współtworzonego przez jednostkę samorządu terytorialnego "]
["Wyszczególnienie ",null,null,"Plan","Wykonanie"]
[1,null,null,2,3]
["Zobowiązania związku współtworzonego przez jednostkę samorządu terytorialnego w okresie sprawozdawczym"]
[]
["C3. Zobowiązania zaliczane do tytułu dłużnego - kredyty i pożyczki "]
["Rodzaje zobowiązań zaliczanych do kredytów i pożyczek (E2. - część A)",null,null,"ogółem (kol. 3+4+6+7+8)","wierzyciele krajowi",null,null,null,null,"wierzyciele zagraniczni "]
[null,null,null,null,"banki","pozostałe krajowe instytucje finansowe   ogółem","w  tym","przedsiębiorstwa niefinansowe","pozostali wierzyciele"]
[null,null,null,null,null,null,"instytucje parabankowe"]
[1,null,null,2,3,4,5,6,7,8]
["1. umowy kredytu i pożyczki",null,null,{"$f":"E69+F69+H69+I69+J69","v":0}]
["2. umowy partnerstwa publiczno-prywatnego",null,null,{"$f":"E70+F70+H70+I70+J70","v":0}]
["3. papiery wartościowe, których zbywalność jest ograniczona ",null,null,0]
["4. sprzedaż na raty",null,null,0]
["5. leasing finansowy",null,null,0]
["6. umowy nienazwane o charakterze kredytu lub pożyczki ",null,null,0]
["Ogółem ",null,null,{"$f":"E75+F75+H75+I75+J75","v":0},{"$f":"SUM(E69:E74)","v":0},{"$f":"SUM(F69:F74)","v":0},0,0,0,{"$f":"SUM(J69:J74)","v":0}]
[]
["D. Dane o krótkoterminowych zobowiązaniach wynikających z umów nienazwanych związanych z finansowaniem usług, dostaw, robót budowlanych"]
[]
["Wyszczególnienie",null,"Kwota zobowiązań ogółem"]
[1,null,2]
["A. krótkoterminowe zobowiązania przejęte przez instytucje finansowe"]
["B. krótkoterminowe zobowiązania zrestrukturyzowane"]
[]
["E. Zobowiązania z tytułu odsetek jednostek posiadających osobowość prawną z wyłączeniem jednostek samorządu terytorialnego"]
[]
["Wyszczególnienie",null,"kwota zobowiązań ogółem\n(kol. 3+4)","odsetki naliczone od zobowiązań niewymagalnych","odsetki naliczone od zobowiązań wymagalnych"]
[1,null,2,3,4]
["Wartość odsetek ",null,{"$f":"D88+E88","v":0}]
[]
["F. Lista jednostek sporządzajacych sprawozdania"]
[]
["Lp.","REGON","REGON 9-cyfrowy","REGON 14-cyfrowy","Brak nr REGON","Nazwa jednostki"]
[1,null,null,null,null,null,null,null,{"$f":"regon9(B93)","v":false}]
[]
[]
[]
[]
[]
["…………………",null,null,"………………",null,"………………",null,null,"…………………"]
["Główny Księgowy* / Skarbnik",null,null,"telefon",null,"rok m-c dzień",null,null,"Kierownik jednostki (jednostki obsługującej)/ Przewodniczący Zarządu"]
["* Nie dotyczy sprawozdań zbiorczych sporządzanych przez RIO. W przypadku braku głównego księgowego podpisuje tylko kierownik jednostki."]
[]
[]
[]
[]
[null,null,null,null,null,null,null,null,null,null,null,null," "]

{"sheet":"73-KRUS","index":11,"n_rows":106,"n_cols":21,"rows_kept":106,"cut":false,"hidden":false,"merged":[[92,5,92,7],[47,0,47,4],[87,0,87,1],[52,7,53,7],[81,0,81,1],[78,0,78,1],[79,0,79,1],[80,0,80,1],[85,0,85,1],[86,0,86,1],[52,0,53,0],[54,1,54,4],[55,1,55,4],[56,1,56,4],[52,1,53,4],[61,0,61,2],[60,0,60,2],[2,0,2,1],[5,0,5,1],[7,0,7,1],[8,2,8,4],[59,0,59,2],[10,2,10,4],[46,0,46,4],[3,13,6,16],[38,6,38,11],[22,0,22,1],[23,0,23,1],[9,2,9,4],[52,5,53,5],[16,0,16,1],[41,0,41,4],[44,0,44,4],[45,0,45,4],[64,0,66,2],[64,3,66,3],[64,4,64,8],[64,9,66,9],[65,4,66,4],[65,5,66,5],[65,7,66,7],[65,8,66,8],[72,0,72,2],[73,0,73,2],[74,0,74,2],[67,0,67,2],[68,0,68,2],[69,0,69,2],[70,0,70,2],[71,0,71,2]]}
[]
["Nazwa jednostki sprawozdawczej ",null,null,"Rb-Z   KWARTALNE SPRAWOZDANIE O STANIE ZOBOWIĄZAŃ WG TYTUŁÓW DŁUŻNYCH ORAZ PORĘCZEŃ I GWARANCJI"]
[null,null,null,null,null,null,null,null,null,null,null,null,null,"Adresat"]
[null,null,null,null,null,"KRUS oraz funduszy zarządzanych przez Prezesa KRUS",null,null,null,null,null,null,null,null,null,null,null,null,null,null,{"$f":"IF(A8=0,\"\",VALUE(A8))","v":""}]
["Adres jednostki sprawozdawczej"]
[]
["Numer identyfikacyjny REGON",null,"liczba identyfik.jedn."]
[null,null,null,null,null,"wg stanu na koniec",null,null,"kwartału","  roku"]
["Nazwa województwa",null,null,null,null,null,null,"SYMBOLE"]
["Nazwa powiatu / związku",null,null,null,null,"WOJ.","POWIAT","GMINA","TYP GM.","ZWIĄZEK JST","TYP ZW.","GRUPA","CZĘŚĆ BUDŻ."]
["Nazwa gminy / związku",null,null,null,null,null,null,null,null,null,null,73]
[]
[" A. Zobowiązania według tytułów dłużnych"]
[]
[null,null,null,null,null,null,null,"w i e r z y c i e l e   k r a j o w i",null,null,null,null,null,null,null,"             w i e r z y c i e l e   z a g r a n i c z n i "]
[null,null,"kwota"]
["Wyszczególnienie",null,"zadłużenia",null,"sektor",null,null,null,null,null,null,null,null,null,"instytucje"]
[null,null,"ogółem","ogółem","finansów","grupa I","grupa II","grupa III","grupa IV","bank","banki","pozostałe","przedsiębiorstwa ","gospodarstwa","niekomercyjne",null,"podmioty","pozostałe"]
[null,null,"(kol. 3+15)","(kol 4+9+10+11+","publicznych",null,null,null,null,"centralny",null,"krajowe","niefinansowe","domowe","działające ","ogółem","należące ","podmioty"]
[null,null,null,"12+13+14)","ogółem",null,null,null,null,null,null,"instytucje",null,null,"na rzecz",null,"do strefy","zagraniczne"]
[null,null,null,null,"(kol 5+6+7+8)",null,null,null,null,null,null,"finansowe",null,null,"gospodarstw","(kol. 16+17)","euro"]
[null,null,null,null,null,null,null,null,null,null,null,null,null,null,"domowych"]
[1,null,2,3,4,5,6,7,8,9,10,11,12,13,14,15,16,17]
["E. ZOBOWIĄZANIA WG TYTUŁÓW DŁUŻNYCH (E1+E2+E3+E4)",null,{"$f":"C26+C29+C32+C33","v":0},0,0,0,0,0,0,0,0,0,0,0,0,0,0,0]
[]
["E1. papiery wartościowe (E1.1+E1.2)",null,{"$f":"C27+C28","v":0},0,0,0,0,0,0,0,0,0,0,0,0,0,0,0]
["      E1.1. krótkoterminowe",null,{"$f":"D27+P27","v":0},{"$f":"E27+J27+K27+L27+M27+N27+O27","v":0},{"$f":"F27+G27+H27+I27","v":0},null,null,null,null,null,null,null,null,null,null,{"$f":"Q27+R27","v":0}]
["      E1.2. długoterminowe",null,{"$f":"D28+P28","v":0},{"$f":"E28+J28+K28+L28+M28+N28+O28","v":0},{"$f":"F28+G28+H28+I28","v":0},null,null,null,null,null,null,null,null,null,null,{"$f":"Q28+R28","v":0}]
["E2. kredyty i pożyczki (E2.1+E2.2)",null,{"$f":"C30+C31","v":0},0,0,0,0,0,0,0,0,0,0,0,0,0,0,0]
["      E2.1. krótkoterminowe",null,{"$f":"D30+P30","v":0},{"$f":"E30+J30+K30+L30+M30+N30+O30","v":0},{"$f":"F30+G30+H30+I30","v":0},null,null,null,null,null,null,null,null,null,null,{"$f":"Q30+R30","v":0}]
["      E2.2. długoterminowe",null,{"$f":"D31+P31","v":0},{"$f":"E31+J31+K31+L31+M31+N31+O31","v":0},{"$f":"F31+G31+H31+I31","v":0},null,null,null,null,null,null,null,null,null,null,{"$f":"Q31+R31","v":0}]
["E3. przyjęte depozyty",null,{"$f":"D32+P32","v":0},{"$f":"E32+J32+K32+L32+M32+N32+O32","v":0},{"$f":"F32+G32+H32+I32","v":0},null,null,null,null,null,null,null,null,null,null,{"$f":"Q32+R32","v":0}]
["E4. wymagalne zobowiązania (E4.1+E4.2)",null,{"$f":"C34+C35","v":0},0,0,0,0,0,0,0,0,0,0,0,0,0,0,0]
["      E4.1. z tyt. dostaw towarów i usług",null,{"$f":"D34+P34","v":0},{"$f":"E34+J34+K34+L34+M34+N34+O34","v":0},{"$f":"F34+G34+H34+I34","v":0},null,null,null,null,null,null,null,null,null,null,{"$f":"Q34+R34","v":0}]
["      E4.2. pozostałe",null,{"$f":"D35+P35","v":0},{"$f":"E35+J35+K35+L35+M35+N35+O35","v":0},{"$f":"F35+G35+H35+I35","v":0},null,null,null,null,null,null,null,null,null,null,{"$f":"Q35+R35","v":0}]
[]
[" B. Poręczenia i gwarancje"]
[]
[null,null,null,null,null,null,"w i e r z y c i e l e "]
[null,null,null,null,null,"Kwota ","podmioty"]
[null,null,null,null,null,"zobowiązań","sektora","grupa  I","grupa II","grupa III","grupa IV","pozostałe "]
["Wyszczególnienie",null,null,null,null,"ogółem","finansów",null,null,null,null,"podmioty"]
[null,null,null,null,null,"(kol. 3+8)","publicznych"]
[null,null,null,null,null,null,"(kol.4+5+6+7)"]
[1,null,null,null,null,2,3,4,5,6,7,8]
["F1. wartość nominalna niewymagalnych (potencjalnych) zobowiązań z tytułu udzielonych poręczeń i gwarancji na koniec okresu sprawozdawczego",null,null,null,null,{"$f":"G46+L46","v":0},{"$f":"H46+I46+J46+K46","v":0}]
["F2. wartość nominalna wymagalnych zobowiązań z tytułu udzielonych poręczeń i gwarancji na koniec okresu sprawozdawczego",null,null,null,null,{"$f":"G47+L47","v":0},{"$f":"H47+I47+J47+K47","v":0}]
["F3. wartość poręczeń i gwarancji udzielonych w okresie sprawozdawczym",null,null,null,null,{"$f":"G48+L48","v":0},{"$f":"H48+I48+J48+K48","v":0}]
[]
["C. Uzupełniające dane o niektórych zobowiązaniach jednostki samorządu terytorialnego"]
[]
["C1. Kredyty i pożyczki oraz wyemitowane papiery wartościowe na realizację programów, projektów lub zadań finansowanych z udziałem środków, o których mowa w art. 5 ust. 1 pkt 2 ustawy"]
["Lp.","Wyszczególnienie",null,null,null,"Z budżetu państwa\n ogółem ","w tym","Z innych źródeł\n ogółem","w tym"]
[null,null,null,null,null,null," długoterminowe",null,"długoterminowe"]
[1,2,null,null,null,3,4,5,6]
[1,"Ogółem kredyty i pożyczki oraz wyemitowane papiery wartościowe\nw tym:"]
[2," na współfinansowanie\n       (udział własny)",null,null,null,"X","X"]
[]
["C2. Zobowiązania związku współtworzonego przez jednostkę samorządu terytorialnego "]
["Wyszczególnienie ",null,null,"Plan","Wykonanie"]
[1,null,null,2,3]
["Zobowiązania związku współtworzonego przez jednostkę samorządu terytorialnego w okresie sprawozdawczym"]
[]
["C3. Zobowiązania zaliczane do tytułu dłużnego - kredyty i pożyczki "]
["Rodzaje zobowiązań zaliczanych do kredytów i pożyczek (E2. - część A)",null,null,"ogółem (kol. 3+4+6+7+8)","wierzyciele krajowi",null,null,null,null,"wierzyciele zagraniczni "]
[null,null,null,null,"banki","pozostałe krajowe instytucje finansowe   ogółem","w  tym","przedsiębiorstwa niefinansowe","pozostali wierzyciele"]
[null,null,null,null,null,null,"instytucje parabankowe"]
[1,null,null,2,3,4,5,6,7,8]
["1. umowy kredytu i pożyczki",null,null,{"$f":"E69+F69+H69+I69+J69","v":0}]
["2. umowy partnerstwa publiczno-prywatnego",null,null,{"$f":"E70+F70+H70+I70+J70","v":0}]
["3. papiery wartościowe, których zbywalność jest ograniczona ",null,null,0]
["4. sprzedaż na raty",null,null,0]
["5. leasing finansowy",null,null,0]
["6. umowy nienazwane o charakterze kredytu lub pożyczki ",null,null,0]
["Ogółem ",null,null,{"$f":"E75+F75+H75+I75+J75","v":0},{"$f":"SUM(E69:E74)","v":0},{"$f":"SUM(F69:F74)","v":0},0,0,0,{"$f":"SUM(J69:J74)","v":0}]
[]
["D. Dane o krótkoterminowych zobowiązaniach wynikających z umów nienazwanych związanych z finansowaniem usług, dostaw, robót budowlanych"]
[]
["Wyszczególnienie",null,"Kwota zobowiązań ogółem"]
[1,null,2]
["A. krótkoterminowe zobowiązania przejęte przez instytucje finansowe"]
["B. krótkoterminowe zobowiązania zrestrukturyzowane"]
[]
["E. Zobowiązania z tytułu odsetek jednostek posiadających osobowość prawną z wyłączeniem jednostek samorządu terytorialnego"]
[]
["Wyszczególnienie",null,"kwota zobowiązań ogółem\n(kol. 3+4)","odsetki naliczone od zobowiązań niewymagalnych","odsetki naliczone od zobowiązań wymagalnych"]
[1,null,2,3,4]
["Wartość odsetek ",null,{"$f":"D88+E88","v":0}]
[]
["F. Lista jednostek sporządzajacych sprawozdania"]
[]
["Lp.","REGON","REGON 9-cyfrowy","REGON 14-cyfrowy","Brak nr REGON","Nazwa jednostki"]
[1,null,null,null,null,null,null,null,{"$f":"regon9(B93)","v":false}]
[]
[]
[]
[]
[]
["…………………",null,null,"………………",null,"………………",null,null,"…………………"]
["Główny Księgowy* / Skarbnik",null,null,"telefon",null,"rok m-c dzień",null,null,"Kierownik jednostki (jednostki obsługującej)/ Przewodniczący Zarządu"]
["* Nie dotyczy sprawozdań zbiorczych sporządzanych przez RIO. W przypadku braku głównego księgowego podpisuje tylko kierownik jednostki."]
[]
[]
[]
[]
[null,null,null,null,null,null,null,null,null,null,null,null," "]

{"sheet":"81-państw.osoba prawna","index":12,"n_rows":106,"n_cols":21,"rows_kept":106,"cut":false,"hidden":false,"merged":[[78,0,78,1],[79,0,79,1],[54,1,54,4],[55,1,55,4],[56,1,56,4],[64,0,66,2],[64,3,66,3],[64,4,64,8],[72,0,72,2],[73,0,73,2],[74,0,74,2],[67,0,67,2],[68,0,68,2],[69,0,69,2],[70,0,70,2],[71,0,71,2],[3,13,6,16],[92,5,92,7],[85,0,85,1],[86,0,86,1],[87,0,87,1],[38,6,38,11],[22,0,22,1],[45,0,45,4],[47,0,47,4],[46,0,46,4],[52,0,53,0],[59,0,59,2],[60,0,60,2],[61,0,61,2],[80,0,80,1],[81,0,81,1],[52,7,53,7],[44,0,44,4],[10,2,10,4],[16,0,16,1],[9,2,9,4],[41,0,41,4],[52,1,53,4],[52,5,53,5],[3,3,3,10],[2,0,2,1],[5,0,5,1],[7,0,7,1],[23,0,23,1],[8,2,8,4],[64,9,66,9],[65,4,66,4],[65,5,66,5],[65,7,66,7],[65,8,66,8]]}
[]
["Nazwa jednostki sprawozdawczej ",null,null,"Rb-Z   KWARTALNE SPRAWOZDANIE O STANIE ZOBOWIĄZAŃ WG TYTUŁÓW DŁUŻNYCH ORAZ PORĘCZEŃ I GWARANCJI"]
[null,null,null,null,null,null,null,null,null,null,null,null,null,"Adresat"]
[null,null,null,"państwowej osoby prawnej utworzonej na podstawie odrębnych ustaw w celu wykonywania zadań publicznych \n(z wyłączeniem agencji wykonawczych)",null,null,null,null,null,null,null,null,null,null,null,null,null,null,null,null,{"$f":"IF(A8=0,\"\",VALUE(A8))","v":""}]
["Adres jednostki sprawozdawczej"]
[]
["Numer identyfikacyjny REGON",null,"liczba identyfik.jedn."]
[null,null,null,null,null,"wg stanu na koniec",null,null,"kwartału","  roku"]
["Nazwa województwa",null,null,null,null,null,null,"SYMBOLE"]
["Nazwa powiatu / związku",null,null,null,null,"WOJ.","POWIAT","GMINA","TYP GM.","ZWIĄZEK JST","TYP ZW.","GRUPA","CZĘŚĆ BUDŻ."]
["Nazwa gminy / związku",null,null,null,null,null,null,null,null,null,null,81]
[]
[" A. Zobowiązania według tytułów dłużnych"]
[]
[null,null,null,null,null,null,null,"w i e r z y c i e l e   k r a j o w i",null,null,null,null,null,null,null,"             w i e r z y c i e l e   z a g r a n i c z n i "]
[null,null,"kwota"]
["Wyszczególnienie",null,"zadłużenia",null,"sektor",null,null,null,null,null,null,null,null,null,"instytucje"]
[null,null,"ogółem","ogółem","finansów","grupa I","grupa II","grupa III","grupa IV","bank","banki","pozostałe","przedsiębiorstwa ","gospodarstwa","niekomercyjne",null,"podmioty","pozostałe"]
[null,null,"(kol. 3+15)","(kol 4+9+10+11+","publicznych",null,null,null,null,"centralny",null,"krajowe","niefinansowe","domowe","działające ","ogółem","należące ","podmioty"]
[null,null,null,"12+13+14)","ogółem",null,null,null,null,null,null,"instytucje",null,null,"na rzecz",null,"do strefy","zagraniczne"]
[null,null,null,null,"(kol 5+6+7+8)",null,null,null,null,null,null,"finansowe",null,null,"gospodarstw","(kol. 16+17)","euro"]
[null,null,null,null,null,null,null,null,null,null,null,null,null,null,"domowych"]
[1,null,2,3,4,5,6,7,8,9,10,11,12,13,14,15,16,17]
["E. ZOBOWIĄZANIA WG TYTUŁÓW DŁUŻNYCH (E1+E2+E3+E4)",null,{"$f":"C26+C29+C32+C33","v":0},0,0,0,0,0,0,0,0,0,0,0,0,{"$f":"P26+P29+P32+P33","v":0},{"$f":"Q26+Q29+Q32+Q33","v":0},{"$f":"R26+R29+R32+R33","v":0}]
[]
["E1. papiery wartościowe (E1.1+E1.2)",null,{"$f":"C27+C28","v":0},{"$f":"D27+D28","v":0},{"$f":"E27+E28","v":0},{"$f":"F27+F28","v":0},{"$f":"G27+G28","v":0},0,0,0,0,0,0,0,0,{"$f":"P27+P28","v":0},{"$f":"Q27+Q28","v":0},{"$f":"R27+R28","v":0}]
["      E1.1. krótkoterminowe",null,{"$f":"D27+P27","v":0},{"$f":"E27+J27+K27+L27+M27+N27+O27","v":0},{"$f":"F27+G27+H27+I27","v":0},null,null,null,null,null,null,null,null,null,null,{"$f":"Q27+R27","v":0}]
["      E1.2. długoterminowe",null,{"$f":"D28+P28","v":0},{"$f":"E28+J28+K28+L28+M28+N28+O28","v":0},{"$f":"F28+G28+H28+I28","v":0},null,null,null,null,null,null,null,null,null,null,{"$f":"Q28+R28","v":0}]
["E2. kredyty i pożyczki (E2.1+E2.2)",null,{"$f":"C30+C31","v":0},{"$f":"D30+D31","v":0},{"$f":"E30+E31","v":0},{"$f":"F30+F31","v":0},{"$f":"G30+G31","v":0},0,0,0,0,0,0,0,0,{"$f":"P30+P31","v":0},{"$f":"Q30+Q31","v":0},{"$f":"R30+R31","v":0}]
["      E2.1. krótkoterminowe",null,{"$f":"D30+P30","v":0},{"$f":"E30+J30+K30+L30+M30+N30+O30","v":0},{"$f":"F30+G30+H30+I30","v":0},null,null,null,null,null,null,null,null,null,null,{"$f":"Q30+R30","v":0}]
["      E2.2. długoterminowe",null,{"$f":"D31+P31","v":0},{"$f":"E31+J31+K31+L31+M31+N31+O31","v":0},{"$f":"F31+G31+H31+I31","v":0},null,null,null,null,null,null,null,null,null,null,{"$f":"Q31+R31","v":0}]
["E3. przyjęte depozyty",null,{"$f":"D32+P32","v":0},{"$f":"E32+J32+K32+L32+M32+N32+O32","v":0},{"$f":"F32+G32+H32+I32","v":0},null,null,null,null,null,null,null,null,null,null,{"$f":"Q32+R32","v":0}]
["E4. wymagalne zobowiązania (E4.1+E4.2)",null,{"$f":"C34+C35","v":0},{"$f":"D34+D35","v":0},{"$f":"E34+E35","v":0},{"$f":"F34+F35","v":0},{"$f":"G34+G35","v":0},0,0,0,0,0,0,0,0,{"$f":"P34+P35","v":0},{"$f":"Q34+Q35","v":0},{"$f":"R34+R35","v":0}]
["      E4.1. z tyt. dostaw towarów i usług",null,{"$f":"D34+P34","v":0},{"$f":"E34+J34+K34+L34+M34+N34+O34","v":0},{"$f":"F34+G34+H34+I34","v":0},null,null,null,null,null,null,null,null,null,null,{"$f":"Q34+R34","v":0}]
["      E4.2. pozostałe",null,{"$f":"D35+P35","v":0},{"$f":"E35+J35+K35+L35+M35+N35+O35","v":0},{"$f":"F35+G35+H35+I35","v":0},null,null,null,null,null,null,null,null,null,null,{"$f":"Q35+R35","v":0}]
[]
[" B. Poręczenia i gwarancje"]
[]
[null,null,null,null,null,null,"w i e r z y c i e l e "]
[null,null,null,null,null,"Kwota ","podmioty"]
[null,null,null,null,null,"zobowiązań","sektora","grupa  I","grupa II","grupa III","grupa IV","pozostałe "]
["Wyszczególnienie",null,null,null,null,"ogółem","finansów",null,null,null,null,"podmioty"]
[null,null,null,null,null,"(kol. 3+8)","publicznych"]
[null,null,null,null,null,null,"(kol.4+5+6+7)"]
[1,null,null,null,null,2,3,4,5,6,7,8]
["F1. wartość nominalna niewymagalnych (potencjalnych) zobowiązań z tytułu udzielonych poręczeń i gwarancji na koniec okresu sprawozdawczego",null,null,null,null,{"$f":"G46+L46","v":0},{"$f":"H46+I46+J46+K46","v":0}]
["F2. wartość nominalna wymagalnych zobowiązań z tytułu udzielonych poręczeń i gwarancji na koniec okresu sprawozdawczego",null,null,null,null,{"$f":"G47+L47","v":0},{"$f":"H47+I47+J47+K47","v":0}]
["F3. wartość poręczeń i gwarancji udzielonych w okresie sprawozdawczym",null,null,null,null,{"$f":"G48+L48","v":0},{"$f":"H48+I48+J48+K48","v":0}]
[]
["C. Uzupełniające dane o niektórych zobowiązaniach jednostki samorządu terytorialnego"]
[]
["C1. Kredyty i pożyczki oraz wyemitowane papiery wartościowe na realizację programów, projektów lub zadań finansowanych z udziałem środków, o których mowa w art. 5 ust. 1 pkt 2 ustawy"]
["Lp.","Wyszczególnienie",null,null,null,"Z budżetu państwa\n ogółem ","w tym","Z innych źródeł\n ogółem","w tym"]
[null,null,null,null,null,null," długoterminowe",null,"długoterminowe"]
[1,2,null,null,null,3,4,5,6]
[1,"Ogółem kredyty i pożyczki oraz wyemitowane papiery wartościowe\nw tym:"]
[2," na współfinansowanie\n       (udział własny)",null,null,null,"X","X"]
[]
["C2. Zobowiązania związku współtworzonego przez jednostkę samorządu terytorialnego "]
["Wyszczególnienie ",null,null,"Plan","Wykonanie"]
[1,null,null,2,3]
["Zobowiązania związku współtworzonego przez jednostkę samorządu terytorialnego w okresie sprawozdawczym"]
[]
["C3. Zobowiązania zaliczane do tytułu dłużnego - kredyty i pożyczki "]
["Rodzaje zobowiązań zaliczanych do kredytów i pożyczek (E2. - część A)",null,null,"ogółem (kol. 3+4+6+7+8)","wierzyciele krajowi",null,null,null,null,"wierzyciele zagraniczni "]
[null,null,null,null,"banki","pozostałe krajowe instytucje finansowe   ogółem","w  tym","przedsiębiorstwa niefinansowe","pozostali wierzyciele"]
[null,null,null,null,null,null,"instytucje parabankowe"]
[1,null,null,2,3,4,5,6,7,8]
["1. umowy kredytu i pożyczki",null,null,{"$f":"E69+F69+H69+I69+J69","v":0}]
["2. umowy partnerstwa publiczno-prywatnego",null,null,{"$f":"E70+F70+H70+I70+J70","v":0}]
["3. papiery wartościowe, których zbywalność jest ograniczona ",null,null,0]
["4. sprzedaż na raty",null,null,0]
["5. leasing finansowy",null,null,0]
["6. umowy nienazwane o charakterze kredytu lub pożyczki ",null,null,0]
["Ogółem ",null,null,{"$f":"E75+F75+H75+I75+J75","v":0},{"$f":"SUM(E69:E74)","v":0},{"$f":"SUM(F69:F74)","v":0},0,0,0,{"$f":"SUM(J69:J74)","v":0}]
[]
["D. Dane o krótkoterminowych zobowiązaniach wynikających z umów nienazwanych związanych z finansowaniem usług, dostaw, robót budowlanych"]
[]
["Wyszczególnienie",null,"Kwota zobowiązań ogółem"]
[1,null,2]
["A. krótkoterminowe zobowiązania przejęte przez instytucje finansowe"]
["B. krótkoterminowe zobowiązania zrestrukturyzowane"]
[]
["E. Zobowiązania z tytułu odsetek jednostek posiadających osobowość prawną z wyłączeniem jednostek samorządu terytorialnego"]
[]
["Wyszczególnienie",null,"kwota zobowiązań ogółem\n(kol. 3+4)","odsetki naliczone od zobowiązań niewymagalnych","odsetki naliczone od zobowiązań wymagalnych"]
[1,null,2,3,4]
["Wartość odsetek ",null,{"$f":"D88+E88","v":0}]
[]
["F. Lista jednostek sporządzajacych sprawozdania"]
[]
["Lp.","REGON","REGON 9-cyfrowy","REGON 14-cyfrowy","Brak nr REGON","Nazwa jednostki"]
[1,null,null,null,null,null,null,null,{"$f":"regon9(B93)","v":false}]
[]
[]
[]
[]
[]
["…………………",null,null,"………………",null,"………………",null,null,"…………………"]
["Główny Księgowy* / Skarbnik",null,null,"telefon",null,"rok m-c dzień",null,null,"Kierownik jednostki (jednostki obsługującej)/ Przewodniczący Zarządu"]
["* Nie dotyczy sprawozdań zbiorczych sporządzanych przez RIO. W przypadku braku głównego księgowego podpisuje tylko kierownik jednostki."]
[]
[]
[]
[]
[null,null,null,null,null,null,null,null,null,null,null,null," "]

{"sheet":"82-samorz.osoba prawna","index":13,"n_rows":106,"n_cols":21,"rows_kept":106,"cut":false,"hidden":false,"merged":[[60,0,60,2],[92,5,92,7],[85,0,85,1],[86,0,86,1],[87,0,87,1],[61,0,61,2],[80,0,80,1],[81,0,81,1],[78,0,78,1],[79,0,79,1],[64,0,66,2],[64,3,66,3],[64,4,64,8],[72,0,72,2],[73,0,73,2],[74,0,74,2],[59,0,59,2],[3,13,6,16],[23,0,23,1],[38,6,38,11],[22,0,22,1],[10,2,10,4],[16,0,16,1],[56,1,56,4],[52,5,53,5],[52,0,53,0],[52,7,53,7],[54,1,54,4],[55,1,55,4],[45,0,45,4],[47,0,47,4],[52,1,53,4],[2,0,2,1],[5,0,5,1],[7,0,7,1],[46,0,46,4],[9,2,9,4],[8,2,8,4],[41,0,41,4],[44,0,44,4],[64,9,66,9],[65,4,66,4],[65,5,66,5],[65,7,66,7],[65,8,66,8],[67,0,67,2],[68,0,68,2],[69,0,69,2],[70,0,70,2],[71,0,71,2]]}
[]
["Nazwa jednostki sprawozdawczej ",null,null,"Rb-Z   KWARTALNE SPRAWOZDANIE O STANIE ZOBOWIĄZAŃ WG TYTUŁÓW DŁUŻNYCH ORAZ PORĘCZEŃ I GWARANCJI"]
[null,null,null,null,null,null,null,null,null,null,null,null,null,"Adresat"]
[null,null,null,"samorządowej osoby prawnej utworzonej na podstawie odrębnych ustaw w celu wykonywania zadań publicznych",null,null,null,null,null,null,null,null,null,null,null,null,null,null,null,null,{"$f":"IF(A8=0,\"\",VALUE(A8))","v":""}]
["Adres jednostki sprawozdawczej"]
[]
["Numer identyfikacyjny REGON",null,"liczba identyfik.jedn."]
[null,null,null,null,null,"wg stanu na koniec",null,null,"kwartału","  roku"]
["Nazwa województwa",null,null,null,null,null,null,"SYMBOLE"]
["Nazwa powiatu / związku",null,null,null,null,"WOJ.","POWIAT","GMINA","TYP GM.","ZWIĄZEK JST","TYP ZW.","GRUPA","CZĘŚĆ BUDŻ.",null,null,null,null,null,null,null,0]
["Nazwa gminy / związku",null,null,null,null,null,null,null,null,null,null,82]
[]
[" A. Zobowiązania według tytułów dłużnych"]
[]
[null,null,null,null,null,null,null,"w i e r z y c i e l e   k r a j o w i",null,null,null,null,null,null,null,"             w i e r z y c i e l e   z a g r a n i c z n i "]
[null,null,"kwota"]
["Wyszczególnienie",null,"zadłużenia",null,"sektor",null,null,null,null,null,null,null,null,null,"instytucje"]
[null,null,"ogółem","ogółem","finansów","grupa I","grupa II","grupa III","grupa IV","bank","banki","pozostałe","przedsiębiorstwa ","gospodarstwa","niekomercyjne",null,"podmioty","pozostałe"]
[null,null,"(kol. 3+15)","(kol 4+9+10+11+","publicznych",null,null,null,null,"centralny",null,"krajowe","niefinansowe","domowe","działające ","ogółem","należące ","podmioty"]
[null,null,null,"12+13+14)","ogółem",null,null,null,null,null,null,"instytucje",null,null,"na rzecz",null,"do strefy","zagraniczne"]
[null,null,null,null,"(kol 5+6+7+8)",null,null,null,null,null,null,"finansowe",null,null,"gospodarstw","(kol. 16+17)","euro"]
[null,null,null,null,null,null,null,null,null,null,null,null,null,null,"domowych"]
[1,null,2,3,4,5,6,7,8,9,10,11,12,13,14,15,16,17]
["E. ZOBOWIĄZANIA WG TYTUŁÓW DŁUŻNYCH (E1+E2+E3+E4)",null,{"$f":"C26+C29+C32+C33","v":0},0,0,0,0,0,0,0,0,0,0,0,0,{"$f":"P26+P29+P32+P33","v":0},{"$f":"Q26+Q29+Q32+Q33","v":0},{"$f":"R26+R29+R32+R33","v":0}]
[]
["E1. papiery wartościowe (E1.1+E1.2)",null,{"$f":"C27+C28","v":0},{"$f":"D27+D28","v":0},{"$f":"E27+E28","v":0},{"$f":"F27+F28","v":0},{"$f":"G27+G28","v":0},0,0,0,0,0,0,0,0,{"$f":"P27+P28","v":0},{"$f":"Q27+Q28","v":0},{"$f":"R27+R28","v":0}]
["      E1.1. krótkoterminowe",null,{"$f":"D27+P27","v":0},{"$f":"E27+J27+K27+L27+M27+N27+O27","v":0},{"$f":"F27+G27+H27+I27","v":0},null,null,null,null,null,null,null,null,null,null,{"$f":"Q27+R27","v":0}]
["      E1.2. długoterminowe",null,{"$f":"D28+P28","v":0},{"$f":"E28+J28+K28+L28+M28+N28+O28","v":0},{"$f":"F28+G28+H28+I28","v":0},null,null,null,null,null,null,null,null,null,null,{"$f":"Q28+R28","v":0}]
["E2. kredyty i pożyczki (E2.1+E2.2)",null,{"$f":"C30+C31","v":0},{"$f":"D30+D31","v":0},{"$f":"E30+E31","v":0},{"$f":"F30+F31","v":0},{"$f":"G30+G31","v":0},0,0,0,0,0,0,0,0,{"$f":"P30+P31","v":0},{"$f":"Q30+Q31","v":0},{"$f":"R30+R31","v":0}]
["      E2.1. krótkoterminowe",null,{"$f":"D30+P30","v":0},{"$f":"E30+J30+K30+L30+M30+N30+O30","v":0},{"$f":"F30+G30+H30+I30","v":0},null,null,null,null,null,null,null,null,null,null,{"$f":"Q30+R30","v":0}]
["      E2.2. długoterminowe",null,{"$f":"D31+P31","v":0},{"$f":"E31+J31+K31+L31+M31+N31+O31","v":0},{"$f":"F31+G31+H31+I31","v":0},null,null,null,null,null,null,null,null,null,null,{"$f":"Q31+R31","v":0}]
["E3. przyjęte depozyty",null,{"$f":"D32+P32","v":0},{"$f":"E32+J32+K32+L32+M32+N32+O32","v":0},{"$f":"F32+G32+H32+I32","v":0},null,null,null,null,null,null,null,null,null,null,{"$f":"Q32+R32","v":0}]
["E4. wymagalne zobowiązania (E4.1+E4.2)",null,{"$f":"C34+C35","v":0},{"$f":"D34+D35","v":0},{"$f":"E34+E35","v":0},{"$f":"F34+F35","v":0},{"$f":"G34+G35","v":0},0,0,0,0,0,0,0,0,{"$f":"P34+P35","v":0},{"$f":"Q34+Q35","v":0},{"$f":"R34+R35","v":0}]
["      E4.1. z tyt. dostaw towarów i usług",null,{"$f":"D34+P34","v":0},{"$f":"E34+J34+K34+L34+M34+N34+O34","v":0},{"$f":"F34+G34+H34+I34","v":0},null,null,null,null,null,null,null,null,null,null,{"$f":"Q34+R34","v":0}]
["      E4.2. pozostałe",null,{"$f":"D35+P35","v":0},{"$f":"E35+J35+K35+L35+M35+N35+O35","v":0},{"$f":"F35+G35+H35+I35","v":0},null,null,null,null,null,null,null,null,null,null,{"$f":"Q35+R35","v":0}]
[]
[" B. Poręczenia i gwarancje"]
[]
[null,null,null,null,null,null,"w i e r z y c i e l e "]
[null,null,null,null,null,"Kwota ","podmioty"]
[null,null,null,null,null,"zobowiązań","sektora","grupa  I","grupa II","grupa III","grupa IV","pozostałe "]
["Wyszczególnienie",null,null,null,null,"ogółem","finansów",null,null,null,null,"podmioty"]
[null,null,null,null,null,"(kol. 3+8)","publicznych"]
[null,null,null,null,null,null,"(kol.4+5+6+7)"]
[1,null,null,null,null,2,3,4,5,6,7,8]
["F1. wartość nominalna niewymagalnych (potencjalnych) zobowiązań z tytułu udzielonych poręczeń i gwarancji na koniec okresu sprawozdawczego",null,null,null,null,{"$f":"G46+L46","v":0},{"$f":"H46+I46+J46+K46","v":0}]
["F2. wartość nominalna wymagalnych zobowiązań z tytułu udzielonych poręczeń i gwarancji na koniec okresu sprawozdawczego",null,null,null,null,{"$f":"G47+L47","v":0},{"$f":"H47+I47+J47+K47","v":0}]
["F3. wartość poręczeń i gwarancji udzielonych w okresie sprawozdawczym",null,null,null,null,{"$f":"G48+L48","v":0},{"$f":"H48+I48+J48+K48","v":0}]
[]
["C. Uzupełniające dane o niektórych zobowiązaniach jednostki samorządu terytorialnego"]
[]
["C1. Kredyty i pożyczki oraz wyemitowane papiery wartościowe na realizację programów, projektów lub zadań finansowanych z udziałem środków, o których mowa w art. 5 ust. 1 pkt 2 ustawy"]
["Lp.","Wyszczególnienie",null,null,null,"Z budżetu państwa\n ogółem ","w tym","Z innych źródeł\n ogółem","w tym"]
[null,null,null,null,null,null," długoterminowe",null,"długoterminowe"]
[1,2,null,null,null,3,4,5,6]
[1,"Ogółem kredyty i pożyczki oraz wyemitowane papiery wartościowe\nw tym:"]
[2," na współfinansowanie\n       (udział własny)",null,null,null,"X","X"]
[]
["C2. Zobowiązania związku współtworzonego przez jednostkę samorządu terytorialnego "]
["Wyszczególnienie ",null,null,"Plan","Wykonanie"]
[1,null,null,2,3]
["Zobowiązania związku współtworzonego przez jednostkę samorządu terytorialnego w okresie sprawozdawczym"]
[]
["C3. Zobowiązania zaliczane do tytułu dłużnego - kredyty i pożyczki "]
["Rodzaje zobowiązań zaliczanych do kredytów i pożyczek (E2. - część A)",null,null,"ogółem (kol. 3+4+6+7+8)","wierzyciele krajowi",null,null,null,null,"wierzyciele zagraniczni "]
[null,null,null,null,"banki","pozostałe krajowe instytucje finansowe   ogółem","w  tym","przedsiębiorstwa niefinansowe","pozostali wierzyciele"]
[null,null,null,null,null,null,"instytucje parabankowe"]
[1,null,null,2,3,4,5,6,7,8]
["1. umowy kredytu i pożyczki",null,null,{"$f":"E69+F69+H69+I69+J69","v":0}]
["2. umowy partnerstwa publiczno-prywatnego",null,null,{"$f":"E70+F70+H70+I70+J70","v":0}]
["3. papiery wartościowe, których zbywalność jest ograniczona ",null,null,0]
["4. sprzedaż na raty",null,null,0]
["5. leasing finansowy",null,null,0]
["6. umowy nienazwane o charakterze kredytu lub pożyczki ",null,null,0]
["Ogółem ",null,null,{"$f":"E75+F75+H75+I75+J75","v":0},{"$f":"SUM(E69:E74)","v":0},{"$f":"SUM(F69:F74)","v":0},0,0,0,{"$f":"SUM(J69:J74)","v":0}]
[]
["D. Dane o krótkoterminowych zobowiązaniach wynikających z umów nienazwanych związanych z finansowaniem usług, dostaw, robót budowlanych"]
[]
["Wyszczególnienie",null,"Kwota zobowiązań ogółem"]
[1,null,2]
["A. krótkoterminowe zobowiązania przejęte przez instytucje finansowe"]
["B. krótkoterminowe zobowiązania zrestrukturyzowane"]
[]
["E. Zobowiązania z tytułu odsetek jednostek posiadających osobowość prawną z wyłączeniem jednostek samorządu terytorialnego"]
[]
["Wyszczególnienie",null,"kwota zobowiązań ogółem\n(kol. 3+4)","odsetki naliczone od zobowiązań niewymagalnych","odsetki naliczone od zobowiązań wymagalnych"]
[1,null,2,3,4]
["Wartość odsetek ",null,{"$f":"D88+E88","v":0}]
[]
["F. Lista jednostek sporządzajacych sprawozdania"]
[]
["Lp.","REGON","REGON 9-cyfrowy","REGON 14-cyfrowy","Brak nr REGON","Nazwa jednostki"]
[1,null,null,null,null,null,null,null,{"$f":"regon9(B93)","v":false}]
[]
[]
[]
[]
[]
["…………………",null,null,"………………",null,"………………",null,null,"…………………"]
["Główny Księgowy* / Skarbnik",null,null,"telefon",null,"rok m-c dzień",null,null,"Kierownik jednostki (jednostki obsługującej)/ Przewodniczący Zarządu"]
["* Nie dotyczy sprawozdań zbiorczych sporządzanych przez RIO. W przypadku braku głównego księgowego podpisuje tylko kierownik jednostki."]
[]
[]
[]
[]
[null,null,null,null,null,null,null,null,null,null,null,null," "]

{"sheet":"90-agencja wykonawcza","index":14,"n_rows":106,"n_cols":21,"rows_kept":106,"cut":false,"hidden":false,"merged":[[78,0,78,1],[79,0,79,1],[54,1,54,4],[55,1,55,4],[56,1,56,4],[64,0,66,2],[64,3,66,3],[64,4,64,8],[72,0,72,2],[73,0,73,2],[74,0,74,2],[67,0,67,2],[68,0,68,2],[69,0,69,2],[70,0,70,2],[71,0,71,2],[3,13,6,16],[92,5,92,7],[85,0,85,1],[86,0,86,1],[87,0,87,1],[38,6,38,11],[22,0,22,1],[45,0,45,4],[47,0,47,4],[46,0,46,4],[52,0,53,0],[59,0,59,2],[60,0,60,2],[61,0,61,2],[80,0,80,1],[81,0,81,1],[52,7,53,7],[44,0,44,4],[10,2,10,4],[16,0,16,1],[9,2,9,4],[41,0,41,4],[52,1,53,4],[52,5,53,5],[3,3,3,6],[2,0,2,1],[5,0,5,1],[7,0,7,1],[23,0,23,1],[8,2,8,4],[64,9,66,9],[65,4,66,4],[65,5,66,5],[65,7,66,7],[65,8,66,8]]}
[]
["Nazwa jednostki sprawozdawczej ",null,null,"Rb-Z   KWARTALNE SPRAWOZDANIE O STANIE ZOBOWIĄZAŃ WG TYTUŁÓW DŁUŻNYCH ORAZ PORĘCZEŃ I GWARANCJI"]
[null,null,null,null,null,null,null,null,null,null,null,null,null,"Adresat"]
[null,null,null,"agencji wykonawczej",null,null,null,null,null,null,null,null,null,null,null,null,null,null,null,null,{"$f":"IF(A8=0,\"\",VALUE(A8))","v":""}]
["Adres jednostki sprawozdawczej"]
[]
["Numer identyfikacyjny REGON",null,"liczba identyfik.jedn."]
[null,null,null,null,null,"wg stanu na koniec",null,null,"kwartału","  roku"]
["Nazwa województwa",null,null,null,null,null,null,"SYMBOLE"]
["Nazwa powiatu / związku",null,null,null,null,"WOJ.","POWIAT","GMINA","TYP GM.","ZWIĄZEK JST","TYP ZW.","GRUPA","CZĘŚĆ BUDŻ."]
["Nazwa gminy / związku",null,null,null,null,null,null,null,null,null,null,90]
[]
[" A. Zobowiązania według tytułów dłużnych"]
[]
[null,null,null,null,null,null,null,"w i e r z y c i e l e   k r a j o w i",null,null,null,null,null,null,null,"             w i e r z y c i e l e   z a g r a n i c z n i "]
[null,null,"kwota"]
["Wyszczególnienie",null,"zadłużenia",null,"sektor",null,null,null,null,null,null,null,null,null,"instytucje"]
[null,null,"ogółem","ogółem","finansów","grupa I","grupa II","grupa III","grupa IV","bank","banki","pozostałe","przedsiębiorstwa ","gospodarstwa","niekomercyjne",null,"podmioty","pozostałe"]
[null,null,"(kol. 3+15)","(kol 4+9+10+11+","publicznych",null,null,null,null,"centralny",null,"krajowe","niefinansowe","domowe","działające ","ogółem","należące ","podmioty"]
[null,null,null,"12+13+14)","ogółem",null,null,null,null,null,null,"instytucje",null,null,"na rzecz",null,"do strefy","zagraniczne"]
[null,null,null,null,"(kol 5+6+7+8)",null,null,null,null,null,null,"finansowe",null,null,"gospodarstw","(kol. 16+17)","euro"]
[null,null,null,null,null,null,null,null,null,null,null,null,null,null,"domowych"]
[1,null,2,3,4,5,6,7,8,9,10,11,12,13,14,15,16,17]
["E. ZOBOWIĄZANIA WG TYTUŁÓW DŁUŻNYCH (E1+E2+E3+E4)",null,{"$f":"C26+C29+C32+C33","v":0},0,0,0,0,0,0,0,0,0,0,0,0,{"$f":"P26+P29+P32+P33","v":0},{"$f":"Q26+Q29+Q32+Q33","v":0},{"$f":"R26+R29+R32+R33","v":0}]
[]
["E1. papiery wartościowe (E1.1+E1.2)",null,{"$f":"C27+C28","v":0},{"$f":"D27+D28","v":0},{"$f":"E27+E28","v":0},{"$f":"F27+F28","v":0},{"$f":"G27+G28","v":0},0,0,0,0,0,0,0,0,{"$f":"P27+P28","v":0},{"$f":"Q27+Q28","v":0},{"$f":"R27+R28","v":0}]
["      E1.1. krótkoterminowe",null,{"$f":"D27+P27","v":0},{"$f":"E27+J27+K27+L27+M27+N27+O27","v":0},{"$f":"F27+G27+H27+I27","v":0},null,null,null,null,null,null,null,null,null,null,{"$f":"Q27+R27","v":0}]
["      E1.2. długoterminowe",null,{"$f":"D28+P28","v":0},{"$f":"E28+J28+K28+L28+M28+N28+O28","v":0},{"$f":"F28+G28+H28+I28","v":0},null,null,null,null,null,null,null,null,null,null,{"$f":"Q28+R28","v":0}]
["E2. kredyty i pożyczki (E2.1+E2.2)",null,{"$f":"C30+C31","v":0},{"$f":"D30+D31","v":0},{"$f":"E30+E31","v":0},{"$f":"F30+F31","v":0},{"$f":"G30+G31","v":0},0,0,0,0,0,0,0,0,{"$f":"P30+P31","v":0},{"$f":"Q30+Q31","v":0},{"$f":"R30+R31","v":0}]
["      E2.1. krótkoterminowe",null,{"$f":"D30+P30","v":0},{"$f":"E30+J30+K30+L30+M30+N30+O30","v":0},{"$f":"F30+G30+H30+I30","v":0},null,null,null,null,null,null,null,null,null,null,{"$f":"Q30+R30","v":0}]
["      E2.2. długoterminowe",null,{"$f":"D31+P31","v":0},{"$f":"E31+J31+K31+L31+M31+N31+O31","v":0},{"$f":"F31+G31+H31+I31","v":0},null,null,null,null,null,null,null,null,null,null,{"$f":"Q31+R31","v":0}]
["E3. przyjęte depozyty",null,{"$f":"D32+P32","v":0},{"$f":"E32+J32+K32+L32+M32+N32+O32","v":0},{"$f":"F32+G32+H32+I32","v":0},null,null,null,null,null,null,null,null,null,null,{"$f":"Q32+R32","v":0}]
["E4. wymagalne zobowiązania (E4.1+E4.2)",null,{"$f":"C34+C35","v":0},{"$f":"D34+D35","v":0},{"$f":"E34+E35","v":0},{"$f":"F34+F35","v":0},{"$f":"G34+G35","v":0},0,0,0,0,0,0,0,0,{"$f":"P34+P35","v":0},{"$f":"Q34+Q35","v":0},{"$f":"R34+R35","v":0}]
["      E4.1. z tyt. dostaw towarów i usług",null,{"$f":"D34+P34","v":0},{"$f":"E34+J34+K34+L34+M34+N34+O34","v":0},{"$f":"F34+G34+H34+I34","v":0},null,null,null,null,null,null,null,null,null,null,{"$f":"Q34+R34","v":0}]
["      E4.2. pozostałe",null,{"$f":"D35+P35","v":0},{"$f":"E35+J35+K35+L35+M35+N35+O35","v":0},{"$f":"F35+G35+H35+I35","v":0},null,null,null,null,null,null,null,null,null,null,{"$f":"Q35+R35","v":0}]
[]
[" B. Poręczenia i gwarancje"]
[]
[null,null,null,null,null,null,"w i e r z y c i e l e "]
[null,null,null,null,null,"Kwota ","podmioty"]
[null,null,null,null,null,"zobowiązań","sektora","grupa  I","grupa II","grupa III","grupa IV","pozostałe "]
["Wyszczególnienie",null,null,null,null,"ogółem","finansów",null,null,null,null,"podmioty"]
[null,null,null,null,null,"(kol. 3+8)","publicznych"]
[null,null,null,null,null,null,"(kol.4+5+6+7)"]
[1,null,null,null,null,2,3,4,5,6,7,8]
["F1. wartość nominalna niewymagalnych (potencjalnych) zobowiązań z tytułu udzielonych poręczeń i gwarancji na koniec okresu sprawozdawczego",null,null,null,null,{"$f":"G46+L46","v":0},{"$f":"H46+I46+J46+K46","v":0}]
["F2. wartość nominalna wymagalnych zobowiązań z tytułu udzielonych poręczeń i gwarancji na koniec okresu sprawozdawczego",null,null,null,null,{"$f":"G47+L47","v":0},{"$f":"H47+I47+J47+K47","v":0}]
["F3. wartość poręczeń i gwarancji udzielonych w okresie sprawozdawczym",null,null,null,null,{"$f":"G48+L48","v":0},{"$f":"H48+I48+J48+K48","v":0}]
[]
["C. Uzupełniające dane o niektórych zobowiązaniach jednostki samorządu terytorialnego"]
[]
["C1. Kredyty i pożyczki oraz wyemitowane papiery wartościowe na realizację programów, projektów lub zadań finansowanych z udziałem środków, o których mowa w art. 5 ust. 1 pkt 2 ustawy"]
["Lp.","Wyszczególnienie",null,null,null,"Z budżetu państwa\n ogółem ","w tym","Z innych źródeł\n ogółem","w tym"]
[null,null,null,null,null,null," długoterminowe",null,"długoterminowe"]
[1,2,null,null,null,3,4,5,6]
[1,"Ogółem kredyty i pożyczki oraz wyemitowane papiery wartościowe\nw tym:"]
[2," na współfinansowanie\n       (udział własny)",null,null,null,"X","X"]
[]
["C2. Zobowiązania związku współtworzonego przez jednostkę samorządu terytorialnego "]
["Wyszczególnienie ",null,null,"Plan","Wykonanie"]
[1,null,null,2,3]
["Zobowiązania związku współtworzonego przez jednostkę samorządu terytorialnego w okresie sprawozdawczym"]
[]
["C3. Zobowiązania zaliczane do tytułu dłużnego - kredyty i pożyczki "]
["Rodzaje zobowiązań zaliczanych do kredytów i pożyczek (E2. - część A)",null,null,"ogółem (kol. 3+4+6+7+8)","wierzyciele krajowi",null,null,null,null,"wierzyciele zagraniczni "]
[null,null,null,null,"banki","pozostałe krajowe instytucje finansowe   ogółem","w  tym","przedsiębiorstwa niefinansowe","pozostali wierzyciele"]
[null,null,null,null,null,null,"instytucje parabankowe"]
[1,null,null,2,3,4,5,6,7,8]
["1. umowy kredytu i pożyczki",null,null,{"$f":"E69+F69+H69+I69+J69","v":0}]
["2. umowy partnerstwa publiczno-prywatnego",null,null,{"$f":"E70+F70+H70+I70+J70","v":0}]
["3. papiery wartościowe, których zbywalność jest ograniczona ",null,null,0]
["4. sprzedaż na raty",null,null,0]
["5. leasing finansowy",null,null,0]
["6. umowy nienazwane o charakterze kredytu lub pożyczki ",null,null,0]
["Ogółem ",null,null,{"$f":"E75+F75+H75+I75+J75","v":0},{"$f":"SUM(E69:E74)","v":0},{"$f":"SUM(F69:F74)","v":0},0,0,0,{"$f":"SUM(J69:J74)","v":0}]
[]
["D. Dane o krótkoterminowych zobowiązaniach wynikających z umów nienazwanych związanych z finansowaniem usług, dostaw, robót budowlanych"]
[]
["Wyszczególnienie",null,"Kwota zobowiązań ogółem"]
[1,null,2]
["A. krótkoterminowe zobowiązania przejęte przez instytucje finansowe"]
["B. krótkoterminowe zobowiązania zrestrukturyzowane"]
[]
["E. Zobowiązania z tytułu odsetek jednostek posiadających osobowość prawną z wyłączeniem jednostek samorządu terytorialnego"]
[]
["Wyszczególnienie",null,"kwota zobowiązań ogółem\n(kol. 3+4)","odsetki naliczone od zobowiązań niewymagalnych","odsetki naliczone od zobowiązań wymagalnych"]
[1,null,2,3,4]
["Wartość odsetek ",null,{"$f":"D88+E88","v":0}]
[]
["F. Lista jednostek sporządzajacych sprawozdania"]
[]
["Lp.","REGON","REGON 9-cyfrowy","REGON 14-cyfrowy","Brak nr REGON","Nazwa jednostki"]
[1,null,null,null,null,null,null,null,{"$f":"regon9(B93)","v":false}]
[]
[]
[]
[]
[]
["…………………",null,null,"………………",null,"………………",null,null,"…………………"]
["Główny Księgowy* / Skarbnik",null,null,"telefon",null,"rok m-c dzień",null,null,"Kierownik jednostki (jednostki obsługującej)/ Przewodniczący Zarządu"]
["* Nie dotyczy sprawozdań zbiorczych sporządzanych przez RIO. W przypadku braku głównego księgowego podpisuje tylko kierownik jednostki."]
[]
[]
[]
[]
[null,null,null,null,null,null,null,null,null,null,null,null," "]

{"sheet":"99-zbiorczo","index":15,"n_rows":164,"n_cols":22,"rows_kept":164,"cut":false,"hidden":false,"merged":[[3,13,6,16],[38,6,38,11],[8,2,8,4],[16,0,16,1],[5,0,5,1],[2,0,3,1],[7,0,7,1],[10,2,10,4],[23,0,23,1],[9,2,9,4],[87,0,87,1],[52,0,53,0],[52,1,53,4],[59,0,59,2],[60,0,60,2],[85,0,85,1],[86,0,86,1],[61,0,61,2],[81,0,81,1],[78,0,78,1],[79,0,79,1],[80,0,80,1],[54,1,54,4],[55,1,55,4],[56,1,56,4],[64,0,66,2],[41,0,41,4],[44,0,44,4],[45,0,45,4],[64,9,66,9],[65,4,66,4],[65,5,66,5],[65,7,66,7],[65,8,66,8],[64,3,66,3],[64,4,64,8],[52,5,53,5],[52,7,53,7],[46,0,46,4],[47,0,47,4],[72,0,72,2],[73,0,73,2],[74,0,74,2],[67,0,67,2],[68,0,68,2],[69,0,69,2],[70,0,70,2],[71,0,71,2]]}
[null,null,null,null,null,null,null,null,null,null,null,null,null,null,null,null,null,null,null,null,0]
["Nazwa jednostki sprawozdawczej ",null,null,"Rb-Z   KWARTALNE SPRAWOZDANIE O STANIE ZOBOWIĄZAŃ WG TYTUŁÓW DŁUŻNYCH ORAZ PORĘCZEŃ I GWARANCJI",null,null,null,null,null,null,null,null,null,null,null,null,null,null,null,null,{"$f":"MAX('11-państw.fund.cel.:90-agencja wykonawcza'!U1)","v":0},"regon"]
[{"$f":"IF(B163=\"brak nazwy\",IF(B164=\"brak nazwy\",\"Brak nazwy\",B164),B163)","v":"Brak nazwy"},null,null,null,null,null,null,null,null,null,null,null,null,"Adresat",null,null,null,null,null,null,{"$f":"COUNTA('11-państw.fund.cel.:90-agencja wykonawcza'!H8)","v":0},"kwartal"]
[null,null,null,"Zbiorczo",null,null,null,null,null,null,null,null,null,null,null,null,null,null,null,{"$f":"MIN('11-państw.fund.cel.:90-agencja wykonawcza'!H8)","v":0},{"$f":"MAX('11-państw.fund.cel.:90-agencja wykonawcza'!H8)","v":0}]
["Adres jednostki sprawozdawczej",null,null,null,null,null,null,null,null,null,null,null,null,null,null,null,null,null,null,null,{"$f":"COUNTA('11-państw.fund.cel.:90-agencja wykonawcza'!K8)","v":0},"rok"]
[null,null,null,null,null,null,null,null,null,null,null,null,null,null,null,null,null,null,null,{"$f":"MIN('11-państw.fund.cel.:90-agencja wykonawcza'!K8)","v":0},{"$f":"MAX('11-państw.fund.cel.:90-agencja wykonawcza'!K8)","v":0}]
["Numer identyfikacyjny REGON",null,null,null,null,null,null,null,null,null,null,null,null,null,null,null,null,null,null,null,{"$f":"COUNTA('11-państw.fund.cel.:90-agencja wykonawcza'!C8)","v":0}]
[{"$f":"IF(U13=0,\"Brak nr REGON\",U15)","v":"Brak nr REGON"},null,null,null,null,"wg stanu na koniec",null,{"$f":"IF(U3=0,\"Brak nr kwartału\",U4)","v":"Brak nr kwartału"},"kwartału","  roku",{"$f":"IF(U5=0,\"Brak roku\",U6)","v":"Brak roku"},null,null,null,null,null,null,null,null,{"$f":"MIN('11-państw.fund.cel.:90-agencja wykonawcza'!C8)","v":0},{"$f":"MAX('11-państw.fund.cel.:90-agencja wykonawcza'!C8)","v":0},"licz.ident.jedn."]
["Nazwa województwa",null,null,null,null,null,null,"SYMBOLE"]
["Nazwa powiatu / związku",null,null,null,null,"WOJ.","POWIAT","GMINA","TYP GM.","ZWIĄZEK JST","TYP ZW.","GRUPA","CZĘŚĆ BUDŻ.",null,null,null,null,null,null,{"$f":"MIN('11-państw.fund.cel.:90-agencja wykonawcza'!U10)","v":0},{"$f":"MAX('11-państw.fund.cel.:90-agencja wykonawcza'!U10)","v":0}]
["Nazwa gminy / związku",null,null,null,null,null,null,null,null,null,null,99,null,null,null,null,null,null,null,{"$f":"MIN('11-państw.fund.cel.:90-agencja wykonawcza'!M11)","v":0},{"$f":"MAX('11-państw.fund.cel.:90-agencja wykonawcza'!M11)","v":0}]
[]
[" A. Zobowiązania według tytułów dłużnych",null,null,null,null,null,null,null,null,null,null,null,null,null,null,null,null,null,null,null,{"$f":"COUNTA('11-państw.fund.cel.:90-agencja wykonawcza'!A8)","v":0},"regon"]
[null,null,null,null,null,null,null,null,null,null,null,null,null,null,null,null,null,null,null,{"$f":"MIN('11-państw.fund.cel.:90-agencja wykonawcza'!U4)","v":0},{"$f":"MAX('11-państw.fund.cel.:90-agencja wykonawcza'!U4)","v":0}]
[null,null,null,null,null,null,null,"w i e r z y c i e l e   k r a j o w i",null,null,null,null,null,null,null,"             w i e r z y c i e l e   z a g r a n i c z n i ",null,null,null,{"$f":"RIGHT(CONCATENATE(\"000000000\",MIN_REGON),9)","v":"000000000"},{"$f":"RIGHT(CONCATENATE(\"000000000\",MAX_REGON),9)","v":"000000000"}]
[null,null,"kwota"]
["Wyszczególnienie",null,"zadłużenia",null,"sektor",null,null,null,null,null,null,null,null,null,"instytucje"]
[null,null,"ogółem","ogółem","finansów","grupa I","grupa II","grupa III","grupa IV","bank","banki","pozostałe","przedsiębiorstwa ","gospodarstwa","niekomercyjne",null,"podmioty","pozostałe"]
[null,null,"(kol. 3+15)","(kol 4+9+10+11+","publicznych",null,null,null,null,"centralny",null,"krajowe","niefinansowe","domowe","działające ","ogółem","należące ","podmioty"]
[null,null,null,"12+13+14)","ogółem",null,null,null,null,null,null,"instytucje",null,null,"na rzecz",null,"do strefy","zagraniczne"]
[null,null,null,null,"(kol 5+6+7+8)",null,null,null,null,null,null,"finansowe",null,null,"gospodarstw","(kol. 16+17)","euro"]
[null,null,null,null,null,null,null,null,null,null,null,null,null,null,"domowych"]
[1,null,2,3,4,5,6,7,8,9,10,11,12,13,14,15,16,17]
["E. ZOBOWIĄZANIA WG TYTUŁÓW DŁUŻNYCH (E1+E2+E3+E4)",null,{"$f":"SUM('11-państw.fund.cel.:90-agencja wykonawcza'!C24)","v":0},{"$f":"SUM('11-państw.fund.cel.:90-agencja wykonawcza'!D24)","v":0},{"$f":"SUM('11-państw.fund.cel.:90-agencja wykonawcza'!E24)","v":0},{"$f":"SUM('11-państw.fund.cel.:90-agencja wykonawcza'!F24)","v":0},{"$f":"SUM('11-państw.fund.cel.:90-agencja wykonawcza'!G24)","v":0},{"$f":"SUM('11-państw.fund.cel.:90-agencja wykonawcza'!H24)","v":0},{"$f":"SUM('11-państw.fund.cel.:90-agencja wykonawcza'!I24)","v":0},{"$f":"SUM('11-państw.fund.cel.:90-agencja wykonawcza'!J24)","v":0},{"$f":"SUM('11-państw.fund.cel.:90-agencja wykonawcza'!K24)","v":0},{"$f":"SUM('11-państw.fund.cel.:90-agencja wykonawcza'!L24)","v":0},{"$f":"SUM('11-państw.fund.cel.:90-agencja wykonawcza'!M24)","v":0},{"$f":"SUM('11-państw.fund.cel.:90-agencja wykonawcza'!N24)","v":0},{"$f":"SUM('11-państw.fund.cel.:90-agencja wykonawcza'!O24)","v":0},{"$f":"SUM('11-państw.fund.cel.:90-agencja wykonawcza'!P24)","v":0},{"$f":"SUM('11-państw.fund.cel.:90-agencja wykonawcza'!Q24)","v":0},{"$f":"SUM('11-państw.fund.cel.:90-agencja wykonawcza'!R24)","v":0}]
[]
["E1. papiery wartościowe (E1.1+E1.2)",null,{"$f":"SUM('11-państw.fund.cel.:90-agencja wykonawcza'!C26)","v":0},{"$f":"SUM('11-państw.fund.cel.:90-agencja wykonawcza'!D26)","v":0},{"$f":"SUM('11-państw.fund.cel.:90-agencja wykonawcza'!E26)","v":0},{"$f":"SUM('11-państw.fund.cel.:90-agencja wykonawcza'!F26)","v":0},{"$f":"SUM('11-państw.fund.cel.:90-agencja wykonawcza'!G26)","v":0},{"$f":"SUM('11-państw.fund.cel.:90-agencja wykonawcza'!H26)","v":0},{"$f":"SUM('11-państw.fund.cel.:90-agencja wykonawcza'!I26)","v":0},{"$f":"SUM('11-państw.fund.cel.:90-agencja wykonawcza'!J26)","v":0},{"$f":"SUM('11-państw.fund.cel.:90-agencja wykonawcza'!K26)","v":0},{"$f":"SUM('11-państw.fund.cel.:90-agencja wykonawcza'!L26)","v":0},{"$f":"SUM('11-państw.fund.cel.:90-agencja wykonawcza'!M26)","v":0},{"$f":"SUM('11-państw.fund.cel.:90-agencja wykonawcza'!N26)","v":0},{"$f":"SUM('11-państw.fund.cel.:90-agencja wykonawcza'!O26)","v":0},{"$f":"SUM('11-państw.fund.cel.:90-agencja wykonawcza'!P26)","v":0},{"$f":"SUM('11-państw.fund.cel.:90-agencja wykonawcza'!Q26)","v":0},{"$f":"SUM('11-państw.fund.cel.:90-agencja wykonawcza'!R26)","v":0}]
["      E1.1. krótkoterminowe",null,{"$f":"SUM('11-państw.fund.cel.:90-agencja wykonawcza'!C27)","v":0},{"$f":"SUM('11-państw.fund.cel.:90-agencja wykonawcza'!D27)","v":0},{"$f":"SUM('11-państw.fund.cel.:90-agencja wykonawcza'!E27)","v":0},{"$f":"SUM('11-państw.fund.cel.:90-agencja wykonawcza'!F27)","v":0},{"$f":"SUM('11-państw.fund.cel.:90-agencja wykonawcza'!G27)","v":0},{"$f":"SUM('11-państw.fund.cel.:90-agencja wykonawcza'!H27)","v":0},{"$f":"SUM('11-państw.fund.cel.:90-agencja wykonawcza'!I27)","v":0},{"$f":"SUM('11-państw.fund.cel.:90-agencja wykonawcza'!J27)","v":0},{"$f":"SUM('11-państw.fund.cel.:90-agencja wykonawcza'!K27)","v":0},{"$f":"SUM('11-państw.fund.cel.:90-agencja wykonawcza'!L27)","v":0},{"$f":"SUM('11-państw.fund.cel.:90-agencja wykonawcza'!M27)","v":0},{"$f":"SUM('11-państw.fund.cel.:90-agencja wykonawcza'!N27)","v":0},{"$f":"SUM('11-państw.fund.cel.:90-agencja wykonawcza'!O27)","v":0},{"$f":"SUM('11-państw.fund.cel.:90-agencja wykonawcza'!P27)","v":0},{"$f":"SUM('11-państw.fund.cel.:90-agencja wykonawcza'!Q27)","v":0},{"$f":"SUM('11-państw.fund.cel.:90-agencja wykonawcza'!R27)","v":0}]
["      E1.2. długoterminowe",null,{"$f":"SUM('11-państw.fund.cel.:90-agencja wykonawcza'!C28)","v":0},{"$f":"SUM('11-państw.fund.cel.:90-agencja wykonawcza'!D28)","v":0},{"$f":"SUM('11-państw.fund.cel.:90-agencja wykonawcza'!E28)","v":0},{"$f":"SUM('11-państw.fund.cel.:90-agencja wykonawcza'!F28)","v":0},{"$f":"SUM('11-państw.fund.cel.:90-agencja wykonawcza'!G28)","v":0},{"$f":"SUM('11-państw.fund.cel.:90-agencja wykonawcza'!H28)","v":0},{"$f":"SUM('11-państw.fund.cel.:90-agencja wykonawcza'!I28)","v":0},{"$f":"SUM('11-państw.fund.cel.:90-agencja wykonawcza'!J28)","v":0},{"$f":"SUM('11-państw.fund.cel.:90-agencja wykonawcza'!K28)","v":0},{"$f":"SUM('11-państw.fund.cel.:90-agencja wykonawcza'!L28)","v":0},{"$f":"SUM('11-państw.fund.cel.:90-agencja wykonawcza'!M28)","v":0},{"$f":"SUM('11-państw.fund.cel.:90-agencja wykonawcza'!N28)","v":0},{"$f":"SUM('11-państw.fund.cel.:90-agencja wykonawcza'!O28)","v":0},{"$f":"SUM('11-państw.fund.cel.:90-agencja wykonawcza'!P28)","v":0},{"$f":"SUM('11-państw.fund.cel.:90-agencja wykonawcza'!Q28)","v":0},{"$f":"SUM('11-państw.fund.cel.:90-agencja wykonawcza'!R28)","v":0}]
["E2. kredyty i pożyczki (E2.1+E2.2)",null,{"$f":"SUM('11-państw.fund.cel.:90-agencja wykonawcza'!C29)","v":0},{"$f":"SUM('11-państw.fund.cel.:90-agencja wykonawcza'!D29)","v":0},{"$f":"SUM('11-państw.fund.cel.:90-agencja wykonawcza'!E29)","v":0},{"$f":"SUM('11-państw.fund.cel.:90-agencja wykonawcza'!F29)","v":0},{"$f":"SUM('11-państw.fund.cel.:90-agencja wykonawcza'!G29)","v":0},{"$f":"SUM('11-państw.fund.cel.:90-agencja wykonawcza'!H29)","v":0},{"$f":"SUM('11-państw.fund.cel.:90-agencja wykonawcza'!I29)","v":0},{"$f":"SUM('11-państw.fund.cel.:90-agencja wykonawcza'!J29)","v":0},{"$f":"SUM('11-państw.fund.cel.:90-agencja wykonawcza'!K29)","v":0},{"$f":"SUM('11-państw.fund.cel.:90-agencja wykonawcza'!L29)","v":0},{"$f":"SUM('11-państw.fund.cel.:90-agencja wykonawcza'!M29)","v":0},{"$f":"SUM('11-państw.fund.cel.:90-agencja wykonawcza'!N29)","v":0},{"$f":"SUM('11-państw.fund.cel.:90-agencja wykonawcza'!O29)","v":0},{"$f":"SUM('11-państw.fund.cel.:90-agencja wykonawcza'!P29)","v":0},{"$f":"SUM('11-państw.fund.cel.:90-agencja wykonawcza'!Q29)","v":0},{"$f":"SUM('11-państw.fund.cel.:90-agencja wykonawcza'!R29)","v":0}]
["      E2.1. krótkoterminowe",null,{"$f":"SUM('11-państw.fund.cel.:90-agencja wykonawcza'!C30)","v":0},{"$f":"SUM('11-państw.fund.cel.:90-agencja wykonawcza'!D30)","v":0},{"$f":"SUM('11-państw.fund.cel.:90-agencja wykonawcza'!E30)","v":0},{"$f":"SUM('11-państw.fund.cel.:90-agencja wykonawcza'!F30)","v":0},{"$f":"SUM('11-państw.fund.cel.:90-agencja wykonawcza'!G30)","v":0},{"$f":"SUM('11-państw.fund.cel.:90-agencja wykonawcza'!H30)","v":0},{"$f":"SUM('11-państw.fund.cel.:90-agencja wykonawcza'!I30)","v":0},{"$f":"SUM('11-państw.fund.cel.:90-agencja wykonawcza'!J30)","v":0},{"$f":"SUM('11-państw.fund.cel.:90-agencja wykonawcza'!K30)","v":0},{"$f":"SUM('11-państw.fund.cel.:90-agencja wykonawcza'!L30)","v":0},{"$f":"SUM('11-państw.fund.cel.:90-agencja wykonawcza'!M30)","v":0},{"$f":"SUM('11-państw.fund.cel.:90-agencja wykonawcza'!N30)","v":0},{"$f":"SUM('11-państw.fund.cel.:90-agencja wykonawcza'!O30)","v":0},{"$f":"SUM('11-państw.fund.cel.:90-agencja wykonawcza'!P30)","v":0},{"$f":"SUM('11-państw.fund.cel.:90-agencja wykonawcza'!Q30)","v":0},{"$f":"SUM('11-państw.fund.cel.:90-agencja wykonawcza'!R30)","v":0}]
["      E2.2. długoterminowe",null,{"$f":"SUM('11-państw.fund.cel.:90-agencja wykonawcza'!C31)","v":0},{"$f":"SUM('11-państw.fund.cel.:90-agencja wykonawcza'!D31)","v":0},{"$f":"SUM('11-państw.fund.cel.:90-agencja wykonawcza'!E31)","v":0},{"$f":"SUM('11-państw.fund.cel.:90-agencja wykonawcza'!F31)","v":0},{"$f":"SUM('11-państw.fund.cel.:90-agencja wykonawcza'!G31)","v":0},{"$f":"SUM('11-państw.fund.cel.:90-agencja wykonawcza'!H31)","v":0},{"$f":"SUM('11-państw.fund.cel.:90-agencja wykonawcza'!I31)","v":0},{"$f":"SUM('11-państw.fund.cel.:90-agencja wykonawcza'!J31)","v":0},{"$f":"SUM('11-państw.fund.cel.:90-agencja wykonawcza'!K31)","v":0},{"$f":"SUM('11-państw.fund.cel.:90-agencja wykonawcza'!L31)","v":0},{"$f":"SUM('11-państw.fund.cel.:90-agencja wykonawcza'!M31)","v":0},{"$f":"SUM('11-państw.fund.cel.:90-agencja wykonawcza'!N31)","v":0},{"$f":"SUM('11-państw.fund.cel.:90-agencja wykonawcza'!O31)","v":0},{"$f":"SUM('11-państw.fund.cel.:90-agencja wykonawcza'!P31)","v":0},{"$f":"SUM('11-państw.fund.cel.:90-agencja wykonawcza'!Q31)","v":0},{"$f":"SUM('11-państw.fund.cel.:90-agencja wykonawcza'!R31)","v":0}]
["E3. przyjęte depozyty",null,{"$f":"SUM('11-państw.fund.cel.:90-agencja wykonawcza'!C32)","v":0},{"$f":"SUM('11-państw.fund.cel.:90-agencja wykonawcza'!D32)","v":0},{"$f":"SUM('11-państw.fund.cel.:90-agencja wykonawcza'!E32)","v":0},{"$f":"SUM('11-państw.fund.cel.:90-agencja wykonawcza'!F32)","v":0},{"$f":"SUM('11-państw.fund.cel.:90-agencja wykonawcza'!G32)","v":0},{"$f":"SUM('11-państw.fund.cel.:90-agencja wykonawcza'!H32)","v":0},{"$f":"SUM('11-państw.fund.cel.:90-agencja wykonawcza'!I32)","v":0},{"$f":"SUM('11-państw.fund.cel.:90-agencja wykonawcza'!J32)","v":0},{"$f":"SUM('11-państw.fund.cel.:90-agencja wykonawcza'!K32)","v":0},{"$f":"SUM('11-państw.fund.cel.:90-agencja wykonawcza'!L32)","v":0},{"$f":"SUM('11-państw.fund.cel.:90-agencja wykonawcza'!M32)","v":0},{"$f":"SUM('11-państw.fund.cel.:90-agencja wykonawcza'!N32)","v":0},{"$f":"SUM('11-państw.fund.cel.:90-agencja wykonawcza'!O32)","v":0},{"$f":"SUM('11-państw.fund.cel.:90-agencja wykonawcza'!P32)","v":0},{"$f":"SUM('11-państw.fund.cel.:90-agencja wykonawcza'!Q32)","v":0},{"$f":"SUM('11-państw.fund.cel.:90-agencja wykonawcza'!R32)","v":0}]
["E4. wymagalne zobowiązania (E4.1+E4.2)",null,{"$f":"SUM('11-państw.fund.cel.:90-agencja wykonawcza'!C33)","v":0},{"$f":"SUM('11-państw.fund.cel.:90-agencja wykonawcza'!D33)","v":0},{"$f":"SUM('11-państw.fund.cel.:90-agencja wykonawcza'!E33)","v":0},{"$f":"SUM('11-państw.fund.cel.:90-agencja wykonawcza'!F33)","v":0},{"$f":"SUM('11-państw.fund.cel.:90-agencja wykonawcza'!G33)","v":0},{"$f":"SUM('11-państw.fund.cel.:90-agencja wykonawcza'!H33)","v":0},{"$f":"SUM('11-państw.fund.cel.:90-agencja wykonawcza'!I33)","v":0},{"$f":"SUM('11-państw.fund.cel.:90-agencja wykonawcza'!J33)","v":0},{"$f":"SUM('11-państw.fund.cel.:90-agencja wykonawcza'!K33)","v":0},{"$f":"SUM('11-państw.fund.cel.:90-agencja wykonawcza'!L33)","v":0},{"$f":"SUM('11-państw.fund.cel.:90-agencja wykonawcza'!M33)","v":0},{"$f":"SUM('11-państw.fund.cel.:90-agencja wykonawcza'!N33)","v":0},{"$f":"SUM('11-państw.fund.cel.:90-agencja wykonawcza'!O33)","v":0},{"$f":"SUM('11-państw.fund.cel.:90-agencja wykonawcza'!P33)","v":0},{"$f":"SUM('11-państw.fund.cel.:90-agencja wykonawcza'!Q33)","v":0},{"$f":"SUM('11-państw.fund.cel.:90-agencja wykonawcza'!R33)","v":0}]
["      E4.1. z tyt. dostaw towarów i usług",null,{"$f":"SUM('11-państw.fund.cel.:90-agencja wykonawcza'!C34)","v":0},{"$f":"SUM('11-państw.fund.cel.:90-agencja wykonawcza'!D34)","v":0},{"$f":"SUM('11-państw.fund.cel.:90-agencja wykonawcza'!E34)","v":0},{"$f":"SUM('11-państw.fund.cel.:90-agencja wykonawcza'!F34)","v":0},{"$f":"SUM('11-państw.fund.cel.:90-agencja wykonawcza'!G34)","v":0},{"$f":"SUM('11-państw.fund.cel.:90-agencja wykonawcza'!H34)","v":0},{"$f":"SUM('11-państw.fund.cel.:90-agencja wykonawcza'!I34)","v":0},{"$f":"SUM('11-państw.fund.cel.:90-agencja wykonawcza'!J34)","v":0},{"$f":"SUM('11-państw.fund.cel.:90-agencja wykonawcza'!K34)","v":0},{"$f":"SUM('11-państw.fund.cel.:90-agencja wykonawcza'!L34)","v":0},{"$f":"SUM('11-państw.fund.cel.:90-agencja wykonawcza'!M34)","v":0},{"$f":"SUM('11-państw.fund.cel.:90-agencja wykonawcza'!N34)","v":0},{"$f":"SUM('11-państw.fund.cel.:90-agencja wykonawcza'!O34)","v":0},{"$f":"SUM('11-państw.fund.cel.:90-agencja wykonawcza'!P34)","v":0},{"$f":"SUM('11-państw.fund.cel.:90-agencja wykonawcza'!Q34)","v":0},{"$f":"SUM('11-państw.fund.cel.:90-agencja wykonawcza'!R34)","v":0}]
["      E4.2. pozostałe",null,{"$f":"SUM('11-państw.fund.cel.:90-agencja wykonawcza'!C35)","v":0},{"$f":"SUM('11-państw.fund.cel.:90-agencja wykonawcza'!D35)","v":0},{"$f":"SUM('11-państw.fund.cel.:90-agencja wykonawcza'!E35)","v":0},{"$f":"SUM('11-państw.fund.cel.:90-agencja wykonawcza'!F35)","v":0},{"$f":"SUM('11-państw.fund.cel.:90-agencja wykonawcza'!G35)","v":0},{"$f":"SUM('11-państw.fund.cel.:90-agencja wykonawcza'!H35)","v":0},{"$f":"SUM('11-państw.fund.cel.:90-agencja wykonawcza'!I35)","v":0},{"$f":"SUM('11-państw.fund.cel.:90-agencja wykonawcza'!J35)","v":0},{"$f":"SUM('11-państw.fund.cel.:90-agencja wykonawcza'!K35)","v":0},{"$f":"SUM('11-państw.fund.cel.:90-agencja wykonawcza'!L35)","v":0},{"$f":"SUM('11-państw.fund.cel.:90-agencja wykonawcza'!M35)","v":0},{"$f":"SUM('11-państw.fund.cel.:90-agencja wykonawcza'!N35)","v":0},{"$f":"SUM('11-państw.fund.cel.:90-agencja wykonawcza'!O35)","v":0},{"$f":"SUM('11-państw.fund.cel.:90-agencja wykonawcza'!P35)","v":0},{"$f":"SUM('11-państw.fund.cel.:90-agencja wykonawcza'!Q35)","v":0},{"$f":"SUM('11-państw.fund.cel.:90-agencja wykonawcza'!R35)","v":0}]
[]
[" B. Poręczenia i gwarancje"]
[]
[null,null,null,null,null,null,"w i e r z y c i e l e "]
[null,null,null,null,null,"Kwota ","podmioty"]
[null,null,null,null,null,"zobowiązań","sektora","grupa  I","grupa II","grupa III","grupa IV","pozostałe "]
["Wyszczególnienie",null,null,null,null,"ogółem","finansów",null,null,null,null,"podmioty"]
[null,null,null,null,null,"(kol. 3+8)","publicznych"]
[null,null,null,null,null,null,"(kol.4+5+6+7)"]
[1,null,null,null,null,2,3,4,5,6,7,8]
["F1. wartość nominalna niewymagalnych (potencjalnych) zobowiązań z tytułu udzielonych poręczeń i gwarancji na koniec okresu sprawozdawczego",null,null,null,null,{"$f":"SUM('11-państw.fund.cel.:90-agencja wykonawcza'!F46)","v":0},{"$f":"SUM('11-państw.fund.cel.:90-agencja wykonawcza'!G46)","v":0},{"$f":"SUM('11-państw.fund.cel.:90-agencja wykonawcza'!H46)","v":0},{"$f":"SUM('11-państw.fund.cel.:90-agencja wykonawcza'!I46)","v":0},{"$f":"SUM('11-państw.fund.cel.:90-agencja wykonawcza'!J46)","v":0},{"$f":"SUM('11-państw.fund.cel.:90-agencja wykonawcza'!K46)","v":0},{"$f":"SUM('11-państw.fund.cel.:90-agencja wykonawcza'!L46)","v":0}]
["F2. wartość nominalna wymagalnych zobowiązań z tytułu udzielonych poręczeń i gwarancji na koniec okresu sprawozdawczego",null,null,null,null,{"$f":"SUM('11-państw.fund.cel.:90-agencja wykonawcza'!F47)","v":0},{"$f":"SUM('11-państw.fund.cel.:90-agencja wykonawcza'!G47)","v":0},{"$f":"SUM('11-państw.fund.cel.:90-agencja wykonawcza'!H47)","v":0},{"$f":"SUM('11-państw.fund.cel.:90-agencja wykonawcza'!I47)","v":0},{"$f":"SUM('11-państw.fund.cel.:90-agencja wykonawcza'!J47)","v":0},{"$f":"SUM('11-państw.fund.cel.:90-agencja wykonawcza'!K47)","v":0},{"$f":"SUM('11-państw.fund.cel.:90-agencja wykonawcza'!L47)","v":0}]
["F3. wartość poręczeń i gwarancji udzielonych w okresie sprawozdawczym",null,null,null,null,{"$f":"SUM('11-państw.fund.cel.:90-agencja wykonawcza'!F48)","v":0},{"$f":"SUM('11-państw.fund.cel.:90-agencja wykonawcza'!G48)","v":0},{"$f":"SUM('11-państw.fund.cel.:90-agencja wykonawcza'!H48)","v":0},{"$f":"SUM('11-państw.fund.cel.:90-agencja wykonawcza'!I48)","v":0},{"$f":"SUM('11-państw.fund.cel.:90-agencja wykonawcza'!J48)","v":0},{"$f":"SUM('11-państw.fund.cel.:90-agencja wykonawcza'!K48)","v":0},{"$f":"SUM('11-państw.fund.cel.:90-agencja wykonawcza'!L48)","v":0}]
[]
["C. Uzupełniające dane o niektórych zobowiązaniach jednostki samorządu terytorialnego"]
[]
["C1. Kredyty i pożyczki oraz wyemitowane papiery wartościowe na realizację programów, projektów lub zadań finansowanych z udziałem środków, o których mowa w art. 5 ust. 1 pkt 2 ustawy"]
["Lp.","Wyszczególnienie",null,null,null,"Z budżetu państwa\n ogółem ","w tym","Z innych źródeł\n ogółem","w tym"]
[null,null,null,null,null,null," długoterminowe",null,"długoterminowe"]
[1,2,null,null,null,3,4,5,6]
[1,"Ogółem kredyty i pożyczki oraz wyemitowane papiery wartościowe\nw tym:",null,null,null,{"$f":"SUM('11-państw.fund.cel.:90-agencja wykonawcza'!F56)","v":0},{"$f":"SUM('11-państw.fund.cel.:90-agencja wykonawcza'!G56)","v":0},{"$f":"SUM('11-państw.fund.cel.:90-agencja wykonawcza'!H56)","v":0},{"$f":"SUM('11-państw.fund.cel.:90-agencja wykonawcza'!I56)","v":0}]
[2," na współfinansowanie\n       (udział własny)",null,null,null,"X","X",{"$f":"SUM('11-państw.fund.cel.:90-agencja wykonawcza'!H57)","v":0},{"$f":"SUM('11-państw.fund.cel.:90-agencja wykonawcza'!I57)","v":0}]
[]
["C2. Zobowiązania związku współtworzonego przez jednostkę samorządu terytorialnego "]
["Wyszczególnienie ",null,null,"Plan","Wykonanie"]
[1,null,null,2,3]
["Zobowiązania związku współtworzonego przez jednostkę samorządu terytorialnego w okresie sprawozdawczym",null,null,{"$f":"SUM('11-państw.fund.cel.:90-agencja wykonawcza'!D62)","v":0},{"$f":"SUM('11-państw.fund.cel.:90-agencja wykonawcza'!E62)","v":0}]
[]
["C3. Zobowiązania zaliczane do tytułu dłużnego - kredyty i pożyczki "]
["Rodzaje zobowiązań zaliczanych do kredytów i pożyczek (E2. - część A)",null,null,"ogółem (kol. 3+4+6+7+8)","wierzyciele krajowi",null,null,null,null,"wierzyciele zagraniczni "]
[null,null,null,null,"banki","pozostałe krajowe instytucje finansowe   ogółem","w  tym","przedsiębiorstwa niefinansowe","pozostali wierzyciele"]
[null,null,null,null,null,null,"instytucje parabankowe"]
[1,null,null,2,3,4,5,6,7,8]
["1. umowy kredytu i pożyczki",null,null,{"$f":"SUM('11-państw.fund.cel.:90-agencja wykonawcza'!D69)","v":0},{"$f":"SUM('11-państw.fund.cel.:90-agencja wykonawcza'!E69)","v":0},{"$f":"SUM('11-państw.fund.cel.:90-agencja wykonawcza'!F69)","v":0},{"$f":"SUM('11-państw.fund.cel.:90-agencja wykonawcza'!G69)","v":0},{"$f":"SUM('11-państw.fund.cel.:90-agencja wykonawcza'!H69)","v":0},{"$f":"SUM('11-państw.fund.cel.:90-agencja wykonawcza'!I69)","v":0},{"$f":"SUM('11-państw.fund.cel.:90-agencja wykonawcza'!J69)","v":0}]
["2. umowy partnerstwa publiczno-prywatnego",null,null,{"$f":"SUM('11-państw.fund.cel.:90-agencja wykonawcza'!D70)","v":0},{"$f":"SUM('11-państw.fund.cel.:90-agencja wykonawcza'!E70)","v":0},{"$f":"SUM('11-państw.fund.cel.:90-agencja wykonawcza'!F70)","v":0},{"$f":"SUM('11-państw.fund.cel.:90-agencja wykonawcza'!G70)","v":0},{"$f":"SUM('11-państw.fund.cel.:90-agencja wykonawcza'!H70)","v":0},{"$f":"SUM('11-państw.fund.cel.:90-agencja wykonawcza'!I70)","v":0},{"$f":"SUM('11-państw.fund.cel.:90-agencja wykonawcza'!J70)","v":0}]
["3. papiery wartościowe, których zbywalność jest ograniczona ",null,null,{"$f":"SUM('11-państw.fund.cel.:90-agencja wykonawcza'!D71)","v":0},{"$f":"SUM('11-państw.fund.cel.:90-agencja wykonawcza'!E71)","v":0},{"$f":"SUM('11-państw.fund.cel.:90-agencja wykonawcza'!F71)","v":0},{"$f":"SUM('11-państw.fund.cel.:90-agencja wykonawcza'!G71)","v":0},{"$f":"SUM('11-państw.fund.cel.:90-agencja wykonawcza'!H71)","v":0},{"$f":"SUM('11-państw.fund.cel.:90-agencja wykonawcza'!I71)","v":0},{"$f":"SUM('11-państw.fund.cel.:90-agencja wykonawcza'!J71)","v":0}]
["4. sprzedaż na raty",null,null,{"$f":"SUM('11-państw.fund.cel.:90-agencja wykonawcza'!D72)","v":0},{"$f":"SUM('11-państw.fund.cel.:90-agencja wykonawcza'!E72)","v":0},{"$f":"SUM('11-państw.fund.cel.:90-agencja wykonawcza'!F72)","v":0},{"$f":"SUM('11-państw.fund.cel.:90-agencja wykonawcza'!G72)","v":0},{"$f":"SUM('11-państw.fund.cel.:90-agencja wykonawcza'!H72)","v":0},{"$f":"SUM('11-państw.fund.cel.:90-agencja wykonawcza'!I72)","v":0},{"$f":"SUM('11-państw.fund.cel.:90-agencja wykonawcza'!J72)","v":0}]
["5. leasing finansowy",null,null,{"$f":"SUM('11-państw.fund.cel.:90-agencja wykonawcza'!D73)","v":0},{"$f":"SUM('11-państw.fund.cel.:90-agencja wykonawcza'!E73)","v":0},{"$f":"SUM('11-państw.fund.cel.:90-agencja wykonawcza'!F73)","v":0},{"$f":"SUM('11-państw.fund.cel.:90-agencja wykonawcza'!G73)","v":0},{"$f":"SUM('11-państw.fund.cel.:90-agencja wykonawcza'!H73)","v":0},{"$f":"SUM('11-państw.fund.cel.:90-agencja wykonawcza'!I73)","v":0},{"$f":"SUM('11-państw.fund.cel.:90-agencja wykonawcza'!J73)","v":0}]
["6. umowy nienazwane o charakterze kredytu lub pożyczki ",null,null,{"$f":"SUM('11-państw.fund.cel.:90-agencja wykonawcza'!D74)","v":0},{"$f":"SUM('11-państw.fund.cel.:90-agencja wykonawcza'!E74)","v":0},{"$f":"SUM('11-państw.fund.cel.:90-agencja wykonawcza'!F74)","v":0},{"$f":"SUM('11-państw.fund.cel.:90-agencja wykonawcza'!G74)","v":0},{"$f":"SUM('11-państw.fund.cel.:90-agencja wykonawcza'!H74)","v":0},{"$f":"SUM('11-państw.fund.cel.:90-agencja wykonawcza'!I74)","v":0},{"$f":"SUM('11-państw.fund.cel.:90-agencja wykonawcza'!J74)","v":0}]
["Ogółem ",null,null,{"$f":"SUM('11-państw.fund.cel.:90-agencja wykonawcza'!D75)","v":0},{"$f":"SUM('11-państw.fund.cel.:90-agencja wykonawcza'!E75)","v":0},{"$f":"SUM('11-państw.fund.cel.:90-agencja wykonawcza'!F75)","v":0},{"$f":"SUM('11-państw.fund.cel.:90-agencja wykonawcza'!G75)","v":0},{"$f":"SUM('11-państw.fund.cel.:90-agencja wykonawcza'!H75)","v":0},{"$f":"SUM('11-państw.fund.cel.:90-agencja wykonawcza'!I75)","v":0},{"$f":"SUM('11-państw.fund.cel.:90-agencja wykonawcza'!J75)","v":0}]
[]
["D. Dane o krótkoterminowych zobowiązaniach wynikających z umów nienazwanych związanych z finansowaniem usług, dostaw, robót budowlanych"]
[]
["Wyszczególnienie",null,"Kwota zobowiązań ogółem"]
[1,null,2]
["A. krótkoterminowe zobowiązania przejęte przez instytucje finansowe",null,{"$f":"SUM('11-państw.fund.cel.:90-agencja wykonawcza'!C81)","v":0}]
["B. krótkoterminowe zobowiązania zrestrukturyzowane",null,{"$f":"SUM('11-państw.fund.cel.:90-agencja wykonawcza'!C82)","v":0}]
[]
["E. Zobowiązania z tytułu odsetek jednostek posiadających osobowość prawną z wyłączeniem jednostek samorządu terytorialnego"]
[]
["Wyszczególnienie",null,"kwota zobowiązań ogółem\n(kol. 3+4)","odsetki naliczone od zobowiązań niewymagalnych","odsetki naliczone od zobowiązań wymagalnych"]
[1,null,2,3,4]
["Wartość odsetek ",null,{"$f":"SUM('11-państw.fund.cel.:90-agencja wykonawcza'!C88)","v":0},{"$f":"SUM('11-państw.fund.cel.:90-agencja wykonawcza'!D88)","v":0},{"$f":"SUM('11-państw.fund.cel.:90-agencja wykonawcza'!E88)","v":0}]
[]
["F. Lista jednostek sporządzajacych sprawozdania"]
[]
["Lp.","REGON"]
[1]
[]
[]
[]
[]
[]
["…………………",null,null,"………………",null,"………………",null,null,"…………………"]
["Główny Księgowy* / Skarbnik",null,null,"telefon",null,"rok m-c dzień",null,null,"Kierownik jednostki (jednostki obsługującej)/ Przewodniczący Zarządu"]
["* Nie dotyczy sprawozdań zbiorczych sporządzanych przez RIO. W przypadku braku głównego księgowego podpisuje tylko kierownik jednostki."]
[]
[]
[]
[]
[null,null,null,null,null,null,null,null,null,null,null,null," "]
[]
[]
[]
[]
[]
[]
[]
[]
[]
[]
[]
[]
[]
[]
[]
[]
[]
[]
[]
[]
[]
[]
[]
[]
[]
["regform","niepusta"]
[{"$f":"'11-państw.fund.cel.'!A8:B8","v":0},{"$f":"ISTEXT(A133)","v":false}]
[{"$f":"#REF!","v":{"$error":"#REF!"}},false]
[{"$f":"'20-państw.szk.wyż.'!A8:B8","v":0},false]
[{"$f":"'31-instytucje gosp budż'!A8:B8","v":0},false]
[{"$f":"'41-państw.inst.kult.'!A8:B8","v":0},false]
[{"$f":"'42-samorz.inst.kult.'!A8:B8","v":0},false]
[{"$f":"'50-PAN i jedn.tworz.przez PAN'!A8:B8","v":0},false]
[{"$f":"'61-samodz.publ.ZOZ państw.'!A8:B8","v":0},false]
[{"$f":"'62-samodz.publ.ZOZ samorz.'!A8:B8","v":0},false]
[{"$f":"'63-Narodowy Fundusz Zdrowia'!A8:B8","v":0},false]
[{"$f":"'81-państw.osoba prawna'!A8:B8","v":0},false]
[{"$f":"'82-samorz.osoba prawna'!A8:B8","v":0},false]
[{"$f":"'90-agencja wykonawcza'!A8:B8","v":0},false]
[null,{"$f":"IF(B133=TRUE,A133,IF(B134=TRUE,A134,IF(B135=TRUE,A135,IF(B136=TRUE,A136,IF(B137=TRUE,A137,IF(B138=TRUE,A138,IF(B139=TRUE,A139,\"brak regonu\")))))))","v":"brak regonu"}]
[null,{"$f":"IF(B140=TRUE,A140,IF(B141=TRUE,A141,IF(B142=TRUE,A142,IF(B143=TRUE,A143,IF(B144=TRUE,A144,IF(B145=TRUE,A145,\"brak regonu\"))))))","v":"brak regonu"}]
[]
[null,"nazwy"]
[{"$f":"'11-państw.fund.cel.'!A3:B3","v":0},{"$f":"ISTEXT(A150)","v":false}]
[{"$f":"#REF!","v":{"$error":"#REF!"}},false]
[{"$f":"'20-państw.szk.wyż.'!A3:B3","v":0},false]
[{"$f":"'31-instytucje gosp budż'!A3:B3","v":0},false]
[{"$f":"'41-państw.inst.kult.'!A3:B3","v":0},false]
[{"$f":"'42-samorz.inst.kult.'!A3:B3","v":0},false]
[{"$f":"'50-PAN i jedn.tworz.przez PAN'!A3:B3","v":0},false]
[{"$f":"'61-samodz.publ.ZOZ państw.'!A3:B3","v":0},false]
[{"$f":"'62-samodz.publ.ZOZ samorz.'!A3:B3","v":0},false]
[{"$f":"'63-Narodowy Fundusz Zdrowia'!A3:B3","v":0},false]
[{"$f":"'81-państw.osoba prawna'!A3:B3","v":0},false]
[{"$f":"'82-samorz.osoba prawna'!A3:B3","v":0},false]
[{"$f":"'90-agencja wykonawcza'!A3:B3","v":0},false]
[null,{"$f":"IF(B150=TRUE,A150,IF(B151=TRUE,A151,IF(B152=TRUE,A152,IF(B153=TRUE,A153,IF(B154=TRUE,A154,IF(B155=TRUE,A155,IF(B156=TRUE,A156,\"brak nazwy\")))))))","v":"brak nazwy"}]
[null,{"$f":"IF(B157=TRUE,A157,IF(B158=TRUE,A158,IF(B159=TRUE,A159,IF(B160=TRUE,A160,IF(B161=TRUE,A161,IF(B162=TRUE,A162,\"brak nazwy\"))))))","v":"brak nazwy"}]

{"sheet":"RBZE","index":16,"n_rows":17,"n_cols":187,"rows_kept":17,"cut":false,"hidden":true,"merged":[]}
["REGON","WK","PK","GK","GT","PT","ROK","KWARTAL","CZ_BU","DAT_SKW","UWAGI","E0002","E0003","E0004","E0005","E0006","E0007","E0008","E0009","E0010","E0011","E0012","E0013","E0014","E0015","E0016","E0017","E1002","E1003","E1004","E1005","E1006","E1007","E1008","E1009","E1010","E1011","E1012","E1013","E1014","E1015","E1016","E1017","E1102","E1103","E1104","E1105","E1106","E1107","E1108","E1109","E1110","E1111","E1112","E1113","E1114","E1115","E1116","E1117","E1202","E1203","E1204","E1205","E1206","E1207","E1208","E1209","E1210","E1211","E1212","E1213","E1214","E1215","E1216","E1217","E2002","E2003","E2004","E2005","E2006","E2007","E2008","E2009","E2010","E2011","E2012","E2013","E2014","E2015","E2016","E2017","E2102","E2103","E2104","E2105","E2106","E2107","E2108","E2109","E2110","E2111","E2112","E2113","E2114","E2115","E2116","E2117","E2202","E2203","E2204","E2205","E2206","E2207","E2208","E2209","E2210","E2211","E2212","E2213","E2214","E2215","E2216","E2217","E3002","E3003","E3004","E3005","E3006","E3007","E3008","E3009","E3010","E3011","E3012","E3013","E3014","E3015","E3016","E3017","E4002","E4003","E4004","E4005","E4006","E4007","E4008","E4009","E4010","E4011","E4012","E4013","E4014","E4015","E4016","E4017","E4102","E4103","E4104","E4105","E4106","E4107","E4108","E4109","E4110","E4111","E4112","E4113","E4114","E4115","E4116","E4117","E4202","E4203","E4204","E4205","E4206","E4207","E4208","E4209","E4210","E4211","E4212","E4213","E4214","E4215","E4216","E4217"]
[{"$f":"'11-państw.fund.cel.'!A8","v":0},null,null,null,null,{"$f":"'11-państw.fund.cel.'!L11","v":11},{"$f":"'11-państw.fund.cel.'!K8","v":0},{"$f":"'11-państw.fund.cel.'!H8","v":0},{"$f":"'11-państw.fund.cel.'!M11","v":0},null,null,{"$f":"'11-państw.fund.cel.'!C24","v":0},{"$f":"'11-państw.fund.cel.'!D24","v":0},{"$f":"'11-państw.fund.cel.'!E24","v":0},{"$f":"'11-państw.fund.cel.'!F24","v":0},{"$f":"'11-państw.fund.cel.'!G24","v":0},{"$f":"'11-państw.fund.cel.'!H24","v":0},{"$f":"'11-państw.fund.cel.'!I24","v":0},{"$f":"'11-państw.fund.cel.'!J24","v":0},{"$f":"'11-państw.fund.cel.'!K24","v":0},{"$f":"'11-państw.fund.cel.'!L24","v":0},{"$f":"'11-państw.fund.cel.'!M24","v":0},{"$f":"'11-państw.fund.cel.'!N24","v":0},{"$f":"'11-państw.fund.cel.'!O24","v":0},{"$f":"'11-państw.fund.cel.'!P24","v":0},{"$f":"'11-państw.fund.cel.'!Q24","v":0},{"$f":"'11-państw.fund.cel.'!R24","v":0},{"$f":"'11-państw.fund.cel.'!C26","v":0},{"$f":"'11-państw.fund.cel.'!D26","v":0},{"$f":"'11-państw.fund.cel.'!E26","v":0},{"$f":"'11-państw.fund.cel.'!F26","v":0},{"$f":"'11-państw.fund.cel.'!G26","v":0},{"$f":"'11-państw.fund.cel.'!H26","v":0},{"$f":"'11-państw.fund.cel.'!I26","v":0},{"$f":"'11-państw.fund.cel.'!J26","v":0},{"$f":"'11-państw.fund.cel.'!K26","v":0},{"$f":"'11-państw.fund.cel.'!L26","v":0},{"$f":"'11-państw.fund.cel.'!M26","v":0},{"$f":"'11-państw.fund.cel.'!N26","v":0},{"$f":"'11-państw.fund.cel.'!O26","v":0},{"$f":"'11-państw.fund.cel.'!P26","v":0},{"$f":"'11-państw.fund.cel.'!Q26","v":0},{"$f":"'11-państw.fund.cel.'!R26","v":0},{"$f":"'11-państw.fund.cel.'!C27","v":0},{"$f":"'11-państw.fund.cel.'!D27","v":0},{"$f":"'11-państw.fund.cel.'!E27","v":0},{"$f":"'11-państw.fund.cel.'!F27","v":0},{"$f":"'11-państw.fund.cel.'!G27","v":0},{"$f":"'11-państw.fund.cel.'!H27","v":0},{"$f":"'11-państw.fund.cel.'!I27","v":0},{"$f":"'11-państw.fund.cel.'!J27","v":0},{"$f":"'11-państw.fund.cel.'!K27","v":0},{"$f":"'11-państw.fund.cel.'!L27","v":0},{"$f":"'11-państw.fund.cel.'!M27","v":0},{"$f":"'11-państw.fund.cel.'!N27","v":0},{"$f":"'11-państw.fund.cel.'!O27","v":0},{"$f":"'11-państw.fund.cel.'!P27","v":0},{"$f":"'11-państw.fund.cel.'!Q27","v":0},{"$f":"'11-państw.fund.cel.'!R27","v":0},{"$f":"'11-państw.fund.cel.'!C28","v":0},{"$f":"'11-państw.fund.cel.'!D28","v":0},{"$f":"'11-państw.fund.cel.'!E28","v":0},{"$f":"'11-państw.fund.cel.'!F28","v":0},{"$f":"'11-państw.fund.cel.'!G28","v":0},{"$f":"'11-państw.fund.cel.'!H28","v":0},{"$f":"'11-państw.fund.cel.'!I28","v":0},{"$f":"'11-państw.fund.cel.'!J28","v":0},{"$f":"'11-państw.fund.cel.'!K28","v":0},{"$f":"'11-państw.fund.cel.'!L28","v":0},{"$f":"'11-państw.fund.cel.'!M28","v":0},{"$f":"'11-państw.fund.cel.'!N28","v":0},{"$f":"'11-państw.fund.cel.'!O28","v":0},{"$f":"'11-państw.fund.cel.'!P28","v":0},{"$f":"'11-państw.fund.cel.'!Q28","v":0},{"$f":"'11-państw.fund.cel.'!R28","v":0},{"$f":"'11-państw.fund.cel.'!C29","v":0},{"$f":"'11-państw.fund.cel.'!D29","v":0},{"$f":"'11-państw.fund.cel.'!E29","v":0},{"$f":"'11-państw.fund.cel.'!F29","v":0},{"$f":"'11-państw.fund.cel.'!G29","v":0},{"$f":"'11-państw.fund.cel.'!H29","v":0},{"$f":"'11-państw.fund.cel.'!I29","v":0},{"$f":"'11-państw.fund.cel.'!J29","v":0},{"$f":"'11-państw.fund.cel.'!K29","v":0},{"$f":"'11-państw.fund.cel.'!L29","v":0},{"$f":"'11-państw.fund.cel.'!M29","v":0},{"$f":"'11-państw.fund.cel.'!N29","v":0},{"$f":"'11-państw.fund.cel.'!O29","v":0},{"$f":"'11-państw.fund.cel.'!P29","v":0},{"$f":"'11-państw.fund.cel.'!Q29","v":0},{"$f":"'11-państw.fund.cel.'!R29","v":0},{"$f":"'11-państw.fund.cel.'!C30","v":0},{"$f":"'11-państw.fund.cel.'!D30","v":0},{"$f":"'11-państw.fund.cel.'!E30","v":0},{"$f":"'11-państw.fund.cel.'!F30","v":0},{"$f":"'11-państw.fund.cel.'!G30","v":0},{"$f":"'11-państw.fund.cel.'!H30","v":0},{"$f":"'11-państw.fund.cel.'!I30","v":0},{"$f":"'11-państw.fund.cel.'!J30","v":0},{"$f":"'11-państw.fund.cel.'!K30","v":0},{"$f":"'11-państw.fund.cel.'!L30","v":0},{"$f":"'11-państw.fund.cel.'!M30","v":0},{"$f":"'11-państw.fund.cel.'!N30","v":0},{"$f":"'11-państw.fund.cel.'!O30","v":0},{"$f":"'11-państw.fund.cel.'!P30","v":0},{"$f":"'11-państw.fund.cel.'!Q30","v":0},{"$f":"'11-państw.fund.cel.'!R30","v":0},{"$f":"'11-państw.fund.cel.'!C31","v":0},{"$f":"'11-państw.fund.cel.'!D31","v":0},{"$f":"'11-państw.fund.cel.'!E31","v":0},{"$f":"'11-państw.fund.cel.'!F31","v":0},{"$f":"'11-państw.fund.cel.'!G31","v":0},{"$f":"'11-państw.fund.cel.'!H31","v":0},{"$f":"'11-państw.fund.cel.'!I31","v":0},{"$f":"'11-państw.fund.cel.'!J31","v":0},{"$f":"'11-państw.fund.cel.'!K31","v":0},{"$f":"'11-państw.fund.cel.'!L31","v":0},{"$f":"'11-państw.fund.cel.'!M31","v":0},{"$f":"'11-państw.fund.cel.'!N31","v":0},{"$f":"'11-państw.fund.cel.'!O31","v":0},{"$f":"'11-państw.fund.cel.'!P31","v":0},{"$f":"'11-państw.fund.cel.'!Q31","v":0},{"$f":"'11-państw.fund.cel.'!R31","v":0},{"$f":"'11-państw.fund.cel.'!C32","v":0},{"$f":"'11-państw.fund.cel.'!D32","v":0},{"$f":"'11-państw.fund.cel.'!E32","v":0},{"$f":"'11-państw.fund.cel.'!F32","v":0},{"$f":"'11-państw.fund.cel.'!G32","v":0},{"$f":"'11-państw.fund.cel.'!H32","v":0},{"$f":"'11-państw.fund.cel.'!I32","v":0},{"$f":"'11-państw.fund.cel.'!J32","v":0},{"$f":"'11-państw.fund.cel.'!K32","v":0},{"$f":"'11-państw.fund.cel.'!L32","v":0},{"$f":"'11-państw.fund.cel.'!M32","v":0},{"$f":"'11-państw.fund.cel.'!N32","v":0},{"$f":"'11-państw.fund.cel.'!O32","v":0},{"$f":"'11-państw.fund.cel.'!P32","v":0},{"$f":"'11-państw.fund.cel.'!Q32","v":0},{"$f":"'11-państw.fund.cel.'!R32","v":0},{"$f":"'11-państw.fund.cel.'!C33","v":0},{"$f":"'11-państw.fund.cel.'!D33","v":0},{"$f":"'11-państw.fund.cel.'!E33","v":0},{"$f":"'11-państw.fund.cel.'!F33","v":0},{"$f":"'11-państw.fund.cel.'!G33","v":0},{"$f":"'11-państw.fund.cel.'!H33","v":0},{"$f":"'11-państw.fund.cel.'!I33","v":0},{"$f":"'11-państw.fund.cel.'!J33","v":0},{"$f":"'11-państw.fund.cel.'!K33","v":0},{"$f":"'11-państw.fund.cel.'!L33","v":0},{"$f":"'11-państw.fund.cel.'!M33","v":0},{"$f":"'11-państw.fund.cel.'!N33","v":0},{"$f":"'11-państw.fund.cel.'!O33","v":0},{"$f":"'11-państw.fund.cel.'!P33","v":0},{"$f":"'11-państw.fund.cel.'!Q33","v":0},{"$f":"'11-państw.fund.cel.'!R33","v":0},{"$f":"'11-państw.fund.cel.'!C34","v":0},{"$f":"'11-państw.fund.cel.'!D34","v":0},{"$f":"'11-państw.fund.cel.'!E34","v":0},{"$f":"'11-państw.fund.cel.'!F34","v":0},{"$f":"'11-państw.fund.cel.'!G34","v":0},{"$f":"'11-państw.fund.cel.'!H34","v":0},{"$f":"'11-państw.fund.cel.'!I34","v":0},{"$f":"'11-państw.fund.cel.'!J34","v":0},{"$f":"'11-państw.fund.cel.'!K34","v":0},{"$f":"'11-państw.fund.cel.'!L34","v":0},{"$f":"'11-państw.fund.cel.'!M34","v":0},{"$f":"'11-państw.fund.cel.'!N34","v":0},{"$f":"'11-państw.fund.cel.'!O34","v":0},{"$f":"'11-państw.fund.cel.'!P34","v":0},{"$f":"'11-państw.fund.cel.'!Q34","v":0},{"$f":"'11-państw.fund.cel.'!R34","v":0},{"$f":"'11-państw.fund.cel.'!C35","v":0},{"$f":"'11-państw.fund.cel.'!D35","v":0},{"$f":"'11-państw.fund.cel.'!E35","v":0},{"$f":"'11-państw.fund.cel.'!F35","v":0},{"$f":"'11-państw.fund.cel.'!G35","v":0},{"$f":"'11-państw.fund.cel.'!H35","v":0},{"$f":"'11-państw.fund.cel.'!I35","v":0},{"$f":"'11-państw.fund.cel.'!J35","v":0},{"$f":"'11-państw.fund.cel.'!K35","v":0},{"$f":"'11-państw.fund.cel.'!L35","v":0},{"$f":"'11-państw.fund.cel.'!M35","v":0},{"$f":"'11-państw.fund.cel.'!N35","v":0},{"$f":"'11-państw.fund.cel.'!O35","v":0},{"$f":"'11-państw.fund.cel.'!P35","v":0},{"$f":"'11-państw.fund.cel.'!Q35","v":0},{"$f":"'11-państw.fund.cel.'!R35","v":0}]
[{"$f":"'20-państw.szk.wyż.'!A8","v":0},null,null,null,null,{"$f":"'20-państw.szk.wyż.'!L11","v":20},{"$f":"'20-państw.szk.wyż.'!K8","v":0},{"$f":"'20-państw.szk.wyż.'!H8","v":0},{"$f":"'20-państw.szk.wyż.'!M11","v":0},null,null,{"$f":"'20-państw.szk.wyż.'!C24","v":0},{"$f":"'20-państw.szk.wyż.'!D24","v":0},{"$f":"'20-państw.szk.wyż.'!E24","v":0},{"$f":"'20-państw.szk.wyż.'!F24","v":0},{"$f":"'20-państw.szk.wyż.'!G24","v":0},{"$f":"'20-państw.szk.wyż.'!H24","v":0},{"$f":"'20-państw.szk.wyż.'!I24","v":0},{"$f":"'20-państw.szk.wyż.'!J24","v":0},{"$f":"'20-państw.szk.wyż.'!K24","v":0},{"$f":"'20-państw.szk.wyż.'!L24","v":0},{"$f":"'20-państw.szk.wyż.'!M24","v":0},{"$f":"'20-państw.szk.wyż.'!N24","v":0},{"$f":"'20-państw.szk.wyż.'!O24","v":0},{"$f":"'20-państw.szk.wyż.'!P24","v":0},{"$f":"'20-państw.szk.wyż.'!Q24","v":0},{"$f":"'20-państw.szk.wyż.'!R24","v":0},{"$f":"'20-państw.szk.wyż.'!C26","v":0},{"$f":"'20-państw.szk.wyż.'!D26","v":0},{"$f":"'20-państw.szk.wyż.'!E26","v":0},{"$f":"'20-państw.szk.wyż.'!F26","v":0},{"$f":"'20-państw.szk.wyż.'!G26","v":0},{"$f":"'20-państw.szk.wyż.'!H26","v":0},{"$f":"'20-państw.szk.wyż.'!I26","v":0},{"$f":"'20-państw.szk.wyż.'!J26","v":0},{"$f":"'20-państw.szk.wyż.'!K26","v":0},{"$f":"'20-państw.szk.wyż.'!L26","v":0},{"$f":"'20-państw.szk.wyż.'!M26","v":0},{"$f":"'20-państw.szk.wyż.'!N26","v":0},{"$f":"'20-państw.szk.wyż.'!O26","v":0},{"$f":"'20-państw.szk.wyż.'!P26","v":0},{"$f":"'20-państw.szk.wyż.'!Q26","v":0},{"$f":"'20-państw.szk.wyż.'!R26","v":0},{"$f":"'20-państw.szk.wyż.'!C27","v":0},{"$f":"'20-państw.szk.wyż.'!D27","v":0},{"$f":"'20-państw.szk.wyż.'!E27","v":0},{"$f":"'20-państw.szk.wyż.'!F27","v":0},{"$f":"'20-państw.szk.wyż.'!G27","v":0},{"$f":"'20-państw.szk.wyż.'!H27","v":0},{"$f":"'20-państw.szk.wyż.'!I27","v":0},{"$f":"'20-państw.szk.wyż.'!J27","v":0},{"$f":"'20-państw.szk.wyż.'!K27","v":0},{"$f":"'20-państw.szk.wyż.'!L27","v":0},{"$f":"'20-państw.szk.wyż.'!M27","v":0},{"$f":"'20-państw.szk.wyż.'!N27","v":0},{"$f":"'20-państw.szk.wyż.'!O27","v":0},{"$f":"'20-państw.szk.wyż.'!P27","v":0},{"$f":"'20-państw.szk.wyż.'!Q27","v":0},{"$f":"'20-państw.szk.wyż.'!R27","v":0},{"$f":"'20-państw.szk.wyż.'!C28","v":0},{"$f":"'20-państw.szk.wyż.'!D28","v":0},{"$f":"'20-państw.szk.wyż.'!E28","v":0},{"$f":"'20-państw.szk.wyż.'!F28","v":0},{"$f":"'20-państw.szk.wyż.'!G28","v":0},{"$f":"'20-państw.szk.wyż.'!H28","v":0},{"$f":"'20-państw.szk.wyż.'!I28","v":0},{"$f":"'20-państw.szk.wyż.'!J28","v":0},{"$f":"'20-państw.szk.wyż.'!K28","v":0},{"$f":"'20-państw.szk.wyż.'!L28","v":0},{"$f":"'20-państw.szk.wyż.'!M28","v":0},{"$f":"'20-państw.szk.wyż.'!N28","v":0},{"$f":"'20-państw.szk.wyż.'!O28","v":0},{"$f":"'20-państw.szk.wyż.'!P28","v":0},{"$f":"'20-państw.szk.wyż.'!Q28","v":0},{"$f":"'20-państw.szk.wyż.'!R28","v":0},{"$f":"'20-państw.szk.wyż.'!C29","v":0},{"$f":"'20-państw.szk.wyż.'!D29","v":0},{"$f":"'20-państw.szk.wyż.'!E29","v":0},{"$f":"'20-państw.szk.wyż.'!F29","v":0},{"$f":"'20-państw.szk.wyż.'!G29","v":0},{"$f":"'20-państw.szk.wyż.'!H29","v":0},{"$f":"'20-państw.szk.wyż.'!I29","v":0},{"$f":"'20-państw.szk.wyż.'!J29","v":0},{"$f":"'20-państw.szk.wyż.'!K29","v":0},{"$f":"'20-państw.szk.wyż.'!L29","v":0},{"$f":"'20-państw.szk.wyż.'!M29","v":0},{"$f":"'20-państw.szk.wyż.'!N29","v":0},{"$f":"'20-państw.szk.wyż.'!O29","v":0},{"$f":"'20-państw.szk.wyż.'!P29","v":0},{"$f":"'20-państw.szk.wyż.'!Q29","v":0},{"$f":"'20-państw.szk.wyż.'!R29","v":0},{"$f":"'20-państw.szk.wyż.'!C30","v":0},{"$f":"'20-państw.szk.wyż.'!D30","v":0},{"$f":"'20-państw.szk.wyż.'!E30","v":0},{"$f":"'20-państw.szk.wyż.'!F30","v":0},{"$f":"'20-państw.szk.wyż.'!G30","v":0},{"$f":"'20-państw.szk.wyż.'!H30","v":0},{"$f":"'20-państw.szk.wyż.'!I30","v":0},{"$f":"'20-państw.szk.wyż.'!J30","v":0},{"$f":"'20-państw.szk.wyż.'!K30","v":0},{"$f":"'20-państw.szk.wyż.'!L30","v":0},{"$f":"'20-państw.szk.wyż.'!M30","v":0},{"$f":"'20-państw.szk.wyż.'!N30","v":0},{"$f":"'20-państw.szk.wyż.'!O30","v":0},{"$f":"'20-państw.szk.wyż.'!P30","v":0},{"$f":"'20-państw.szk.wyż.'!Q30","v":0},{"$f":"'20-państw.szk.wyż.'!R30","v":0},{"$f":"'20-państw.szk.wyż.'!C31","v":0},{"$f":"'20-państw.szk.wyż.'!D31","v":0},{"$f":"'20-państw.szk.wyż.'!E31","v":0},{"$f":"'20-państw.szk.wyż.'!F31","v":0},{"$f":"'20-państw.szk.wyż.'!G31","v":0},{"$f":"'20-państw.szk.wyż.'!H31","v":0},{"$f":"'20-państw.szk.wyż.'!I31","v":0},{"$f":"'20-państw.szk.wyż.'!J31","v":0},{"$f":"'20-państw.szk.wyż.'!K31","v":0},{"$f":"'20-państw.szk.wyż.'!L31","v":0},{"$f":"'20-państw.szk.wyż.'!M31","v":0},{"$f":"'20-państw.szk.wyż.'!N31","v":0},{"$f":"'20-państw.szk.wyż.'!O31","v":0},{"$f":"'20-państw.szk.wyż.'!P31","v":0},{"$f":"'20-państw.szk.wyż.'!Q31","v":0},{"$f":"'20-państw.szk.wyż.'!R31","v":0},{"$f":"'20-państw.szk.wyż.'!C32","v":0},{"$f":"'20-państw.szk.wyż.'!D32","v":0},{"$f":"'20-państw.szk.wyż.'!E32","v":0},{"$f":"'20-państw.szk.wyż.'!F32","v":0},{"$f":"'20-państw.szk.wyż.'!G32","v":0},{"$f":"'20-państw.szk.wyż.'!H32","v":0},{"$f":"'20-państw.szk.wyż.'!I32","v":0},{"$f":"'20-państw.szk.wyż.'!J32","v":0},{"$f":"'20-państw.szk.wyż.'!K32","v":0},{"$f":"'20-państw.szk.wyż.'!L32","v":0},{"$f":"'20-państw.szk.wyż.'!M32","v":0},{"$f":"'20-państw.szk.wyż.'!N32","v":0},{"$f":"'20-państw.szk.wyż.'!O32","v":0},{"$f":"'20-państw.szk.wyż.'!P32","v":0},{"$f":"'20-państw.szk.wyż.'!Q32","v":0},{"$f":"'20-państw.szk.wyż.'!R32","v":0},{"$f":"'20-państw.szk.wyż.'!C33","v":0},{"$f":"'20-państw.szk.wyż.'!D33","v":0},{"$f":"'20-państw.szk.wyż.'!E33","v":0},{"$f":"'20-państw.szk.wyż.'!F33","v":0},{"$f":"'20-państw.szk.wyż.'!G33","v":0},{"$f":"'20-państw.szk.wyż.'!H33","v":0},{"$f":"'20-państw.szk.wyż.'!I33","v":0},{"$f":"'20-państw.szk.wyż.'!J33","v":0},{"$f":"'20-państw.szk.wyż.'!K33","v":0},{"$f":"'20-państw.szk.wyż.'!L33","v":0},{"$f":"'20-państw.szk.wyż.'!M33","v":0},{"$f":"'20-państw.szk.wyż.'!N33","v":0},{"$f":"'20-państw.szk.wyż.'!O33","v":0},{"$f":"'20-państw.szk.wyż.'!P33","v":0},{"$f":"'20-państw.szk.wyż.'!Q33","v":0},{"$f":"'20-państw.szk.wyż.'!R33","v":0},{"$f":"'20-państw.szk.wyż.'!C34","v":0},{"$f":"'20-państw.szk.wyż.'!D34","v":0},{"$f":"'20-państw.szk.wyż.'!E34","v":0},{"$f":"'20-państw.szk.wyż.'!F34","v":0},{"$f":"'20-państw.szk.wyż.'!G34","v":0},{"$f":"'20-państw.szk.wyż.'!H34","v":0},{"$f":"'20-państw.szk.wyż.'!I34","v":0},{"$f":"'20-państw.szk.wyż.'!J34","v":0},{"$f":"'20-państw.szk.wyż.'!K34","v":0},{"$f":"'20-państw.szk.wyż.'!L34","v":0},{"$f":"'20-państw.szk.wyż.'!M34","v":0},{"$f":"'20-państw.szk.wyż.'!N34","v":0},{"$f":"'20-państw.szk.wyż.'!O34","v":0},{"$f":"'20-państw.szk.wyż.'!P34","v":0},{"$f":"'20-państw.szk.wyż.'!Q34","v":0},{"$f":"'20-państw.szk.wyż.'!R34","v":0},{"$f":"'20-państw.szk.wyż.'!C35","v":0},{"$f":"'20-państw.szk.wyż.'!D35","v":0},{"$f":"'20-państw.szk.wyż.'!E35","v":0},{"$f":"'20-państw.szk.wyż.'!F35","v":0},{"$f":"'20-państw.szk.wyż.'!G35","v":0},{"$f":"'20-państw.szk.wyż.'!H35","v":0},{"$f":"'20-państw.szk.wyż.'!I35","v":0},{"$f":"'20-państw.szk.wyż.'!J35","v":0},{"$f":"'20-państw.szk.wyż.'!K35","v":0},{"$f":"'20-państw.szk.wyż.'!L35","v":0},{"$f":"'20-państw.szk.wyż.'!M35","v":0},{"$f":"'20-państw.szk.wyż.'!N35","v":0},{"$f":"'20-państw.szk.wyż.'!O35","v":0},{"$f":"'20-państw.szk.wyż.'!P35","v":0},{"$f":"'20-państw.szk.wyż.'!Q35","v":0},{"$f":"'20-państw.szk.wyż.'!R35","v":0}]
[{"$f":"'31-instytucje gosp budż'!A8","v":0},null,null,null,null,{"$f":"'31-instytucje gosp budż'!L11","v":31},{"$f":"'31-instytucje gosp budż'!K8","v":0},{"$f":"'31-instytucje gosp budż'!H8","v":0},{"$f":"'31-instytucje gosp budż'!M11","v":0},null,null,{"$f":"'31-instytucje gosp budż'!C24","v":0},{"$f":"'31-instytucje gosp budż'!D24","v":0},{"$f":"'31-instytucje gosp budż'!E24","v":0},{"$f":"'31-instytucje gosp budż'!F24","v":0},{"$f":"'31-instytucje gosp budż'!G24","v":0},{"$f":"'31-instytucje gosp budż'!H24","v":0},{"$f":"'31-instytucje gosp budż'!I24","v":0},{"$f":"'31-instytucje gosp budż'!J24","v":0},{"$f":"'31-instytucje gosp budż'!K24","v":0},{"$f":"'31-instytucje gosp budż'!L24","v":0},{"$f":"'31-instytucje gosp budż'!M24","v":0},{"$f":"'31-instytucje gosp budż'!N24","v":0},{"$f":"'31-instytucje gosp budż'!O24","v":0},{"$f":"'31-instytucje gosp budż'!P24","v":0},{"$f":"'31-instytucje gosp budż'!Q24","v":0},{"$f":"'31-instytucje gosp budż'!R24","v":0},{"$f":"'31-instytucje gosp budż'!C26","v":0},{"$f":"'31-instytucje gosp budż'!D26","v":0},{"$f":"'31-instytucje gosp budż'!E26","v":0},{"$f":"'31-instytucje gosp budż'!F26","v":0},{"$f":"'31-instytucje gosp budż'!G26","v":0},{"$f":"'31-instytucje gosp budż'!H26","v":0},{"$f":"'31-instytucje gosp budż'!I26","v":0},{"$f":"'31-instytucje gosp budż'!J26","v":0},{"$f":"'31-instytucje gosp budż'!K26","v":0},{"$f":"'31-instytucje gosp budż'!L26","v":0},{"$f":"'31-instytucje gosp budż'!M26","v":0},{"$f":"'31-instytucje gosp budż'!N26","v":0},{"$f":"'31-instytucje gosp budż'!O26","v":0},{"$f":"'31-instytucje gosp budż'!P26","v":0},{"$f":"'31-instytucje gosp budż'!Q26","v":0},{"$f":"'31-instytucje gosp budż'!R26","v":0},{"$f":"'31-instytucje gosp budż'!C27","v":0},{"$f":"'31-instytucje gosp budż'!D27","v":0},{"$f":"'31-instytucje gosp budż'!E27","v":0},{"$f":"'31-instytucje gosp budż'!F27","v":0},{"$f":"'31-instytucje gosp budż'!G27","v":0},{"$f":"'31-instytucje gosp budż'!H27","v":0},{"$f":"'31-instytucje gosp budż'!I27","v":0},{"$f":"'31-instytucje gosp budż'!J27","v":0},{"$f":"'31-instytucje gosp budż'!K27","v":0},{"$f":"'31-instytucje gosp budż'!L27","v":0},{"$f":"'31-instytucje gosp budż'!M27","v":0},{"$f":"'31-instytucje gosp budż'!N27","v":0},{"$f":"'31-instytucje gosp budż'!O27","v":0},{"$f":"'31-instytucje gosp budż'!P27","v":0},{"$f":"'31-instytucje gosp budż'!Q27","v":0},{"$f":"'31-instytucje gosp budż'!R27","v":0},{"$f":"'31-instytucje gosp budż'!C28","v":0},{"$f":"'31-instytucje gosp budż'!D28","v":0},{"$f":"'31-instytucje gosp budż'!E28","v":0},{"$f":"'31-instytucje gosp budż'!F28","v":0},{"$f":"'31-instytucje gosp budż'!G28","v":0},{"$f":"'31-instytucje gosp budż'!H28","v":0},{"$f":"'31-instytucje gosp budż'!I28","v":0},{"$f":"'31-instytucje gosp budż'!J28","v":0},{"$f":"'31-instytucje gosp budż'!K28","v":0},{"$f":"'31-instytucje gosp budż'!L28","v":0},{"$f":"'31-instytucje gosp budż'!M28","v":0},{"$f":"'31-instytucje gosp budż'!N28","v":0},{"$f":"'31-instytucje gosp budż'!O28","v":0},{"$f":"'31-instytucje gosp budż'!P28","v":0},{"$f":"'31-instytucje gosp budż'!Q28","v":0},{"$f":"'31-instytucje gosp budż'!R28","v":0},{"$f":"'31-instytucje gosp budż'!C29","v":0},{"$f":"'31-instytucje gosp budż'!D29","v":0},{"$f":"'31-instytucje gosp budż'!E29","v":0},{"$f":"'31-instytucje gosp budż'!F29","v":0},{"$f":"'31-instytucje gosp budż'!G29","v":0},{"$f":"'31-instytucje gosp budż'!H29","v":0},{"$f":"'31-instytucje gosp budż'!I29","v":0},{"$f":"'31-instytucje gosp budż'!J29","v":0},{"$f":"'31-instytucje gosp budż'!K29","v":0},{"$f":"'31-instytucje gosp budż'!L29","v":0},{"$f":"'31-instytucje gosp budż'!M29","v":0},{"$f":"'31-instytucje gosp budż'!N29","v":0},{"$f":"'31-instytucje gosp budż'!O29","v":0},{"$f":"'31-instytucje gosp budż'!P29","v":0},{"$f":"'31-instytucje gosp budż'!Q29","v":0},{"$f":"'31-instytucje gosp budż'!R29","v":0},{"$f":"'31-instytucje gosp budż'!C30","v":0},{"$f":"'31-instytucje gosp budż'!D30","v":0},{"$f":"'31-instytucje gosp budż'!E30","v":0},{"$f":"'31-instytucje gosp budż'!F30","v":0},{"$f":"'31-instytucje gosp budż'!G30","v":0},{"$f":"'31-instytucje gosp budż'!H30","v":0},{"$f":"'31-instytucje gosp budż'!I30","v":0},{"$f":"'31-instytucje gosp budż'!J30","v":0},{"$f":"'31-instytucje gosp budż'!K30","v":0},{"$f":"'31-instytucje gosp budż'!L30","v":0},{"$f":"'31-instytucje gosp budż'!M30","v":0},{"$f":"'31-instytucje gosp budż'!N30","v":0},{"$f":"'31-instytucje gosp budż'!O30","v":0},{"$f":"'31-instytucje gosp budż'!P30","v":0},{"$f":"'31-instytucje gosp budż'!Q30","v":0},{"$f":"'31-instytucje gosp budż'!R30","v":0},{"$f":"'31-instytucje gosp budż'!C31","v":0},{"$f":"'31-instytucje gosp budż'!D31","v":0},{"$f":"'31-instytucje gosp budż'!E31","v":0},{"$f":"'31-instytucje gosp budż'!F31","v":0},{"$f":"'31-instytucje gosp budż'!G31","v":0},{"$f":"'31-instytucje gosp budż'!H31","v":0},{"$f":"'31-instytucje gosp budż'!I31","v":0},{"$f":"'31-instytucje gosp budż'!J31","v":0},{"$f":"'31-instytucje gosp budż'!K31","v":0},{"$f":"'31-instytucje gosp budż'!L31","v":0},{"$f":"'31-instytucje gosp budż'!M31","v":0},{"$f":"'31-instytucje gosp budż'!N31","v":0},{"$f":"'31-instytucje gosp budż'!O31","v":0},{"$f":"'31-instytucje gosp budż'!P31","v":0},{"$f":"'31-instytucje gosp budż'!Q31","v":0},{"$f":"'31-instytucje gosp budż'!R31","v":0},{"$f":"'31-instytucje gosp budż'!C32","v":0},{"$f":"'31-instytucje gosp budż'!D32","v":0},{"$f":"'31-instytucje gosp budż'!E32","v":0},{"$f":"'31-instytucje gosp budż'!F32","v":0},{"$f":"'31-instytucje gosp budż'!G32","v":0},{"$f":"'31-instytucje gosp budż'!H32","v":0},{"$f":"'31-instytucje gosp budż'!I32","v":0},{"$f":"'31-instytucje gosp budż'!J32","v":0},{"$f":"'31-instytucje gosp budż'!K32","v":0},{"$f":"'31-instytucje gosp budż'!L32","v":0},{"$f":"'31-instytucje gosp budż'!M32","v":0},{"$f":"'31-instytucje gosp budż'!N32","v":0},{"$f":"'31-instytucje gosp budż'!O32","v":0},{"$f":"'31-instytucje gosp budż'!P32","v":0},{"$f":"'31-instytucje gosp budż'!Q32","v":0},{"$f":"'31-instytucje gosp budż'!R32","v":0},{"$f":"'31-instytucje gosp budż'!C33","v":0},{"$f":"'31-instytucje gosp budż'!D33","v":0},{"$f":"'31-instytucje gosp budż'!E33","v":0},{"$f":"'31-instytucje gosp budż'!F33","v":0},{"$f":"'31-instytucje gosp budż'!G33","v":0},{"$f":"'31-instytucje gosp budż'!H33","v":0},{"$f":"'31-instytucje gosp budż'!I33","v":0},{"$f":"'31-instytucje gosp budż'!J33","v":0},{"$f":"'31-instytucje gosp budż'!K33","v":0},{"$f":"'31-instytucje gosp budż'!L33","v":0},{"$f":"'31-instytucje gosp budż'!M33","v":0},{"$f":"'31-instytucje gosp budż'!N33","v":0},{"$f":"'31-instytucje gosp budż'!O33","v":0},{"$f":"'31-instytucje gosp budż'!P33","v":0},{"$f":"'31-instytucje gosp budż'!Q33","v":0},{"$f":"'31-instytucje gosp budż'!R33","v":0},{"$f":"'31-instytucje gosp budż'!C34","v":0},{"$f":"'31-instytucje gosp budż'!D34","v":0},{"$f":"'31-instytucje gosp budż'!E34","v":0},{"$f":"'31-instytucje gosp budż'!F34","v":0},{"$f":"'31-instytucje gosp budż'!G34","v":0},{"$f":"'31-instytucje gosp budż'!H34","v":0},{"$f":"'31-instytucje gosp budż'!I34","v":0},{"$f":"'31-instytucje gosp budż'!J34","v":0},{"$f":"'31-instytucje gosp budż'!K34","v":0},{"$f":"'31-instytucje gosp budż'!L34","v":0},{"$f":"'31-instytucje gosp budż'!M34","v":0},{"$f":"'31-instytucje gosp budż'!N34","v":0},{"$f":"'31-instytucje gosp budż'!O34","v":0},{"$f":"'31-instytucje gosp budż'!P34","v":0},{"$f":"'31-instytucje gosp budż'!Q34","v":0},{"$f":"'31-instytucje gosp budż'!R34","v":0},{"$f":"'31-instytucje gosp budż'!C35","v":0},{"$f":"'31-instytucje gosp budż'!D35","v":0},{"$f":"'31-instytucje gosp budż'!E35","v":0},{"$f":"'31-instytucje gosp budż'!F35","v":0},{"$f":"'31-instytucje gosp budż'!G35","v":0},{"$f":"'31-instytucje gosp budż'!H35","v":0},{"$f":"'31-instytucje gosp budż'!I35","v":0},{"$f":"'31-instytucje gosp budż'!J35","v":0},{"$f":"'31-instytucje gosp budż'!K35","v":0},{"$f":"'31-instytucje gosp budż'!L35","v":0},{"$f":"'31-instytucje gosp budż'!M35","v":0},{"$f":"'31-instytucje gosp budż'!N35","v":0},{"$f":"'31-instytucje gosp budż'!O35","v":0},{"$f":"'31-instytucje gosp budż'!P35","v":0},{"$f":"'31-instytucje gosp budż'!Q35","v":0},{"$f":"'31-instytucje gosp budż'!R35","v":0}]
[{"$f":"'41-państw.inst.kult.'!A8","v":0},null,null,null,null,{"$f":"'41-państw.inst.kult.'!L11","v":41},{"$f":"'41-państw.inst.kult.'!K8","v":0},{"$f":"'41-państw.inst.kult.'!H8","v":0},{"$f":"'41-państw.inst.kult.'!M11","v":0},null,null,{"$f":"'41-państw.inst.kult.'!C24","v":0},{"$f":"'41-państw.inst.kult.'!D24","v":0},{"$f":"'41-państw.inst.kult.'!E24","v":0},{"$f":"'41-państw.inst.kult.'!F24","v":0},{"$f":"'41-państw.inst.kult.'!G24","v":0},{"$f":"'41-państw.inst.kult.'!H24","v":0},{"$f":"'41-państw.inst.kult.'!I24","v":0},{"$f":"'41-państw.inst.kult.'!J24","v":0},{"$f":"'41-państw.inst.kult.'!K24","v":0},{"$f":"'41-państw.inst.kult.'!L24","v":0},{"$f":"'41-państw.inst.kult.'!M24","v":0},{"$f":"'41-państw.inst.kult.'!N24","v":0},{"$f":"'41-państw.inst.kult.'!O24","v":0},{"$f":"'41-państw.inst.kult.'!P24","v":0},{"$f":"'41-państw.inst.kult.'!Q24","v":0},{"$f":"'41-państw.inst.kult.'!R24","v":0},{"$f":"'41-państw.inst.kult.'!C26","v":0},{"$f":"'41-państw.inst.kult.'!D26","v":0},{"$f":"'41-państw.inst.kult.'!E26","v":0},{"$f":"'41-państw.inst.kult.'!F26","v":0},{"$f":"'41-państw.inst.kult.'!G26","v":0},{"$f":"'41-państw.inst.kult.'!H26","v":0},{"$f":"'41-państw.inst.kult.'!I26","v":0},{"$f":"'41-państw.inst.kult.'!J26","v":0},{"$f":"'41-państw.inst.kult.'!K26","v":0},{"$f":"'41-państw.inst.kult.'!L26","v":0},{"$f":"'41-państw.inst.kult.'!M26","v":0},{"$f":"'41-państw.inst.kult.'!N26","v":0},{"$f":"'41-państw.inst.kult.'!O26","v":0},{"$f":"'41-państw.inst.kult.'!P26","v":0},{"$f":"'41-państw.inst.kult.'!Q26","v":0},{"$f":"'41-państw.inst.kult.'!R26","v":0},{"$f":"'41-państw.inst.kult.'!C27","v":0},{"$f":"'41-państw.inst.kult.'!D27","v":0},{"$f":"'41-państw.inst.kult.'!E27","v":0},{"$f":"'41-państw.inst.kult.'!F27","v":0},{"$f":"'41-państw.inst.kult.'!G27","v":0},{"$f":"'41-państw.inst.kult.'!H27","v":0},{"$f":"'41-państw.inst.kult.'!I27","v":0},{"$f":"'41-państw.inst.kult.'!J27","v":0},{"$f":"'41-państw.inst.kult.'!K27","v":0},{"$f":"'41-państw.inst.kult.'!L27","v":0},{"$f":"'41-państw.inst.kult.'!M27","v":0},{"$f":"'41-państw.inst.kult.'!N27","v":0},{"$f":"'41-państw.inst.kult.'!O27","v":0},{"$f":"'41-państw.inst.kult.'!P27","v":0},{"$f":"'41-państw.inst.kult.'!Q27","v":0},{"$f":"'41-państw.inst.kult.'!R27","v":0},{"$f":"'41-państw.inst.kult.'!C28","v":0},{"$f":"'41-państw.inst.kult.'!D28","v":0},{"$f":"'41-państw.inst.kult.'!E28","v":0},{"$f":"'41-państw.inst.kult.'!F28","v":0},{"$f":"'41-państw.inst.kult.'!G28","v":0},{"$f":"'41-państw.inst.kult.'!H28","v":0},{"$f":"'41-państw.inst.kult.'!I28","v":0},{"$f":"'41-państw.inst.kult.'!J28","v":0},{"$f":"'41-państw.inst.kult.'!K28","v":0},{"$f":"'41-państw.inst.kult.'!L28","v":0},{"$f":"'41-państw.inst.kult.'!M28","v":0},{"$f":"'41-państw.inst.kult.'!N28","v":0},{"$f":"'41-państw.inst.kult.'!O28","v":0},{"$f":"'41-państw.inst.kult.'!P28","v":0},{"$f":"'41-państw.inst.kult.'!Q28","v":0},{"$f":"'41-państw.inst.kult.'!R28","v":0},{"$f":"'41-państw.inst.kult.'!C29","v":0},{"$f":"'41-państw.inst.kult.'!D29","v":0},{"$f":"'41-państw.inst.kult.'!E29","v":0},{"$f":"'41-państw.inst.kult.'!F29","v":0},{"$f":"'41-państw.inst.kult.'!G29","v":0},{"$f":"'41-państw.inst.kult.'!H29","v":0},{"$f":"'41-państw.inst.kult.'!I29","v":0},{"$f":"'41-państw.inst.kult.'!J29","v":0},{"$f":"'41-państw.inst.kult.'!K29","v":0},{"$f":"'41-państw.inst.kult.'!L29","v":0},{"$f":"'41-państw.inst.kult.'!M29","v":0},{"$f":"'41-państw.inst.kult.'!N29","v":0},{"$f":"'41-państw.inst.kult.'!O29","v":0},{"$f":"'41-państw.inst.kult.'!P29","v":0},{"$f":"'41-państw.inst.kult.'!Q29","v":0},{"$f":"'41-państw.inst.kult.'!R29","v":0},{"$f":"'41-państw.inst.kult.'!C30","v":0},{"$f":"'41-państw.inst.kult.'!D30","v":0},{"$f":"'41-państw.inst.kult.'!E30","v":0},{"$f":"'41-państw.inst.kult.'!F30","v":0},{"$f":"'41-państw.inst.kult.'!G30","v":0},{"$f":"'41-państw.inst.kult.'!H30","v":0},{"$f":"'41-państw.inst.kult.'!I30","v":0},{"$f":"'41-państw.inst.kult.'!J30","v":0},{"$f":"'41-państw.inst.kult.'!K30","v":0},{"$f":"'41-państw.inst.kult.'!L30","v":0},{"$f":"'41-państw.inst.kult.'!M30","v":0},{"$f":"'41-państw.inst.kult.'!N30","v":0},{"$f":"'41-państw.inst.kult.'!O30","v":0},{"$f":"'41-państw.inst.kult.'!P30","v":0},{"$f":"'41-państw.inst.kult.'!Q30","v":0},{"$f":"'41-państw.inst.kult.'!R30","v":0},{"$f":"'41-państw.inst.kult.'!C31","v":0},{"$f":"'41-państw.inst.kult.'!D31","v":0},{"$f":"'41-państw.inst.kult.'!E31","v":0},{"$f":"'41-państw.inst.kult.'!F31","v":0},{"$f":"'41-państw.inst.kult.'!G31","v":0},{"$f":"'41-państw.inst.kult.'!H31","v":0},{"$f":"'41-państw.inst.kult.'!I31","v":0},{"$f":"'41-państw.inst.kult.'!J31","v":0},{"$f":"'41-państw.inst.kult.'!K31","v":0},{"$f":"'41-państw.inst.kult.'!L31","v":0},{"$f":"'41-państw.inst.kult.'!M31","v":0},{"$f":"'41-państw.inst.kult.'!N31","v":0},{"$f":"'41-państw.inst.kult.'!O31","v":0},{"$f":"'41-państw.inst.kult.'!P31","v":0},{"$f":"'41-państw.inst.kult.'!Q31","v":0},{"$f":"'41-państw.inst.kult.'!R31","v":0},{"$f":"'41-państw.inst.kult.'!C32","v":0},{"$f":"'41-państw.inst.kult.'!D32","v":0},{"$f":"'41-państw.inst.kult.'!E32","v":0},{"$f":"'41-państw.inst.kult.'!F32","v":0},{"$f":"'41-państw.inst.kult.'!G32","v":0},{"$f":"'41-państw.inst.kult.'!H32","v":0},{"$f":"'41-państw.inst.kult.'!I32","v":0},{"$f":"'41-państw.inst.kult.'!J32","v":0},{"$f":"'41-państw.inst.kult.'!K32","v":0},{"$f":"'41-państw.inst.kult.'!L32","v":0},{"$f":"'41-państw.inst.kult.'!M32","v":0},{"$f":"'41-państw.inst.kult.'!N32","v":0},{"$f":"'41-państw.inst.kult.'!O32","v":0},{"$f":"'41-państw.inst.kult.'!P32","v":0},{"$f":"'41-państw.inst.kult.'!Q32","v":0},{"$f":"'41-państw.inst.kult.'!R32","v":0},{"$f":"'41-państw.inst.kult.'!C33","v":0},{"$f":"'41-państw.inst.kult.'!D33","v":0},{"$f":"'41-państw.inst.kult.'!E33","v":0},{"$f":"'41-państw.inst.kult.'!F33","v":0},{"$f":"'41-państw.inst.kult.'!G33","v":0},{"$f":"'41-państw.inst.kult.'!H33","v":0},{"$f":"'41-państw.inst.kult.'!I33","v":0},{"$f":"'41-państw.inst.kult.'!J33","v":0},{"$f":"'41-państw.inst.kult.'!K33","v":0},{"$f":"'41-państw.inst.kult.'!L33","v":0},{"$f":"'41-państw.inst.kult.'!M33","v":0},{"$f":"'41-państw.inst.kult.'!N33","v":0},{"$f":"'41-państw.inst.kult.'!O33","v":0},{"$f":"'41-państw.inst.kult.'!P33","v":0},{"$f":"'41-państw.inst.kult.'!Q33","v":0},{"$f":"'41-państw.inst.kult.'!R33","v":0},{"$f":"'41-państw.inst.kult.'!C34","v":0},{"$f":"'41-państw.inst.kult.'!D34","v":0},{"$f":"'41-państw.inst.kult.'!E34","v":0},{"$f":"'41-państw.inst.kult.'!F34","v":0},{"$f":"'41-państw.inst.kult.'!G34","v":0},{"$f":"'41-państw.inst.kult.'!H34","v":0},{"$f":"'41-państw.inst.kult.'!I34","v":0},{"$f":"'41-państw.inst.kult.'!J34","v":0},{"$f":"'41-państw.inst.kult.'!K34","v":0},{"$f":"'41-państw.inst.kult.'!L34","v":0},{"$f":"'41-państw.inst.kult.'!M34","v":0},{"$f":"'41-państw.inst.kult.'!N34","v":0},{"$f":"'41-państw.inst.kult.'!O34","v":0},{"$f":"'41-państw.inst.kult.'!P34","v":0},{"$f":"'41-państw.inst.kult.'!Q34","v":0},{"$f":"'41-państw.inst.kult.'!R34","v":0},{"$f":"'41-państw.inst.kult.'!C35","v":0},{"$f":"'41-państw.inst.kult.'!D35","v":0},{"$f":"'41-państw.inst.kult.'!E35","v":0},{"$f":"'41-państw.inst.kult.'!F35","v":0},{"$f":"'41-państw.inst.kult.'!G35","v":0},{"$f":"'41-państw.inst.kult.'!H35","v":0},{"$f":"'41-państw.inst.kult.'!I35","v":0},{"$f":"'41-państw.inst.kult.'!J35","v":0},{"$f":"'41-państw.inst.kult.'!K35","v":0},{"$f":"'41-państw.inst.kult.'!L35","v":0},{"$f":"'41-państw.inst.kult.'!M35","v":0},{"$f":"'41-państw.inst.kult.'!N35","v":0},{"$f":"'41-państw.inst.kult.'!O35","v":0},{"$f":"'41-państw.inst.kult.'!P35","v":0},{"$f":"'41-państw.inst.kult.'!Q35","v":0},{"$f":"'41-państw.inst.kult.'!R35","v":0}]
[{"$f":"'42-samorz.inst.kult.'!A8","v":0},null,null,null,null,{"$f":"'42-samorz.inst.kult.'!L11","v":42},{"$f":"'42-samorz.inst.kult.'!K8","v":0},{"$f":"'42-samorz.inst.kult.'!H8","v":0},{"$f":"'42-samorz.inst.kult.'!M11","v":0},null,null,{"$f":"'42-samorz.inst.kult.'!C24","v":0},{"$f":"'42-samorz.inst.kult.'!D24","v":0},{"$f":"'42-samorz.inst.kult.'!E24","v":0},{"$f":"'42-samorz.inst.kult.'!F24","v":0},{"$f":"'42-samorz.inst.kult.'!G24","v":0},{"$f":"'42-samorz.inst.kult.'!H24","v":0},{"$f":"'42-samorz.inst.kult.'!I24","v":0},{"$f":"'42-samorz.inst.kult.'!J24","v":0},{"$f":"'42-samorz.inst.kult.'!K24","v":0},{"$f":"'42-samorz.inst.kult.'!L24","v":0},{"$f":"'42-samorz.inst.kult.'!M24","v":0},{"$f":"'42-samorz.inst.kult.'!N24","v":0},{"$f":"'42-samorz.inst.kult.'!O24","v":0},{"$f":"'42-samorz.inst.kult.'!P24","v":0},{"$f":"'42-samorz.inst.kult.'!Q24","v":0},{"$f":"'42-samorz.inst.kult.'!R24","v":0},{"$f":"'42-samorz.inst.kult.'!C26","v":0},{"$f":"'42-samorz.inst.kult.'!D26","v":0},{"$f":"'42-samorz.inst.kult.'!E26","v":0},{"$f":"'42-samorz.inst.kult.'!F26","v":0},{"$f":"'42-samorz.inst.kult.'!G26","v":0},{"$f":"'42-samorz.inst.kult.'!H26","v":0},{"$f":"'42-samorz.inst.kult.'!I26","v":0},{"$f":"'42-samorz.inst.kult.'!J26","v":0},{"$f":"'42-samorz.inst.kult.'!K26","v":0},{"$f":"'42-samorz.inst.kult.'!L26","v":0},{"$f":"'42-samorz.inst.kult.'!M26","v":0},{"$f":"'42-samorz.inst.kult.'!N26","v":0},{"$f":"'42-samorz.inst.kult.'!O26","v":0},{"$f":"'42-samorz.inst.kult.'!P26","v":0},{"$f":"'42-samorz.inst.kult.'!Q26","v":0},{"$f":"'42-samorz.inst.kult.'!R26","v":0},{"$f":"'42-samorz.inst.kult.'!C27","v":0},{"$f":"'42-samorz.inst.kult.'!D27","v":0},{"$f":"'42-samorz.inst.kult.'!E27","v":0},{"$f":"'42-samorz.inst.kult.'!F27","v":0},{"$f":"'42-samorz.inst.kult.'!G27","v":0},{"$f":"'42-samorz.inst.kult.'!H27","v":0},{"$f":"'42-samorz.inst.kult.'!I27","v":0},{"$f":"'42-samorz.inst.kult.'!J27","v":0},{"$f":"'42-samorz.inst.kult.'!K27","v":0},{"$f":"'42-samorz.inst.kult.'!L27","v":0},{"$f":"'42-samorz.inst.kult.'!M27","v":0},{"$f":"'42-samorz.inst.kult.'!N27","v":0},{"$f":"'42-samorz.inst.kult.'!O27","v":0},{"$f":"'42-samorz.inst.kult.'!P27","v":0},{"$f":"'42-samorz.inst.kult.'!Q27","v":0},{"$f":"'42-samorz.inst.kult.'!R27","v":0},{"$f":"'42-samorz.inst.kult.'!C28","v":0},{"$f":"'42-samorz.inst.kult.'!D28","v":0},{"$f":"'42-samorz.inst.kult.'!E28","v":0},{"$f":"'42-samorz.inst.kult.'!F28","v":0},{"$f":"'42-samorz.inst.kult.'!G28","v":0},{"$f":"'42-samorz.inst.kult.'!H28","v":0},{"$f":"'42-samorz.inst.kult.'!I28","v":0},{"$f":"'42-samorz.inst.kult.'!J28","v":0},{"$f":"'42-samorz.inst.kult.'!K28","v":0},{"$f":"'42-samorz.inst.kult.'!L28","v":0},{"$f":"'42-samorz.inst.kult.'!M28","v":0},{"$f":"'42-samorz.inst.kult.'!N28","v":0},{"$f":"'42-samorz.inst.kult.'!O28","v":0},{"$f":"'42-samorz.inst.kult.'!P28","v":0},{"$f":"'42-samorz.inst.kult.'!Q28","v":0},{"$f":"'42-samorz.inst.kult.'!R28","v":0},{"$f":"'42-samorz.inst.kult.'!C29","v":0},{"$f":"'42-samorz.inst.kult.'!D29","v":0},{"$f":"'42-samorz.inst.kult.'!E29","v":0},{"$f":"'42-samorz.inst.kult.'!F29","v":0},{"$f":"'42-samorz.inst.kult.'!G29","v":0},{"$f":"'42-samorz.inst.kult.'!H29","v":0},{"$f":"'42-samorz.inst.kult.'!I29","v":0},{"$f":"'42-samorz.inst.kult.'!J29","v":0},{"$f":"'42-samorz.inst.kult.'!K29","v":0},{"$f":"'42-samorz.inst.kult.'!L29","v":0},{"$f":"'42-samorz.inst.kult.'!M29","v":0},{"$f":"'42-samorz.inst.kult.'!N29","v":0},{"$f":"'42-samorz.inst.kult.'!O29","v":0},{"$f":"'42-samorz.inst.kult.'!P29","v":0},{"$f":"'42-samorz.inst.kult.'!Q29","v":0},{"$f":"'42-samorz.inst.kult.'!R29","v":0},{"$f":"'42-samorz.inst.kult.'!C30","v":0},{"$f":"'42-samorz.inst.kult.'!D30","v":0},{"$f":"'42-samorz.inst.kult.'!E30","v":0},{"$f":"'42-samorz.inst.kult.'!F30","v":0},{"$f":"'42-samorz.inst.kult.'!G30","v":0},{"$f":"'42-samorz.inst.kult.'!H30","v":0},{"$f":"'42-samorz.inst.kult.'!I30","v":0},{"$f":"'42-samorz.inst.kult.'!J30","v":0},{"$f":"'42-samorz.inst.kult.'!K30","v":0},{"$f":"'42-samorz.inst.kult.'!L30","v":0},{"$f":"'42-samorz.inst.kult.'!M30","v":0},{"$f":"'42-samorz.inst.kult.'!N30","v":0},{"$f":"'42-samorz.inst.kult.'!O30","v":0},{"$f":"'42-samorz.inst.kult.'!P30","v":0},{"$f":"'42-samorz.inst.kult.'!Q30","v":0},{"$f":"'42-samorz.inst.kult.'!R30","v":0},{"$f":"'42-samorz.inst.kult.'!C31","v":0},{"$f":"'42-samorz.inst.kult.'!D31","v":0},{"$f":"'42-samorz.inst.kult.'!E31","v":0},{"$f":"'42-samorz.inst.kult.'!F31","v":0},{"$f":"'42-samorz.inst.kult.'!G31","v":0},{"$f":"'42-samorz.inst.kult.'!H31","v":0},{"$f":"'42-samorz.inst.kult.'!I31","v":0},{"$f":"'42-samorz.inst.kult.'!J31","v":0},{"$f":"'42-samorz.inst.kult.'!K31","v":0},{"$f":"'42-samorz.inst.kult.'!L31","v":0},{"$f":"'42-samorz.inst.kult.'!M31","v":0},{"$f":"'42-samorz.inst.kult.'!N31","v":0},{"$f":"'42-samorz.inst.kult.'!O31","v":0},{"$f":"'42-samorz.inst.kult.'!P31","v":0},{"$f":"'42-samorz.inst.kult.'!Q31","v":0},{"$f":"'42-samorz.inst.kult.'!R31","v":0},{"$f":"'42-samorz.inst.kult.'!C32","v":0},{"$f":"'42-samorz.inst.kult.'!D32","v":0},{"$f":"'42-samorz.inst.kult.'!E32","v":0},{"$f":"'42-samorz.inst.kult.'!F32","v":0},{"$f":"'42-samorz.inst.kult.'!G32","v":0},{"$f":"'42-samorz.inst.kult.'!H32","v":0},{"$f":"'42-samorz.inst.kult.'!I32","v":0},{"$f":"'42-samorz.inst.kult.'!J32","v":0},{"$f":"'42-samorz.inst.kult.'!K32","v":0},{"$f":"'42-samorz.inst.kult.'!L32","v":0},{"$f":"'42-samorz.inst.kult.'!M32","v":0},{"$f":"'42-samorz.inst.kult.'!N32","v":0},{"$f":"'42-samorz.inst.kult.'!O32","v":0},{"$f":"'42-samorz.inst.kult.'!P32","v":0},{"$f":"'42-samorz.inst.kult.'!Q32","v":0},{"$f":"'42-samorz.inst.kult.'!R32","v":0},{"$f":"'42-samorz.inst.kult.'!C33","v":0},{"$f":"'42-samorz.inst.kult.'!D33","v":0},{"$f":"'42-samorz.inst.kult.'!E33","v":0},{"$f":"'42-samorz.inst.kult.'!F33","v":0},{"$f":"'42-samorz.inst.kult.'!G33","v":0},{"$f":"'42-samorz.inst.kult.'!H33","v":0},{"$f":"'42-samorz.inst.kult.'!I33","v":0},{"$f":"'42-samorz.inst.kult.'!J33","v":0},{"$f":"'42-samorz.inst.kult.'!K33","v":0},{"$f":"'42-samorz.inst.kult.'!L33","v":0},{"$f":"'42-samorz.inst.kult.'!M33","v":0},{"$f":"'42-samorz.inst.kult.'!N33","v":0},{"$f":"'42-samorz.inst.kult.'!O33","v":0},{"$f":"'42-samorz.inst.kult.'!P33","v":0},{"$f":"'42-samorz.inst.kult.'!Q33","v":0},{"$f":"'42-samorz.inst.kult.'!R33","v":0},{"$f":"'42-samorz.inst.kult.'!C34","v":0},{"$f":"'42-samorz.inst.kult.'!D34","v":0},{"$f":"'42-samorz.inst.kult.'!E34","v":0},{"$f":"'42-samorz.inst.kult.'!F34","v":0},{"$f":"'42-samorz.inst.kult.'!G34","v":0},{"$f":"'42-samorz.inst.kult.'!H34","v":0},{"$f":"'42-samorz.inst.kult.'!I34","v":0},{"$f":"'42-samorz.inst.kult.'!J34","v":0},{"$f":"'42-samorz.inst.kult.'!K34","v":0},{"$f":"'42-samorz.inst.kult.'!L34","v":0},{"$f":"'42-samorz.inst.kult.'!M34","v":0},{"$f":"'42-samorz.inst.kult.'!N34","v":0},{"$f":"'42-samorz.inst.kult.'!O34","v":0},{"$f":"'42-samorz.inst.kult.'!P34","v":0},{"$f":"'42-samorz.inst.kult.'!Q34","v":0},{"$f":"'42-samorz.inst.kult.'!R34","v":0},{"$f":"'42-samorz.inst.kult.'!C35","v":0},{"$f":"'42-samorz.inst.kult.'!D35","v":0},{"$f":"'42-samorz.inst.kult.'!E35","v":0},{"$f":"'42-samorz.inst.kult.'!F35","v":0},{"$f":"'42-samorz.inst.kult.'!G35","v":0},{"$f":"'42-samorz.inst.kult.'!H35","v":0},{"$f":"'42-samorz.inst.kult.'!I35","v":0},{"$f":"'42-samorz.inst.kult.'!J35","v":0},{"$f":"'42-samorz.inst.kult.'!K35","v":0},{"$f":"'42-samorz.inst.kult.'!L35","v":0},{"$f":"'42-samorz.inst.kult.'!M35","v":0},{"$f":"'42-samorz.inst.kult.'!N35","v":0},{"$f":"'42-samorz.inst.kult.'!O35","v":0},{"$f":"'42-samorz.inst.kult.'!P35","v":0},{"$f":"'42-samorz.inst.kult.'!Q35","v":0},{"$f":"'42-samorz.inst.kult.'!R35","v":0}]
[{"$f":"'50-PAN i jedn.tworz.przez PAN'!A8","v":0},null,null,null,null,{"$f":"'50-PAN i jedn.tworz.przez PAN'!L11","v":50},{"$f":"'50-PAN i jedn.tworz.przez PAN'!K8","v":0},{"$f":"'50-PAN i jedn.tworz.przez PAN'!H8","v":0},{"$f":"'50-PAN i jedn.tworz.przez PAN'!M11","v":0},null,null,{"$f":"'50-PAN i jedn.tworz.przez PAN'!C24","v":0},{"$f":"'50-PAN i jedn.tworz.przez PAN'!D24","v":0},{"$f":"'50-PAN i jedn.tworz.przez PAN'!E24","v":0},{"$f":"'50-PAN i jedn.tworz.przez PAN'!F24","v":0},{"$f":"'50-PAN i jedn.tworz.przez PAN'!G24","v":0},{"$f":"'50-PAN i jedn.tworz.przez PAN'!H24","v":0},{"$f":"'50-PAN i jedn.tworz.przez PAN'!I24","v":0},{"$f":"'50-PAN i jedn.tworz.przez PAN'!J24","v":0},{"$f":"'50-PAN i jedn.tworz.przez PAN'!K24","v":0},{"$f":"'50-PAN i jedn.tworz.przez PAN'!L24","v":0},{"$f":"'50-PAN i jedn.tworz.przez PAN'!M24","v":0},{"$f":"'50-PAN i jedn.tworz.przez PAN'!N24","v":0},{"$f":"'50-PAN i jedn.tworz.przez PAN'!O24","v":0},{"$f":"'50-PAN i jedn.tworz.przez PAN'!P24","v":0},{"$f":"'50-PAN i jedn.tworz.przez PAN'!Q24","v":0},{"$f":"'50-PAN i jedn.tworz.przez PAN'!R24","v":0},{"$f":"'50-PAN i jedn.tworz.przez PAN'!C26","v":0},{"$f":"'50-PAN i jedn.tworz.przez PAN'!D26","v":0},{"$f":"'50-PAN i jedn.tworz.przez PAN'!E26","v":0},{"$f":"'50-PAN i jedn.tworz.przez PAN'!F26","v":0},{"$f":"'50-PAN i jedn.tworz.przez PAN'!G26","v":0},{"$f":"'50-PAN i jedn.tworz.przez PAN'!H26","v":0},{"$f":"'50-PAN i jedn.tworz.przez PAN'!I26","v":0},{"$f":"'50-PAN i jedn.tworz.przez PAN'!J26","v":0},{"$f":"'50-PAN i jedn.tworz.przez PAN'!K26","v":0},{"$f":"'50-PAN i jedn.tworz.przez PAN'!L26","v":0},{"$f":"'50-PAN i jedn.tworz.przez PAN'!M26","v":0},{"$f":"'50-PAN i jedn.tworz.przez PAN'!N26","v":0},{"$f":"'50-PAN i jedn.tworz.przez PAN'!O26","v":0},{"$f":"'50-PAN i jedn.tworz.przez PAN'!P26","v":0},{"$f":"'50-PAN i jedn.tworz.przez PAN'!Q26","v":0},{"$f":"'50-PAN i jedn.tworz.przez PAN'!R26","v":0},{"$f":"'50-PAN i jedn.tworz.przez PAN'!C27","v":0},{"$f":"'50-PAN i jedn.tworz.przez PAN'!D27","v":0},{"$f":"'50-PAN i jedn.tworz.przez PAN'!E27","v":0},{"$f":"'50-PAN i jedn.tworz.przez PAN'!F27","v":0},{"$f":"'50-PAN i jedn.tworz.przez PAN'!G27","v":0},{"$f":"'50-PAN i jedn.tworz.przez PAN'!H27","v":0},{"$f":"'50-PAN i jedn.tworz.przez PAN'!I27","v":0},{"$f":"'50-PAN i jedn.tworz.przez PAN'!J27","v":0},{"$f":"'50-PAN i jedn.tworz.przez PAN'!K27","v":0},{"$f":"'50-PAN i jedn.tworz.przez PAN'!L27","v":0},{"$f":"'50-PAN i jedn.tworz.przez PAN'!M27","v":0},{"$f":"'50-PAN i jedn.tworz.przez PAN'!N27","v":0},{"$f":"'50-PAN i jedn.tworz.przez PAN'!O27","v":0},{"$f":"'50-PAN i jedn.tworz.przez PAN'!P27","v":0},{"$f":"'50-PAN i jedn.tworz.przez PAN'!Q27","v":0},{"$f":"'50-PAN i jedn.tworz.przez PAN'!R27","v":0},{"$f":"'50-PAN i jedn.tworz.przez PAN'!C28","v":0},{"$f":"'50-PAN i jedn.tworz.przez PAN'!D28","v":0},{"$f":"'50-PAN i jedn.tworz.przez PAN'!E28","v":0},{"$f":"'50-PAN i jedn.tworz.przez PAN'!F28","v":0},{"$f":"'50-PAN i jedn.tworz.przez PAN'!G28","v":0},{"$f":"'50-PAN i jedn.tworz.przez PAN'!H28","v":0},{"$f":"'50-PAN i jedn.tworz.przez PAN'!I28","v":0},{"$f":"'50-PAN i jedn.tworz.przez PAN'!J28","v":0},{"$f":"'50-PAN i jedn.tworz.przez PAN'!K28","v":0},{"$f":"'50-PAN i jedn.tworz.przez PAN'!L28","v":0},{"$f":"'50-PAN i jedn.tworz.przez PAN'!M28","v":0},{"$f":"'50-PAN i jedn.tworz.przez PAN'!N28","v":0},{"$f":"'50-PAN i jedn.tworz.przez PAN'!O28","v":0},{"$f":"'50-PAN i jedn.tworz.przez PAN'!P28","v":0},{"$f":"'50-PAN i jedn.tworz.przez PAN'!Q28","v":0},{"$f":"'50-PAN i jedn.tworz.przez PAN'!R28","v":0},{"$f":"'50-PAN i jedn.tworz.przez PAN'!C29","v":0},{"$f":"'50-PAN i jedn.tworz.przez PAN'!D29","v":0},{"$f":"'50-PAN i jedn.tworz.przez PAN'!E29","v":0},{"$f":"'50-PAN i jedn.tworz.przez PAN'!F29","v":0},{"$f":"'50-PAN i jedn.tworz.przez PAN'!G29","v":0},{"$f":"'50-PAN i jedn.tworz.przez PAN'!H29","v":0},{"$f":"'50-PAN i jedn.tworz.przez PAN'!I29","v":0},{"$f":"'50-PAN i jedn.tworz.przez PAN'!J29","v":0},{"$f":"'50-PAN i jedn.tworz.przez PAN'!K29","v":0},{"$f":"'50-PAN i jedn.tworz.przez PAN'!L29","v":0},{"$f":"'50-PAN i jedn.tworz.przez PAN'!M29","v":0},{"$f":"'50-PAN i jedn.tworz.przez PAN'!N29","v":0},{"$f":"'50-PAN i jedn.tworz.przez PAN'!O29","v":0},{"$f":"'50-PAN i jedn.tworz.przez PAN'!P29","v":0},{"$f":"'50-PAN i jedn.tworz.przez PAN'!Q29","v":0},{"$f":"'50-PAN i jedn.tworz.przez PAN'!R29","v":0},{"$f":"'50-PAN i jedn.tworz.przez PAN'!C30","v":0},{"$f":"'50-PAN i jedn.tworz.przez PAN'!D30","v":0},{"$f":"'50-PAN i jedn.tworz.przez PAN'!E30","v":0},{"$f":"'50-PAN i jedn.tworz.przez PAN'!F30","v":0},{"$f":"'50-PAN i jedn.tworz.przez PAN'!G30","v":0},{"$f":"'50-PAN i jedn.tworz.przez PAN'!H30","v":0},{"$f":"'50-PAN i jedn.tworz.przez PAN'!I30","v":0},{"$f":"'50-PAN i jedn.tworz.przez PAN'!J30","v":0},{"$f":"'50-PAN i jedn.tworz.przez PAN'!K30","v":0},{"$f":"'50-PAN i jedn.tworz.przez PAN'!L30","v":0},{"$f":"'50-PAN i jedn.tworz.przez PAN'!M30","v":0},{"$f":"'50-PAN i jedn.tworz.przez PAN'!N30","v":0},{"$f":"'50-PAN i jedn.tworz.przez PAN'!O30","v":0},{"$f":"'50-PAN i jedn.tworz.przez PAN'!P30","v":0},{"$f":"'50-PAN i jedn.tworz.przez PAN'!Q30","v":0},{"$f":"'50-PAN i jedn.tworz.przez PAN'!R30","v":0},{"$f":"'50-PAN i jedn.tworz.przez PAN'!C31","v":0},{"$f":"'50-PAN i jedn.tworz.przez PAN'!D31","v":0},{"$f":"'50-PAN i jedn.tworz.przez PAN'!E31","v":0},{"$f":"'50-PAN i jedn.tworz.przez PAN'!F31","v":0},{"$f":"'50-PAN i jedn.tworz.przez PAN'!G31","v":0},{"$f":"'50-PAN i jedn.tworz.przez PAN'!H31","v":0},{"$f":"'50-PAN i jedn.tworz.przez PAN'!I31","v":0},{"$f":"'50-PAN i jedn.tworz.przez PAN'!J31","v":0},{"$f":"'50-PAN i jedn.tworz.przez PAN'!K31","v":0},{"$f":"'50-PAN i jedn.tworz.przez PAN'!L31","v":0},{"$f":"'50-PAN i jedn.tworz.przez PAN'!M31","v":0},{"$f":"'50-PAN i jedn.tworz.przez PAN'!N31","v":0},{"$f":"'50-PAN i jedn.tworz.przez PAN'!O31","v":0},{"$f":"'50-PAN i jedn.tworz.przez PAN'!P31","v":0},{"$f":"'50-PAN i jedn.tworz.przez PAN'!Q31","v":0},{"$f":"'50-PAN i jedn.tworz.przez PAN'!R31","v":0},{"$f":"'50-PAN i jedn.tworz.przez PAN'!C32","v":0},{"$f":"'50-PAN i jedn.tworz.przez PAN'!D32","v":0},{"$f":"'50-PAN i jedn.tworz.przez PAN'!E32","v":0},{"$f":"'50-PAN i jedn.tworz.przez PAN'!F32","v":0},{"$f":"'50-PAN i jedn.tworz.przez PAN'!G32","v":0},{"$f":"'50-PAN i jedn.tworz.przez PAN'!H32","v":0},{"$f":"'50-PAN i jedn.tworz.przez PAN'!I32","v":0},{"$f":"'50-PAN i jedn.tworz.przez PAN'!J32","v":0},{"$f":"'50-PAN i jedn.tworz.przez PAN'!K32","v":0},{"$f":"'50-PAN i jedn.tworz.przez PAN'!L32","v":0},{"$f":"'50-PAN i jedn.tworz.przez PAN'!M32","v":0},{"$f":"'50-PAN i jedn.tworz.przez PAN'!N32","v":0},{"$f":"'50-PAN i jedn.tworz.przez PAN'!O32","v":0},{"$f":"'50-PAN i jedn.tworz.przez PAN'!P32","v":0},{"$f":"'50-PAN i jedn.tworz.przez PAN'!Q32","v":0},{"$f":"'50-PAN i jedn.tworz.przez PAN'!R32","v":0},{"$f":"'50-PAN i jedn.tworz.przez PAN'!C33","v":0},{"$f":"'50-PAN i jedn.tworz.przez PAN'!D33","v":0},{"$f":"'50-PAN i jedn.tworz.przez PAN'!E33","v":0},{"$f":"'50-PAN i jedn.tworz.przez PAN'!F33","v":0},{"$f":"'50-PAN i jedn.tworz.przez PAN'!G33","v":0},{"$f":"'50-PAN i jedn.tworz.przez PAN'!H33","v":0},{"$f":"'50-PAN i jedn.tworz.przez PAN'!I33","v":0},{"$f":"'50-PAN i jedn.tworz.przez PAN'!J33","v":0},{"$f":"'50-PAN i jedn.tworz.przez PAN'!K33","v":0},{"$f":"'50-PAN i jedn.tworz.przez PAN'!L33","v":0},{"$f":"'50-PAN i jedn.tworz.przez PAN'!M33","v":0},{"$f":"'50-PAN i jedn.tworz.przez PAN'!N33","v":0},{"$f":"'50-PAN i jedn.tworz.przez PAN'!O33","v":0},{"$f":"'50-PAN i jedn.tworz.przez PAN'!P33","v":0},{"$f":"'50-PAN i jedn.tworz.przez PAN'!Q33","v":0},{"$f":"'50-PAN i jedn.tworz.przez PAN'!R33","v":0},{"$f":"'50-PAN i jedn.tworz.przez PAN'!C34","v":0},{"$f":"'50-PAN i jedn.tworz.przez PAN'!D34","v":0},{"$f":"'50-PAN i jedn.tworz.przez PAN'!E34","v":0},{"$f":"'50-PAN i jedn.tworz.przez PAN'!F34","v":0},{"$f":"'50-PAN i jedn.tworz.przez PAN'!G34","v":0},{"$f":"'50-PAN i jedn.tworz.przez PAN'!H34","v":0},{"$f":"'50-PAN i jedn.tworz.przez PAN'!I34","v":0},{"$f":"'50-PAN i jedn.tworz.przez PAN'!J34","v":0},{"$f":"'50-PAN i jedn.tworz.przez PAN'!K34","v":0},{"$f":"'50-PAN i jedn.tworz.przez PAN'!L34","v":0},{"$f":"'50-PAN i jedn.tworz.przez PAN'!M34","v":0},{"$f":"'50-PAN i jedn.tworz.przez PAN'!N34","v":0},{"$f":"'50-PAN i jedn.tworz.przez PAN'!O34","v":0},{"$f":"'50-PAN i jedn.tworz.przez PAN'!P34","v":0},{"$f":"'50-PAN i jedn.tworz.przez PAN'!Q34","v":0},{"$f":"'50-PAN i jedn.tworz.przez PAN'!R34","v":0},{"$f":"'50-PAN i jedn.tworz.przez PAN'!C35","v":0},{"$f":"'50-PAN i jedn.tworz.przez PAN'!D35","v":0},{"$f":"'50-PAN i jedn.tworz.przez PAN'!E35","v":0},{"$f":"'50-PAN i jedn.tworz.przez PAN'!F35","v":0},{"$f":"'50-PAN i jedn.tworz.przez PAN'!G35","v":0},{"$f":"'50-PAN i jedn.tworz.przez PAN'!H35","v":0},{"$f":"'50-PAN i jedn.tworz.przez PAN'!I35","v":0},{"$f":"'50-PAN i jedn.tworz.przez PAN'!J35","v":0},{"$f":"'50-PAN i jedn.tworz.przez PAN'!K35","v":0},{"$f":"'50-PAN i jedn.tworz.przez PAN'!L35","v":0},{"$f":"'50-PAN i jedn.tworz.przez PAN'!M35","v":0},{"$f":"'50-PAN i jedn.tworz.przez PAN'!N35","v":0},{"$f":"'50-PAN i jedn.tworz.przez PAN'!O35","v":0},{"$f":"'50-PAN i jedn.tworz.przez PAN'!P35","v":0},{"$f":"'50-PAN i jedn.tworz.przez PAN'!Q35","v":0},{"$f":"'50-PAN i jedn.tworz.przez PAN'!R35","v":0}]
[{"$f":"'61-samodz.publ.ZOZ państw.'!A8","v":0},null,null,null,null,{"$f":"'61-samodz.publ.ZOZ państw.'!L11","v":61},{"$f":"'61-samodz.publ.ZOZ państw.'!K8","v":0},{"$f":"'61-samodz.publ.ZOZ państw.'!H8","v":0},{"$f":"'61-samodz.publ.ZOZ państw.'!M11","v":0},null,null,{"$f":"'61-samodz.publ.ZOZ państw.'!C24","v":0},{"$f":"'61-samodz.publ.ZOZ państw.'!D24","v":0},{"$f":"'61-samodz.publ.ZOZ państw.'!E24","v":0},{"$f":"'61-samodz.publ.ZOZ państw.'!F24","v":0},{"$f":"'61-samodz.publ.ZOZ państw.'!G24","v":0},{"$f":"'61-samodz.publ.ZOZ państw.'!H24","v":0},{"$f":"'61-samodz.publ.ZOZ państw.'!I24","v":0},{"$f":"'61-samodz.publ.ZOZ państw.'!J24","v":0},{"$f":"'61-samodz.publ.ZOZ państw.'!K24","v":0},{"$f":"'61-samodz.publ.ZOZ państw.'!L24","v":0},{"$f":"'61-samodz.publ.ZOZ państw.'!M24","v":0},{"$f":"'61-samodz.publ.ZOZ państw.'!N24","v":0},{"$f":"'61-samodz.publ.ZOZ państw.'!O24","v":0},{"$f":"'61-samodz.publ.ZOZ państw.'!P24","v":0},{"$f":"'61-samodz.publ.ZOZ państw.'!Q24","v":0},{"$f":"'61-samodz.publ.ZOZ państw.'!R24","v":0},{"$f":"'61-samodz.publ.ZOZ państw.'!C26","v":0},{"$f":"'61-samodz.publ.ZOZ państw.'!D26","v":0},{"$f":"'61-samodz.publ.ZOZ państw.'!E26","v":0},{"$f":"'61-samodz.publ.ZOZ państw.'!F26","v":0},{"$f":"'61-samodz.publ.ZOZ państw.'!G26","v":0},{"$f":"'61-samodz.publ.ZOZ państw.'!H26","v":0},{"$f":"'61-samodz.publ.ZOZ państw.'!I26","v":0},{"$f":"'61-samodz.publ.ZOZ państw.'!J26","v":0},{"$f":"'61-samodz.publ.ZOZ państw.'!K26","v":0},{"$f":"'61-samodz.publ.ZOZ państw.'!L26","v":0},{"$f":"'61-samodz.publ.ZOZ państw.'!M26","v":0},{"$f":"'61-samodz.publ.ZOZ państw.'!N26","v":0},{"$f":"'61-samodz.publ.ZOZ państw.'!O26","v":0},{"$f":"'61-samodz.publ.ZOZ państw.'!P26","v":0},{"$f":"'61-samodz.publ.ZOZ państw.'!Q26","v":0},{"$f":"'61-samodz.publ.ZOZ państw.'!R26","v":0},{"$f":"'61-samodz.publ.ZOZ państw.'!C27","v":0},{"$f":"'61-samodz.publ.ZOZ państw.'!D27","v":0},{"$f":"'61-samodz.publ.ZOZ państw.'!E27","v":0},{"$f":"'61-samodz.publ.ZOZ państw.'!F27","v":0},{"$f":"'61-samodz.publ.ZOZ państw.'!G27","v":0},{"$f":"'61-samodz.publ.ZOZ państw.'!H27","v":0},{"$f":"'61-samodz.publ.ZOZ państw.'!I27","v":0},{"$f":"'61-samodz.publ.ZOZ państw.'!J27","v":0},{"$f":"'61-samodz.publ.ZOZ państw.'!K27","v":0},{"$f":"'61-samodz.publ.ZOZ państw.'!L27","v":0},{"$f":"'61-samodz.publ.ZOZ państw.'!M27","v":0},{"$f":"'61-samodz.publ.ZOZ państw.'!N27","v":0},{"$f":"'61-samodz.publ.ZOZ państw.'!O27","v":0},{"$f":"'61-samodz.publ.ZOZ państw.'!P27","v":0},{"$f":"'61-samodz.publ.ZOZ państw.'!Q27","v":0},{"$f":"'61-samodz.publ.ZOZ państw.'!R27","v":0},{"$f":"'61-samodz.publ.ZOZ państw.'!C28","v":0},{"$f":"'61-samodz.publ.ZOZ państw.'!D28","v":0},{"$f":"'61-samodz.publ.ZOZ państw.'!E28","v":0},{"$f":"'61-samodz.publ.ZOZ państw.'!F28","v":0},{"$f":"'61-samodz.publ.ZOZ państw.'!G28","v":0},{"$f":"'61-samodz.publ.ZOZ państw.'!H28","v":0},{"$f":"'61-samodz.publ.ZOZ państw.'!I28","v":0},{"$f":"'61-samodz.publ.ZOZ państw.'!J28","v":0},{"$f":"'61-samodz.publ.ZOZ państw.'!K28","v":0},{"$f":"'61-samodz.publ.ZOZ państw.'!L28","v":0},{"$f":"'61-samodz.publ.ZOZ państw.'!M28","v":0},{"$f":"'61-samodz.publ.ZOZ państw.'!N28","v":0},{"$f":"'61-samodz.publ.ZOZ państw.'!O28","v":0},{"$f":"'61-samodz.publ.ZOZ państw.'!P28","v":0},{"$f":"'61-samodz.publ.ZOZ państw.'!Q28","v":0},{"$f":"'61-samodz.publ.ZOZ państw.'!R28","v":0},{"$f":"'61-samodz.publ.ZOZ państw.'!C29","v":0},{"$f":"'61-samodz.publ.ZOZ państw.'!D29","v":0},{"$f":"'61-samodz.publ.ZOZ państw.'!E29","v":0},{"$f":"'61-samodz.publ.ZOZ państw.'!F29","v":0},{"$f":"'61-samodz.publ.ZOZ państw.'!G29","v":0},{"$f":"'61-samodz.publ.ZOZ państw.'!H29","v":0},{"$f":"'61-samodz.publ.ZOZ państw.'!I29","v":0},{"$f":"'61-samodz.publ.ZOZ państw.'!J29","v":0},{"$f":"'61-samodz.publ.ZOZ państw.'!K29","v":0},{"$f":"'61-samodz.publ.ZOZ państw.'!L29","v":0},{"$f":"'61-samodz.publ.ZOZ państw.'!M29","v":0},{"$f":"'61-samodz.publ.ZOZ państw.'!N29","v":0},{"$f":"'61-samodz.publ.ZOZ państw.'!O29","v":0},{"$f":"'61-samodz.publ.ZOZ państw.'!P29","v":0},{"$f":"'61-samodz.publ.ZOZ państw.'!Q29","v":0},{"$f":"'61-samodz.publ.ZOZ państw.'!R29","v":0},{"$f":"'61-samodz.publ.ZOZ państw.'!C30","v":0},{"$f":"'61-samodz.publ.ZOZ państw.'!D30","v":0},{"$f":"'61-samodz.publ.ZOZ państw.'!E30","v":0},{"$f":"'61-samodz.publ.ZOZ państw.'!F30","v":0},{"$f":"'61-samodz.publ.ZOZ państw.'!G30","v":0},{"$f":"'61-samodz.publ.ZOZ państw.'!H30","v":0},{"$f":"'61-samodz.publ.ZOZ państw.'!I30","v":0},{"$f":"'61-samodz.publ.ZOZ państw.'!J30","v":0},{"$f":"'61-samodz.publ.ZOZ państw.'!K30","v":0},{"$f":"'61-samodz.publ.ZOZ państw.'!L30","v":0},{"$f":"'61-samodz.publ.ZOZ państw.'!M30","v":0},{"$f":"'61-samodz.publ.ZOZ państw.'!N30","v":0},{"$f":"'61-samodz.publ.ZOZ państw.'!O30","v":0},{"$f":"'61-samodz.publ.ZOZ państw.'!P30","v":0},{"$f":"'61-samodz.publ.ZOZ państw.'!Q30","v":0},{"$f":"'61-samodz.publ.ZOZ państw.'!R30","v":0},{"$f":"'61-samodz.publ.ZOZ państw.'!C31","v":0},{"$f":"'61-samodz.publ.ZOZ państw.'!D31","v":0},{"$f":"'61-samodz.publ.ZOZ państw.'!E31","v":0},{"$f":"'61-samodz.publ.ZOZ państw.'!F31","v":0},{"$f":"'61-samodz.publ.ZOZ państw.'!G31","v":0},{"$f":"'61-samodz.publ.ZOZ państw.'!H31","v":0},{"$f":"'61-samodz.publ.ZOZ państw.'!I31","v":0},{"$f":"'61-samodz.publ.ZOZ państw.'!J31","v":0},{"$f":"'61-samodz.publ.ZOZ państw.'!K31","v":0},{"$f":"'61-samodz.publ.ZOZ państw.'!L31","v":0},{"$f":"'61-samodz.publ.ZOZ państw.'!M31","v":0},{"$f":"'61-samodz.publ.ZOZ państw.'!N31","v":0},{"$f":"'61-samodz.publ.ZOZ państw.'!O31","v":0},{"$f":"'61-samodz.publ.ZOZ państw.'!P31","v":0},{"$f":"'61-samodz.publ.ZOZ państw.'!Q31","v":0},{"$f":"'61-samodz.publ.ZOZ państw.'!R31","v":0},{"$f":"'61-samodz.publ.ZOZ państw.'!C32","v":0},{"$f":"'61-samodz.publ.ZOZ państw.'!D32","v":0},{"$f":"'61-samodz.publ.ZOZ państw.'!E32","v":0},{"$f":"'61-samodz.publ.ZOZ państw.'!F32","v":0},{"$f":"'61-samodz.publ.ZOZ państw.'!G32","v":0},{"$f":"'61-samodz.publ.ZOZ państw.'!H32","v":0},{"$f":"'61-samodz.publ.ZOZ państw.'!I32","v":0},{"$f":"'61-samodz.publ.ZOZ państw.'!J32","v":0},{"$f":"'61-samodz.publ.ZOZ państw.'!K32","v":0},{"$f":"'61-samodz.publ.ZOZ państw.'!L32","v":0},{"$f":"'61-samodz.publ.ZOZ państw.'!M32","v":0},{"$f":"'61-samodz.publ.ZOZ państw.'!N32","v":0},{"$f":"'61-samodz.publ.ZOZ państw.'!O32","v":0},{"$f":"'61-samodz.publ.ZOZ państw.'!P32","v":0},{"$f":"'61-samodz.publ.ZOZ państw.'!Q32","v":0},{"$f":"'61-samodz.publ.ZOZ państw.'!R32","v":0},{"$f":"'61-samodz.publ.ZOZ państw.'!C33","v":0},{"$f":"'61-samodz.publ.ZOZ państw.'!D33","v":0},{"$f":"'61-samodz.publ.ZOZ państw.'!E33","v":0},{"$f":"'61-samodz.publ.ZOZ państw.'!F33","v":0},{"$f":"'61-samodz.publ.ZOZ państw.'!G33","v":0},{"$f":"'61-samodz.publ.ZOZ państw.'!H33","v":0},{"$f":"'61-samodz.publ.ZOZ państw.'!I33","v":0},{"$f":"'61-samodz.publ.ZOZ państw.'!J33","v":0},{"$f":"'61-samodz.publ.ZOZ państw.'!K33","v":0},{"$f":"'61-samodz.publ.ZOZ państw.'!L33","v":0},{"$f":"'61-samodz.publ.ZOZ państw.'!M33","v":0},{"$f":"'61-samodz.publ.ZOZ państw.'!N33","v":0},{"$f":"'61-samodz.publ.ZOZ państw.'!O33","v":0},{"$f":"'61-samodz.publ.ZOZ państw.'!P33","v":0},{"$f":"'61-samodz.publ.ZOZ państw.'!Q33","v":0},{"$f":"'61-samodz.publ.ZOZ państw.'!R33","v":0},{"$f":"'61-samodz.publ.ZOZ państw.'!C34","v":0},{"$f":"'61-samodz.publ.ZOZ państw.'!D34","v":0},{"$f":"'61-samodz.publ.ZOZ państw.'!E34","v":0},{"$f":"'61-samodz.publ.ZOZ państw.'!F34","v":0},{"$f":"'61-samodz.publ.ZOZ państw.'!G34","v":0},{"$f":"'61-samodz.publ.ZOZ państw.'!H34","v":0},{"$f":"'61-samodz.publ.ZOZ państw.'!I34","v":0},{"$f":"'61-samodz.publ.ZOZ państw.'!J34","v":0},{"$f":"'61-samodz.publ.ZOZ państw.'!K34","v":0},{"$f":"'61-samodz.publ.ZOZ państw.'!L34","v":0},{"$f":"'61-samodz.publ.ZOZ państw.'!M34","v":0},{"$f":"'61-samodz.publ.ZOZ państw.'!N34","v":0},{"$f":"'61-samodz.publ.ZOZ państw.'!O34","v":0},{"$f":"'61-samodz.publ.ZOZ państw.'!P34","v":0},{"$f":"'61-samodz.publ.ZOZ państw.'!Q34","v":0},{"$f":"'61-samodz.publ.ZOZ państw.'!R34","v":0},{"$f":"'61-samodz.publ.ZOZ państw.'!C35","v":0},{"$f":"'61-samodz.publ.ZOZ państw.'!D35","v":0},{"$f":"'61-samodz.publ.ZOZ państw.'!E35","v":0},{"$f":"'61-samodz.publ.ZOZ państw.'!F35","v":0},{"$f":"'61-samodz.publ.ZOZ państw.'!G35","v":0},{"$f":"'61-samodz.publ.ZOZ państw.'!H35","v":0},{"$f":"'61-samodz.publ.ZOZ państw.'!I35","v":0},{"$f":"'61-samodz.publ.ZOZ państw.'!J35","v":0},{"$f":"'61-samodz.publ.ZOZ państw.'!K35","v":0},{"$f":"'61-samodz.publ.ZOZ państw.'!L35","v":0},{"$f":"'61-samodz.publ.ZOZ państw.'!M35","v":0},{"$f":"'61-samodz.publ.ZOZ państw.'!N35","v":0},{"$f":"'61-samodz.publ.ZOZ państw.'!O35","v":0},{"$f":"'61-samodz.publ.ZOZ państw.'!P35","v":0},{"$f":"'61-samodz.publ.ZOZ państw.'!Q35","v":0},{"$f":"'61-samodz.publ.ZOZ państw.'!R35","v":0}]
[{"$f":"'62-samodz.publ.ZOZ samorz.'!A8","v":0},null,null,null,null,{"$f":"'62-samodz.publ.ZOZ samorz.'!L11","v":62},{"$f":"'62-samodz.publ.ZOZ samorz.'!K8","v":0},{"$f":"'62-samodz.publ.ZOZ samorz.'!H8","v":0},{"$f":"'62-samodz.publ.ZOZ samorz.'!M11","v":0},null,null,{"$f":"'62-samodz.publ.ZOZ samorz.'!C24","v":0},{"$f":"'62-samodz.publ.ZOZ samorz.'!D24","v":0},{"$f":"'62-samodz.publ.ZOZ samorz.'!E24","v":0},{"$f":"'62-samodz.publ.ZOZ samorz.'!F24","v":0},{"$f":"'62-samodz.publ.ZOZ samorz.'!G24","v":0},{"$f":"'62-samodz.publ.ZOZ samorz.'!H24","v":0},{"$f":"'62-samodz.publ.ZOZ samorz.'!I24","v":0},{"$f":"'62-samodz.publ.ZOZ samorz.'!J24","v":0},{"$f":"'62-samodz.publ.ZOZ samorz.'!K24","v":0},{"$f":"'62-samodz.publ.ZOZ samorz.'!L24","v":0},{"$f":"'62-samodz.publ.ZOZ samorz.'!M24","v":0},{"$f":"'62-samodz.publ.ZOZ samorz.'!N24","v":0},{"$f":"'62-samodz.publ.ZOZ samorz.'!O24","v":0},{"$f":"'62-samodz.publ.ZOZ samorz.'!P24","v":0},{"$f":"'62-samodz.publ.ZOZ samorz.'!Q24","v":0},{"$f":"'62-samodz.publ.ZOZ samorz.'!R24","v":0},{"$f":"'62-samodz.publ.ZOZ samorz.'!C26","v":0},{"$f":"'62-samodz.publ.ZOZ samorz.'!D26","v":0},{"$f":"'62-samodz.publ.ZOZ samorz.'!E26","v":0},{"$f":"'62-samodz.publ.ZOZ samorz.'!F26","v":0},{"$f":"'62-samodz.publ.ZOZ samorz.'!G26","v":0},{"$f":"'62-samodz.publ.ZOZ samorz.'!H26","v":0},{"$f":"'62-samodz.publ.ZOZ samorz.'!I26","v":0},{"$f":"'62-samodz.publ.ZOZ samorz.'!J26","v":0},{"$f":"'62-samodz.publ.ZOZ samorz.'!K26","v":0},{"$f":"'62-samodz.publ.ZOZ samorz.'!L26","v":0},{"$f":"'62-samodz.publ.ZOZ samorz.'!M26","v":0},{"$f":"'62-samodz.publ.ZOZ samorz.'!N26","v":0},{"$f":"'62-samodz.publ.ZOZ samorz.'!O26","v":0},{"$f":"'62-samodz.publ.ZOZ samorz.'!P26","v":0},{"$f":"'62-samodz.publ.ZOZ samorz.'!Q26","v":0},{"$f":"'62-samodz.publ.ZOZ samorz.'!R26","v":0},{"$f":"'62-samodz.publ.ZOZ samorz.'!C27","v":0},{"$f":"'62-samodz.publ.ZOZ samorz.'!D27","v":0},{"$f":"'62-samodz.publ.ZOZ samorz.'!E27","v":0},{"$f":"'62-samodz.publ.ZOZ samorz.'!F27","v":0},{"$f":"'62-samodz.publ.ZOZ samorz.'!G27","v":0},{"$f":"'62-samodz.publ.ZOZ samorz.'!H27","v":0},{"$f":"'62-samodz.publ.ZOZ samorz.'!I27","v":0},{"$f":"'62-samodz.publ.ZOZ samorz.'!J27","v":0},{"$f":"'62-samodz.publ.ZOZ samorz.'!K27","v":0},{"$f":"'62-samodz.publ.ZOZ samorz.'!L27","v":0},{"$f":"'62-samodz.publ.ZOZ samorz.'!M27","v":0},{"$f":"'62-samodz.publ.ZOZ samorz.'!N27","v":0},{"$f":"'62-samodz.publ.ZOZ samorz.'!O27","v":0},{"$f":"'62-samodz.publ.ZOZ samorz.'!P27","v":0},{"$f":"'62-samodz.publ.ZOZ samorz.'!Q27","v":0},{"$f":"'62-samodz.publ.ZOZ samorz.'!R27","v":0},{"$f":"'62-samodz.publ.ZOZ samorz.'!C28","v":0},{"$f":"'62-samodz.publ.ZOZ samorz.'!D28","v":0},{"$f":"'62-samodz.publ.ZOZ samorz.'!E28","v":0},{"$f":"'62-samodz.publ.ZOZ samorz.'!F28","v":0},{"$f":"'62-samodz.publ.ZOZ samorz.'!G28","v":0},{"$f":"'62-samodz.publ.ZOZ samorz.'!H28","v":0},{"$f":"'62-samodz.publ.ZOZ samorz.'!I28","v":0},{"$f":"'62-samodz.publ.ZOZ samorz.'!J28","v":0},{"$f":"'62-samodz.publ.ZOZ samorz.'!K28","v":0},{"$f":"'62-samodz.publ.ZOZ samorz.'!L28","v":0},{"$f":"'62-samodz.publ.ZOZ samorz.'!M28","v":0},{"$f":"'62-samodz.publ.ZOZ samorz.'!N28","v":0},{"$f":"'62-samodz.publ.ZOZ samorz.'!O28","v":0},{"$f":"'62-samodz.publ.ZOZ samorz.'!P28","v":0},{"$f":"'62-samodz.publ.ZOZ samorz.'!Q28","v":0},{"$f":"'62-samodz.publ.ZOZ samorz.'!R28","v":0},{"$f":"'62-samodz.publ.ZOZ samorz.'!C29","v":0},{"$f":"'62-samodz.publ.ZOZ samorz.'!D29","v":0},{"$f":"'62-samodz.publ.ZOZ samorz.'!E29","v":0},{"$f":"'62-samodz.publ.ZOZ samorz.'!F29","v":0},{"$f":"'62-samodz.publ.ZOZ samorz.'!G29","v":0},{"$f":"'62-samodz.publ.ZOZ samorz.'!H29","v":0},{"$f":"'62-samodz.publ.ZOZ samorz.'!I29","v":0},{"$f":"'62-samodz.publ.ZOZ samorz.'!J29","v":0},{"$f":"'62-samodz.publ.ZOZ samorz.'!K29","v":0},{"$f":"'62-samodz.publ.ZOZ samorz.'!L29","v":0},{"$f":"'62-samodz.publ.ZOZ samorz.'!M29","v":0},{"$f":"'62-samodz.publ.ZOZ samorz.'!N29","v":0},{"$f":"'62-samodz.publ.ZOZ samorz.'!O29","v":0},{"$f":"'62-samodz.publ.ZOZ samorz.'!P29","v":0},{"$f":"'62-samodz.publ.ZOZ samorz.'!Q29","v":0},{"$f":"'62-samodz.publ.ZOZ samorz.'!R29","v":0},{"$f":"'62-samodz.publ.ZOZ samorz.'!C30","v":0},{"$f":"'62-samodz.publ.ZOZ samorz.'!D30","v":0},{"$f":"'62-samodz.publ.ZOZ samorz.'!E30","v":0},{"$f":"'62-samodz.publ.ZOZ samorz.'!F30","v":0},{"$f":"'62-samodz.publ.ZOZ samorz.'!G30","v":0},{"$f":"'62-samodz.publ.ZOZ samorz.'!H30","v":0},{"$f":"'62-samodz.publ.ZOZ samorz.'!I30","v":0},{"$f":"'62-samodz.publ.ZOZ samorz.'!J30","v":0},{"$f":"'62-samodz.publ.ZOZ samorz.'!K30","v":0},{"$f":"'62-samodz.publ.ZOZ samorz.'!L30","v":0},{"$f":"'62-samodz.publ.ZOZ samorz.'!M30","v":0},{"$f":"'62-samodz.publ.ZOZ samorz.'!N30","v":0},{"$f":"'62-samodz.publ.ZOZ samorz.'!O30","v":0},{"$f":"'62-samodz.publ.ZOZ samorz.'!P30","v":0},{"$f":"'62-samodz.publ.ZOZ samorz.'!Q30","v":0},{"$f":"'62-samodz.publ.ZOZ samorz.'!R30","v":0},{"$f":"'62-samodz.publ.ZOZ samorz.'!C31","v":0},{"$f":"'62-samodz.publ.ZOZ samorz.'!D31","v":0},{"$f":"'62-samodz.publ.ZOZ samorz.'!E31","v":0},{"$f":"'62-samodz.publ.ZOZ samorz.'!F31","v":0},{"$f":"'62-samodz.publ.ZOZ samorz.'!G31","v":0},{"$f":"'62-samodz.publ.ZOZ samorz.'!H31","v":0},{"$f":"'62-samodz.publ.ZOZ samorz.'!I31","v":0},{"$f":"'62-samodz.publ.ZOZ samorz.'!J31","v":0},{"$f":"'62-samodz.publ.ZOZ samorz.'!K31","v":0},{"$f":"'62-samodz.publ.ZOZ samorz.'!L31","v":0},{"$f":"'62-samodz.publ.ZOZ samorz.'!M31","v":0},{"$f":"'62-samodz.publ.ZOZ samorz.'!N31","v":0},{"$f":"'62-samodz.publ.ZOZ samorz.'!O31","v":0},{"$f":"'62-samodz.publ.ZOZ samorz.'!P31","v":0},{"$f":"'62-samodz.publ.ZOZ samorz.'!Q31","v":0},{"$f":"'62-samodz.publ.ZOZ samorz.'!R31","v":0},{"$f":"'62-samodz.publ.ZOZ samorz.'!C32","v":0},{"$f":"'62-samodz.publ.ZOZ samorz.'!D32","v":0},{"$f":"'62-samodz.publ.ZOZ samorz.'!E32","v":0},{"$f":"'62-samodz.publ.ZOZ samorz.'!F32","v":0},{"$f":"'62-samodz.publ.ZOZ samorz.'!G32","v":0},{"$f":"'62-samodz.publ.ZOZ samorz.'!H32","v":0},{"$f":"'62-samodz.publ.ZOZ samorz.'!I32","v":0},{"$f":"'62-samodz.publ.ZOZ samorz.'!J32","v":0},{"$f":"'62-samodz.publ.ZOZ samorz.'!K32","v":0},{"$f":"'62-samodz.publ.ZOZ samorz.'!L32","v":0},{"$f":"'62-samodz.publ.ZOZ samorz.'!M32","v":0},{"$f":"'62-samodz.publ.ZOZ samorz.'!N32","v":0},{"$f":"'62-samodz.publ.ZOZ samorz.'!O32","v":0},{"$f":"'62-samodz.publ.ZOZ samorz.'!P32","v":0},{"$f":"'62-samodz.publ.ZOZ samorz.'!Q32","v":0},{"$f":"'62-samodz.publ.ZOZ samorz.'!R32","v":0},{"$f":"'62-samodz.publ.ZOZ samorz.'!C33","v":0},{"$f":"'62-samodz.publ.ZOZ samorz.'!D33","v":0},{"$f":"'62-samodz.publ.ZOZ samorz.'!E33","v":0},{"$f":"'62-samodz.publ.ZOZ samorz.'!F33","v":0},{"$f":"'62-samodz.publ.ZOZ samorz.'!G33","v":0},{"$f":"'62-samodz.publ.ZOZ samorz.'!H33","v":0},{"$f":"'62-samodz.publ.ZOZ samorz.'!I33","v":0},{"$f":"'62-samodz.publ.ZOZ samorz.'!J33","v":0},{"$f":"'62-samodz.publ.ZOZ samorz.'!K33","v":0},{"$f":"'62-samodz.publ.ZOZ samorz.'!L33","v":0},{"$f":"'62-samodz.publ.ZOZ samorz.'!M33","v":0},{"$f":"'62-samodz.publ.ZOZ samorz.'!N33","v":0},{"$f":"'62-samodz.publ.ZOZ samorz.'!O33","v":0},{"$f":"'62-samodz.publ.ZOZ samorz.'!P33","v":0},{"$f":"'62-samodz.publ.ZOZ samorz.'!Q33","v":0},{"$f":"'62-samodz.publ.ZOZ samorz.'!R33","v":0},{"$f":"'62-samodz.publ.ZOZ samorz.'!C34","v":0},{"$f":"'62-samodz.publ.ZOZ samorz.'!D34","v":0},{"$f":"'62-samodz.publ.ZOZ samorz.'!E34","v":0},{"$f":"'62-samodz.publ.ZOZ samorz.'!F34","v":0},{"$f":"'62-samodz.publ.ZOZ samorz.'!G34","v":0},{"$f":"'62-samodz.publ.ZOZ samorz.'!H34","v":0},{"$f":"'62-samodz.publ.ZOZ samorz.'!I34","v":0},{"$f":"'62-samodz.publ.ZOZ samorz.'!J34","v":0},{"$f":"'62-samodz.publ.ZOZ samorz.'!K34","v":0},{"$f":"'62-samodz.publ.ZOZ samorz.'!L34","v":0},{"$f":"'62-samodz.publ.ZOZ samorz.'!M34","v":0},{"$f":"'62-samodz.publ.ZOZ samorz.'!N34","v":0},{"$f":"'62-samodz.publ.ZOZ samorz.'!O34","v":0},{"$f":"'62-samodz.publ.ZOZ samorz.'!P34","v":0},{"$f":"'62-samodz.publ.ZOZ samorz.'!Q34","v":0},{"$f":"'62-samodz.publ.ZOZ samorz.'!R34","v":0},{"$f":"'62-samodz.publ.ZOZ samorz.'!C35","v":0},{"$f":"'62-samodz.publ.ZOZ samorz.'!D35","v":0},{"$f":"'62-samodz.publ.ZOZ samorz.'!E35","v":0},{"$f":"'62-samodz.publ.ZOZ samorz.'!F35","v":0},{"$f":"'62-samodz.publ.ZOZ samorz.'!G35","v":0},{"$f":"'62-samodz.publ.ZOZ samorz.'!H35","v":0},{"$f":"'62-samodz.publ.ZOZ samorz.'!I35","v":0},{"$f":"'62-samodz.publ.ZOZ samorz.'!J35","v":0},{"$f":"'62-samodz.publ.ZOZ samorz.'!K35","v":0},{"$f":"'62-samodz.publ.ZOZ samorz.'!L35","v":0},{"$f":"'62-samodz.publ.ZOZ samorz.'!M35","v":0},{"$f":"'62-samodz.publ.ZOZ samorz.'!N35","v":0},{"$f":"'62-samodz.publ.ZOZ samorz.'!O35","v":0},{"$f":"'62-samodz.publ.ZOZ samorz.'!P35","v":0},{"$f":"'62-samodz.publ.ZOZ samorz.'!Q35","v":0},{"$f":"'62-samodz.publ.ZOZ samorz.'!R35","v":0}]
[{"$f":"'63-Narodowy Fundusz Zdrowia'!A8","v":0},null,null,null,null,{"$f":"'63-Narodowy Fundusz Zdrowia'!L11","v":63},{"$f":"'63-Narodowy Fundusz Zdrowia'!K8","v":0},{"$f":"'63-Narodowy Fundusz Zdrowia'!H8","v":0},{"$f":"'63-Narodowy Fundusz Zdrowia'!M11","v":0},null,null,{"$f":"'63-Narodowy Fundusz Zdrowia'!C24","v":0},{"$f":"'63-Narodowy Fundusz Zdrowia'!D24","v":0},{"$f":"'63-Narodowy Fundusz Zdrowia'!E24","v":0},{"$f":"'63-Narodowy Fundusz Zdrowia'!F24","v":0},{"$f":"'63-Narodowy Fundusz Zdrowia'!G24","v":0},{"$f":"'63-Narodowy Fundusz Zdrowia'!H24","v":0},{"$f":"'63-Narodowy Fundusz Zdrowia'!I24","v":0},{"$f":"'63-Narodowy Fundusz Zdrowia'!J24","v":0},{"$f":"'63-Narodowy Fundusz Zdrowia'!K24","v":0},{"$f":"'63-Narodowy Fundusz Zdrowia'!L24","v":0},{"$f":"'63-Narodowy Fundusz Zdrowia'!M24","v":0},{"$f":"'63-Narodowy Fundusz Zdrowia'!N24","v":0},{"$f":"'63-Narodowy Fundusz Zdrowia'!O24","v":0},{"$f":"'63-Narodowy Fundusz Zdrowia'!P24","v":0},{"$f":"'63-Narodowy Fundusz Zdrowia'!Q24","v":0},{"$f":"'63-Narodowy Fundusz Zdrowia'!R24","v":0},{"$f":"'63-Narodowy Fundusz Zdrowia'!C26","v":0},{"$f":"'63-Narodowy Fundusz Zdrowia'!D26","v":0},{"$f":"'63-Narodowy Fundusz Zdrowia'!E26","v":0},{"$f":"'63-Narodowy Fundusz Zdrowia'!F26","v":0},{"$f":"'63-Narodowy Fundusz Zdrowia'!G26","v":0},{"$f":"'63-Narodowy Fundusz Zdrowia'!H26","v":0},{"$f":"'63-Narodowy Fundusz Zdrowia'!I26","v":0},{"$f":"'63-Narodowy Fundusz Zdrowia'!J26","v":0},{"$f":"'63-Narodowy Fundusz Zdrowia'!K26","v":0},{"$f":"'63-Narodowy Fundusz Zdrowia'!L26","v":0},{"$f":"'63-Narodowy Fundusz Zdrowia'!M26","v":0},{"$f":"'63-Narodowy Fundusz Zdrowia'!N26","v":0},{"$f":"'63-Narodowy Fundusz Zdrowia'!O26","v":0},{"$f":"'63-Narodowy Fundusz Zdrowia'!P26","v":0},{"$f":"'63-Narodowy Fundusz Zdrowia'!Q26","v":0},{"$f":"'63-Narodowy Fundusz Zdrowia'!R26","v":0},{"$f":"'63-Narodowy Fundusz Zdrowia'!C27","v":0},{"$f":"'63-Narodowy Fundusz Zdrowia'!D27","v":0},{"$f":"'63-Narodowy Fundusz Zdrowia'!E27","v":0},{"$f":"'63-Narodowy Fundusz Zdrowia'!F27","v":0},{"$f":"'63-Narodowy Fundusz Zdrowia'!G27","v":0},{"$f":"'63-Narodowy Fundusz Zdrowia'!H27","v":0},{"$f":"'63-Narodowy Fundusz Zdrowia'!I27","v":0},{"$f":"'63-Narodowy Fundusz Zdrowia'!J27","v":0},{"$f":"'63-Narodowy Fundusz Zdrowia'!K27","v":0},{"$f":"'63-Narodowy Fundusz Zdrowia'!L27","v":0},{"$f":"'63-Narodowy Fundusz Zdrowia'!M27","v":0},{"$f":"'63-Narodowy Fundusz Zdrowia'!N27","v":0},{"$f":"'63-Narodowy Fundusz Zdrowia'!O27","v":0},{"$f":"'63-Narodowy Fundusz Zdrowia'!P27","v":0},{"$f":"'63-Narodowy Fundusz Zdrowia'!Q27","v":0},{"$f":"'63-Narodowy Fundusz Zdrowia'!R27","v":0},{"$f":"'63-Narodowy Fundusz Zdrowia'!C28","v":0},{"$f":"'63-Narodowy Fundusz Zdrowia'!D28","v":0},{"$f":"'63-Narodowy Fundusz Zdrowia'!E28","v":0},{"$f":"'63-Narodowy Fundusz Zdrowia'!F28","v":0},{"$f":"'63-Narodowy Fundusz Zdrowia'!G28","v":0},{"$f":"'63-Narodowy Fundusz Zdrowia'!H28","v":0},{"$f":"'63-Narodowy Fundusz Zdrowia'!I28","v":0},{"$f":"'63-Narodowy Fundusz Zdrowia'!J28","v":0},{"$f":"'63-Narodowy Fundusz Zdrowia'!K28","v":0},{"$f":"'63-Narodowy Fundusz Zdrowia'!L28","v":0},{"$f":"'63-Narodowy Fundusz Zdrowia'!M28","v":0},{"$f":"'63-Narodowy Fundusz Zdrowia'!N28","v":0},{"$f":"'63-Narodowy Fundusz Zdrowia'!O28","v":0},{"$f":"'63-Narodowy Fundusz Zdrowia'!P28","v":0},{"$f":"'63-Narodowy Fundusz Zdrowia'!Q28","v":0},{"$f":"'63-Narodowy Fundusz Zdrowia'!R28","v":0},{"$f":"'63-Narodowy Fundusz Zdrowia'!C29","v":0},{"$f":"'63-Narodowy Fundusz Zdrowia'!D29","v":0},{"$f":"'63-Narodowy Fundusz Zdrowia'!E29","v":0},{"$f":"'63-Narodowy Fundusz Zdrowia'!F29","v":0},{"$f":"'63-Narodowy Fundusz Zdrowia'!G29","v":0},{"$f":"'63-Narodowy Fundusz Zdrowia'!H29","v":0},{"$f":"'63-Narodowy Fundusz Zdrowia'!I29","v":0},{"$f":"'63-Narodowy Fundusz Zdrowia'!J29","v":0},{"$f":"'63-Narodowy Fundusz Zdrowia'!K29","v":0},{"$f":"'63-Narodowy Fundusz Zdrowia'!L29","v":0},{"$f":"'63-Narodowy Fundusz Zdrowia'!M29","v":0},{"$f":"'63-Narodowy Fundusz Zdrowia'!N29","v":0},{"$f":"'63-Narodowy Fundusz Zdrowia'!O29","v":0},{"$f":"'63-Narodowy Fundusz Zdrowia'!P29","v":0},{"$f":"'63-Narodowy Fundusz Zdrowia'!Q29","v":0},{"$f":"'63-Narodowy Fundusz Zdrowia'!R29","v":0},{"$f":"'63-Narodowy Fundusz Zdrowia'!C30","v":0},{"$f":"'63-Narodowy Fundusz Zdrowia'!D30","v":0},{"$f":"'63-Narodowy Fundusz Zdrowia'!E30","v":0},{"$f":"'63-Narodowy Fundusz Zdrowia'!F30","v":0},{"$f":"'63-Narodowy Fundusz Zdrowia'!G30","v":0},{"$f":"'63-Narodowy Fundusz Zdrowia'!H30","v":0},{"$f":"'63-Narodowy Fundusz Zdrowia'!I30","v":0},{"$f":"'63-Narodowy Fundusz Zdrowia'!J30","v":0},{"$f":"'63-Narodowy Fundusz Zdrowia'!K30","v":0},{"$f":"'63-Narodowy Fundusz Zdrowia'!L30","v":0},{"$f":"'63-Narodowy Fundusz Zdrowia'!M30","v":0},{"$f":"'63-Narodowy Fundusz Zdrowia'!N30","v":0},{"$f":"'63-Narodowy Fundusz Zdrowia'!O30","v":0},{"$f":"'63-Narodowy Fundusz Zdrowia'!P30","v":0},{"$f":"'63-Narodowy Fundusz Zdrowia'!Q30","v":0},{"$f":"'63-Narodowy Fundusz Zdrowia'!R30","v":0},{"$f":"'63-Narodowy Fundusz Zdrowia'!C31","v":0},{"$f":"'63-Narodowy Fundusz Zdrowia'!D31","v":0},{"$f":"'63-Narodowy Fundusz Zdrowia'!E31","v":0},{"$f":"'63-Narodowy Fundusz Zdrowia'!F31","v":0},{"$f":"'63-Narodowy Fundusz Zdrowia'!G31","v":0},{"$f":"'63-Narodowy Fundusz Zdrowia'!H31","v":0},{"$f":"'63-Narodowy Fundusz Zdrowia'!I31","v":0},{"$f":"'63-Narodowy Fundusz Zdrowia'!J31","v":0},{"$f":"'63-Narodowy Fundusz Zdrowia'!K31","v":0},{"$f":"'63-Narodowy Fundusz Zdrowia'!L31","v":0},{"$f":"'63-Narodowy Fundusz Zdrowia'!M31","v":0},{"$f":"'63-Narodowy Fundusz Zdrowia'!N31","v":0},{"$f":"'63-Narodowy Fundusz Zdrowia'!O31","v":0},{"$f":"'63-Narodowy Fundusz Zdrowia'!P31","v":0},{"$f":"'63-Narodowy Fundusz Zdrowia'!Q31","v":0},{"$f":"'63-Narodowy Fundusz Zdrowia'!R31","v":0},{"$f":"'63-Narodowy Fundusz Zdrowia'!C32","v":0},{"$f":"'63-Narodowy Fundusz Zdrowia'!D32","v":0},{"$f":"'63-Narodowy Fundusz Zdrowia'!E32","v":0},{"$f":"'63-Narodowy Fundusz Zdrowia'!F32","v":0},{"$f":"'63-Narodowy Fundusz Zdrowia'!G32","v":0},{"$f":"'63-Narodowy Fundusz Zdrowia'!H32","v":0},{"$f":"'63-Narodowy Fundusz Zdrowia'!I32","v":0},{"$f":"'63-Narodowy Fundusz Zdrowia'!J32","v":0},{"$f":"'63-Narodowy Fundusz Zdrowia'!K32","v":0},{"$f":"'63-Narodowy Fundusz Zdrowia'!L32","v":0},{"$f":"'63-Narodowy Fundusz Zdrowia'!M32","v":0},{"$f":"'63-Narodowy Fundusz Zdrowia'!N32","v":0},{"$f":"'63-Narodowy Fundusz Zdrowia'!O32","v":0},{"$f":"'63-Narodowy Fundusz Zdrowia'!P32","v":0},{"$f":"'63-Narodowy Fundusz Zdrowia'!Q32","v":0},{"$f":"'63-Narodowy Fundusz Zdrowia'!R32","v":0},{"$f":"'63-Narodowy Fundusz Zdrowia'!C33","v":0},{"$f":"'63-Narodowy Fundusz Zdrowia'!D33","v":0},{"$f":"'63-Narodowy Fundusz Zdrowia'!E33","v":0},{"$f":"'63-Narodowy Fundusz Zdrowia'!F33","v":0},{"$f":"'63-Narodowy Fundusz Zdrowia'!G33","v":0},{"$f":"'63-Narodowy Fundusz Zdrowia'!H33","v":0},{"$f":"'63-Narodowy Fundusz Zdrowia'!I33","v":0},{"$f":"'63-Narodowy Fundusz Zdrowia'!J33","v":0},{"$f":"'63-Narodowy Fundusz Zdrowia'!K33","v":0},{"$f":"'63-Narodowy Fundusz Zdrowia'!L33","v":0},{"$f":"'63-Narodowy Fundusz Zdrowia'!M33","v":0},{"$f":"'63-Narodowy Fundusz Zdrowia'!N33","v":0},{"$f":"'63-Narodowy Fundusz Zdrowia'!O33","v":0},{"$f":"'63-Narodowy Fundusz Zdrowia'!P33","v":0},{"$f":"'63-Narodowy Fundusz Zdrowia'!Q33","v":0},{"$f":"'63-Narodowy Fundusz Zdrowia'!R33","v":0},{"$f":"'63-Narodowy Fundusz Zdrowia'!C34","v":0},{"$f":"'63-Narodowy Fundusz Zdrowia'!D34","v":0},{"$f":"'63-Narodowy Fundusz Zdrowia'!E34","v":0},{"$f":"'63-Narodowy Fundusz Zdrowia'!F34","v":0},{"$f":"'63-Narodowy Fundusz Zdrowia'!G34","v":0},{"$f":"'63-Narodowy Fundusz Zdrowia'!H34","v":0},{"$f":"'63-Narodowy Fundusz Zdrowia'!I34","v":0},{"$f":"'63-Narodowy Fundusz Zdrowia'!J34","v":0},{"$f":"'63-Narodowy Fundusz Zdrowia'!K34","v":0},{"$f":"'63-Narodowy Fundusz Zdrowia'!L34","v":0},{"$f":"'63-Narodowy Fundusz Zdrowia'!M34","v":0},{"$f":"'63-Narodowy Fundusz Zdrowia'!N34","v":0},{"$f":"'63-Narodowy Fundusz Zdrowia'!O34","v":0},{"$f":"'63-Narodowy Fundusz Zdrowia'!P34","v":0},{"$f":"'63-Narodowy Fundusz Zdrowia'!Q34","v":0},{"$f":"'63-Narodowy Fundusz Zdrowia'!R34","v":0},{"$f":"'63-Narodowy Fundusz Zdrowia'!C35","v":0},{"$f":"'63-Narodowy Fundusz Zdrowia'!D35","v":0},{"$f":"'63-Narodowy Fundusz Zdrowia'!E35","v":0},{"$f":"'63-Narodowy Fundusz Zdrowia'!F35","v":0},{"$f":"'63-Narodowy Fundusz Zdrowia'!G35","v":0},{"$f":"'63-Narodowy Fundusz Zdrowia'!H35","v":0},{"$f":"'63-Narodowy Fundusz Zdrowia'!I35","v":0},{"$f":"'63-Narodowy Fundusz Zdrowia'!J35","v":0},{"$f":"'63-Narodowy Fundusz Zdrowia'!K35","v":0},{"$f":"'63-Narodowy Fundusz Zdrowia'!L35","v":0},{"$f":"'63-Narodowy Fundusz Zdrowia'!M35","v":0},{"$f":"'63-Narodowy Fundusz Zdrowia'!N35","v":0},{"$f":"'63-Narodowy Fundusz Zdrowia'!O35","v":0},{"$f":"'63-Narodowy Fundusz Zdrowia'!P35","v":0},{"$f":"'63-Narodowy Fundusz Zdrowia'!Q35","v":0},{"$f":"'63-Narodowy Fundusz Zdrowia'!R35","v":0}]
[{"$f":"'71-ZUS'!A8","v":0},null,null,null,null,{"$f":"'71-ZUS'!L11","v":71},{"$f":"'71-ZUS'!K8","v":0},{"$f":"'71-ZUS'!H8","v":0},{"$f":"'71-ZUS'!M11","v":0},null,null,{"$f":"'71-ZUS'!C24","v":0},{"$f":"'71-ZUS'!D24","v":0},{"$f":"'71-ZUS'!E24","v":0},{"$f":"'71-ZUS'!F24","v":0},{"$f":"'71-ZUS'!G24","v":0},{"$f":"'71-ZUS'!H24","v":0},{"$f":"'71-ZUS'!I24","v":0},{"$f":"'71-ZUS'!J24","v":0},{"$f":"'71-ZUS'!K24","v":0},{"$f":"'71-ZUS'!L24","v":0},{"$f":"'71-ZUS'!M24","v":0},{"$f":"'71-ZUS'!N24","v":0},{"$f":"'71-ZUS'!O24","v":0},{"$f":"'71-ZUS'!P24","v":0},{"$f":"'71-ZUS'!Q24","v":0},{"$f":"'71-ZUS'!R24","v":0},{"$f":"'71-ZUS'!C26","v":0},{"$f":"'71-ZUS'!D26","v":0},{"$f":"'71-ZUS'!E26","v":0},{"$f":"'71-ZUS'!F26","v":0},{"$f":"'71-ZUS'!G26","v":0},{"$f":"'71-ZUS'!H26","v":0},{"$f":"'71-ZUS'!I26","v":0},{"$f":"'71-ZUS'!J26","v":0},{"$f":"'71-ZUS'!K26","v":0},{"$f":"'71-ZUS'!L26","v":0},{"$f":"'71-ZUS'!M26","v":0},{"$f":"'71-ZUS'!N26","v":0},{"$f":"'71-ZUS'!O26","v":0},{"$f":"'71-ZUS'!P26","v":0},{"$f":"'71-ZUS'!Q26","v":0},{"$f":"'71-ZUS'!R26","v":0},{"$f":"'71-ZUS'!C27","v":0},{"$f":"'71-ZUS'!D27","v":0},{"$f":"'71-ZUS'!E27","v":0},{"$f":"'71-ZUS'!F27","v":0},{"$f":"'71-ZUS'!G27","v":0},{"$f":"'71-ZUS'!H27","v":0},{"$f":"'71-ZUS'!I27","v":0},{"$f":"'71-ZUS'!J27","v":0},{"$f":"'71-ZUS'!K27","v":0},{"$f":"'71-ZUS'!L27","v":0},{"$f":"'71-ZUS'!M27","v":0},{"$f":"'71-ZUS'!N27","v":0},{"$f":"'71-ZUS'!O27","v":0},{"$f":"'71-ZUS'!P27","v":0},{"$f":"'71-ZUS'!Q27","v":0},{"$f":"'71-ZUS'!R27","v":0},{"$f":"'71-ZUS'!C28","v":0},{"$f":"'71-ZUS'!D28","v":0},{"$f":"'71-ZUS'!E28","v":0},{"$f":"'71-ZUS'!F28","v":0},{"$f":"'71-ZUS'!G28","v":0},{"$f":"'71-ZUS'!H28","v":0},{"$f":"'71-ZUS'!I28","v":0},{"$f":"'71-ZUS'!J28","v":0},{"$f":"'71-ZUS'!K28","v":0},{"$f":"'71-ZUS'!L28","v":0},{"$f":"'71-ZUS'!M28","v":0},{"$f":"'71-ZUS'!N28","v":0},{"$f":"'71-ZUS'!O28","v":0},{"$f":"'71-ZUS'!P28","v":0},{"$f":"'71-ZUS'!Q28","v":0},{"$f":"'71-ZUS'!R28","v":0},{"$f":"'71-ZUS'!C29","v":0},{"$f":"'71-ZUS'!D29","v":0},{"$f":"'71-ZUS'!E29","v":0},{"$f":"'71-ZUS'!F29","v":0},{"$f":"'71-ZUS'!G29","v":0},{"$f":"'71-ZUS'!H29","v":0},{"$f":"'71-ZUS'!I29","v":0},{"$f":"'71-ZUS'!J29","v":0},{"$f":"'71-ZUS'!K29","v":0},{"$f":"'71-ZUS'!L29","v":0},{"$f":"'71-ZUS'!M29","v":0},{"$f":"'71-ZUS'!N29","v":0},{"$f":"'71-ZUS'!O29","v":0},{"$f":"'71-ZUS'!P29","v":0},{"$f":"'71-ZUS'!Q29","v":0},{"$f":"'71-ZUS'!R29","v":0},{"$f":"'71-ZUS'!C30","v":0},{"$f":"'71-ZUS'!D30","v":0},{"$f":"'71-ZUS'!E30","v":0},{"$f":"'71-ZUS'!F30","v":0},{"$f":"'71-ZUS'!G30","v":0},{"$f":"'71-ZUS'!H30","v":0},{"$f":"'71-ZUS'!I30","v":0},{"$f":"'71-ZUS'!J30","v":0},{"$f":"'71-ZUS'!K30","v":0},{"$f":"'71-ZUS'!L30","v":0},{"$f":"'71-ZUS'!M30","v":0},{"$f":"'71-ZUS'!N30","v":0},{"$f":"'71-ZUS'!O30","v":0},{"$f":"'71-ZUS'!P30","v":0},{"$f":"'71-ZUS'!Q30","v":0},{"$f":"'71-ZUS'!R30","v":0},{"$f":"'71-ZUS'!C31","v":0},{"$f":"'71-ZUS'!D31","v":0},{"$f":"'71-ZUS'!E31","v":0},{"$f":"'71-ZUS'!F31","v":0},{"$f":"'71-ZUS'!G31","v":0},{"$f":"'71-ZUS'!H31","v":0},{"$f":"'71-ZUS'!I31","v":0},{"$f":"'71-ZUS'!J31","v":0},{"$f":"'71-ZUS'!K31","v":0},{"$f":"'71-ZUS'!L31","v":0},{"$f":"'71-ZUS'!M31","v":0},{"$f":"'71-ZUS'!N31","v":0},{"$f":"'71-ZUS'!O31","v":0},{"$f":"'71-ZUS'!P31","v":0},{"$f":"'71-ZUS'!Q31","v":0},{"$f":"'71-ZUS'!R31","v":0},{"$f":"'71-ZUS'!C32","v":0},{"$f":"'71-ZUS'!D32","v":0},{"$f":"'71-ZUS'!E32","v":0},{"$f":"'71-ZUS'!F32","v":0},{"$f":"'71-ZUS'!G32","v":0},{"$f":"'71-ZUS'!H32","v":0},{"$f":"'71-ZUS'!I32","v":0},{"$f":"'71-ZUS'!J32","v":0},{"$f":"'71-ZUS'!K32","v":0},{"$f":"'71-ZUS'!L32","v":0},{"$f":"'71-ZUS'!M32","v":0},{"$f":"'71-ZUS'!N32","v":0},{"$f":"'71-ZUS'!O32","v":0},{"$f":"'71-ZUS'!P32","v":0},{"$f":"'71-ZUS'!Q32","v":0},{"$f":"'71-ZUS'!R32","v":0},{"$f":"'71-ZUS'!C33","v":0},{"$f":"'71-ZUS'!D33","v":0},{"$f":"'71-ZUS'!E33","v":0},{"$f":"'71-ZUS'!F33","v":0},{"$f":"'71-ZUS'!G33","v":0},{"$f":"'71-ZUS'!H33","v":0},{"$f":"'71-ZUS'!I33","v":0},{"$f":"'71-ZUS'!J33","v":0},{"$f":"'71-ZUS'!K33","v":0},{"$f":"'71-ZUS'!L33","v":0},{"$f":"'71-ZUS'!M33","v":0},{"$f":"'71-ZUS'!N33","v":0},{"$f":"'71-ZUS'!O33","v":0},{"$f":"'71-ZUS'!P33","v":0},{"$f":"'71-ZUS'!Q33","v":0},{"$f":"'71-ZUS'!R33","v":0},{"$f":"'71-ZUS'!C34","v":0},{"$f":"'71-ZUS'!D34","v":0},{"$f":"'71-ZUS'!E34","v":0},{"$f":"'71-ZUS'!F34","v":0},{"$f":"'71-ZUS'!G34","v":0},{"$f":"'71-ZUS'!H34","v":0},{"$f":"'71-ZUS'!I34","v":0},{"$f":"'71-ZUS'!J34","v":0},{"$f":"'71-ZUS'!K34","v":0},{"$f":"'71-ZUS'!L34","v":0},{"$f":"'71-ZUS'!M34","v":0},{"$f":"'71-ZUS'!N34","v":0},{"$f":"'71-ZUS'!O34","v":0},{"$f":"'71-ZUS'!P34","v":0},{"$f":"'71-ZUS'!Q34","v":0},{"$f":"'71-ZUS'!R34","v":0},{"$f":"'71-ZUS'!C35","v":0},{"$f":"'71-ZUS'!D35","v":0},{"$f":"'71-ZUS'!E35","v":0},{"$f":"'71-ZUS'!F35","v":0},{"$f":"'71-ZUS'!G35","v":0},{"$f":"'71-ZUS'!H35","v":0},{"$f":"'71-ZUS'!I35","v":0},{"$f":"'71-ZUS'!J35","v":0},{"$f":"'71-ZUS'!K35","v":0},{"$f":"'71-ZUS'!L35","v":0},{"$f":"'71-ZUS'!M35","v":0},{"$f":"'71-ZUS'!N35","v":0},{"$f":"'71-ZUS'!O35","v":0},{"$f":"'71-ZUS'!P35","v":0},{"$f":"'71-ZUS'!Q35","v":0},{"$f":"'71-ZUS'!R35","v":0}]
[{"$f":"'72-fund.zarz.przez ZUS'!A8:B8","v":0},null,null,null,null,{"$f":"'72-fund.zarz.przez ZUS'!L11","v":72},{"$f":"'72-fund.zarz.przez ZUS'!K8","v":0},{"$f":"'72-fund.zarz.przez ZUS'!H8","v":0},{"$f":"'72-fund.zarz.przez ZUS'!M11","v":0},null,null,{"$f":"'72-fund.zarz.przez ZUS'!C24","v":0},{"$f":"'72-fund.zarz.przez ZUS'!D24","v":0},{"$f":"'72-fund.zarz.przez ZUS'!E24","v":0},{"$f":"'72-fund.zarz.przez ZUS'!F24","v":0},{"$f":"'72-fund.zarz.przez ZUS'!G24","v":0},{"$f":"'72-fund.zarz.przez ZUS'!H24","v":0},{"$f":"'72-fund.zarz.przez ZUS'!I24","v":0},{"$f":"'72-fund.zarz.przez ZUS'!J24","v":0},{"$f":"'72-fund.zarz.przez ZUS'!K24","v":0},{"$f":"'72-fund.zarz.przez ZUS'!L24","v":0},{"$f":"'72-fund.zarz.przez ZUS'!M24","v":0},{"$f":"'72-fund.zarz.przez ZUS'!N24","v":0},{"$f":"'72-fund.zarz.przez ZUS'!O24","v":0},{"$f":"'72-fund.zarz.przez ZUS'!P24","v":0},{"$f":"'72-fund.zarz.przez ZUS'!Q24","v":0},{"$f":"'72-fund.zarz.przez ZUS'!R24","v":0},{"$f":"'72-fund.zarz.przez ZUS'!C26","v":0},{"$f":"'72-fund.zarz.przez ZUS'!D26","v":0},{"$f":"'72-fund.zarz.przez ZUS'!E26","v":0},{"$f":"'72-fund.zarz.przez ZUS'!F26","v":0},{"$f":"'72-fund.zarz.przez ZUS'!G26","v":0},{"$f":"'72-fund.zarz.przez ZUS'!H26","v":0},{"$f":"'72-fund.zarz.przez ZUS'!I26","v":0},{"$f":"'72-fund.zarz.przez ZUS'!J26","v":0},{"$f":"'72-fund.zarz.przez ZUS'!K26","v":0},{"$f":"'72-fund.zarz.przez ZUS'!L26","v":0},{"$f":"'72-fund.zarz.przez ZUS'!M26","v":0},{"$f":"'72-fund.zarz.przez ZUS'!N26","v":0},{"$f":"'72-fund.zarz.przez ZUS'!O26","v":0},{"$f":"'72-fund.zarz.przez ZUS'!P26","v":0},{"$f":"'72-fund.zarz.przez ZUS'!Q26","v":0},{"$f":"'72-fund.zarz.przez ZUS'!R26","v":0},{"$f":"'72-fund.zarz.przez ZUS'!C27","v":0},{"$f":"'72-fund.zarz.przez ZUS'!D27","v":0},{"$f":"'72-fund.zarz.przez ZUS'!E27","v":0},{"$f":"'72-fund.zarz.przez ZUS'!F27","v":0},{"$f":"'72-fund.zarz.przez ZUS'!G27","v":0},{"$f":"'72-fund.zarz.przez ZUS'!H27","v":0},{"$f":"'72-fund.zarz.przez ZUS'!I27","v":0},{"$f":"'72-fund.zarz.przez ZUS'!J27","v":0},{"$f":"'72-fund.zarz.przez ZUS'!K27","v":0},{"$f":"'72-fund.zarz.przez ZUS'!L27","v":0},{"$f":"'72-fund.zarz.przez ZUS'!M27","v":0},{"$f":"'72-fund.zarz.przez ZUS'!N27","v":0},{"$f":"'72-fund.zarz.przez ZUS'!O27","v":0},{"$f":"'72-fund.zarz.przez ZUS'!P27","v":0},{"$f":"'72-fund.zarz.przez ZUS'!Q27","v":0},{"$f":"'72-fund.zarz.przez ZUS'!R27","v":0},{"$f":"'72-fund.zarz.przez ZUS'!C28","v":0},{"$f":"'72-fund.zarz.przez ZUS'!D28","v":0},{"$f":"'72-fund.zarz.przez ZUS'!E28","v":0},{"$f":"'72-fund.zarz.przez ZUS'!F28","v":0},{"$f":"'72-fund.zarz.przez ZUS'!G28","v":0},{"$f":"'72-fund.zarz.przez ZUS'!H28","v":0},{"$f":"'72-fund.zarz.przez ZUS'!I28","v":0},{"$f":"'72-fund.zarz.przez ZUS'!J28","v":0},{"$f":"'72-fund.zarz.przez ZUS'!K28","v":0},{"$f":"'72-fund.zarz.przez ZUS'!L28","v":0},{"$f":"'72-fund.zarz.przez ZUS'!M28","v":0},{"$f":"'72-fund.zarz.przez ZUS'!N28","v":0},{"$f":"'72-fund.zarz.przez ZUS'!O28","v":0},{"$f":"'72-fund.zarz.przez ZUS'!P28","v":0},{"$f":"'72-fund.zarz.przez ZUS'!Q28","v":0},{"$f":"'72-fund.zarz.przez ZUS'!R28","v":0},{"$f":"'72-fund.zarz.przez ZUS'!C29","v":0},{"$f":"'72-fund.zarz.przez ZUS'!D29","v":0},{"$f":"'72-fund.zarz.przez ZUS'!E29","v":0},{"$f":"'72-fund.zarz.przez ZUS'!F29","v":0},{"$f":"'72-fund.zarz.przez ZUS'!G29","v":0},{"$f":"'72-fund.zarz.przez ZUS'!H29","v":0},{"$f":"'72-fund.zarz.przez ZUS'!I29","v":0},{"$f":"'72-fund.zarz.przez ZUS'!J29","v":0},{"$f":"'72-fund.zarz.przez ZUS'!K29","v":0},{"$f":"'72-fund.zarz.przez ZUS'!L29","v":0},{"$f":"'72-fund.zarz.przez ZUS'!M29","v":0},{"$f":"'72-fund.zarz.przez ZUS'!N29","v":0},{"$f":"'72-fund.zarz.przez ZUS'!O29","v":0},{"$f":"'72-fund.zarz.przez ZUS'!P29","v":0},{"$f":"'72-fund.zarz.przez ZUS'!Q29","v":0},{"$f":"'72-fund.zarz.przez ZUS'!R29","v":0},{"$f":"'72-fund.zarz.przez ZUS'!C30","v":0},{"$f":"'72-fund.zarz.przez ZUS'!D30","v":0},{"$f":"'72-fund.zarz.przez ZUS'!E30","v":0},{"$f":"'72-fund.zarz.przez ZUS'!F30","v":0},{"$f":"'72-fund.zarz.przez ZUS'!G30","v":0},{"$f":"'72-fund.zarz.przez ZUS'!H30","v":0},{"$f":"'72-fund.zarz.przez ZUS'!I30","v":0},{"$f":"'72-fund.zarz.przez ZUS'!J30","v":0},{"$f":"'72-fund.zarz.przez ZUS'!K30","v":0},{"$f":"'72-fund.zarz.przez ZUS'!L30","v":0},{"$f":"'72-fund.zarz.przez ZUS'!M30","v":0},{"$f":"'72-fund.zarz.przez ZUS'!N30","v":0},{"$f":"'72-fund.zarz.przez ZUS'!O30","v":0},{"$f":"'72-fund.zarz.przez ZUS'!P30","v":0},{"$f":"'72-fund.zarz.przez ZUS'!Q30","v":0},{"$f":"'72-fund.zarz.przez ZUS'!R30","v":0},{"$f":"'72-fund.zarz.przez ZUS'!C31","v":0},{"$f":"'72-fund.zarz.przez ZUS'!D31","v":0},{"$f":"'72-fund.zarz.przez ZUS'!E31","v":0},{"$f":"'72-fund.zarz.przez ZUS'!F31","v":0},{"$f":"'72-fund.zarz.przez ZUS'!G31","v":0},{"$f":"'72-fund.zarz.przez ZUS'!H31","v":0},{"$f":"'72-fund.zarz.przez ZUS'!I31","v":0},{"$f":"'72-fund.zarz.przez ZUS'!J31","v":0},{"$f":"'72-fund.zarz.przez ZUS'!K31","v":0},{"$f":"'72-fund.zarz.przez ZUS'!L31","v":0},{"$f":"'72-fund.zarz.przez ZUS'!M31","v":0},{"$f":"'72-fund.zarz.przez ZUS'!N31","v":0},{"$f":"'72-fund.zarz.przez ZUS'!O31","v":0},{"$f":"'72-fund.zarz.przez ZUS'!P31","v":0},{"$f":"'72-fund.zarz.przez ZUS'!Q31","v":0},{"$f":"'72-fund.zarz.przez ZUS'!R31","v":0},{"$f":"'72-fund.zarz.przez ZUS'!C32","v":0},{"$f":"'72-fund.zarz.przez ZUS'!D32","v":0},{"$f":"'72-fund.zarz.przez ZUS'!E32","v":0},{"$f":"'72-fund.zarz.przez ZUS'!F32","v":0},{"$f":"'72-fund.zarz.przez ZUS'!G32","v":0},{"$f":"'72-fund.zarz.przez ZUS'!H32","v":0},{"$f":"'72-fund.zarz.przez ZUS'!I32","v":0},{"$f":"'72-fund.zarz.przez ZUS'!J32","v":0},{"$f":"'72-fund.zarz.przez ZUS'!K32","v":0},{"$f":"'72-fund.zarz.przez ZUS'!L32","v":0},{"$f":"'72-fund.zarz.przez ZUS'!M32","v":0},{"$f":"'72-fund.zarz.przez ZUS'!N32","v":0},{"$f":"'72-fund.zarz.przez ZUS'!O32","v":0},{"$f":"'72-fund.zarz.przez ZUS'!P32","v":0},{"$f":"'72-fund.zarz.przez ZUS'!Q32","v":0},{"$f":"'72-fund.zarz.przez ZUS'!R32","v":0},{"$f":"'72-fund.zarz.przez ZUS'!C33","v":0},{"$f":"'72-fund.zarz.przez ZUS'!D33","v":0},{"$f":"'72-fund.zarz.przez ZUS'!E33","v":0},{"$f":"'72-fund.zarz.przez ZUS'!F33","v":0},{"$f":"'72-fund.zarz.przez ZUS'!G33","v":0},{"$f":"'72-fund.zarz.przez ZUS'!H33","v":0},{"$f":"'72-fund.zarz.przez ZUS'!I33","v":0},{"$f":"'72-fund.zarz.przez ZUS'!J33","v":0},{"$f":"'72-fund.zarz.przez ZUS'!K33","v":0},{"$f":"'72-fund.zarz.przez ZUS'!L33","v":0},{"$f":"'72-fund.zarz.przez ZUS'!M33","v":0},{"$f":"'72-fund.zarz.przez ZUS'!N33","v":0},{"$f":"'72-fund.zarz.przez ZUS'!O33","v":0},{"$f":"'72-fund.zarz.przez ZUS'!P33","v":0},{"$f":"'72-fund.zarz.przez ZUS'!Q33","v":0},{"$f":"'72-fund.zarz.przez ZUS'!R33","v":0},{"$f":"'72-fund.zarz.przez ZUS'!C34","v":0},{"$f":"'72-fund.zarz.przez ZUS'!D34","v":0},{"$f":"'72-fund.zarz.przez ZUS'!E34","v":0},{"$f":"'72-fund.zarz.przez ZUS'!F34","v":0},{"$f":"'72-fund.zarz.przez ZUS'!G34","v":0},{"$f":"'72-fund.zarz.przez ZUS'!H34","v":0},{"$f":"'72-fund.zarz.przez ZUS'!I34","v":0},{"$f":"'72-fund.zarz.przez ZUS'!J34","v":0},{"$f":"'72-fund.zarz.przez ZUS'!K34","v":0},{"$f":"'72-fund.zarz.przez ZUS'!L34","v":0},{"$f":"'72-fund.zarz.przez ZUS'!M34","v":0},{"$f":"'72-fund.zarz.przez ZUS'!N34","v":0},{"$f":"'72-fund.zarz.przez ZUS'!O34","v":0},{"$f":"'72-fund.zarz.przez ZUS'!P34","v":0},{"$f":"'72-fund.zarz.przez ZUS'!Q34","v":0},{"$f":"'72-fund.zarz.przez ZUS'!R34","v":0},{"$f":"'72-fund.zarz.przez ZUS'!C35","v":0},{"$f":"'72-fund.zarz.przez ZUS'!D35","v":0},{"$f":"'72-fund.zarz.przez ZUS'!E35","v":0},{"$f":"'72-fund.zarz.przez ZUS'!F35","v":0},{"$f":"'72-fund.zarz.przez ZUS'!G35","v":0},{"$f":"'72-fund.zarz.przez ZUS'!H35","v":0},{"$f":"'72-fund.zarz.przez ZUS'!I35","v":0},{"$f":"'72-fund.zarz.przez ZUS'!J35","v":0},{"$f":"'72-fund.zarz.przez ZUS'!K35","v":0},{"$f":"'72-fund.zarz.przez ZUS'!L35","v":0},{"$f":"'72-fund.zarz.przez ZUS'!M35","v":0},{"$f":"'72-fund.zarz.przez ZUS'!N35","v":0},{"$f":"'72-fund.zarz.przez ZUS'!O35","v":0},{"$f":"'72-fund.zarz.przez ZUS'!P35","v":0},{"$f":"'72-fund.zarz.przez ZUS'!Q35","v":0},{"$f":"'72-fund.zarz.przez ZUS'!R35","v":0}]
[{"$f":"'73-KRUS'!A8:B8","v":0},null,null,null,null,{"$f":"'73-KRUS'!L11","v":73},{"$f":"'73-KRUS'!K8","v":0},{"$f":"'73-KRUS'!H8","v":0},{"$f":"'73-KRUS'!M11","v":0},null,null,{"$f":"'73-KRUS'!C24","v":0},{"$f":"'73-KRUS'!D24","v":0},{"$f":"'73-KRUS'!E24","v":0},{"$f":"'73-KRUS'!F24","v":0},{"$f":"'73-KRUS'!G24","v":0},{"$f":"'73-KRUS'!H24","v":0},{"$f":"'73-KRUS'!I24","v":0},{"$f":"'73-KRUS'!J24","v":0},{"$f":"'73-KRUS'!K24","v":0},{"$f":"'73-KRUS'!L24","v":0},{"$f":"'73-KRUS'!M24","v":0},{"$f":"'73-KRUS'!N24","v":0},{"$f":"'73-KRUS'!O24","v":0},{"$f":"'73-KRUS'!P24","v":0},{"$f":"'73-KRUS'!Q24","v":0},{"$f":"'73-KRUS'!R24","v":0},{"$f":"'73-KRUS'!C26","v":0},{"$f":"'73-KRUS'!D26","v":0},{"$f":"'73-KRUS'!E26","v":0},{"$f":"'73-KRUS'!F26","v":0},{"$f":"'73-KRUS'!G26","v":0},{"$f":"'73-KRUS'!H26","v":0},{"$f":"'73-KRUS'!I26","v":0},{"$f":"'73-KRUS'!J26","v":0},{"$f":"'73-KRUS'!K26","v":0},{"$f":"'73-KRUS'!L26","v":0},{"$f":"'73-KRUS'!M26","v":0},{"$f":"'73-KRUS'!N26","v":0},{"$f":"'73-KRUS'!O26","v":0},{"$f":"'73-KRUS'!P26","v":0},{"$f":"'73-KRUS'!Q26","v":0},{"$f":"'73-KRUS'!R26","v":0},{"$f":"'73-KRUS'!C27","v":0},{"$f":"'73-KRUS'!D27","v":0},{"$f":"'73-KRUS'!E27","v":0},{"$f":"'73-KRUS'!F27","v":0},{"$f":"'73-KRUS'!G27","v":0},{"$f":"'73-KRUS'!H27","v":0},{"$f":"'73-KRUS'!I27","v":0},{"$f":"'73-KRUS'!J27","v":0},{"$f":"'73-KRUS'!K27","v":0},{"$f":"'73-KRUS'!L27","v":0},{"$f":"'73-KRUS'!M27","v":0},{"$f":"'73-KRUS'!N27","v":0},{"$f":"'73-KRUS'!O27","v":0},{"$f":"'73-KRUS'!P27","v":0},{"$f":"'73-KRUS'!Q27","v":0},{"$f":"'73-KRUS'!R27","v":0},{"$f":"'73-KRUS'!C28","v":0},{"$f":"'73-KRUS'!D28","v":0},{"$f":"'73-KRUS'!E28","v":0},{"$f":"'73-KRUS'!F28","v":0},{"$f":"'73-KRUS'!G28","v":0},{"$f":"'73-KRUS'!H28","v":0},{"$f":"'73-KRUS'!I28","v":0},{"$f":"'73-KRUS'!J28","v":0},{"$f":"'73-KRUS'!K28","v":0},{"$f":"'73-KRUS'!L28","v":0},{"$f":"'73-KRUS'!M28","v":0},{"$f":"'73-KRUS'!N28","v":0},{"$f":"'73-KRUS'!O28","v":0},{"$f":"'73-KRUS'!P28","v":0},{"$f":"'73-KRUS'!Q28","v":0},{"$f":"'73-KRUS'!R28","v":0},{"$f":"'73-KRUS'!C29","v":0},{"$f":"'73-KRUS'!D29","v":0},{"$f":"'73-KRUS'!E29","v":0},{"$f":"'73-KRUS'!F29","v":0},{"$f":"'73-KRUS'!G29","v":0},{"$f":"'73-KRUS'!H29","v":0},{"$f":"'73-KRUS'!I29","v":0},{"$f":"'73-KRUS'!J29","v":0},{"$f":"'73-KRUS'!K29","v":0},{"$f":"'73-KRUS'!L29","v":0},{"$f":"'73-KRUS'!M29","v":0},{"$f":"'73-KRUS'!N29","v":0},{"$f":"'73-KRUS'!O29","v":0},{"$f":"'73-KRUS'!P29","v":0},{"$f":"'73-KRUS'!Q29","v":0},{"$f":"'73-KRUS'!R29","v":0},{"$f":"'73-KRUS'!C30","v":0},{"$f":"'73-KRUS'!D30","v":0},{"$f":"'73-KRUS'!E30","v":0},{"$f":"'73-KRUS'!F30","v":0},{"$f":"'73-KRUS'!G30","v":0},{"$f":"'73-KRUS'!H30","v":0},{"$f":"'73-KRUS'!I30","v":0},{"$f":"'73-KRUS'!J30","v":0},{"$f":"'73-KRUS'!K30","v":0},{"$f":"'73-KRUS'!L30","v":0},{"$f":"'73-KRUS'!M30","v":0},{"$f":"'73-KRUS'!N30","v":0},{"$f":"'73-KRUS'!O30","v":0},{"$f":"'73-KRUS'!P30","v":0},{"$f":"'73-KRUS'!Q30","v":0},{"$f":"'73-KRUS'!R30","v":0},{"$f":"'73-KRUS'!C31","v":0},{"$f":"'73-KRUS'!D31","v":0},{"$f":"'73-KRUS'!E31","v":0},{"$f":"'73-KRUS'!F31","v":0},{"$f":"'73-KRUS'!G31","v":0},{"$f":"'73-KRUS'!H31","v":0},{"$f":"'73-KRUS'!I31","v":0},{"$f":"'73-KRUS'!J31","v":0},{"$f":"'73-KRUS'!K31","v":0},{"$f":"'73-KRUS'!L31","v":0},{"$f":"'73-KRUS'!M31","v":0},{"$f":"'73-KRUS'!N31","v":0},{"$f":"'73-KRUS'!O31","v":0},{"$f":"'73-KRUS'!P31","v":0},{"$f":"'73-KRUS'!Q31","v":0},{"$f":"'73-KRUS'!R31","v":0},{"$f":"'73-KRUS'!C32","v":0},{"$f":"'73-KRUS'!D32","v":0},{"$f":"'73-KRUS'!E32","v":0},{"$f":"'73-KRUS'!F32","v":0},{"$f":"'73-KRUS'!G32","v":0},{"$f":"'73-KRUS'!H32","v":0},{"$f":"'73-KRUS'!I32","v":0},{"$f":"'73-KRUS'!J32","v":0},{"$f":"'73-KRUS'!K32","v":0},{"$f":"'73-KRUS'!L32","v":0},{"$f":"'73-KRUS'!M32","v":0},{"$f":"'73-KRUS'!N32","v":0},{"$f":"'73-KRUS'!O32","v":0},{"$f":"'73-KRUS'!P32","v":0},{"$f":"'73-KRUS'!Q32","v":0},{"$f":"'73-KRUS'!R32","v":0},{"$f":"'73-KRUS'!C33","v":0},{"$f":"'73-KRUS'!D33","v":0},{"$f":"'73-KRUS'!E33","v":0},{"$f":"'73-KRUS'!F33","v":0},{"$f":"'73-KRUS'!G33","v":0},{"$f":"'73-KRUS'!H33","v":0},{"$f":"'73-KRUS'!I33","v":0},{"$f":"'73-KRUS'!J33","v":0},{"$f":"'73-KRUS'!K33","v":0},{"$f":"'73-KRUS'!L33","v":0},{"$f":"'73-KRUS'!M33","v":0},{"$f":"'73-KRUS'!N33","v":0},{"$f":"'73-KRUS'!O33","v":0},{"$f":"'73-KRUS'!P33","v":0},{"$f":"'73-KRUS'!Q33","v":0},{"$f":"'73-KRUS'!R33","v":0},{"$f":"'73-KRUS'!C34","v":0},{"$f":"'73-KRUS'!D34","v":0},{"$f":"'73-KRUS'!E34","v":0},{"$f":"'73-KRUS'!F34","v":0},{"$f":"'73-KRUS'!G34","v":0},{"$f":"'73-KRUS'!H34","v":0},{"$f":"'73-KRUS'!I34","v":0},{"$f":"'73-KRUS'!J34","v":0},{"$f":"'73-KRUS'!K34","v":0},{"$f":"'73-KRUS'!L34","v":0},{"$f":"'73-KRUS'!M34","v":0},{"$f":"'73-KRUS'!N34","v":0},{"$f":"'73-KRUS'!O34","v":0},{"$f":"'73-KRUS'!P34","v":0},{"$f":"'73-KRUS'!Q34","v":0},{"$f":"'73-KRUS'!R34","v":0},{"$f":"'73-KRUS'!C35","v":0},{"$f":"'73-KRUS'!D35","v":0},{"$f":"'73-KRUS'!E35","v":0},{"$f":"'73-KRUS'!F35","v":0},{"$f":"'73-KRUS'!G35","v":0},{"$f":"'73-KRUS'!H35","v":0},{"$f":"'73-KRUS'!I35","v":0},{"$f":"'73-KRUS'!J35","v":0},{"$f":"'73-KRUS'!K35","v":0},{"$f":"'73-KRUS'!L35","v":0},{"$f":"'73-KRUS'!M35","v":0},{"$f":"'73-KRUS'!N35","v":0},{"$f":"'73-KRUS'!O35","v":0},{"$f":"'73-KRUS'!P35","v":0},{"$f":"'73-KRUS'!Q35","v":0},{"$f":"'73-KRUS'!R35","v":0}]
[{"$f":"'81-państw.osoba prawna'!A8","v":0},null,null,null,null,{"$f":"'81-państw.osoba prawna'!L11","v":81},{"$f":"'81-państw.osoba prawna'!K8","v":0},{"$f":"'81-państw.osoba prawna'!H8","v":0},{"$f":"'81-państw.osoba prawna'!M11","v":0},null,null,{"$f":"'81-państw.osoba prawna'!C24","v":0},{"$f":"'81-państw.osoba prawna'!D24","v":0},{"$f":"'81-państw.osoba prawna'!E24","v":0},{"$f":"'81-państw.osoba prawna'!F24","v":0},{"$f":"'81-państw.osoba prawna'!G24","v":0},{"$f":"'81-państw.osoba prawna'!H24","v":0},{"$f":"'81-państw.osoba prawna'!I24","v":0},{"$f":"'81-państw.osoba prawna'!J24","v":0},{"$f":"'81-państw.osoba prawna'!K24","v":0},{"$f":"'81-państw.osoba prawna'!L24","v":0},{"$f":"'81-państw.osoba prawna'!M24","v":0},{"$f":"'81-państw.osoba prawna'!N24","v":0},{"$f":"'81-państw.osoba prawna'!O24","v":0},{"$f":"'81-państw.osoba prawna'!P24","v":0},{"$f":"'81-państw.osoba prawna'!Q24","v":0},{"$f":"'81-państw.osoba prawna'!R24","v":0},{"$f":"'81-państw.osoba prawna'!C26","v":0},{"$f":"'81-państw.osoba prawna'!D26","v":0},{"$f":"'81-państw.osoba prawna'!E26","v":0},{"$f":"'81-państw.osoba prawna'!F26","v":0},{"$f":"'81-państw.osoba prawna'!G26","v":0},{"$f":"'81-państw.osoba prawna'!H26","v":0},{"$f":"'81-państw.osoba prawna'!I26","v":0},{"$f":"'81-państw.osoba prawna'!J26","v":0},{"$f":"'81-państw.osoba prawna'!K26","v":0},{"$f":"'81-państw.osoba prawna'!L26","v":0},{"$f":"'81-państw.osoba prawna'!M26","v":0},{"$f":"'81-państw.osoba prawna'!N26","v":0},{"$f":"'81-państw.osoba prawna'!O26","v":0},{"$f":"'81-państw.osoba prawna'!P26","v":0},{"$f":"'81-państw.osoba prawna'!Q26","v":0},{"$f":"'81-państw.osoba prawna'!R26","v":0},{"$f":"'81-państw.osoba prawna'!C27","v":0},{"$f":"'81-państw.osoba prawna'!D27","v":0},{"$f":"'81-państw.osoba prawna'!E27","v":0},{"$f":"'81-państw.osoba prawna'!F27","v":0},{"$f":"'81-państw.osoba prawna'!G27","v":0},{"$f":"'81-państw.osoba prawna'!H27","v":0},{"$f":"'81-państw.osoba prawna'!I27","v":0},{"$f":"'81-państw.osoba prawna'!J27","v":0},{"$f":"'81-państw.osoba prawna'!K27","v":0},{"$f":"'81-państw.osoba prawna'!L27","v":0},{"$f":"'81-państw.osoba prawna'!M27","v":0},{"$f":"'81-państw.osoba prawna'!N27","v":0},{"$f":"'81-państw.osoba prawna'!O27","v":0},{"$f":"'81-państw.osoba prawna'!P27","v":0},{"$f":"'81-państw.osoba prawna'!Q27","v":0},{"$f":"'81-państw.osoba prawna'!R27","v":0},{"$f":"'81-państw.osoba prawna'!C28","v":0},{"$f":"'81-państw.osoba prawna'!D28","v":0},{"$f":"'81-państw.osoba prawna'!E28","v":0},{"$f":"'81-państw.osoba prawna'!F28","v":0},{"$f":"'81-państw.osoba prawna'!G28","v":0},{"$f":"'81-państw.osoba prawna'!H28","v":0},{"$f":"'81-państw.osoba prawna'!I28","v":0},{"$f":"'81-państw.osoba prawna'!J28","v":0},{"$f":"'81-państw.osoba prawna'!K28","v":0},{"$f":"'81-państw.osoba prawna'!L28","v":0},{"$f":"'81-państw.osoba prawna'!M28","v":0},{"$f":"'81-państw.osoba prawna'!N28","v":0},{"$f":"'81-państw.osoba prawna'!O28","v":0},{"$f":"'81-państw.osoba prawna'!P28","v":0},{"$f":"'81-państw.osoba prawna'!Q28","v":0},{"$f":"'81-państw.osoba prawna'!R28","v":0},{"$f":"'81-państw.osoba prawna'!C29","v":0},{"$f":"'81-państw.osoba prawna'!D29","v":0},{"$f":"'81-państw.osoba prawna'!E29","v":0},{"$f":"'81-państw.osoba prawna'!F29","v":0},{"$f":"'81-państw.osoba prawna'!G29","v":0},{"$f":"'81-państw.osoba prawna'!H29","v":0},{"$f":"'81-państw.osoba prawna'!I29","v":0},{"$f":"'81-państw.osoba prawna'!J29","v":0},{"$f":"'81-państw.osoba prawna'!K29","v":0},{"$f":"'81-państw.osoba prawna'!L29","v":0},{"$f":"'81-państw.osoba prawna'!M29","v":0},{"$f":"'81-państw.osoba prawna'!N29","v":0},{"$f":"'81-państw.osoba prawna'!O29","v":0},{"$f":"'81-państw.osoba prawna'!P29","v":0},{"$f":"'81-państw.osoba prawna'!Q29","v":0},{"$f":"'81-państw.osoba prawna'!R29","v":0},{"$f":"'81-państw.osoba prawna'!C30","v":0},{"$f":"'81-państw.osoba prawna'!D30","v":0},{"$f":"'81-państw.osoba prawna'!E30","v":0},{"$f":"'81-państw.osoba prawna'!F30","v":0},{"$f":"'81-państw.osoba prawna'!G30","v":0},{"$f":"'81-państw.osoba prawna'!H30","v":0},{"$f":"'81-państw.osoba prawna'!I30","v":0},{"$f":"'81-państw.osoba prawna'!J30","v":0},{"$f":"'81-państw.osoba prawna'!K30","v":0},{"$f":"'81-państw.osoba prawna'!L30","v":0},{"$f":"'81-państw.osoba prawna'!M30","v":0},{"$f":"'81-państw.osoba prawna'!N30","v":0},{"$f":"'81-państw.osoba prawna'!O30","v":0},{"$f":"'81-państw.osoba prawna'!P30","v":0},{"$f":"'81-państw.osoba prawna'!Q30","v":0},{"$f":"'81-państw.osoba prawna'!R30","v":0},{"$f":"'81-państw.osoba prawna'!C31","v":0},{"$f":"'81-państw.osoba prawna'!D31","v":0},{"$f":"'81-państw.osoba prawna'!E31","v":0},{"$f":"'81-państw.osoba prawna'!F31","v":0},{"$f":"'81-państw.osoba prawna'!G31","v":0},{"$f":"'81-państw.osoba prawna'!H31","v":0},{"$f":"'81-państw.osoba prawna'!I31","v":0},{"$f":"'81-państw.osoba prawna'!J31","v":0},{"$f":"'81-państw.osoba prawna'!K31","v":0},{"$f":"'81-państw.osoba prawna'!L31","v":0},{"$f":"'81-państw.osoba prawna'!M31","v":0},{"$f":"'81-państw.osoba prawna'!N31","v":0},{"$f":"'81-państw.osoba prawna'!O31","v":0},{"$f":"'81-państw.osoba prawna'!P31","v":0},{"$f":"'81-państw.osoba prawna'!Q31","v":0},{"$f":"'81-państw.osoba prawna'!R31","v":0},{"$f":"'81-państw.osoba prawna'!C32","v":0},{"$f":"'81-państw.osoba prawna'!D32","v":0},{"$f":"'81-państw.osoba prawna'!E32","v":0},{"$f":"'81-państw.osoba prawna'!F32","v":0},{"$f":"'81-państw.osoba prawna'!G32","v":0},{"$f":"'81-państw.osoba prawna'!H32","v":0},{"$f":"'81-państw.osoba prawna'!I32","v":0},{"$f":"'81-państw.osoba prawna'!J32","v":0},{"$f":"'81-państw.osoba prawna'!K32","v":0},{"$f":"'81-państw.osoba prawna'!L32","v":0},{"$f":"'81-państw.osoba prawna'!M32","v":0},{"$f":"'81-państw.osoba prawna'!N32","v":0},{"$f":"'81-państw.osoba prawna'!O32","v":0},{"$f":"'81-państw.osoba prawna'!P32","v":0},{"$f":"'81-państw.osoba prawna'!Q32","v":0},{"$f":"'81-państw.osoba prawna'!R32","v":0},{"$f":"'81-państw.osoba prawna'!C33","v":0},{"$f":"'81-państw.osoba prawna'!D33","v":0},{"$f":"'81-państw.osoba prawna'!E33","v":0},{"$f":"'81-państw.osoba prawna'!F33","v":0},{"$f":"'81-państw.osoba prawna'!G33","v":0},{"$f":"'81-państw.osoba prawna'!H33","v":0},{"$f":"'81-państw.osoba prawna'!I33","v":0},{"$f":"'81-państw.osoba prawna'!J33","v":0},{"$f":"'81-państw.osoba prawna'!K33","v":0},{"$f":"'81-państw.osoba prawna'!L33","v":0},{"$f":"'81-państw.osoba prawna'!M33","v":0},{"$f":"'81-państw.osoba prawna'!N33","v":0},{"$f":"'81-państw.osoba prawna'!O33","v":0},{"$f":"'81-państw.osoba prawna'!P33","v":0},{"$f":"'81-państw.osoba prawna'!Q33","v":0},{"$f":"'81-państw.osoba prawna'!R33","v":0},{"$f":"'81-państw.osoba prawna'!C34","v":0},{"$f":"'81-państw.osoba prawna'!D34","v":0},{"$f":"'81-państw.osoba prawna'!E34","v":0},{"$f":"'81-państw.osoba prawna'!F34","v":0},{"$f":"'81-państw.osoba prawna'!G34","v":0},{"$f":"'81-państw.osoba prawna'!H34","v":0},{"$f":"'81-państw.osoba prawna'!I34","v":0},{"$f":"'81-państw.osoba prawna'!J34","v":0},{"$f":"'81-państw.osoba prawna'!K34","v":0},{"$f":"'81-państw.osoba prawna'!L34","v":0},{"$f":"'81-państw.osoba prawna'!M34","v":0},{"$f":"'81-państw.osoba prawna'!N34","v":0},{"$f":"'81-państw.osoba prawna'!O34","v":0},{"$f":"'81-państw.osoba prawna'!P34","v":0},{"$f":"'81-państw.osoba prawna'!Q34","v":0},{"$f":"'81-państw.osoba prawna'!R34","v":0},{"$f":"'81-państw.osoba prawna'!C35","v":0},{"$f":"'81-państw.osoba prawna'!D35","v":0},{"$f":"'81-państw.osoba prawna'!E35","v":0},{"$f":"'81-państw.osoba prawna'!F35","v":0},{"$f":"'81-państw.osoba prawna'!G35","v":0},{"$f":"'81-państw.osoba prawna'!H35","v":0},{"$f":"'81-państw.osoba prawna'!I35","v":0},{"$f":"'81-państw.osoba prawna'!J35","v":0},{"$f":"'81-państw.osoba prawna'!K35","v":0},{"$f":"'81-państw.osoba prawna'!L35","v":0},{"$f":"'81-państw.osoba prawna'!M35","v":0},{"$f":"'81-państw.osoba prawna'!N35","v":0},{"$f":"'81-państw.osoba prawna'!O35","v":0},{"$f":"'81-państw.osoba prawna'!P35","v":0},{"$f":"'81-państw.osoba prawna'!Q35","v":0},{"$f":"'81-państw.osoba prawna'!R35","v":0}]
[{"$f":"'82-samorz.osoba prawna'!A8","v":0},null,null,null,null,{"$f":"'82-samorz.osoba prawna'!L11","v":82},{"$f":"'82-samorz.osoba prawna'!K8","v":0},{"$f":"'82-samorz.osoba prawna'!H8","v":0},{"$f":"'82-samorz.osoba prawna'!M11","v":0},null,null,{"$f":"'82-samorz.osoba prawna'!C24","v":0},{"$f":"'82-samorz.osoba prawna'!D24","v":0},{"$f":"'82-samorz.osoba prawna'!E24","v":0},{"$f":"'82-samorz.osoba prawna'!F24","v":0},{"$f":"'82-samorz.osoba prawna'!G24","v":0},{"$f":"'82-samorz.osoba prawna'!H24","v":0},{"$f":"'82-samorz.osoba prawna'!I24","v":0},{"$f":"'82-samorz.osoba prawna'!J24","v":0},{"$f":"'82-samorz.osoba prawna'!K24","v":0},{"$f":"'82-samorz.osoba prawna'!L24","v":0},{"$f":"'82-samorz.osoba prawna'!M24","v":0},{"$f":"'82-samorz.osoba prawna'!N24","v":0},{"$f":"'82-samorz.osoba prawna'!O24","v":0},{"$f":"'82-samorz.osoba prawna'!P24","v":0},{"$f":"'82-samorz.osoba prawna'!Q24","v":0},{"$f":"'82-samorz.osoba prawna'!R24","v":0},{"$f":"'82-samorz.osoba prawna'!C26","v":0},{"$f":"'82-samorz.osoba prawna'!D26","v":0},{"$f":"'82-samorz.osoba prawna'!E26","v":0},{"$f":"'82-samorz.osoba prawna'!F26","v":0},{"$f":"'82-samorz.osoba prawna'!G26","v":0},{"$f":"'82-samorz.osoba prawna'!H26","v":0},{"$f":"'82-samorz.osoba prawna'!I26","v":0},{"$f":"'82-samorz.osoba prawna'!J26","v":0},{"$f":"'82-samorz.osoba prawna'!K26","v":0},{"$f":"'82-samorz.osoba prawna'!L26","v":0},{"$f":"'82-samorz.osoba prawna'!M26","v":0},{"$f":"'82-samorz.osoba prawna'!N26","v":0},{"$f":"'82-samorz.osoba prawna'!O26","v":0},{"$f":"'82-samorz.osoba prawna'!P26","v":0},{"$f":"'82-samorz.osoba prawna'!Q26","v":0},{"$f":"'82-samorz.osoba prawna'!R26","v":0},{"$f":"'82-samorz.osoba prawna'!C27","v":0},{"$f":"'82-samorz.osoba prawna'!D27","v":0},{"$f":"'82-samorz.osoba prawna'!E27","v":0},{"$f":"'82-samorz.osoba prawna'!F27","v":0},{"$f":"'82-samorz.osoba prawna'!G27","v":0},{"$f":"'82-samorz.osoba prawna'!H27","v":0},{"$f":"'82-samorz.osoba prawna'!I27","v":0},{"$f":"'82-samorz.osoba prawna'!J27","v":0},{"$f":"'82-samorz.osoba prawna'!K27","v":0},{"$f":"'82-samorz.osoba prawna'!L27","v":0},{"$f":"'82-samorz.osoba prawna'!M27","v":0},{"$f":"'82-samorz.osoba prawna'!N27","v":0},{"$f":"'82-samorz.osoba prawna'!O27","v":0},{"$f":"'82-samorz.osoba prawna'!P27","v":0},{"$f":"'82-samorz.osoba prawna'!Q27","v":0},{"$f":"'82-samorz.osoba prawna'!R27","v":0},{"$f":"'82-samorz.osoba prawna'!C28","v":0},{"$f":"'82-samorz.osoba prawna'!D28","v":0},{"$f":"'82-samorz.osoba prawna'!E28","v":0},{"$f":"'82-samorz.osoba prawna'!F28","v":0},{"$f":"'82-samorz.osoba prawna'!G28","v":0},{"$f":"'82-samorz.osoba prawna'!H28","v":0},{"$f":"'82-samorz.osoba prawna'!I28","v":0},{"$f":"'82-samorz.osoba prawna'!J28","v":0},{"$f":"'82-samorz.osoba prawna'!K28","v":0},{"$f":"'82-samorz.osoba prawna'!L28","v":0},{"$f":"'82-samorz.osoba prawna'!M28","v":0},{"$f":"'82-samorz.osoba prawna'!N28","v":0},{"$f":"'82-samorz.osoba prawna'!O28","v":0},{"$f":"'82-samorz.osoba prawna'!P28","v":0},{"$f":"'82-samorz.osoba prawna'!Q28","v":0},{"$f":"'82-samorz.osoba prawna'!R28","v":0},{"$f":"'82-samorz.osoba prawna'!C29","v":0},{"$f":"'82-samorz.osoba prawna'!D29","v":0},{"$f":"'82-samorz.osoba prawna'!E29","v":0},{"$f":"'82-samorz.osoba prawna'!F29","v":0},{"$f":"'82-samorz.osoba prawna'!G29","v":0},{"$f":"'82-samorz.osoba prawna'!H29","v":0},{"$f":"'82-samorz.osoba prawna'!I29","v":0},{"$f":"'82-samorz.osoba prawna'!J29","v":0},{"$f":"'82-samorz.osoba prawna'!K29","v":0},{"$f":"'82-samorz.osoba prawna'!L29","v":0},{"$f":"'82-samorz.osoba prawna'!M29","v":0},{"$f":"'82-samorz.osoba prawna'!N29","v":0},{"$f":"'82-samorz.osoba prawna'!O29","v":0},{"$f":"'82-samorz.osoba prawna'!P29","v":0},{"$f":"'82-samorz.osoba prawna'!Q29","v":0},{"$f":"'82-samorz.osoba prawna'!R29","v":0},{"$f":"'82-samorz.osoba prawna'!C30","v":0},{"$f":"'82-samorz.osoba prawna'!D30","v":0},{"$f":"'82-samorz.osoba prawna'!E30","v":0},{"$f":"'82-samorz.osoba prawna'!F30","v":0},{"$f":"'82-samorz.osoba prawna'!G30","v":0},{"$f":"'82-samorz.osoba prawna'!H30","v":0},{"$f":"'82-samorz.osoba prawna'!I30","v":0},{"$f":"'82-samorz.osoba prawna'!J30","v":0},{"$f":"'82-samorz.osoba prawna'!K30","v":0},{"$f":"'82-samorz.osoba prawna'!L30","v":0},{"$f":"'82-samorz.osoba prawna'!M30","v":0},{"$f":"'82-samorz.osoba prawna'!N30","v":0},{"$f":"'82-samorz.osoba prawna'!O30","v":0},{"$f":"'82-samorz.osoba prawna'!P30","v":0},{"$f":"'82-samorz.osoba prawna'!Q30","v":0},{"$f":"'82-samorz.osoba prawna'!R30","v":0},{"$f":"'82-samorz.osoba prawna'!C31","v":0},{"$f":"'82-samorz.osoba prawna'!D31","v":0},{"$f":"'82-samorz.osoba prawna'!E31","v":0},{"$f":"'82-samorz.osoba prawna'!F31","v":0},{"$f":"'82-samorz.osoba prawna'!G31","v":0},{"$f":"'82-samorz.osoba prawna'!H31","v":0},{"$f":"'82-samorz.osoba prawna'!I31","v":0},{"$f":"'82-samorz.osoba prawna'!J31","v":0},{"$f":"'82-samorz.osoba prawna'!K31","v":0},{"$f":"'82-samorz.osoba prawna'!L31","v":0},{"$f":"'82-samorz.osoba prawna'!M31","v":0},{"$f":"'82-samorz.osoba prawna'!N31","v":0},{"$f":"'82-samorz.osoba prawna'!O31","v":0},{"$f":"'82-samorz.osoba prawna'!P31","v":0},{"$f":"'82-samorz.osoba prawna'!Q31","v":0},{"$f":"'82-samorz.osoba prawna'!R31","v":0},{"$f":"'82-samorz.osoba prawna'!C32","v":0},{"$f":"'82-samorz.osoba prawna'!D32","v":0},{"$f":"'82-samorz.osoba prawna'!E32","v":0},{"$f":"'82-samorz.osoba prawna'!F32","v":0},{"$f":"'82-samorz.osoba prawna'!G32","v":0},{"$f":"'82-samorz.osoba prawna'!H32","v":0},{"$f":"'82-samorz.osoba prawna'!I32","v":0},{"$f":"'82-samorz.osoba prawna'!J32","v":0},{"$f":"'82-samorz.osoba prawna'!K32","v":0},{"$f":"'82-samorz.osoba prawna'!L32","v":0},{"$f":"'82-samorz.osoba prawna'!M32","v":0},{"$f":"'82-samorz.osoba prawna'!N32","v":0},{"$f":"'82-samorz.osoba prawna'!O32","v":0},{"$f":"'82-samorz.osoba prawna'!P32","v":0},{"$f":"'82-samorz.osoba prawna'!Q32","v":0},{"$f":"'82-samorz.osoba prawna'!R32","v":0},{"$f":"'82-samorz.osoba prawna'!C33","v":0},{"$f":"'82-samorz.osoba prawna'!D33","v":0},{"$f":"'82-samorz.osoba prawna'!E33","v":0},{"$f":"'82-samorz.osoba prawna'!F33","v":0},{"$f":"'82-samorz.osoba prawna'!G33","v":0},{"$f":"'82-samorz.osoba prawna'!H33","v":0},{"$f":"'82-samorz.osoba prawna'!I33","v":0},{"$f":"'82-samorz.osoba prawna'!J33","v":0},{"$f":"'82-samorz.osoba prawna'!K33","v":0},{"$f":"'82-samorz.osoba prawna'!L33","v":0},{"$f":"'82-samorz.osoba prawna'!M33","v":0},{"$f":"'82-samorz.osoba prawna'!N33","v":0},{"$f":"'82-samorz.osoba prawna'!O33","v":0},{"$f":"'82-samorz.osoba prawna'!P33","v":0},{"$f":"'82-samorz.osoba prawna'!Q33","v":0},{"$f":"'82-samorz.osoba prawna'!R33","v":0},{"$f":"'82-samorz.osoba prawna'!C34","v":0},{"$f":"'82-samorz.osoba prawna'!D34","v":0},{"$f":"'82-samorz.osoba prawna'!E34","v":0},{"$f":"'82-samorz.osoba prawna'!F34","v":0},{"$f":"'82-samorz.osoba prawna'!G34","v":0},{"$f":"'82-samorz.osoba prawna'!H34","v":0},{"$f":"'82-samorz.osoba prawna'!I34","v":0},{"$f":"'82-samorz.osoba prawna'!J34","v":0},{"$f":"'82-samorz.osoba prawna'!K34","v":0},{"$f":"'82-samorz.osoba prawna'!L34","v":0},{"$f":"'82-samorz.osoba prawna'!M34","v":0},{"$f":"'82-samorz.osoba prawna'!N34","v":0},{"$f":"'82-samorz.osoba prawna'!O34","v":0},{"$f":"'82-samorz.osoba prawna'!P34","v":0},{"$f":"'82-samorz.osoba prawna'!Q34","v":0},{"$f":"'82-samorz.osoba prawna'!R34","v":0},{"$f":"'82-samorz.osoba prawna'!C35","v":0},{"$f":"'82-samorz.osoba prawna'!D35","v":0},{"$f":"'82-samorz.osoba prawna'!E35","v":0},{"$f":"'82-samorz.osoba prawna'!F35","v":0},{"$f":"'82-samorz.osoba prawna'!G35","v":0},{"$f":"'82-samorz.osoba prawna'!H35","v":0},{"$f":"'82-samorz.osoba prawna'!I35","v":0},{"$f":"'82-samorz.osoba prawna'!J35","v":0},{"$f":"'82-samorz.osoba prawna'!K35","v":0},{"$f":"'82-samorz.osoba prawna'!L35","v":0},{"$f":"'82-samorz.osoba prawna'!M35","v":0},{"$f":"'82-samorz.osoba prawna'!N35","v":0},{"$f":"'82-samorz.osoba prawna'!O35","v":0},{"$f":"'82-samorz.osoba prawna'!P35","v":0},{"$f":"'82-samorz.osoba prawna'!Q35","v":0},{"$f":"'82-samorz.osoba prawna'!R35","v":0}]
[{"$f":"'90-agencja wykonawcza'!A8","v":0},null,null,null,null,{"$f":"'90-agencja wykonawcza'!L11","v":90},{"$f":"'90-agencja wykonawcza'!K8","v":0},{"$f":"'90-agencja wykonawcza'!H8","v":0},{"$f":"'90-agencja wykonawcza'!M11","v":0},null,null,{"$f":"'90-agencja wykonawcza'!C24","v":0},{"$f":"'90-agencja wykonawcza'!D24","v":0},{"$f":"'90-agencja wykonawcza'!E24","v":0},{"$f":"'90-agencja wykonawcza'!F24","v":0},{"$f":"'90-agencja wykonawcza'!G24","v":0},{"$f":"'90-agencja wykonawcza'!H24","v":0},{"$f":"'90-agencja wykonawcza'!I24","v":0},{"$f":"'90-agencja wykonawcza'!J24","v":0},{"$f":"'90-agencja wykonawcza'!K24","v":0},{"$f":"'90-agencja wykonawcza'!L24","v":0},{"$f":"'90-agencja wykonawcza'!M24","v":0},{"$f":"'90-agencja wykonawcza'!N24","v":0},{"$f":"'90-agencja wykonawcza'!O24","v":0},{"$f":"'90-agencja wykonawcza'!P24","v":0},{"$f":"'90-agencja wykonawcza'!Q24","v":0},{"$f":"'90-agencja wykonawcza'!R24","v":0},{"$f":"'90-agencja wykonawcza'!C26","v":0},{"$f":"'90-agencja wykonawcza'!D26","v":0},{"$f":"'90-agencja wykonawcza'!E26","v":0},{"$f":"'90-agencja wykonawcza'!F26","v":0},{"$f":"'90-agencja wykonawcza'!G26","v":0},{"$f":"'90-agencja wykonawcza'!H26","v":0},{"$f":"'90-agencja wykonawcza'!I26","v":0},{"$f":"'90-agencja wykonawcza'!J26","v":0},{"$f":"'90-agencja wykonawcza'!K26","v":0},{"$f":"'90-agencja wykonawcza'!L26","v":0},{"$f":"'90-agencja wykonawcza'!M26","v":0},{"$f":"'90-agencja wykonawcza'!N26","v":0},{"$f":"'90-agencja wykonawcza'!O26","v":0},{"$f":"'90-agencja wykonawcza'!P26","v":0},{"$f":"'90-agencja wykonawcza'!Q26","v":0},{"$f":"'90-agencja wykonawcza'!R26","v":0},{"$f":"'90-agencja wykonawcza'!C27","v":0},{"$f":"'90-agencja wykonawcza'!D27","v":0},{"$f":"'90-agencja wykonawcza'!E27","v":0},{"$f":"'90-agencja wykonawcza'!F27","v":0},{"$f":"'90-agencja wykonawcza'!G27","v":0},{"$f":"'90-agencja wykonawcza'!H27","v":0},{"$f":"'90-agencja wykonawcza'!I27","v":0},{"$f":"'90-agencja wykonawcza'!J27","v":0},{"$f":"'90-agencja wykonawcza'!K27","v":0},{"$f":"'90-agencja wykonawcza'!L27","v":0},{"$f":"'90-agencja wykonawcza'!M27","v":0},{"$f":"'90-agencja wykonawcza'!N27","v":0},{"$f":"'90-agencja wykonawcza'!O27","v":0},{"$f":"'90-agencja wykonawcza'!P27","v":0},{"$f":"'90-agencja wykonawcza'!Q27","v":0},{"$f":"'90-agencja wykonawcza'!R27","v":0},{"$f":"'90-agencja wykonawcza'!C28","v":0},{"$f":"'90-agencja wykonawcza'!D28","v":0},{"$f":"'90-agencja wykonawcza'!E28","v":0},{"$f":"'90-agencja wykonawcza'!F28","v":0},{"$f":"'90-agencja wykonawcza'!G28","v":0},{"$f":"'90-agencja wykonawcza'!H28","v":0},{"$f":"'90-agencja wykonawcza'!I28","v":0},{"$f":"'90-agencja wykonawcza'!J28","v":0},{"$f":"'90-agencja wykonawcza'!K28","v":0},{"$f":"'90-agencja wykonawcza'!L28","v":0},{"$f":"'90-agencja wykonawcza'!M28","v":0},{"$f":"'90-agencja wykonawcza'!N28","v":0},{"$f":"'90-agencja wykonawcza'!O28","v":0},{"$f":"'90-agencja wykonawcza'!P28","v":0},{"$f":"'90-agencja wykonawcza'!Q28","v":0},{"$f":"'90-agencja wykonawcza'!R28","v":0},{"$f":"'90-agencja wykonawcza'!C29","v":0},{"$f":"'90-agencja wykonawcza'!D29","v":0},{"$f":"'90-agencja wykonawcza'!E29","v":0},{"$f":"'90-agencja wykonawcza'!F29","v":0},{"$f":"'90-agencja wykonawcza'!G29","v":0},{"$f":"'90-agencja wykonawcza'!H29","v":0},{"$f":"'90-agencja wykonawcza'!I29","v":0},{"$f":"'90-agencja wykonawcza'!J29","v":0},{"$f":"'90-agencja wykonawcza'!K29","v":0},{"$f":"'90-agencja wykonawcza'!L29","v":0},{"$f":"'90-agencja wykonawcza'!M29","v":0},{"$f":"'90-agencja wykonawcza'!N29","v":0},{"$f":"'90-agencja wykonawcza'!O29","v":0},{"$f":"'90-agencja wykonawcza'!P29","v":0},{"$f":"'90-agencja wykonawcza'!Q29","v":0},{"$f":"'90-agencja wykonawcza'!R29","v":0},{"$f":"'90-agencja wykonawcza'!C30","v":0},{"$f":"'90-agencja wykonawcza'!D30","v":0},{"$f":"'90-agencja wykonawcza'!E30","v":0},{"$f":"'90-agencja wykonawcza'!F30","v":0},{"$f":"'90-agencja wykonawcza'!G30","v":0},{"$f":"'90-agencja wykonawcza'!H30","v":0},{"$f":"'90-agencja wykonawcza'!I30","v":0},{"$f":"'90-agencja wykonawcza'!J30","v":0},{"$f":"'90-agencja wykonawcza'!K30","v":0},{"$f":"'90-agencja wykonawcza'!L30","v":0},{"$f":"'90-agencja wykonawcza'!M30","v":0},{"$f":"'90-agencja wykonawcza'!N30","v":0},{"$f":"'90-agencja wykonawcza'!O30","v":0},{"$f":"'90-agencja wykonawcza'!P30","v":0},{"$f":"'90-agencja wykonawcza'!Q30","v":0},{"$f":"'90-agencja wykonawcza'!R30","v":0},{"$f":"'90-agencja wykonawcza'!C31","v":0},{"$f":"'90-agencja wykonawcza'!D31","v":0},{"$f":"'90-agencja wykonawcza'!E31","v":0},{"$f":"'90-agencja wykonawcza'!F31","v":0},{"$f":"'90-agencja wykonawcza'!G31","v":0},{"$f":"'90-agencja wykonawcza'!H31","v":0},{"$f":"'90-agencja wykonawcza'!I31","v":0},{"$f":"'90-agencja wykonawcza'!J31","v":0},{"$f":"'90-agencja wykonawcza'!K31","v":0},{"$f":"'90-agencja wykonawcza'!L31","v":0},{"$f":"'90-agencja wykonawcza'!M31","v":0},{"$f":"'90-agencja wykonawcza'!N31","v":0},{"$f":"'90-agencja wykonawcza'!O31","v":0},{"$f":"'90-agencja wykonawcza'!P31","v":0},{"$f":"'90-agencja wykonawcza'!Q31","v":0},{"$f":"'90-agencja wykonawcza'!R31","v":0},{"$f":"'90-agencja wykonawcza'!C32","v":0},{"$f":"'90-agencja wykonawcza'!D32","v":0},{"$f":"'90-agencja wykonawcza'!E32","v":0},{"$f":"'90-agencja wykonawcza'!F32","v":0},{"$f":"'90-agencja wykonawcza'!G32","v":0},{"$f":"'90-agencja wykonawcza'!H32","v":0},{"$f":"'90-agencja wykonawcza'!I32","v":0},{"$f":"'90-agencja wykonawcza'!J32","v":0},{"$f":"'90-agencja wykonawcza'!K32","v":0},{"$f":"'90-agencja wykonawcza'!L32","v":0},{"$f":"'90-agencja wykonawcza'!M32","v":0},{"$f":"'90-agencja wykonawcza'!N32","v":0},{"$f":"'90-agencja wykonawcza'!O32","v":0},{"$f":"'90-agencja wykonawcza'!P32","v":0},{"$f":"'90-agencja wykonawcza'!Q32","v":0},{"$f":"'90-agencja wykonawcza'!R32","v":0},{"$f":"'90-agencja wykonawcza'!C33","v":0},{"$f":"'90-agencja wykonawcza'!D33","v":0},{"$f":"'90-agencja wykonawcza'!E33","v":0},{"$f":"'90-agencja wykonawcza'!F33","v":0},{"$f":"'90-agencja wykonawcza'!G33","v":0},{"$f":"'90-agencja wykonawcza'!H33","v":0},{"$f":"'90-agencja wykonawcza'!I33","v":0},{"$f":"'90-agencja wykonawcza'!J33","v":0},{"$f":"'90-agencja wykonawcza'!K33","v":0},{"$f":"'90-agencja wykonawcza'!L33","v":0},{"$f":"'90-agencja wykonawcza'!M33","v":0},{"$f":"'90-agencja wykonawcza'!N33","v":0},{"$f":"'90-agencja wykonawcza'!O33","v":0},{"$f":"'90-agencja wykonawcza'!P33","v":0},{"$f":"'90-agencja wykonawcza'!Q33","v":0},{"$f":"'90-agencja wykonawcza'!R33","v":0},{"$f":"'90-agencja wykonawcza'!C34","v":0},{"$f":"'90-agencja wykonawcza'!D34","v":0},{"$f":"'90-agencja wykonawcza'!E34","v":0},{"$f":"'90-agencja wykonawcza'!F34","v":0},{"$f":"'90-agencja wykonawcza'!G34","v":0},{"$f":"'90-agencja wykonawcza'!H34","v":0},{"$f":"'90-agencja wykonawcza'!I34","v":0},{"$f":"'90-agencja wykonawcza'!J34","v":0},{"$f":"'90-agencja wykonawcza'!K34","v":0},{"$f":"'90-agencja wykonawcza'!L34","v":0},{"$f":"'90-agencja wykonawcza'!M34","v":0},{"$f":"'90-agencja wykonawcza'!N34","v":0},{"$f":"'90-agencja wykonawcza'!O34","v":0},{"$f":"'90-agencja wykonawcza'!P34","v":0},{"$f":"'90-agencja wykonawcza'!Q34","v":0},{"$f":"'90-agencja wykonawcza'!R34","v":0},{"$f":"'90-agencja wykonawcza'!C35","v":0},{"$f":"'90-agencja wykonawcza'!D35","v":0},{"$f":"'90-agencja wykonawcza'!E35","v":0},{"$f":"'90-agencja wykonawcza'!F35","v":0},{"$f":"'90-agencja wykonawcza'!G35","v":0},{"$f":"'90-agencja wykonawcza'!H35","v":0},{"$f":"'90-agencja wykonawcza'!I35","v":0},{"$f":"'90-agencja wykonawcza'!J35","v":0},{"$f":"'90-agencja wykonawcza'!K35","v":0},{"$f":"'90-agencja wykonawcza'!L35","v":0},{"$f":"'90-agencja wykonawcza'!M35","v":0},{"$f":"'90-agencja wykonawcza'!N35","v":0},{"$f":"'90-agencja wykonawcza'!O35","v":0},{"$f":"'90-agencja wykonawcza'!P35","v":0},{"$f":"'90-agencja wykonawcza'!Q35","v":0},{"$f":"'90-agencja wykonawcza'!R35","v":0}]
[{"$f":"'99-zbiorczo'!A8","v":"Brak nr REGON"},null,null,null,null,{"$f":"'99-zbiorczo'!L11","v":99},{"$f":"'99-zbiorczo'!K8","v":"Brak roku"},{"$f":"'99-zbiorczo'!H8","v":"Brak nr kwartału"},{"$f":"'99-zbiorczo'!M11","v":0},null,null,{"$f":"'99-zbiorczo'!C24","v":0},{"$f":"'99-zbiorczo'!D24","v":0},{"$f":"'99-zbiorczo'!E24","v":0},{"$f":"'99-zbiorczo'!F24","v":0},{"$f":"'99-zbiorczo'!G24","v":0},{"$f":"'99-zbiorczo'!H24","v":0},{"$f":"'99-zbiorczo'!I24","v":0},{"$f":"'99-zbiorczo'!J24","v":0},{"$f":"'99-zbiorczo'!K24","v":0},{"$f":"'99-zbiorczo'!L24","v":0},{"$f":"'99-zbiorczo'!M24","v":0},{"$f":"'99-zbiorczo'!N24","v":0},{"$f":"'99-zbiorczo'!O24","v":0},{"$f":"'99-zbiorczo'!P24","v":0},{"$f":"'99-zbiorczo'!Q24","v":0},{"$f":"'99-zbiorczo'!R24","v":0},{"$f":"'99-zbiorczo'!C26","v":0},{"$f":"'99-zbiorczo'!D26","v":0},{"$f":"'99-zbiorczo'!E26","v":0},{"$f":"'99-zbiorczo'!F26","v":0},{"$f":"'99-zbiorczo'!G26","v":0},{"$f":"'99-zbiorczo'!H26","v":0},{"$f":"'99-zbiorczo'!I26","v":0},{"$f":"'99-zbiorczo'!J26","v":0},{"$f":"'99-zbiorczo'!K26","v":0},{"$f":"'99-zbiorczo'!L26","v":0},{"$f":"'99-zbiorczo'!M26","v":0},{"$f":"'99-zbiorczo'!N26","v":0},{"$f":"'99-zbiorczo'!O26","v":0},{"$f":"'99-zbiorczo'!P26","v":0},{"$f":"'99-zbiorczo'!Q26","v":0},{"$f":"'99-zbiorczo'!R26","v":0},{"$f":"'99-zbiorczo'!C27","v":0},{"$f":"'99-zbiorczo'!D27","v":0},{"$f":"'99-zbiorczo'!E27","v":0},{"$f":"'99-zbiorczo'!F27","v":0},{"$f":"'99-zbiorczo'!G27","v":0},{"$f":"'99-zbiorczo'!H27","v":0},{"$f":"'99-zbiorczo'!I27","v":0},{"$f":"'99-zbiorczo'!J27","v":0},{"$f":"'99-zbiorczo'!K27","v":0},{"$f":"'99-zbiorczo'!L27","v":0},{"$f":"'99-zbiorczo'!M27","v":0},{"$f":"'99-zbiorczo'!N27","v":0},{"$f":"'99-zbiorczo'!O27","v":0},{"$f":"'99-zbiorczo'!P27","v":0},{"$f":"'99-zbiorczo'!Q27","v":0},{"$f":"'99-zbiorczo'!R27","v":0},{"$f":"'99-zbiorczo'!C28","v":0},{"$f":"'99-zbiorczo'!D28","v":0},{"$f":"'99-zbiorczo'!E28","v":0},{"$f":"'99-zbiorczo'!F28","v":0},{"$f":"'99-zbiorczo'!G28","v":0},{"$f":"'99-zbiorczo'!H28","v":0},{"$f":"'99-zbiorczo'!I28","v":0},{"$f":"'99-zbiorczo'!J28","v":0},{"$f":"'99-zbiorczo'!K28","v":0},{"$f":"'99-zbiorczo'!L28","v":0},{"$f":"'99-zbiorczo'!M28","v":0},{"$f":"'99-zbiorczo'!N28","v":0},{"$f":"'99-zbiorczo'!O28","v":0},{"$f":"'99-zbiorczo'!P28","v":0},{"$f":"'99-zbiorczo'!Q28","v":0},{"$f":"'99-zbiorczo'!R28","v":0},{"$f":"'99-zbiorczo'!C29","v":0},{"$f":"'99-zbiorczo'!D29","v":0},{"$f":"'99-zbiorczo'!E29","v":0},{"$f":"'99-zbiorczo'!F29","v":0},{"$f":"'99-zbiorczo'!G29","v":0},{"$f":"'99-zbiorczo'!H29","v":0},{"$f":"'99-zbiorczo'!I29","v":0},{"$f":"'99-zbiorczo'!J29","v":0},{"$f":"'99-zbiorczo'!K29","v":0},{"$f":"'99-zbiorczo'!L29","v":0},{"$f":"'99-zbiorczo'!M29","v":0},{"$f":"'99-zbiorczo'!N29","v":0},{"$f":"'99-zbiorczo'!O29","v":0},{"$f":"'99-zbiorczo'!P29","v":0},{"$f":"'99-zbiorczo'!Q29","v":0},{"$f":"'99-zbiorczo'!R29","v":0},{"$f":"'99-zbiorczo'!C30","v":0},{"$f":"'99-zbiorczo'!D30","v":0},{"$f":"'99-zbiorczo'!E30","v":0},{"$f":"'99-zbiorczo'!F30","v":0},{"$f":"'99-zbiorczo'!G30","v":0},{"$f":"'99-zbiorczo'!H30","v":0},{"$f":"'99-zbiorczo'!I30","v":0},{"$f":"'99-zbiorczo'!J30","v":0},{"$f":"'99-zbiorczo'!K30","v":0},{"$f":"'99-zbiorczo'!L30","v":0},{"$f":"'99-zbiorczo'!M30","v":0},{"$f":"'99-zbiorczo'!N30","v":0},{"$f":"'99-zbiorczo'!O30","v":0},{"$f":"'99-zbiorczo'!P30","v":0},{"$f":"'99-zbiorczo'!Q30","v":0},{"$f":"'99-zbiorczo'!R30","v":0},{"$f":"'99-zbiorczo'!C31","v":0},{"$f":"'99-zbiorczo'!D31","v":0},{"$f":"'99-zbiorczo'!E31","v":0},{"$f":"'99-zbiorczo'!F31","v":0},{"$f":"'99-zbiorczo'!G31","v":0},{"$f":"'99-zbiorczo'!H31","v":0},{"$f":"'99-zbiorczo'!I31","v":0},{"$f":"'99-zbiorczo'!J31","v":0},{"$f":"'99-zbiorczo'!K31","v":0},{"$f":"'99-zbiorczo'!L31","v":0},{"$f":"'99-zbiorczo'!M31","v":0},{"$f":"'99-zbiorczo'!N31","v":0},{"$f":"'99-zbiorczo'!O31","v":0},{"$f":"'99-zbiorczo'!P31","v":0},{"$f":"'99-zbiorczo'!Q31","v":0},{"$f":"'99-zbiorczo'!R31","v":0},{"$f":"'99-zbiorczo'!C32","v":0},{"$f":"'99-zbiorczo'!D32","v":0},{"$f":"'99-zbiorczo'!E32","v":0},{"$f":"'99-zbiorczo'!F32","v":0},{"$f":"'99-zbiorczo'!G32","v":0},{"$f":"'99-zbiorczo'!H32","v":0},{"$f":"'99-zbiorczo'!I32","v":0},{"$f":"'99-zbiorczo'!J32","v":0},{"$f":"'99-zbiorczo'!K32","v":0},{"$f":"'99-zbiorczo'!L32","v":0},{"$f":"'99-zbiorczo'!M32","v":0},{"$f":"'99-zbiorczo'!N32","v":0},{"$f":"'99-zbiorczo'!O32","v":0},{"$f":"'99-zbiorczo'!P32","v":0},{"$f":"'99-zbiorczo'!Q32","v":0},{"$f":"'99-zbiorczo'!R32","v":0},{"$f":"'99-zbiorczo'!C33","v":0},{"$f":"'99-zbiorczo'!D33","v":0},{"$f":"'99-zbiorczo'!E33","v":0},{"$f":"'99-zbiorczo'!F33","v":0},{"$f":"'99-zbiorczo'!G33","v":0},{"$f":"'99-zbiorczo'!H33","v":0},{"$f":"'99-zbiorczo'!I33","v":0},{"$f":"'99-zbiorczo'!J33","v":0},{"$f":"'99-zbiorczo'!K33","v":0},{"$f":"'99-zbiorczo'!L33","v":0},{"$f":"'99-zbiorczo'!M33","v":0},{"$f":"'99-zbiorczo'!N33","v":0},{"$f":"'99-zbiorczo'!O33","v":0},{"$f":"'99-zbiorczo'!P33","v":0},{"$f":"'99-zbiorczo'!Q33","v":0},{"$f":"'99-zbiorczo'!R33","v":0},{"$f":"'99-zbiorczo'!C34","v":0},{"$f":"'99-zbiorczo'!D34","v":0},{"$f":"'99-zbiorczo'!E34","v":0},{"$f":"'99-zbiorczo'!F34","v":0},{"$f":"'99-zbiorczo'!G34","v":0},{"$f":"'99-zbiorczo'!H34","v":0},{"$f":"'99-zbiorczo'!I34","v":0},{"$f":"'99-zbiorczo'!J34","v":0},{"$f":"'99-zbiorczo'!K34","v":0},{"$f":"'99-zbiorczo'!L34","v":0},{"$f":"'99-zbiorczo'!M34","v":0},{"$f":"'99-zbiorczo'!N34","v":0},{"$f":"'99-zbiorczo'!O34","v":0},{"$f":"'99-zbiorczo'!P34","v":0},{"$f":"'99-zbiorczo'!Q34","v":0},{"$f":"'99-zbiorczo'!R34","v":0},{"$f":"'99-zbiorczo'!C35","v":0},{"$f":"'99-zbiorczo'!D35","v":0},{"$f":"'99-zbiorczo'!E35","v":0},{"$f":"'99-zbiorczo'!F35","v":0},{"$f":"'99-zbiorczo'!G35","v":0},{"$f":"'99-zbiorczo'!H35","v":0},{"$f":"'99-zbiorczo'!I35","v":0},{"$f":"'99-zbiorczo'!J35","v":0},{"$f":"'99-zbiorczo'!K35","v":0},{"$f":"'99-zbiorczo'!L35","v":0},{"$f":"'99-zbiorczo'!M35","v":0},{"$f":"'99-zbiorczo'!N35","v":0},{"$f":"'99-zbiorczo'!O35","v":0},{"$f":"'99-zbiorczo'!P35","v":0},{"$f":"'99-zbiorczo'!Q35","v":0},{"$f":"'99-zbiorczo'!R35","v":0}]

{"sheet":"RBZF","index":17,"n_rows":17,"n_cols":32,"rows_kept":17,"cut":false,"hidden":true,"merged":[]}
["REGON","WK","PK","GK","GT","PT","ROK","KWARTAL","CZ_BU","DAT_SKW","UWAGI","F1002","F1003","F1004","F1005","F1006","F1007","F1008","F2002","F2003","F2004","F2005","F2006","F2007","F2008","F3002","F3003","F3004","F3005","F3006","F3007","F3008"]
[{"$f":"'11-państw.fund.cel.'!A8","v":0},null,null,null,null,{"$f":"'11-państw.fund.cel.'!L11","v":11},{"$f":"'11-państw.fund.cel.'!K8","v":0},{"$f":"'11-państw.fund.cel.'!H8","v":0},{"$f":"'11-państw.fund.cel.'!M11","v":0},null,null,{"$f":"'11-państw.fund.cel.'!F46","v":0},{"$f":"'11-państw.fund.cel.'!G46","v":0},{"$f":"'11-państw.fund.cel.'!H46","v":0},{"$f":"'11-państw.fund.cel.'!I46","v":0},{"$f":"'11-państw.fund.cel.'!J46","v":0},{"$f":"'11-państw.fund.cel.'!K46","v":0},{"$f":"'11-państw.fund.cel.'!L46","v":0},{"$f":"'11-państw.fund.cel.'!F47","v":0},{"$f":"'11-państw.fund.cel.'!G47","v":0},{"$f":"'11-państw.fund.cel.'!H47","v":0},{"$f":"'11-państw.fund.cel.'!I47","v":0},{"$f":"'11-państw.fund.cel.'!J47","v":0},{"$f":"'11-państw.fund.cel.'!K47","v":0},{"$f":"'11-państw.fund.cel.'!L47","v":0},{"$f":"'11-państw.fund.cel.'!F48","v":0},{"$f":"'11-państw.fund.cel.'!G48","v":0},{"$f":"'11-państw.fund.cel.'!H48","v":0},{"$f":"'11-państw.fund.cel.'!I48","v":0},{"$f":"'11-państw.fund.cel.'!J48","v":0},{"$f":"'11-państw.fund.cel.'!K48","v":0},{"$f":"'11-państw.fund.cel.'!L48","v":0}]
[{"$f":"'20-państw.szk.wyż.'!A8","v":0},null,null,null,null,{"$f":"'20-państw.szk.wyż.'!L11","v":20},{"$f":"'20-państw.szk.wyż.'!K8","v":0},{"$f":"'20-państw.szk.wyż.'!H8","v":0},{"$f":"'20-państw.szk.wyż.'!M11","v":0},null,null,{"$f":"'20-państw.szk.wyż.'!F46","v":0},{"$f":"'20-państw.szk.wyż.'!G46","v":0},{"$f":"'20-państw.szk.wyż.'!H46","v":0},{"$f":"'20-państw.szk.wyż.'!I46","v":0},{"$f":"'20-państw.szk.wyż.'!J46","v":0},{"$f":"'20-państw.szk.wyż.'!K46","v":0},{"$f":"'20-państw.szk.wyż.'!L46","v":0},{"$f":"'20-państw.szk.wyż.'!F47","v":0},{"$f":"'20-państw.szk.wyż.'!G47","v":0},{"$f":"'20-państw.szk.wyż.'!H47","v":0},{"$f":"'20-państw.szk.wyż.'!I47","v":0},{"$f":"'20-państw.szk.wyż.'!J47","v":0},{"$f":"'20-państw.szk.wyż.'!K47","v":0},{"$f":"'20-państw.szk.wyż.'!L47","v":0},{"$f":"'20-państw.szk.wyż.'!F48","v":0},{"$f":"'20-państw.szk.wyż.'!G48","v":0},{"$f":"'20-państw.szk.wyż.'!H48","v":0},{"$f":"'20-państw.szk.wyż.'!I48","v":0},{"$f":"'20-państw.szk.wyż.'!J48","v":0},{"$f":"'20-państw.szk.wyż.'!K48","v":0},{"$f":"'20-państw.szk.wyż.'!L48","v":0}]
[{"$f":"'31-instytucje gosp budż'!A8","v":0},null,null,null,null,{"$f":"'31-instytucje gosp budż'!L11","v":31},{"$f":"'31-instytucje gosp budż'!K8","v":0},{"$f":"'31-instytucje gosp budż'!H8","v":0},{"$f":"'31-instytucje gosp budż'!M11","v":0},null,null,{"$f":"'31-instytucje gosp budż'!F46","v":0},{"$f":"'31-instytucje gosp budż'!G46","v":0},{"$f":"'31-instytucje gosp budż'!H46","v":0},{"$f":"'31-instytucje gosp budż'!I46","v":0},{"$f":"'31-instytucje gosp budż'!J46","v":0},{"$f":"'31-instytucje gosp budż'!K46","v":0},{"$f":"'31-instytucje gosp budż'!L46","v":0},{"$f":"'31-instytucje gosp budż'!F47","v":0},{"$f":"'31-instytucje gosp budż'!G47","v":0},{"$f":"'31-instytucje gosp budż'!H47","v":0},{"$f":"'31-instytucje gosp budż'!I47","v":0},{"$f":"'31-instytucje gosp budż'!J47","v":0},{"$f":"'31-instytucje gosp budż'!K47","v":0},{"$f":"'31-instytucje gosp budż'!L47","v":0},{"$f":"'31-instytucje gosp budż'!F48","v":0},{"$f":"'31-instytucje gosp budż'!G48","v":0},{"$f":"'31-instytucje gosp budż'!H48","v":0},{"$f":"'31-instytucje gosp budż'!I48","v":0},{"$f":"'31-instytucje gosp budż'!J48","v":0},{"$f":"'31-instytucje gosp budż'!K48","v":0},{"$f":"'31-instytucje gosp budż'!L48","v":0}]
[{"$f":"'41-państw.inst.kult.'!A8","v":0},null,null,null,null,{"$f":"'41-państw.inst.kult.'!L11","v":41},{"$f":"'41-państw.inst.kult.'!K8","v":0},{"$f":"'41-państw.inst.kult.'!H8","v":0},{"$f":"'41-państw.inst.kult.'!M11","v":0},null,null,{"$f":"'41-państw.inst.kult.'!F46","v":0},{"$f":"'41-państw.inst.kult.'!G46","v":0},{"$f":"'41-państw.inst.kult.'!H46","v":0},{"$f":"'41-państw.inst.kult.'!I46","v":0},{"$f":"'41-państw.inst.kult.'!J46","v":0},{"$f":"'41-państw.inst.kult.'!K46","v":0},{"$f":"'41-państw.inst.kult.'!L46","v":0},{"$f":"'41-państw.inst.kult.'!F47","v":0},{"$f":"'41-państw.inst.kult.'!G47","v":0},{"$f":"'41-państw.inst.kult.'!H47","v":0},{"$f":"'41-państw.inst.kult.'!I47","v":0},{"$f":"'41-państw.inst.kult.'!J47","v":0},{"$f":"'41-państw.inst.kult.'!K47","v":0},{"$f":"'41-państw.inst.kult.'!L47","v":0},{"$f":"'41-państw.inst.kult.'!F48","v":0},{"$f":"'41-państw.inst.kult.'!G48","v":0},{"$f":"'41-państw.inst.kult.'!H48","v":0},{"$f":"'41-państw.inst.kult.'!I48","v":0},{"$f":"'41-państw.inst.kult.'!J48","v":0},{"$f":"'41-państw.inst.kult.'!K48","v":0},{"$f":"'41-państw.inst.kult.'!L48","v":0}]
[{"$f":"'42-samorz.inst.kult.'!A8","v":0},null,null,null,null,{"$f":"'42-samorz.inst.kult.'!L11","v":42},{"$f":"'42-samorz.inst.kult.'!K8","v":0},{"$f":"'42-samorz.inst.kult.'!H8","v":0},{"$f":"'42-samorz.inst.kult.'!M11","v":0},null,null,{"$f":"'42-samorz.inst.kult.'!F46","v":0},{"$f":"'42-samorz.inst.kult.'!G46","v":0},{"$f":"'42-samorz.inst.kult.'!H46","v":0},{"$f":"'42-samorz.inst.kult.'!I46","v":0},{"$f":"'42-samorz.inst.kult.'!J46","v":0},{"$f":"'42-samorz.inst.kult.'!K46","v":0},{"$f":"'42-samorz.inst.kult.'!L46","v":0},{"$f":"'42-samorz.inst.kult.'!F47","v":0},{"$f":"'42-samorz.inst.kult.'!G47","v":0},{"$f":"'42-samorz.inst.kult.'!H47","v":0},{"$f":"'42-samorz.inst.kult.'!I47","v":0},{"$f":"'42-samorz.inst.kult.'!J47","v":0},{"$f":"'42-samorz.inst.kult.'!K47","v":0},{"$f":"'42-samorz.inst.kult.'!L47","v":0},{"$f":"'42-samorz.inst.kult.'!F48","v":0},{"$f":"'42-samorz.inst.kult.'!G48","v":0},{"$f":"'42-samorz.inst.kult.'!H48","v":0},{"$f":"'42-samorz.inst.kult.'!I48","v":0},{"$f":"'42-samorz.inst.kult.'!J48","v":0},{"$f":"'42-samorz.inst.kult.'!K48","v":0},{"$f":"'42-samorz.inst.kult.'!L48","v":0}]
[{"$f":"'50-PAN i jedn.tworz.przez PAN'!A8","v":0},null,null,null,null,{"$f":"'50-PAN i jedn.tworz.przez PAN'!L11","v":50},{"$f":"'50-PAN i jedn.tworz.przez PAN'!K8","v":0},{"$f":"'50-PAN i jedn.tworz.przez PAN'!H8","v":0},{"$f":"'50-PAN i jedn.tworz.przez PAN'!M11","v":0},null,null,{"$f":"'50-PAN i jedn.tworz.przez PAN'!F46","v":0},{"$f":"'50-PAN i jedn.tworz.przez PAN'!G46","v":0},{"$f":"'50-PAN i jedn.tworz.przez PAN'!H46","v":0},{"$f":"'50-PAN i jedn.tworz.przez PAN'!I46","v":0},{"$f":"'50-PAN i jedn.tworz.przez PAN'!J46","v":0},{"$f":"'50-PAN i jedn.tworz.przez PAN'!K46","v":0},{"$f":"'50-PAN i jedn.tworz.przez PAN'!L46","v":0},{"$f":"'50-PAN i jedn.tworz.przez PAN'!F47","v":0},{"$f":"'50-PAN i jedn.tworz.przez PAN'!G47","v":0},{"$f":"'50-PAN i jedn.tworz.przez PAN'!H47","v":0},{"$f":"'50-PAN i jedn.tworz.przez PAN'!I47","v":0},{"$f":"'50-PAN i jedn.tworz.przez PAN'!J47","v":0},{"$f":"'50-PAN i jedn.tworz.przez PAN'!K47","v":0},{"$f":"'50-PAN i jedn.tworz.przez PAN'!L47","v":0},{"$f":"'50-PAN i jedn.tworz.przez PAN'!F48","v":0},{"$f":"'50-PAN i jedn.tworz.przez PAN'!G48","v":0},{"$f":"'50-PAN i jedn.tworz.przez PAN'!H48","v":0},{"$f":"'50-PAN i jedn.tworz.przez PAN'!I48","v":0},{"$f":"'50-PAN i jedn.tworz.przez PAN'!J48","v":0},{"$f":"'50-PAN i jedn.tworz.przez PAN'!K48","v":0},{"$f":"'50-PAN i jedn.tworz.przez PAN'!L48","v":0}]
[{"$f":"'61-samodz.publ.ZOZ państw.'!A8","v":0},null,null,null,null,{"$f":"'61-samodz.publ.ZOZ państw.'!L11","v":61},{"$f":"'61-samodz.publ.ZOZ państw.'!K8","v":0},{"$f":"'61-samodz.publ.ZOZ państw.'!H8","v":0},{"$f":"'61-samodz.publ.ZOZ państw.'!M11","v":0},null,null,{"$f":"'61-samodz.publ.ZOZ państw.'!F46","v":0},{"$f":"'61-samodz.publ.ZOZ państw.'!G46","v":0},{"$f":"'61-samodz.publ.ZOZ państw.'!H46","v":0},{"$f":"'61-samodz.publ.ZOZ państw.'!I46","v":0},{"$f":"'61-samodz.publ.ZOZ państw.'!J46","v":0},{"$f":"'61-samodz.publ.ZOZ państw.'!K46","v":0},{"$f":"'61-samodz.publ.ZOZ państw.'!L46","v":0},{"$f":"'61-samodz.publ.ZOZ państw.'!F47","v":0},{"$f":"'61-samodz.publ.ZOZ państw.'!G47","v":0},{"$f":"'61-samodz.publ.ZOZ państw.'!H47","v":0},{"$f":"'61-samodz.publ.ZOZ państw.'!I47","v":0},{"$f":"'61-samodz.publ.ZOZ państw.'!J47","v":0},{"$f":"'61-samodz.publ.ZOZ państw.'!K47","v":0},{"$f":"'61-samodz.publ.ZOZ państw.'!L47","v":0},{"$f":"'61-samodz.publ.ZOZ państw.'!F48","v":0},{"$f":"'61-samodz.publ.ZOZ państw.'!G48","v":0},{"$f":"'61-samodz.publ.ZOZ państw.'!H48","v":0},{"$f":"'61-samodz.publ.ZOZ państw.'!I48","v":0},{"$f":"'61-samodz.publ.ZOZ państw.'!J48","v":0},{"$f":"'61-samodz.publ.ZOZ państw.'!K48","v":0},{"$f":"'61-samodz.publ.ZOZ państw.'!L48","v":0}]
[{"$f":"'62-samodz.publ.ZOZ samorz.'!A8","v":0},null,null,null,null,{"$f":"'62-samodz.publ.ZOZ samorz.'!L11","v":62},{"$f":"'62-samodz.publ.ZOZ samorz.'!K8","v":0},{"$f":"'62-samodz.publ.ZOZ samorz.'!H8","v":0},{"$f":"'62-samodz.publ.ZOZ samorz.'!M11","v":0},null,null,{"$f":"'62-samodz.publ.ZOZ samorz.'!F46","v":0},{"$f":"'62-samodz.publ.ZOZ samorz.'!G46","v":0},{"$f":"'62-samodz.publ.ZOZ samorz.'!H46","v":0},{"$f":"'62-samodz.publ.ZOZ samorz.'!I46","v":0},{"$f":"'62-samodz.publ.ZOZ samorz.'!J46","v":0},{"$f":"'62-samodz.publ.ZOZ samorz.'!K46","v":0},{"$f":"'62-samodz.publ.ZOZ samorz.'!L46","v":0},{"$f":"'62-samodz.publ.ZOZ samorz.'!F47","v":0},{"$f":"'62-samodz.publ.ZOZ samorz.'!G47","v":0},{"$f":"'62-samodz.publ.ZOZ samorz.'!H47","v":0},{"$f":"'62-samodz.publ.ZOZ samorz.'!I47","v":0},{"$f":"'62-samodz.publ.ZOZ samorz.'!J47","v":0},{"$f":"'62-samodz.publ.ZOZ samorz.'!K47","v":0},{"$f":"'62-samodz.publ.ZOZ samorz.'!L47","v":0},{"$f":"'62-samodz.publ.ZOZ samorz.'!F48","v":0},{"$f":"'62-samodz.publ.ZOZ samorz.'!G48","v":0},{"$f":"'62-samodz.publ.ZOZ samorz.'!H48","v":0},{"$f":"'62-samodz.publ.ZOZ samorz.'!I48","v":0},{"$f":"'62-samodz.publ.ZOZ samorz.'!J48","v":0},{"$f":"'62-samodz.publ.ZOZ samorz.'!K48","v":0},{"$f":"'62-samodz.publ.ZOZ samorz.'!L48","v":0}]
[{"$f":"'63-Narodowy Fundusz Zdrowia'!A8","v":0},null,null,null,null,{"$f":"'63-Narodowy Fundusz Zdrowia'!L11","v":63},{"$f":"'63-Narodowy Fundusz Zdrowia'!K8","v":0},{"$f":"'63-Narodowy Fundusz Zdrowia'!H8","v":0},{"$f":"'63-Narodowy Fundusz Zdrowia'!M11","v":0},null,null,{"$f":"'63-Narodowy Fundusz Zdrowia'!F46","v":0},{"$f":"'63-Narodowy Fundusz Zdrowia'!G46","v":0},{"$f":"'63-Narodowy Fundusz Zdrowia'!H46","v":0},{"$f":"'63-Narodowy Fundusz Zdrowia'!I46","v":0},{"$f":"'63-Narodowy Fundusz Zdrowia'!J46","v":0},{"$f":"'63-Narodowy Fundusz Zdrowia'!K46","v":0},{"$f":"'63-Narodowy Fundusz Zdrowia'!L46","v":0},{"$f":"'63-Narodowy Fundusz Zdrowia'!F47","v":0},{"$f":"'63-Narodowy Fundusz Zdrowia'!G47","v":0},{"$f":"'63-Narodowy Fundusz Zdrowia'!H47","v":0},{"$f":"'63-Narodowy Fundusz Zdrowia'!I47","v":0},{"$f":"'63-Narodowy Fundusz Zdrowia'!J47","v":0},{"$f":"'63-Narodowy Fundusz Zdrowia'!K47","v":0},{"$f":"'63-Narodowy Fundusz Zdrowia'!L47","v":0},{"$f":"'63-Narodowy Fundusz Zdrowia'!F48","v":0},{"$f":"'63-Narodowy Fundusz Zdrowia'!G48","v":0},{"$f":"'63-Narodowy Fundusz Zdrowia'!H48","v":0},{"$f":"'63-Narodowy Fundusz Zdrowia'!I48","v":0},{"$f":"'63-Narodowy Fundusz Zdrowia'!J48","v":0},{"$f":"'63-Narodowy Fundusz Zdrowia'!K48","v":0},{"$f":"'63-Narodowy Fundusz Zdrowia'!L48","v":0}]
[{"$f":"'71-ZUS'!A8","v":0},null,null,null,null,{"$f":"'71-ZUS'!L11","v":71},{"$f":"'71-ZUS'!K8","v":0},{"$f":"'71-ZUS'!H8","v":0},{"$f":"'71-ZUS'!M11","v":0},null,null,{"$f":"'71-ZUS'!F46","v":0},{"$f":"'71-ZUS'!G46","v":0},{"$f":"'71-ZUS'!H46","v":0},{"$f":"'71-ZUS'!I46","v":0},{"$f":"'71-ZUS'!J46","v":0},{"$f":"'71-ZUS'!K46","v":0},{"$f":"'71-ZUS'!L46","v":0},{"$f":"'71-ZUS'!F47","v":0},{"$f":"'71-ZUS'!G47","v":0},{"$f":"'71-ZUS'!H47","v":0},{"$f":"'71-ZUS'!I47","v":0},{"$f":"'71-ZUS'!J47","v":0},{"$f":"'71-ZUS'!K47","v":0},{"$f":"'71-ZUS'!L47","v":0},{"$f":"'71-ZUS'!F48","v":0},{"$f":"'71-ZUS'!G48","v":0},{"$f":"'71-ZUS'!H48","v":0},{"$f":"'71-ZUS'!I48","v":0},{"$f":"'71-ZUS'!J48","v":0},{"$f":"'71-ZUS'!K48","v":0},{"$f":"'71-ZUS'!L48","v":0}]
[{"$f":"'72-fund.zarz.przez ZUS'!A8:B8","v":0},null,null,null,null,{"$f":"'72-fund.zarz.przez ZUS'!L11","v":72},{"$f":"'72-fund.zarz.przez ZUS'!K8","v":0},{"$f":"'72-fund.zarz.przez ZUS'!H8","v":0},{"$f":"'72-fund.zarz.przez ZUS'!M11","v":0},null,null,{"$f":"'72-fund.zarz.przez ZUS'!F46","v":0},{"$f":"'72-fund.zarz.przez ZUS'!G46","v":0},{"$f":"'72-fund.zarz.przez ZUS'!H46","v":0},{"$f":"'72-fund.zarz.przez ZUS'!I46","v":0},{"$f":"'72-fund.zarz.przez ZUS'!J46","v":0},{"$f":"'72-fund.zarz.przez ZUS'!K46","v":0},{"$f":"'72-fund.zarz.przez ZUS'!L46","v":0},{"$f":"'72-fund.zarz.przez ZUS'!F47","v":0},{"$f":"'72-fund.zarz.przez ZUS'!G47","v":0},{"$f":"'72-fund.zarz.przez ZUS'!H47","v":0},{"$f":"'72-fund.zarz.przez ZUS'!I47","v":0},{"$f":"'72-fund.zarz.przez ZUS'!J47","v":0},{"$f":"'72-fund.zarz.przez ZUS'!K47","v":0},{"$f":"'72-fund.zarz.przez ZUS'!L47","v":0},{"$f":"'72-fund.zarz.przez ZUS'!F48","v":0},{"$f":"'72-fund.zarz.przez ZUS'!G48","v":0},{"$f":"'72-fund.zarz.przez ZUS'!H48","v":0},{"$f":"'72-fund.zarz.przez ZUS'!I48","v":0},{"$f":"'72-fund.zarz.przez ZUS'!J48","v":0},{"$f":"'72-fund.zarz.przez ZUS'!K48","v":0},{"$f":"'72-fund.zarz.przez ZUS'!L48","v":0}]
[{"$f":"'73-KRUS'!A8:B8","v":0},null,null,null,null,{"$f":"'73-KRUS'!L11","v":73},{"$f":"'73-KRUS'!K8","v":0},{"$f":"'73-KRUS'!H8","v":0},{"$f":"'73-KRUS'!M11","v":0},null,null,{"$f":"'73-KRUS'!F46","v":0},{"$f":"'73-KRUS'!G46","v":0},{"$f":"'73-KRUS'!H46","v":0},{"$f":"'73-KRUS'!I46","v":0},{"$f":"'73-KRUS'!J46","v":0},{"$f":"'73-KRUS'!K46","v":0},{"$f":"'73-KRUS'!L46","v":0},{"$f":"'73-KRUS'!F47","v":0},{"$f":"'73-KRUS'!G47","v":0},{"$f":"'73-KRUS'!H47","v":0},{"$f":"'73-KRUS'!I47","v":0},{"$f":"'73-KRUS'!J47","v":0},{"$f":"'73-KRUS'!K47","v":0},{"$f":"'73-KRUS'!L47","v":0},{"$f":"'73-KRUS'!F48","v":0},{"$f":"'73-KRUS'!G48","v":0},{"$f":"'73-KRUS'!H48","v":0},{"$f":"'73-KRUS'!I48","v":0},{"$f":"'73-KRUS'!J48","v":0},{"$f":"'73-KRUS'!K48","v":0},{"$f":"'73-KRUS'!L48","v":0}]
[{"$f":"'81-państw.osoba prawna'!A8","v":0},null,null,null,null,{"$f":"'81-państw.osoba prawna'!L11","v":81},{"$f":"'81-państw.osoba prawna'!K8","v":0},{"$f":"'81-państw.osoba prawna'!H8","v":0},{"$f":"'81-państw.osoba prawna'!M11","v":0},null,null,{"$f":"'81-państw.osoba prawna'!F46","v":0},{"$f":"'81-państw.osoba prawna'!G46","v":0},{"$f":"'81-państw.osoba prawna'!H46","v":0},{"$f":"'81-państw.osoba prawna'!I46","v":0},{"$f":"'81-państw.osoba prawna'!J46","v":0},{"$f":"'81-państw.osoba prawna'!K46","v":0},{"$f":"'81-państw.osoba prawna'!L46","v":0},{"$f":"'81-państw.osoba prawna'!F47","v":0},{"$f":"'81-państw.osoba prawna'!G47","v":0},{"$f":"'81-państw.osoba prawna'!H47","v":0},{"$f":"'81-państw.osoba prawna'!I47","v":0},{"$f":"'81-państw.osoba prawna'!J47","v":0},{"$f":"'81-państw.osoba prawna'!K47","v":0},{"$f":"'81-państw.osoba prawna'!L47","v":0},{"$f":"'81-państw.osoba prawna'!F48","v":0},{"$f":"'81-państw.osoba prawna'!G48","v":0},{"$f":"'81-państw.osoba prawna'!H48","v":0},{"$f":"'81-państw.osoba prawna'!I48","v":0},{"$f":"'81-państw.osoba prawna'!J48","v":0},{"$f":"'81-państw.osoba prawna'!K48","v":0},{"$f":"'81-państw.osoba prawna'!L48","v":0}]
[{"$f":"'82-samorz.osoba prawna'!A8","v":0},null,null,null,null,{"$f":"'82-samorz.osoba prawna'!L11","v":82},{"$f":"'82-samorz.osoba prawna'!K8","v":0},{"$f":"'82-samorz.osoba prawna'!H8","v":0},{"$f":"'82-samorz.osoba prawna'!M11","v":0},null,null,{"$f":"'82-samorz.osoba prawna'!F46","v":0},{"$f":"'82-samorz.osoba prawna'!G46","v":0},{"$f":"'82-samorz.osoba prawna'!H46","v":0},{"$f":"'82-samorz.osoba prawna'!I46","v":0},{"$f":"'82-samorz.osoba prawna'!J46","v":0},{"$f":"'82-samorz.osoba prawna'!K46","v":0},{"$f":"'82-samorz.osoba prawna'!L46","v":0},{"$f":"'82-samorz.osoba prawna'!F47","v":0},{"$f":"'82-samorz.osoba prawna'!G47","v":0},{"$f":"'82-samorz.osoba prawna'!H47","v":0},{"$f":"'82-samorz.osoba prawna'!I47","v":0},{"$f":"'82-samorz.osoba prawna'!J47","v":0},{"$f":"'82-samorz.osoba prawna'!K47","v":0},{"$f":"'82-samorz.osoba prawna'!L47","v":0},{"$f":"'82-samorz.osoba prawna'!F48","v":0},{"$f":"'82-samorz.osoba prawna'!G48","v":0},{"$f":"'82-samorz.osoba prawna'!H48","v":0},{"$f":"'82-samorz.osoba prawna'!I48","v":0},{"$f":"'82-samorz.osoba prawna'!J48","v":0},{"$f":"'82-samorz.osoba prawna'!K48","v":0},{"$f":"'82-samorz.osoba prawna'!L48","v":0}]
[{"$f":"'90-agencja wykonawcza'!A8","v":0},null,null,null,null,{"$f":"'90-agencja wykonawcza'!L11","v":90},{"$f":"'90-agencja wykonawcza'!K8","v":0},{"$f":"'90-agencja wykonawcza'!H8","v":0},{"$f":"'90-agencja wykonawcza'!M11","v":0},null,null,{"$f":"'90-agencja wykonawcza'!F46","v":0},{"$f":"'90-agencja wykonawcza'!G46","v":0},{"$f":"'90-agencja wykonawcza'!H46","v":0},{"$f":"'90-agencja wykonawcza'!I46","v":0},{"$f":"'90-agencja wykonawcza'!J46","v":0},{"$f":"'90-agencja wykonawcza'!K46","v":0},{"$f":"'90-agencja wykonawcza'!L46","v":0},{"$f":"'90-agencja wykonawcza'!F47","v":0},{"$f":"'90-agencja wykonawcza'!G47","v":0},{"$f":"'90-agencja wykonawcza'!H47","v":0},{"$f":"'90-agencja wykonawcza'!I47","v":0},{"$f":"'90-agencja wykonawcza'!J47","v":0},{"$f":"'90-agencja wykonawcza'!K47","v":0},{"$f":"'90-agencja wykonawcza'!L47","v":0},{"$f":"'90-agencja wykonawcza'!F48","v":0},{"$f":"'90-agencja wykonawcza'!G48","v":0},{"$f":"'90-agencja wykonawcza'!H48","v":0},{"$f":"'90-agencja wykonawcza'!I48","v":0},{"$f":"'90-agencja wykonawcza'!J48","v":0},{"$f":"'90-agencja wykonawcza'!K48","v":0},{"$f":"'90-agencja wykonawcza'!L48","v":0}]
[{"$f":"'99-zbiorczo'!A8","v":"Brak nr REGON"},null,null,null,null,{"$f":"'99-zbiorczo'!L11","v":99},{"$f":"'99-zbiorczo'!K8","v":"Brak roku"},{"$f":"'99-zbiorczo'!H8","v":"Brak nr kwartału"},{"$f":"'99-zbiorczo'!M11","v":0},null,null,{"$f":"'99-zbiorczo'!F46","v":0},{"$f":"'99-zbiorczo'!G46","v":0},{"$f":"'99-zbiorczo'!H46","v":0},{"$f":"'99-zbiorczo'!I46","v":0},{"$f":"'99-zbiorczo'!J46","v":0},{"$f":"'99-zbiorczo'!K46","v":0},{"$f":"'99-zbiorczo'!L46","v":0},{"$f":"'99-zbiorczo'!F47","v":0},{"$f":"'99-zbiorczo'!G47","v":0},{"$f":"'99-zbiorczo'!H47","v":0},{"$f":"'99-zbiorczo'!I47","v":0},{"$f":"'99-zbiorczo'!J47","v":0},{"$f":"'99-zbiorczo'!K47","v":0},{"$f":"'99-zbiorczo'!L47","v":0},{"$f":"'99-zbiorczo'!F48","v":0},{"$f":"'99-zbiorczo'!G48","v":0},{"$f":"'99-zbiorczo'!H48","v":0},{"$f":"'99-zbiorczo'!I48","v":0},{"$f":"'99-zbiorczo'!J48","v":0},{"$f":"'99-zbiorczo'!K48","v":0},{"$f":"'99-zbiorczo'!L48","v":0}]

{"sheet":"RBZO","index":18,"n_rows":17,"n_cols":14,"rows_kept":17,"cut":false,"hidden":true,"merged":[]}
["REGON","WK","PK","GK","GT","PT","ROK","KWARTAL","CZ_BU","DAT_SKW","UWAGI","OK2","OK3","OK4"]
[{"$f":"'11-państw.fund.cel.'!A8","v":0},null,null,null,null,{"$f":"'11-państw.fund.cel.'!L11","v":11},{"$f":"'11-państw.fund.cel.'!K8","v":0},{"$f":"'11-państw.fund.cel.'!H8","v":0},{"$f":"'11-państw.fund.cel.'!M11","v":0},null,null,{"$f":"'11-państw.fund.cel.'!C88","v":0},{"$f":"'11-państw.fund.cel.'!D88","v":0},{"$f":"'11-państw.fund.cel.'!E88","v":0}]
[{"$f":"'20-państw.szk.wyż.'!A8","v":0},null,null,null,null,{"$f":"'20-państw.szk.wyż.'!L11","v":20},{"$f":"'20-państw.szk.wyż.'!K8","v":0},{"$f":"'20-państw.szk.wyż.'!H8","v":0},{"$f":"'20-państw.szk.wyż.'!M11","v":0},null,null,{"$f":"'20-państw.szk.wyż.'!C88","v":0},{"$f":"'20-państw.szk.wyż.'!D88","v":0},{"$f":"'20-państw.szk.wyż.'!E88","v":0}]
[{"$f":"'31-instytucje gosp budż'!A8","v":0},null,null,null,null,{"$f":"'31-instytucje gosp budż'!L11","v":31},{"$f":"'31-instytucje gosp budż'!K8","v":0},{"$f":"'31-instytucje gosp budż'!H8","v":0},{"$f":"'31-instytucje gosp budż'!M11","v":0},null,null,{"$f":"'31-instytucje gosp budż'!C88","v":0},{"$f":"'31-instytucje gosp budż'!D88","v":0},{"$f":"'31-instytucje gosp budż'!E88","v":0}]
[{"$f":"'41-państw.inst.kult.'!A8","v":0},null,null,null,null,{"$f":"'41-państw.inst.kult.'!L11","v":41},{"$f":"'41-państw.inst.kult.'!K8","v":0},{"$f":"'41-państw.inst.kult.'!H8","v":0},{"$f":"'41-państw.inst.kult.'!M11","v":0},null,null,{"$f":"'41-państw.inst.kult.'!C88","v":0},{"$f":"'41-państw.inst.kult.'!D88","v":0},{"$f":"'41-państw.inst.kult.'!E88","v":0}]
[{"$f":"'42-samorz.inst.kult.'!A8","v":0},null,null,null,null,{"$f":"'42-samorz.inst.kult.'!L11","v":42},{"$f":"'42-samorz.inst.kult.'!K8","v":0},{"$f":"'42-samorz.inst.kult.'!H8","v":0},{"$f":"'42-samorz.inst.kult.'!M11","v":0},null,null,{"$f":"'42-samorz.inst.kult.'!C88","v":0},{"$f":"'42-samorz.inst.kult.'!D88","v":0},{"$f":"'42-samorz.inst.kult.'!E88","v":0}]
[{"$f":"'50-PAN i jedn.tworz.przez PAN'!A8","v":0},null,null,null,null,{"$f":"'50-PAN i jedn.tworz.przez PAN'!L11","v":50},{"$f":"'50-PAN i jedn.tworz.przez PAN'!K8","v":0},{"$f":"'50-PAN i jedn.tworz.przez PAN'!H8","v":0},{"$f":"'50-PAN i jedn.tworz.przez PAN'!M11","v":0},null,null,{"$f":"'50-PAN i jedn.tworz.przez PAN'!C88","v":0},{"$f":"'50-PAN i jedn.tworz.przez PAN'!D88","v":0},{"$f":"'50-PAN i jedn.tworz.przez PAN'!E88","v":0}]
[{"$f":"'61-samodz.publ.ZOZ państw.'!A8","v":0},null,null,null,null,{"$f":"'61-samodz.publ.ZOZ państw.'!L11","v":61},{"$f":"'61-samodz.publ.ZOZ państw.'!K8","v":0},{"$f":"'61-samodz.publ.ZOZ państw.'!H8","v":0},{"$f":"'61-samodz.publ.ZOZ państw.'!M11","v":0},null,null,{"$f":"'61-samodz.publ.ZOZ państw.'!C88","v":0},{"$f":"'61-samodz.publ.ZOZ państw.'!D88","v":0},{"$f":"'61-samodz.publ.ZOZ państw.'!E88","v":0}]
[{"$f":"'62-samodz.publ.ZOZ samorz.'!A8","v":0},null,null,null,null,{"$f":"'62-samodz.publ.ZOZ samorz.'!L11","v":62},{"$f":"'62-samodz.publ.ZOZ samorz.'!K8","v":0},{"$f":"'62-samodz.publ.ZOZ samorz.'!H8","v":0},{"$f":"'62-samodz.publ.ZOZ samorz.'!M11","v":0},null,null,{"$f":"'62-samodz.publ.ZOZ samorz.'!C88","v":0},{"$f":"'62-samodz.publ.ZOZ samorz.'!D88","v":0},{"$f":"'62-samodz.publ.ZOZ samorz.'!E88","v":0}]
[{"$f":"'63-Narodowy Fundusz Zdrowia'!A8","v":0},null,null,null,null,{"$f":"'63-Narodowy Fundusz Zdrowia'!L11","v":63},{"$f":"'63-Narodowy Fundusz Zdrowia'!K8","v":0},{"$f":"'63-Narodowy Fundusz Zdrowia'!H8","v":0},{"$f":"'63-Narodowy Fundusz Zdrowia'!M11","v":0},null,null,{"$f":"'63-Narodowy Fundusz Zdrowia'!C88","v":0},{"$f":"'63-Narodowy Fundusz Zdrowia'!D88","v":0},{"$f":"'63-Narodowy Fundusz Zdrowia'!E88","v":0}]
[{"$f":"'71-ZUS'!A8","v":0},null,null,null,null,{"$f":"'71-ZUS'!L11","v":71},{"$f":"'71-ZUS'!K8","v":0},{"$f":"'71-ZUS'!H8","v":0},{"$f":"'71-ZUS'!M11","v":0},null,null,{"$f":"'71-ZUS'!C88","v":0},{"$f":"'71-ZUS'!D88","v":0},{"$f":"'71-ZUS'!E88","v":0}]
[{"$f":"'72-fund.zarz.przez ZUS'!A8:B8","v":0},null,null,null,null,{"$f":"'72-fund.zarz.przez ZUS'!L11","v":72},{"$f":"'72-fund.zarz.przez ZUS'!K8","v":0},{"$f":"'72-fund.zarz.przez ZUS'!H8","v":0},{"$f":"'72-fund.zarz.przez ZUS'!M11","v":0},null,null,{"$f":"'72-fund.zarz.przez ZUS'!C88","v":0},{"$f":"'72-fund.zarz.przez ZUS'!D88","v":0},{"$f":"'72-fund.zarz.przez ZUS'!E88","v":0}]
[{"$f":"'73-KRUS'!A8:B8","v":0},null,null,null,null,{"$f":"'73-KRUS'!L11","v":73},{"$f":"'73-KRUS'!K8","v":0},{"$f":"'73-KRUS'!H8","v":0},{"$f":"'73-KRUS'!M11","v":0},null,null,{"$f":"'73-KRUS'!C88","v":0},{"$f":"'73-KRUS'!D88","v":0},{"$f":"'73-KRUS'!E88","v":0}]
[{"$f":"'81-państw.osoba prawna'!A8","v":0},null,null,null,null,{"$f":"'81-państw.osoba prawna'!L11","v":81},{"$f":"'81-państw.osoba prawna'!K8","v":0},{"$f":"'81-państw.osoba prawna'!H8","v":0},{"$f":"'81-państw.osoba prawna'!M11","v":0},null,null,{"$f":"'81-państw.osoba prawna'!C88","v":0},{"$f":"'81-państw.osoba prawna'!D88","v":0},{"$f":"'81-państw.osoba prawna'!E88","v":0}]
[{"$f":"'82-samorz.osoba prawna'!A8","v":0},null,null,null,null,{"$f":"'82-samorz.osoba prawna'!L11","v":82},{"$f":"'82-samorz.osoba prawna'!K8","v":0},{"$f":"'82-samorz.osoba prawna'!H8","v":0},{"$f":"'82-samorz.osoba prawna'!M11","v":0},null,null,{"$f":"'82-samorz.osoba prawna'!C88","v":0},{"$f":"'82-samorz.osoba prawna'!D88","v":0},{"$f":"'82-samorz.osoba prawna'!E88","v":0}]
[{"$f":"'90-agencja wykonawcza'!A8","v":0},null,null,null,null,{"$f":"'90-agencja wykonawcza'!L11","v":90},{"$f":"'90-agencja wykonawcza'!K8","v":0},{"$f":"'90-agencja wykonawcza'!H8","v":0},{"$f":"'90-agencja wykonawcza'!M11","v":0},null,null,{"$f":"'90-agencja wykonawcza'!C88","v":0},{"$f":"'90-agencja wykonawcza'!D88","v":0},{"$f":"'90-agencja wykonawcza'!E88","v":0}]
[{"$f":"'99-zbiorczo'!A8","v":"Brak nr REGON"},null,null,null,null,{"$f":"'99-zbiorczo'!L11","v":99},{"$f":"'99-zbiorczo'!K8","v":"Brak roku"},{"$f":"'99-zbiorczo'!H8","v":"Brak nr kwartału"},{"$f":"'99-zbiorczo'!M11","v":0},null,null,{"$f":"'99-zbiorczo'!C88","v":0},{"$f":"'99-zbiorczo'!D88","v":0},{"$f":"'99-zbiorczo'!E88","v":0}]

{"sheet":"RBZC","index":19,"n_rows":17,"n_cols":68,"rows_kept":17,"cut":false,"hidden":true,"merged":[]}
["REGON","WK","PK","GK","GT","PT","ROK","KWARTAL","CZ_BU","DAT_SKW","UWAGI","C1001","C1002","C1003","C1004","C1005","C1006","C2001","C2002","C3102","C3103","C3104","C3105","C3106","C3107","C3108","C3202","C3203","C3204","C3205","C3206","C3207","C3208","C3302","C3303","C3304","C3305","C3306","C3307","C3308","C3402","C3403","C3404","C3405","C3406","C3407","C3408","C3502","C3503","C3504","C3505","C3506","C3507","C3508","C3602","C3603","C3604","C3605","C3606","C3607","C3608","C3702","C3703","C3704","C3705","C3706","C3707","C3708"]
[{"$f":"'11-państw.fund.cel.'!A8","v":0},null,null,null,null,{"$f":"'11-państw.fund.cel.'!L11","v":11},{"$f":"'11-państw.fund.cel.'!K8","v":0},{"$f":"'11-państw.fund.cel.'!H8","v":0},{"$f":"'11-państw.fund.cel.'!M11","v":0},null,null,{"$f":"'11-państw.fund.cel.'!F56","v":0},{"$f":"'11-państw.fund.cel.'!G56","v":0},{"$f":"'11-państw.fund.cel.'!H56","v":0},{"$f":"'11-państw.fund.cel.'!I56","v":0},{"$f":"'11-państw.fund.cel.'!H57","v":0},{"$f":"'11-państw.fund.cel.'!I57","v":0},{"$f":"'11-państw.fund.cel.'!D62","v":0},{"$f":"'11-państw.fund.cel.'!E62","v":0},{"$f":"'11-państw.fund.cel.'!D69","v":0},{"$f":"'11-państw.fund.cel.'!E69","v":0},{"$f":"'11-państw.fund.cel.'!F69","v":0},{"$f":"'11-państw.fund.cel.'!G69","v":0},{"$f":"'11-państw.fund.cel.'!H69","v":0},{"$f":"'11-państw.fund.cel.'!I69","v":0},{"$f":"'11-państw.fund.cel.'!J69","v":0},{"$f":"'11-państw.fund.cel.'!D70","v":0},{"$f":"'11-państw.fund.cel.'!E70","v":0},{"$f":"'11-państw.fund.cel.'!F70","v":0},{"$f":"'11-państw.fund.cel.'!G70","v":0},{"$f":"'11-państw.fund.cel.'!H70","v":0},{"$f":"'11-państw.fund.cel.'!I70","v":0},{"$f":"'11-państw.fund.cel.'!J70","v":0},{"$f":"'11-państw.fund.cel.'!D71","v":0},{"$f":"'11-państw.fund.cel.'!E71","v":0},{"$f":"'11-państw.fund.cel.'!F71","v":0},{"$f":"'11-państw.fund.cel.'!G71","v":0},{"$f":"'11-państw.fund.cel.'!H71","v":0},{"$f":"'11-państw.fund.cel.'!I71","v":0},{"$f":"'11-państw.fund.cel.'!J71","v":0},{"$f":"'11-państw.fund.cel.'!D72","v":0},{"$f":"'11-państw.fund.cel.'!E72","v":0},{"$f":"'11-państw.fund.cel.'!F72","v":0},{"$f":"'11-państw.fund.cel.'!G72","v":0},{"$f":"'11-państw.fund.cel.'!H72","v":0},{"$f":"'11-państw.fund.cel.'!I72","v":0},{"$f":"'11-państw.fund.cel.'!J72","v":0},{"$f":"'11-państw.fund.cel.'!D73","v":0},{"$f":"'11-państw.fund.cel.'!E73","v":0},{"$f":"'11-państw.fund.cel.'!F73","v":0},{"$f":"'11-państw.fund.cel.'!G73","v":0},{"$f":"'11-państw.fund.cel.'!H73","v":0},{"$f":"'11-państw.fund.cel.'!I73","v":0},{"$f":"'11-państw.fund.cel.'!J73","v":0},{"$f":"'11-państw.fund.cel.'!D74","v":0},{"$f":"'11-państw.fund.cel.'!E74","v":0},{"$f":"'11-państw.fund.cel.'!F74","v":0},{"$f":"'11-państw.fund.cel.'!G74","v":0},{"$f":"'11-państw.fund.cel.'!H74","v":0},{"$f":"'11-państw.fund.cel.'!I74","v":0},{"$f":"'11-państw.fund.cel.'!J74","v":0},{"$f":"'11-państw.fund.cel.'!D75","v":0},{"$f":"'11-państw.fund.cel.'!E75","v":0},{"$f":"'11-państw.fund.cel.'!F75","v":0},{"$f":"'11-państw.fund.cel.'!G75","v":0},{"$f":"'11-państw.fund.cel.'!H75","v":0},{"$f":"'11-państw.fund.cel.'!I75","v":0},{"$f":"'11-państw.fund.cel.'!J75","v":0}]
[{"$f":"'20-państw.szk.wyż.'!A8","v":0},null,null,null,null,{"$f":"'20-państw.szk.wyż.'!L11","v":20},{"$f":"'20-państw.szk.wyż.'!K8","v":0},{"$f":"'20-państw.szk.wyż.'!H8","v":0},{"$f":"'20-państw.szk.wyż.'!M11","v":0},null,null,{"$f":"'20-państw.szk.wyż.'!F56","v":0},{"$f":"'20-państw.szk.wyż.'!G56","v":0},{"$f":"'20-państw.szk.wyż.'!H56","v":0},{"$f":"'20-państw.szk.wyż.'!I56","v":0},{"$f":"'20-państw.szk.wyż.'!H57","v":0},{"$f":"'20-państw.szk.wyż.'!I57","v":0},{"$f":"'20-państw.szk.wyż.'!D62","v":0},{"$f":"'20-państw.szk.wyż.'!E62","v":0},{"$f":"'20-państw.szk.wyż.'!D69","v":0},{"$f":"'20-państw.szk.wyż.'!E69","v":0},{"$f":"'20-państw.szk.wyż.'!F69","v":0},{"$f":"'20-państw.szk.wyż.'!G69","v":0},{"$f":"'20-państw.szk.wyż.'!H69","v":0},{"$f":"'20-państw.szk.wyż.'!I69","v":0},{"$f":"'20-państw.szk.wyż.'!J69","v":0},{"$f":"'20-państw.szk.wyż.'!D70","v":0},{"$f":"'20-państw.szk.wyż.'!E70","v":0},{"$f":"'20-państw.szk.wyż.'!F70","v":0},{"$f":"'20-państw.szk.wyż.'!G70","v":0},{"$f":"'20-państw.szk.wyż.'!H70","v":0},{"$f":"'20-państw.szk.wyż.'!I70","v":0},{"$f":"'20-państw.szk.wyż.'!J70","v":0},{"$f":"'20-państw.szk.wyż.'!D71","v":0},{"$f":"'20-państw.szk.wyż.'!E71","v":0},{"$f":"'20-państw.szk.wyż.'!F71","v":0},{"$f":"'20-państw.szk.wyż.'!G71","v":0},{"$f":"'20-państw.szk.wyż.'!H71","v":0},{"$f":"'20-państw.szk.wyż.'!I71","v":0},{"$f":"'20-państw.szk.wyż.'!J71","v":0},{"$f":"'20-państw.szk.wyż.'!D72","v":0},{"$f":"'20-państw.szk.wyż.'!E72","v":0},{"$f":"'20-państw.szk.wyż.'!F72","v":0},{"$f":"'20-państw.szk.wyż.'!G72","v":0},{"$f":"'20-państw.szk.wyż.'!H72","v":0},{"$f":"'20-państw.szk.wyż.'!I72","v":0},{"$f":"'20-państw.szk.wyż.'!J72","v":0},{"$f":"'20-państw.szk.wyż.'!D73","v":0},{"$f":"'20-państw.szk.wyż.'!E73","v":0},{"$f":"'20-państw.szk.wyż.'!F73","v":0},{"$f":"'20-państw.szk.wyż.'!G73","v":0},{"$f":"'20-państw.szk.wyż.'!H73","v":0},{"$f":"'20-państw.szk.wyż.'!I73","v":0},{"$f":"'20-państw.szk.wyż.'!J73","v":0},{"$f":"'20-państw.szk.wyż.'!D74","v":0},{"$f":"'20-państw.szk.wyż.'!E74","v":0},{"$f":"'20-państw.szk.wyż.'!F74","v":0},{"$f":"'20-państw.szk.wyż.'!G74","v":0},{"$f":"'20-państw.szk.wyż.'!H74","v":0},{"$f":"'20-państw.szk.wyż.'!I74","v":0},{"$f":"'20-państw.szk.wyż.'!J74","v":0},{"$f":"'20-państw.szk.wyż.'!D75","v":0},{"$f":"'20-państw.szk.wyż.'!E75","v":0},{"$f":"'20-państw.szk.wyż.'!F75","v":0},{"$f":"'20-państw.szk.wyż.'!G75","v":0},{"$f":"'20-państw.szk.wyż.'!H75","v":0},{"$f":"'20-państw.szk.wyż.'!I75","v":0},{"$f":"'20-państw.szk.wyż.'!J75","v":0}]
[{"$f":"'31-instytucje gosp budż'!A8","v":0},null,null,null,null,{"$f":"'31-instytucje gosp budż'!L11","v":31},{"$f":"'31-instytucje gosp budż'!K8","v":0},{"$f":"'31-instytucje gosp budż'!H8","v":0},{"$f":"'31-instytucje gosp budż'!M11","v":0},null,null,{"$f":"'31-instytucje gosp budż'!F56","v":0},{"$f":"'31-instytucje gosp budż'!G56","v":0},{"$f":"'31-instytucje gosp budż'!H56","v":0},{"$f":"'31-instytucje gosp budż'!I56","v":0},{"$f":"'31-instytucje gosp budż'!H57","v":0},{"$f":"'31-instytucje gosp budż'!I57","v":0},{"$f":"'31-instytucje gosp budż'!D62","v":0},{"$f":"'31-instytucje gosp budż'!E62","v":0},{"$f":"'31-instytucje gosp budż'!D69","v":0},{"$f":"'31-instytucje gosp budż'!E69","v":0},{"$f":"'31-instytucje gosp budż'!F69","v":0},{"$f":"'31-instytucje gosp budż'!G69","v":0},{"$f":"'31-instytucje gosp budż'!H69","v":0},{"$f":"'31-instytucje gosp budż'!I69","v":0},{"$f":"'31-instytucje gosp budż'!J69","v":0},{"$f":"'31-instytucje gosp budż'!D70","v":0},{"$f":"'31-instytucje gosp budż'!E70","v":0},{"$f":"'31-instytucje gosp budż'!F70","v":0},{"$f":"'31-instytucje gosp budż'!G70","v":0},{"$f":"'31-instytucje gosp budż'!H70","v":0},{"$f":"'31-instytucje gosp budż'!I70","v":0},{"$f":"'31-instytucje gosp budż'!J70","v":0},{"$f":"'31-instytucje gosp budż'!D71","v":0},{"$f":"'31-instytucje gosp budż'!E71","v":0},{"$f":"'31-instytucje gosp budż'!F71","v":0},{"$f":"'31-instytucje gosp budż'!G71","v":0},{"$f":"'31-instytucje gosp budż'!H71","v":0},{"$f":"'31-instytucje gosp budż'!I71","v":0},{"$f":"'31-instytucje gosp budż'!J71","v":0},{"$f":"'31-instytucje gosp budż'!D72","v":0},{"$f":"'31-instytucje gosp budż'!E72","v":0},{"$f":"'31-instytucje gosp budż'!F72","v":0},{"$f":"'31-instytucje gosp budż'!G72","v":0},{"$f":"'31-instytucje gosp budż'!H72","v":0},{"$f":"'31-instytucje gosp budż'!I72","v":0},{"$f":"'31-instytucje gosp budż'!J72","v":0},{"$f":"'31-instytucje gosp budż'!D73","v":0},{"$f":"'31-instytucje gosp budż'!E73","v":0},{"$f":"'31-instytucje gosp budż'!F73","v":0},{"$f":"'31-instytucje gosp budż'!G73","v":0},{"$f":"'31-instytucje gosp budż'!H73","v":0},{"$f":"'31-instytucje gosp budż'!I73","v":0},{"$f":"'31-instytucje gosp budż'!J73","v":0},{"$f":"'31-instytucje gosp budż'!D74","v":0},{"$f":"'31-instytucje gosp budż'!E74","v":0},{"$f":"'31-instytucje gosp budż'!F74","v":0},{"$f":"'31-instytucje gosp budż'!G74","v":0},{"$f":"'31-instytucje gosp budż'!H74","v":0},{"$f":"'31-instytucje gosp budż'!I74","v":0},{"$f":"'31-instytucje gosp budż'!J74","v":0},{"$f":"'31-instytucje gosp budż'!D75","v":0},{"$f":"'31-instytucje gosp budż'!E75","v":0},{"$f":"'31-instytucje gosp budż'!F75","v":0},{"$f":"'31-instytucje gosp budż'!G75","v":0},{"$f":"'31-instytucje gosp budż'!H75","v":0},{"$f":"'31-instytucje gosp budż'!I75","v":0},{"$f":"'31-instytucje gosp budż'!J75","v":0}]
[{"$f":"'41-państw.inst.kult.'!A8","v":0},null,null,null,null,{"$f":"'41-państw.inst.kult.'!L11","v":41},{"$f":"'41-państw.inst.kult.'!K8","v":0},{"$f":"'41-państw.inst.kult.'!H8","v":0},{"$f":"'41-państw.inst.kult.'!M11","v":0},null,null,{"$f":"'41-państw.inst.kult.'!F56","v":0},{"$f":"'41-państw.inst.kult.'!G56","v":0},{"$f":"'41-państw.inst.kult.'!H56","v":0},{"$f":"'41-państw.inst.kult.'!I56","v":0},{"$f":"'41-państw.inst.kult.'!H57","v":0},{"$f":"'41-państw.inst.kult.'!I57","v":0},{"$f":"'41-państw.inst.kult.'!D62","v":0},{"$f":"'41-państw.inst.kult.'!E62","v":0},{"$f":"'41-państw.inst.kult.'!D69","v":0},{"$f":"'41-państw.inst.kult.'!E69","v":0},{"$f":"'41-państw.inst.kult.'!F69","v":0},{"$f":"'41-państw.inst.kult.'!G69","v":0},{"$f":"'41-państw.inst.kult.'!H69","v":0},{"$f":"'41-państw.inst.kult.'!I69","v":0},{"$f":"'41-państw.inst.kult.'!J69","v":0},{"$f":"'41-państw.inst.kult.'!D70","v":0},{"$f":"'41-państw.inst.kult.'!E70","v":0},{"$f":"'41-państw.inst.kult.'!F70","v":0},{"$f":"'41-państw.inst.kult.'!G70","v":0},{"$f":"'41-państw.inst.kult.'!H70","v":0},{"$f":"'41-państw.inst.kult.'!I70","v":0},{"$f":"'41-państw.inst.kult.'!J70","v":0},{"$f":"'41-państw.inst.kult.'!D71","v":0},{"$f":"'41-państw.inst.kult.'!E71","v":0},{"$f":"'41-państw.inst.kult.'!F71","v":0},{"$f":"'41-państw.inst.kult.'!G71","v":0},{"$f":"'41-państw.inst.kult.'!H71","v":0},{"$f":"'41-państw.inst.kult.'!I71","v":0},{"$f":"'41-państw.inst.kult.'!J71","v":0},{"$f":"'41-państw.inst.kult.'!D72","v":0},{"$f":"'41-państw.inst.kult.'!E72","v":0},{"$f":"'41-państw.inst.kult.'!F72","v":0},{"$f":"'41-państw.inst.kult.'!G72","v":0},{"$f":"'41-państw.inst.kult.'!H72","v":0},{"$f":"'41-państw.inst.kult.'!I72","v":0},{"$f":"'41-państw.inst.kult.'!J72","v":0},{"$f":"'41-państw.inst.kult.'!D73","v":0},{"$f":"'41-państw.inst.kult.'!E73","v":0},{"$f":"'41-państw.inst.kult.'!F73","v":0},{"$f":"'41-państw.inst.kult.'!G73","v":0},{"$f":"'41-państw.inst.kult.'!H73","v":0},{"$f":"'41-państw.inst.kult.'!I73","v":0},{"$f":"'41-państw.inst.kult.'!J73","v":0},{"$f":"'41-państw.inst.kult.'!D74","v":0},{"$f":"'41-państw.inst.kult.'!E74","v":0},{"$f":"'41-państw.inst.kult.'!F74","v":0},{"$f":"'41-państw.inst.kult.'!G74","v":0},{"$f":"'41-państw.inst.kult.'!H74","v":0},{"$f":"'41-państw.inst.kult.'!I74","v":0},{"$f":"'41-państw.inst.kult.'!J74","v":0},{"$f":"'41-państw.inst.kult.'!D75","v":0},{"$f":"'41-państw.inst.kult.'!E75","v":0},{"$f":"'41-państw.inst.kult.'!F75","v":0},{"$f":"'41-państw.inst.kult.'!G75","v":0},{"$f":"'41-państw.inst.kult.'!H75","v":0},{"$f":"'41-państw.inst.kult.'!I75","v":0},{"$f":"'41-państw.inst.kult.'!J75","v":0}]
[{"$f":"'42-samorz.inst.kult.'!A8","v":0},null,null,null,null,{"$f":"'42-samorz.inst.kult.'!L11","v":42},{"$f":"'42-samorz.inst.kult.'!K8","v":0},{"$f":"'42-samorz.inst.kult.'!H8","v":0},{"$f":"'42-samorz.inst.kult.'!M11","v":0},null,null,{"$f":"'42-samorz.inst.kult.'!F56","v":0},{"$f":"'42-samorz.inst.kult.'!G56","v":0},{"$f":"'42-samorz.inst.kult.'!H56","v":0},{"$f":"'42-samorz.inst.kult.'!I56","v":0},{"$f":"'42-samorz.inst.kult.'!H57","v":0},{"$f":"'42-samorz.inst.kult.'!I57","v":0},{"$f":"'42-samorz.inst.kult.'!D62","v":0},{"$f":"'42-samorz.inst.kult.'!E62","v":0},{"$f":"'42-samorz.inst.kult.'!D69","v":0},{"$f":"'42-samorz.inst.kult.'!E69","v":0},{"$f":"'42-samorz.inst.kult.'!F69","v":0},{"$f":"'42-samorz.inst.kult.'!G69","v":0},{"$f":"'42-samorz.inst.kult.'!H69","v":0},{"$f":"'42-samorz.inst.kult.'!I69","v":0},{"$f":"'42-samorz.inst.kult.'!J69","v":0},{"$f":"'42-samorz.inst.kult.'!D70","v":0},{"$f":"'42-samorz.inst.kult.'!E70","v":0},{"$f":"'42-samorz.inst.kult.'!F70","v":0},{"$f":"'42-samorz.inst.kult.'!G70","v":0},{"$f":"'42-samorz.inst.kult.'!H70","v":0},{"$f":"'42-samorz.inst.kult.'!I70","v":0},{"$f":"'42-samorz.inst.kult.'!J70","v":0},{"$f":"'42-samorz.inst.kult.'!D71","v":0},{"$f":"'42-samorz.inst.kult.'!E71","v":0},{"$f":"'42-samorz.inst.kult.'!F71","v":0},{"$f":"'42-samorz.inst.kult.'!G71","v":0},{"$f":"'42-samorz.inst.kult.'!H71","v":0},{"$f":"'42-samorz.inst.kult.'!I71","v":0},{"$f":"'42-samorz.inst.kult.'!J71","v":0},{"$f":"'42-samorz.inst.kult.'!D72","v":0},{"$f":"'42-samorz.inst.kult.'!E72","v":0},{"$f":"'42-samorz.inst.kult.'!F72","v":0},{"$f":"'42-samorz.inst.kult.'!G72","v":0},{"$f":"'42-samorz.inst.kult.'!H72","v":0},{"$f":"'42-samorz.inst.kult.'!I72","v":0},{"$f":"'42-samorz.inst.kult.'!J72","v":0},{"$f":"'42-samorz.inst.kult.'!D73","v":0},{"$f":"'42-samorz.inst.kult.'!E73","v":0},{"$f":"'42-samorz.inst.kult.'!F73","v":0},{"$f":"'42-samorz.inst.kult.'!G73","v":0},{"$f":"'42-samorz.inst.kult.'!H73","v":0},{"$f":"'42-samorz.inst.kult.'!I73","v":0},{"$f":"'42-samorz.inst.kult.'!J73","v":0},{"$f":"'42-samorz.inst.kult.'!D74","v":0},{"$f":"'42-samorz.inst.kult.'!E74","v":0},{"$f":"'42-samorz.inst.kult.'!F74","v":0},{"$f":"'42-samorz.inst.kult.'!G74","v":0},{"$f":"'42-samorz.inst.kult.'!H74","v":0},{"$f":"'42-samorz.inst.kult.'!I74","v":0},{"$f":"'42-samorz.inst.kult.'!J74","v":0},{"$f":"'42-samorz.inst.kult.'!D75","v":0},{"$f":"'42-samorz.inst.kult.'!E75","v":0},{"$f":"'42-samorz.inst.kult.'!F75","v":0},{"$f":"'42-samorz.inst.kult.'!G75","v":0},{"$f":"'42-samorz.inst.kult.'!H75","v":0},{"$f":"'42-samorz.inst.kult.'!I75","v":0},{"$f":"'42-samorz.inst.kult.'!J75","v":0}]
[{"$f":"'50-PAN i jedn.tworz.przez PAN'!A8","v":0},null,null,null,null,{"$f":"'50-PAN i jedn.tworz.przez PAN'!L11","v":50},{"$f":"'50-PAN i jedn.tworz.przez PAN'!K8","v":0},{"$f":"'50-PAN i jedn.tworz.przez PAN'!H8","v":0},{"$f":"'50-PAN i jedn.tworz.przez PAN'!M11","v":0},null,null,{"$f":"'50-PAN i jedn.tworz.przez PAN'!F56","v":0},{"$f":"'50-PAN i jedn.tworz.przez PAN'!G56","v":0},{"$f":"'50-PAN i jedn.tworz.przez PAN'!H56","v":0},{"$f":"'50-PAN i jedn.tworz.przez PAN'!I56","v":0},{"$f":"'50-PAN i jedn.tworz.przez PAN'!H57","v":0},{"$f":"'50-PAN i jedn.tworz.przez PAN'!I57","v":0},{"$f":"'50-PAN i jedn.tworz.przez PAN'!D62","v":0},{"$f":"'50-PAN i jedn.tworz.przez PAN'!E62","v":0},{"$f":"'50-PAN i jedn.tworz.przez PAN'!D69","v":0},{"$f":"'50-PAN i jedn.tworz.przez PAN'!E69","v":0},{"$f":"'50-PAN i jedn.tworz.przez PAN'!F69","v":0},{"$f":"'50-PAN i jedn.tworz.przez PAN'!G69","v":0},{"$f":"'50-PAN i jedn.tworz.przez PAN'!H69","v":0},{"$f":"'50-PAN i jedn.tworz.przez PAN'!I69","v":0},{"$f":"'50-PAN i jedn.tworz.przez PAN'!J69","v":0},{"$f":"'50-PAN i jedn.tworz.przez PAN'!D70","v":0},{"$f":"'50-PAN i jedn.tworz.przez PAN'!E70","v":0},{"$f":"'50-PAN i jedn.tworz.przez PAN'!F70","v":0},{"$f":"'50-PAN i jedn.tworz.przez PAN'!G70","v":0},{"$f":"'50-PAN i jedn.tworz.przez PAN'!H70","v":0},{"$f":"'50-PAN i jedn.tworz.przez PAN'!I70","v":0},{"$f":"'50-PAN i jedn.tworz.przez PAN'!J70","v":0},{"$f":"'50-PAN i jedn.tworz.przez PAN'!D71","v":0},{"$f":"'50-PAN i jedn.tworz.przez PAN'!E71","v":0},{"$f":"'50-PAN i jedn.tworz.przez PAN'!F71","v":0},{"$f":"'50-PAN i jedn.tworz.przez PAN'!G71","v":0},{"$f":"'50-PAN i jedn.tworz.przez PAN'!H71","v":0},{"$f":"'50-PAN i jedn.tworz.przez PAN'!I71","v":0},{"$f":"'50-PAN i jedn.tworz.przez PAN'!J71","v":0},{"$f":"'50-PAN i jedn.tworz.przez PAN'!D72","v":0},{"$f":"'50-PAN i jedn.tworz.przez PAN'!E72","v":0},{"$f":"'50-PAN i jedn.tworz.przez PAN'!F72","v":0},{"$f":"'50-PAN i jedn.tworz.przez PAN'!G72","v":0},{"$f":"'50-PAN i jedn.tworz.przez PAN'!H72","v":0},{"$f":"'50-PAN i jedn.tworz.przez PAN'!I72","v":0},{"$f":"'50-PAN i jedn.tworz.przez PAN'!J72","v":0},{"$f":"'50-PAN i jedn.tworz.przez PAN'!D73","v":0},{"$f":"'50-PAN i jedn.tworz.przez PAN'!E73","v":0},{"$f":"'50-PAN i jedn.tworz.przez PAN'!F73","v":0},{"$f":"'50-PAN i jedn.tworz.przez PAN'!G73","v":0},{"$f":"'50-PAN i jedn.tworz.przez PAN'!H73","v":0},{"$f":"'50-PAN i jedn.tworz.przez PAN'!I73","v":0},{"$f":"'50-PAN i jedn.tworz.przez PAN'!J73","v":0},{"$f":"'50-PAN i jedn.tworz.przez PAN'!D74","v":0},{"$f":"'50-PAN i jedn.tworz.przez PAN'!E74","v":0},{"$f":"'50-PAN i jedn.tworz.przez PAN'!F74","v":0},{"$f":"'50-PAN i jedn.tworz.przez PAN'!G74","v":0},{"$f":"'50-PAN i jedn.tworz.przez PAN'!H74","v":0},{"$f":"'50-PAN i jedn.tworz.przez PAN'!I74","v":0},{"$f":"'50-PAN i jedn.tworz.przez PAN'!J74","v":0},{"$f":"'50-PAN i jedn.tworz.przez PAN'!D75","v":0},{"$f":"'50-PAN i jedn.tworz.przez PAN'!E75","v":0},{"$f":"'50-PAN i jedn.tworz.przez PAN'!F75","v":0},{"$f":"'50-PAN i jedn.tworz.przez PAN'!G75","v":0},{"$f":"'50-PAN i jedn.tworz.przez PAN'!H75","v":0},{"$f":"'50-PAN i jedn.tworz.przez PAN'!I75","v":0},{"$f":"'50-PAN i jedn.tworz.przez PAN'!J75","v":0}]
[{"$f":"'61-samodz.publ.ZOZ państw.'!A8","v":0},null,null,null,null,{"$f":"'61-samodz.publ.ZOZ państw.'!L11","v":61},{"$f":"'61-samodz.publ.ZOZ państw.'!K8","v":0},{"$f":"'61-samodz.publ.ZOZ państw.'!H8","v":0},{"$f":"'61-samodz.publ.ZOZ państw.'!M11","v":0},null,null,{"$f":"'61-samodz.publ.ZOZ państw.'!F56","v":0},{"$f":"'61-samodz.publ.ZOZ państw.'!G56","v":0},{"$f":"'61-samodz.publ.ZOZ państw.'!H56","v":0},{"$f":"'61-samodz.publ.ZOZ państw.'!I56","v":0},{"$f":"'61-samodz.publ.ZOZ państw.'!H57","v":0},{"$f":"'61-samodz.publ.ZOZ państw.'!I57","v":0},{"$f":"'61-samodz.publ.ZOZ państw.'!D62","v":0},{"$f":"'61-samodz.publ.ZOZ państw.'!E62","v":0},{"$f":"'61-samodz.publ.ZOZ państw.'!D69","v":0},{"$f":"'61-samodz.publ.ZOZ państw.'!E69","v":0},{"$f":"'61-samodz.publ.ZOZ państw.'!F69","v":0},{"$f":"'61-samodz.publ.ZOZ państw.'!G69","v":0},{"$f":"'61-samodz.publ.ZOZ państw.'!H69","v":0},{"$f":"'61-samodz.publ.ZOZ państw.'!I69","v":0},{"$f":"'61-samodz.publ.ZOZ państw.'!J69","v":0},{"$f":"'61-samodz.publ.ZOZ państw.'!D70","v":0},{"$f":"'61-samodz.publ.ZOZ państw.'!E70","v":0},{"$f":"'61-samodz.publ.ZOZ państw.'!F70","v":0},{"$f":"'61-samodz.publ.ZOZ państw.'!G70","v":0},{"$f":"'61-samodz.publ.ZOZ państw.'!H70","v":0},{"$f":"'61-samodz.publ.ZOZ państw.'!I70","v":0},{"$f":"'61-samodz.publ.ZOZ państw.'!J70","v":0},{"$f":"'61-samodz.publ.ZOZ państw.'!D71","v":0},{"$f":"'61-samodz.publ.ZOZ państw.'!E71","v":0},{"$f":"'61-samodz.publ.ZOZ państw.'!F71","v":0},{"$f":"'61-samodz.publ.ZOZ państw.'!G71","v":0},{"$f":"'61-samodz.publ.ZOZ państw.'!H71","v":0},{"$f":"'61-samodz.publ.ZOZ państw.'!I71","v":0},{"$f":"'61-samodz.publ.ZOZ państw.'!J71","v":0},{"$f":"'61-samodz.publ.ZOZ państw.'!D72","v":0},{"$f":"'61-samodz.publ.ZOZ państw.'!E72","v":0},{"$f":"'61-samodz.publ.ZOZ państw.'!F72","v":0},{"$f":"'61-samodz.publ.ZOZ państw.'!G72","v":0},{"$f":"'61-samodz.publ.ZOZ państw.'!H72","v":0},{"$f":"'61-samodz.publ.ZOZ państw.'!I72","v":0},{"$f":"'61-samodz.publ.ZOZ państw.'!J72","v":0},{"$f":"'61-samodz.publ.ZOZ państw.'!D73","v":0},{"$f":"'61-samodz.publ.ZOZ państw.'!E73","v":0},{"$f":"'61-samodz.publ.ZOZ państw.'!F73","v":0},{"$f":"'61-samodz.publ.ZOZ państw.'!G73","v":0},{"$f":"'61-samodz.publ.ZOZ państw.'!H73","v":0},{"$f":"'61-samodz.publ.ZOZ państw.'!I73","v":0},{"$f":"'61-samodz.publ.ZOZ państw.'!J73","v":0},{"$f":"'61-samodz.publ.ZOZ państw.'!D74","v":0},{"$f":"'61-samodz.publ.ZOZ państw.'!E74","v":0},{"$f":"'61-samodz.publ.ZOZ państw.'!F74","v":0},{"$f":"'61-samodz.publ.ZOZ państw.'!G74","v":0},{"$f":"'61-samodz.publ.ZOZ państw.'!H74","v":0},{"$f":"'61-samodz.publ.ZOZ państw.'!I74","v":0},{"$f":"'61-samodz.publ.ZOZ państw.'!J74","v":0},{"$f":"'61-samodz.publ.ZOZ państw.'!D75","v":0},{"$f":"'61-samodz.publ.ZOZ państw.'!E75","v":0},{"$f":"'61-samodz.publ.ZOZ państw.'!F75","v":0},{"$f":"'61-samodz.publ.ZOZ państw.'!G75","v":0},{"$f":"'61-samodz.publ.ZOZ państw.'!H75","v":0},{"$f":"'61-samodz.publ.ZOZ państw.'!I75","v":0},{"$f":"'61-samodz.publ.ZOZ państw.'!J75","v":0}]
[{"$f":"'62-samodz.publ.ZOZ samorz.'!A8","v":0},null,null,null,null,{"$f":"'62-samodz.publ.ZOZ samorz.'!L11","v":62},{"$f":"'62-samodz.publ.ZOZ samorz.'!K8","v":0},{"$f":"'62-samodz.publ.ZOZ samorz.'!H8","v":0},{"$f":"'62-samodz.publ.ZOZ samorz.'!M11","v":0},null,null,{"$f":"'62-samodz.publ.ZOZ samorz.'!F56","v":0},{"$f":"'62-samodz.publ.ZOZ samorz.'!G56","v":0},{"$f":"'62-samodz.publ.ZOZ samorz.'!H56","v":0},{"$f":"'62-samodz.publ.ZOZ samorz.'!I56","v":0},{"$f":"'62-samodz.publ.ZOZ samorz.'!H57","v":0},{"$f":"'62-samodz.publ.ZOZ samorz.'!I57","v":0},{"$f":"'62-samodz.publ.ZOZ samorz.'!D62","v":0},{"$f":"'62-samodz.publ.ZOZ samorz.'!E62","v":0},{"$f":"'62-samodz.publ.ZOZ samorz.'!D69","v":0},{"$f":"'62-samodz.publ.ZOZ samorz.'!E69","v":0},{"$f":"'62-samodz.publ.ZOZ samorz.'!F69","v":0},{"$f":"'62-samodz.publ.ZOZ samorz.'!G69","v":0},{"$f":"'62-samodz.publ.ZOZ samorz.'!H69","v":0},{"$f":"'62-samodz.publ.ZOZ samorz.'!I69","v":0},{"$f":"'62-samodz.publ.ZOZ samorz.'!J69","v":0},{"$f":"'62-samodz.publ.ZOZ samorz.'!D70","v":0},{"$f":"'62-samodz.publ.ZOZ samorz.'!E70","v":0},{"$f":"'62-samodz.publ.ZOZ samorz.'!F70","v":0},{"$f":"'62-samodz.publ.ZOZ samorz.'!G70","v":0},{"$f":"'62-samodz.publ.ZOZ samorz.'!H70","v":0},{"$f":"'62-samodz.publ.ZOZ samorz.'!I70","v":0},{"$f":"'62-samodz.publ.ZOZ samorz.'!J70","v":0},{"$f":"'62-samodz.publ.ZOZ samorz.'!D71","v":0},{"$f":"'62-samodz.publ.ZOZ samorz.'!E71","v":0},{"$f":"'62-samodz.publ.ZOZ samorz.'!F71","v":0},{"$f":"'62-samodz.publ.ZOZ samorz.'!G71","v":0},{"$f":"'62-samodz.publ.ZOZ samorz.'!H71","v":0},{"$f":"'62-samodz.publ.ZOZ samorz.'!I71","v":0},{"$f":"'62-samodz.publ.ZOZ samorz.'!J71","v":0},{"$f":"'62-samodz.publ.ZOZ samorz.'!D72","v":0},{"$f":"'62-samodz.publ.ZOZ samorz.'!E72","v":0},{"$f":"'62-samodz.publ.ZOZ samorz.'!F72","v":0},{"$f":"'62-samodz.publ.ZOZ samorz.'!G72","v":0},{"$f":"'62-samodz.publ.ZOZ samorz.'!H72","v":0},{"$f":"'62-samodz.publ.ZOZ samorz.'!I72","v":0},{"$f":"'62-samodz.publ.ZOZ samorz.'!J72","v":0},{"$f":"'62-samodz.publ.ZOZ samorz.'!D73","v":0},{"$f":"'62-samodz.publ.ZOZ samorz.'!E73","v":0},{"$f":"'62-samodz.publ.ZOZ samorz.'!F73","v":0},{"$f":"'62-samodz.publ.ZOZ samorz.'!G73","v":0},{"$f":"'62-samodz.publ.ZOZ samorz.'!H73","v":0},{"$f":"'62-samodz.publ.ZOZ samorz.'!I73","v":0},{"$f":"'62-samodz.publ.ZOZ samorz.'!J73","v":0},{"$f":"'62-samodz.publ.ZOZ samorz.'!D74","v":0},{"$f":"'62-samodz.publ.ZOZ samorz.'!E74","v":0},{"$f":"'62-samodz.publ.ZOZ samorz.'!F74","v":0},{"$f":"'62-samodz.publ.ZOZ samorz.'!G74","v":0},{"$f":"'62-samodz.publ.ZOZ samorz.'!H74","v":0},{"$f":"'62-samodz.publ.ZOZ samorz.'!I74","v":0},{"$f":"'62-samodz.publ.ZOZ samorz.'!J74","v":0},{"$f":"'62-samodz.publ.ZOZ samorz.'!D75","v":0},{"$f":"'62-samodz.publ.ZOZ samorz.'!E75","v":0},{"$f":"'62-samodz.publ.ZOZ samorz.'!F75","v":0},{"$f":"'62-samodz.publ.ZOZ samorz.'!G75","v":0},{"$f":"'62-samodz.publ.ZOZ samorz.'!H75","v":0},{"$f":"'62-samodz.publ.ZOZ samorz.'!I75","v":0},{"$f":"'62-samodz.publ.ZOZ samorz.'!J75","v":0}]
[{"$f":"'63-Narodowy Fundusz Zdrowia'!A8","v":0},null,null,null,null,{"$f":"'63-Narodowy Fundusz Zdrowia'!L11","v":63},{"$f":"'63-Narodowy Fundusz Zdrowia'!K8","v":0},{"$f":"'63-Narodowy Fundusz Zdrowia'!H8","v":0},{"$f":"'63-Narodowy Fundusz Zdrowia'!M11","v":0},null,null,{"$f":"'63-Narodowy Fundusz Zdrowia'!F56","v":0},{"$f":"'63-Narodowy Fundusz Zdrowia'!G56","v":0},{"$f":"'63-Narodowy Fundusz Zdrowia'!H56","v":0},{"$f":"'63-Narodowy Fundusz Zdrowia'!I56","v":0},{"$f":"'63-Narodowy Fundusz Zdrowia'!H57","v":0},{"$f":"'63-Narodowy Fundusz Zdrowia'!I57","v":0},{"$f":"'63-Narodowy Fundusz Zdrowia'!D62","v":0},{"$f":"'63-Narodowy Fundusz Zdrowia'!E62","v":0},{"$f":"'63-Narodowy Fundusz Zdrowia'!D69","v":0},{"$f":"'63-Narodowy Fundusz Zdrowia'!E69","v":0},{"$f":"'63-Narodowy Fundusz Zdrowia'!F69","v":0},{"$f":"'63-Narodowy Fundusz Zdrowia'!G69","v":0},{"$f":"'63-Narodowy Fundusz Zdrowia'!H69","v":0},{"$f":"'63-Narodowy Fundusz Zdrowia'!I69","v":0},{"$f":"'63-Narodowy Fundusz Zdrowia'!J69","v":0},{"$f":"'63-Narodowy Fundusz Zdrowia'!D70","v":0},{"$f":"'63-Narodowy Fundusz Zdrowia'!E70","v":0},{"$f":"'63-Narodowy Fundusz Zdrowia'!F70","v":0},{"$f":"'63-Narodowy Fundusz Zdrowia'!G70","v":0},{"$f":"'63-Narodowy Fundusz Zdrowia'!H70","v":0},{"$f":"'63-Narodowy Fundusz Zdrowia'!I70","v":0},{"$f":"'63-Narodowy Fundusz Zdrowia'!J70","v":0},{"$f":"'63-Narodowy Fundusz Zdrowia'!D71","v":0},{"$f":"'63-Narodowy Fundusz Zdrowia'!E71","v":0},{"$f":"'63-Narodowy Fundusz Zdrowia'!F71","v":0},{"$f":"'63-Narodowy Fundusz Zdrowia'!G71","v":0},{"$f":"'63-Narodowy Fundusz Zdrowia'!H71","v":0},{"$f":"'63-Narodowy Fundusz Zdrowia'!I71","v":0},{"$f":"'63-Narodowy Fundusz Zdrowia'!J71","v":0},{"$f":"'63-Narodowy Fundusz Zdrowia'!D72","v":0},{"$f":"'63-Narodowy Fundusz Zdrowia'!E72","v":0},{"$f":"'63-Narodowy Fundusz Zdrowia'!F72","v":0},{"$f":"'63-Narodowy Fundusz Zdrowia'!G72","v":0},{"$f":"'63-Narodowy Fundusz Zdrowia'!H72","v":0},{"$f":"'63-Narodowy Fundusz Zdrowia'!I72","v":0},{"$f":"'63-Narodowy Fundusz Zdrowia'!J72","v":0},{"$f":"'63-Narodowy Fundusz Zdrowia'!D73","v":0},{"$f":"'63-Narodowy Fundusz Zdrowia'!E73","v":0},{"$f":"'63-Narodowy Fundusz Zdrowia'!F73","v":0},{"$f":"'63-Narodowy Fundusz Zdrowia'!G73","v":0},{"$f":"'63-Narodowy Fundusz Zdrowia'!H73","v":0},{"$f":"'63-Narodowy Fundusz Zdrowia'!I73","v":0},{"$f":"'63-Narodowy Fundusz Zdrowia'!J73","v":0},{"$f":"'63-Narodowy Fundusz Zdrowia'!D74","v":0},{"$f":"'63-Narodowy Fundusz Zdrowia'!E74","v":0},{"$f":"'63-Narodowy Fundusz Zdrowia'!F74","v":0},{"$f":"'63-Narodowy Fundusz Zdrowia'!G74","v":0},{"$f":"'63-Narodowy Fundusz Zdrowia'!H74","v":0},{"$f":"'63-Narodowy Fundusz Zdrowia'!I74","v":0},{"$f":"'63-Narodowy Fundusz Zdrowia'!J74","v":0},{"$f":"'63-Narodowy Fundusz Zdrowia'!D75","v":0},{"$f":"'63-Narodowy Fundusz Zdrowia'!E75","v":0},{"$f":"'63-Narodowy Fundusz Zdrowia'!F75","v":0},{"$f":"'63-Narodowy Fundusz Zdrowia'!G75","v":0},{"$f":"'63-Narodowy Fundusz Zdrowia'!H75","v":0},{"$f":"'63-Narodowy Fundusz Zdrowia'!I75","v":0},{"$f":"'63-Narodowy Fundusz Zdrowia'!J75","v":0}]
[{"$f":"'71-ZUS'!A8","v":0},null,null,null,null,{"$f":"'71-ZUS'!L11","v":71},{"$f":"'71-ZUS'!K8","v":0},{"$f":"'71-ZUS'!H8","v":0},{"$f":"'71-ZUS'!M11","v":0},null,null,{"$f":"'71-ZUS'!F56","v":0},{"$f":"'71-ZUS'!G56","v":0},{"$f":"'71-ZUS'!H56","v":0},{"$f":"'71-ZUS'!I56","v":0},{"$f":"'71-ZUS'!H57","v":0},{"$f":"'71-ZUS'!I57","v":0},{"$f":"'71-ZUS'!D62","v":0},{"$f":"'71-ZUS'!E62","v":0},{"$f":"'71-ZUS'!D69","v":0},{"$f":"'71-ZUS'!E69","v":0},{"$f":"'71-ZUS'!F69","v":0},{"$f":"'71-ZUS'!G69","v":0},{"$f":"'71-ZUS'!H69","v":0},{"$f":"'71-ZUS'!I69","v":0},{"$f":"'71-ZUS'!J69","v":0},{"$f":"'71-ZUS'!D70","v":0},{"$f":"'71-ZUS'!E70","v":0},{"$f":"'71-ZUS'!F70","v":0},{"$f":"'71-ZUS'!G70","v":0},{"$f":"'71-ZUS'!H70","v":0},{"$f":"'71-ZUS'!I70","v":0},{"$f":"'71-ZUS'!J70","v":0},{"$f":"'71-ZUS'!D71","v":0},{"$f":"'71-ZUS'!E71","v":0},{"$f":"'71-ZUS'!F71","v":0},{"$f":"'71-ZUS'!G71","v":0},{"$f":"'71-ZUS'!H71","v":0},{"$f":"'71-ZUS'!I71","v":0},{"$f":"'71-ZUS'!J71","v":0},{"$f":"'71-ZUS'!D72","v":0},{"$f":"'71-ZUS'!E72","v":0},{"$f":"'71-ZUS'!F72","v":0},{"$f":"'71-ZUS'!G72","v":0},{"$f":"'71-ZUS'!H72","v":0},{"$f":"'71-ZUS'!I72","v":0},{"$f":"'71-ZUS'!J72","v":0},{"$f":"'71-ZUS'!D73","v":0},{"$f":"'71-ZUS'!E73","v":0},{"$f":"'71-ZUS'!F73","v":0},{"$f":"'71-ZUS'!G73","v":0},{"$f":"'71-ZUS'!H73","v":0},{"$f":"'71-ZUS'!I73","v":0},{"$f":"'71-ZUS'!J73","v":0},{"$f":"'71-ZUS'!D74","v":0},{"$f":"'71-ZUS'!E74","v":0},{"$f":"'71-ZUS'!F74","v":0},{"$f":"'71-ZUS'!G74","v":0},{"$f":"'71-ZUS'!H74","v":0},{"$f":"'71-ZUS'!I74","v":0},{"$f":"'71-ZUS'!J74","v":0},{"$f":"'71-ZUS'!D75","v":0},{"$f":"'71-ZUS'!E75","v":0},{"$f":"'71-ZUS'!F75","v":0},{"$f":"'71-ZUS'!G75","v":0},{"$f":"'71-ZUS'!H75","v":0},{"$f":"'71-ZUS'!I75","v":0},{"$f":"'71-ZUS'!J75","v":0}]
[{"$f":"'72-fund.zarz.przez ZUS'!A8:B8","v":0},null,null,null,null,{"$f":"'72-fund.zarz.przez ZUS'!L11","v":72},{"$f":"'72-fund.zarz.przez ZUS'!K8","v":0},{"$f":"'72-fund.zarz.przez ZUS'!H8","v":0},{"$f":"'72-fund.zarz.przez ZUS'!M11","v":0},null,null,{"$f":"'72-fund.zarz.przez ZUS'!F56","v":0},{"$f":"'72-fund.zarz.przez ZUS'!G56","v":0},{"$f":"'72-fund.zarz.przez ZUS'!H56","v":0},{"$f":"'72-fund.zarz.przez ZUS'!I56","v":0},{"$f":"'72-fund.zarz.przez ZUS'!H57","v":0},{"$f":"'72-fund.zarz.przez ZUS'!I57","v":0},{"$f":"'72-fund.zarz.przez ZUS'!D62","v":0},{"$f":"'72-fund.zarz.przez ZUS'!E62","v":0},{"$f":"'72-fund.zarz.przez ZUS'!D69","v":0},{"$f":"'72-fund.zarz.przez ZUS'!E69","v":0},{"$f":"'72-fund.zarz.przez ZUS'!F69","v":0},{"$f":"'72-fund.zarz.przez ZUS'!G69","v":0},{"$f":"'72-fund.zarz.przez ZUS'!H69","v":0},{"$f":"'72-fund.zarz.przez ZUS'!I69","v":0},{"$f":"'72-fund.zarz.przez ZUS'!J69","v":0},{"$f":"'72-fund.zarz.przez ZUS'!D70","v":0},{"$f":"'72-fund.zarz.przez ZUS'!E70","v":0},{"$f":"'72-fund.zarz.przez ZUS'!F70","v":0},{"$f":"'72-fund.zarz.przez ZUS'!G70","v":0},{"$f":"'72-fund.zarz.przez ZUS'!H70","v":0},{"$f":"'72-fund.zarz.przez ZUS'!I70","v":0},{"$f":"'72-fund.zarz.przez ZUS'!J70","v":0},{"$f":"'72-fund.zarz.przez ZUS'!D71","v":0},{"$f":"'72-fund.zarz.przez ZUS'!E71","v":0},{"$f":"'72-fund.zarz.przez ZUS'!F71","v":0},{"$f":"'72-fund.zarz.przez ZUS'!G71","v":0},{"$f":"'72-fund.zarz.przez ZUS'!H71","v":0},{"$f":"'72-fund.zarz.przez ZUS'!I71","v":0},{"$f":"'72-fund.zarz.przez ZUS'!J71","v":0},{"$f":"'72-fund.zarz.przez ZUS'!D72","v":0},{"$f":"'72-fund.zarz.przez ZUS'!E72","v":0},{"$f":"'72-fund.zarz.przez ZUS'!F72","v":0},{"$f":"'72-fund.zarz.przez ZUS'!G72","v":0},{"$f":"'72-fund.zarz.przez ZUS'!H72","v":0},{"$f":"'72-fund.zarz.przez ZUS'!I72","v":0},{"$f":"'72-fund.zarz.przez ZUS'!J72","v":0},{"$f":"'72-fund.zarz.przez ZUS'!D73","v":0},{"$f":"'72-fund.zarz.przez ZUS'!E73","v":0},{"$f":"'72-fund.zarz.przez ZUS'!F73","v":0},{"$f":"'72-fund.zarz.przez ZUS'!G73","v":0},{"$f":"'72-fund.zarz.przez ZUS'!H73","v":0},{"$f":"'72-fund.zarz.przez ZUS'!I73","v":0},{"$f":"'72-fund.zarz.przez ZUS'!J73","v":0},{"$f":"'72-fund.zarz.przez ZUS'!D74","v":0},{"$f":"'72-fund.zarz.przez ZUS'!E74","v":0},{"$f":"'72-fund.zarz.przez ZUS'!F74","v":0},{"$f":"'72-fund.zarz.przez ZUS'!G74","v":0},{"$f":"'72-fund.zarz.przez ZUS'!H74","v":0},{"$f":"'72-fund.zarz.przez ZUS'!I74","v":0},{"$f":"'72-fund.zarz.przez ZUS'!J74","v":0},{"$f":"'72-fund.zarz.przez ZUS'!D75","v":0},{"$f":"'72-fund.zarz.przez ZUS'!E75","v":0},{"$f":"'72-fund.zarz.przez ZUS'!F75","v":0},{"$f":"'72-fund.zarz.przez ZUS'!G75","v":0},{"$f":"'72-fund.zarz.przez ZUS'!H75","v":0},{"$f":"'72-fund.zarz.przez ZUS'!I75","v":0},{"$f":"'72-fund.zarz.przez ZUS'!J75","v":0}]
[{"$f":"'73-KRUS'!A8:B8","v":0},null,null,null,null,{"$f":"'73-KRUS'!L11","v":73},{"$f":"'73-KRUS'!K8","v":0},{"$f":"'73-KRUS'!H8","v":0},{"$f":"'73-KRUS'!M11","v":0},null,null,{"$f":"'73-KRUS'!F56","v":0},{"$f":"'73-KRUS'!G56","v":0},{"$f":"'73-KRUS'!H56","v":0},{"$f":"'73-KRUS'!I56","v":0},{"$f":"'73-KRUS'!H57","v":0},{"$f":"'73-KRUS'!I57","v":0},{"$f":"'73-KRUS'!D62","v":0},{"$f":"'73-KRUS'!E62","v":0},{"$f":"'73-KRUS'!D69","v":0},{"$f":"'73-KRUS'!E69","v":0},{"$f":"'73-KRUS'!F69","v":0},{"$f":"'73-KRUS'!G69","v":0},{"$f":"'73-KRUS'!H69","v":0},{"$f":"'73-KRUS'!I69","v":0},{"$f":"'73-KRUS'!J69","v":0},{"$f":"'73-KRUS'!D70","v":0},{"$f":"'73-KRUS'!E70","v":0},{"$f":"'73-KRUS'!F70","v":0},{"$f":"'73-KRUS'!G70","v":0},{"$f":"'73-KRUS'!H70","v":0},{"$f":"'73-KRUS'!I70","v":0},{"$f":"'73-KRUS'!J70","v":0},{"$f":"'73-KRUS'!D71","v":0},{"$f":"'73-KRUS'!E71","v":0},{"$f":"'73-KRUS'!F71","v":0},{"$f":"'73-KRUS'!G71","v":0},{"$f":"'73-KRUS'!H71","v":0},{"$f":"'73-KRUS'!I71","v":0},{"$f":"'73-KRUS'!J71","v":0},{"$f":"'73-KRUS'!D72","v":0},{"$f":"'73-KRUS'!E72","v":0},{"$f":"'73-KRUS'!F72","v":0},{"$f":"'73-KRUS'!G72","v":0},{"$f":"'73-KRUS'!H72","v":0},{"$f":"'73-KRUS'!I72","v":0},{"$f":"'73-KRUS'!J72","v":0},{"$f":"'73-KRUS'!D73","v":0},{"$f":"'73-KRUS'!E73","v":0},{"$f":"'73-KRUS'!F73","v":0},{"$f":"'73-KRUS'!G73","v":0},{"$f":"'73-KRUS'!H73","v":0},{"$f":"'73-KRUS'!I73","v":0},{"$f":"'73-KRUS'!J73","v":0},{"$f":"'73-KRUS'!D74","v":0},{"$f":"'73-KRUS'!E74","v":0},{"$f":"'73-KRUS'!F74","v":0},{"$f":"'73-KRUS'!G74","v":0},{"$f":"'73-KRUS'!H74","v":0},{"$f":"'73-KRUS'!I74","v":0},{"$f":"'73-KRUS'!J74","v":0},{"$f":"'73-KRUS'!D75","v":0},{"$f":"'73-KRUS'!E75","v":0},{"$f":"'73-KRUS'!F75","v":0},{"$f":"'73-KRUS'!G75","v":0},{"$f":"'73-KRUS'!H75","v":0},{"$f":"'73-KRUS'!I75","v":0},{"$f":"'73-KRUS'!J75","v":0}]
[{"$f":"'81-państw.osoba prawna'!A8","v":0},null,null,null,null,{"$f":"'81-państw.osoba prawna'!L11","v":81},{"$f":"'81-państw.osoba prawna'!K8","v":0},{"$f":"'81-państw.osoba prawna'!H8","v":0},{"$f":"'81-państw.osoba prawna'!M11","v":0},null,null,{"$f":"'81-państw.osoba prawna'!F56","v":0},{"$f":"'81-państw.osoba prawna'!G56","v":0},{"$f":"'81-państw.osoba prawna'!H56","v":0},{"$f":"'81-państw.osoba prawna'!I56","v":0},{"$f":"'81-państw.osoba prawna'!H57","v":0},{"$f":"'81-państw.osoba prawna'!I57","v":0},{"$f":"'81-państw.osoba prawna'!D62","v":0},{"$f":"'81-państw.osoba prawna'!E62","v":0},{"$f":"'81-państw.osoba prawna'!D69","v":0},{"$f":"'81-państw.osoba prawna'!E69","v":0},{"$f":"'81-państw.osoba prawna'!F69","v":0},{"$f":"'81-państw.osoba prawna'!G69","v":0},{"$f":"'81-państw.osoba prawna'!H69","v":0},{"$f":"'81-państw.osoba prawna'!I69","v":0},{"$f":"'81-państw.osoba prawna'!J69","v":0},{"$f":"'81-państw.osoba prawna'!D70","v":0},{"$f":"'81-państw.osoba prawna'!E70","v":0},{"$f":"'81-państw.osoba prawna'!F70","v":0},{"$f":"'81-państw.osoba prawna'!G70","v":0},{"$f":"'81-państw.osoba prawna'!H70","v":0},{"$f":"'81-państw.osoba prawna'!I70","v":0},{"$f":"'81-państw.osoba prawna'!J70","v":0},{"$f":"'81-państw.osoba prawna'!D71","v":0},{"$f":"'81-państw.osoba prawna'!E71","v":0},{"$f":"'81-państw.osoba prawna'!F71","v":0},{"$f":"'81-państw.osoba prawna'!G71","v":0},{"$f":"'81-państw.osoba prawna'!H71","v":0},{"$f":"'81-państw.osoba prawna'!I71","v":0},{"$f":"'81-państw.osoba prawna'!J71","v":0},{"$f":"'81-państw.osoba prawna'!D72","v":0},{"$f":"'81-państw.osoba prawna'!E72","v":0},{"$f":"'81-państw.osoba prawna'!F72","v":0},{"$f":"'81-państw.osoba prawna'!G72","v":0},{"$f":"'81-państw.osoba prawna'!H72","v":0},{"$f":"'81-państw.osoba prawna'!I72","v":0},{"$f":"'81-państw.osoba prawna'!J72","v":0},{"$f":"'81-państw.osoba prawna'!D73","v":0},{"$f":"'81-państw.osoba prawna'!E73","v":0},{"$f":"'81-państw.osoba prawna'!F73","v":0},{"$f":"'81-państw.osoba prawna'!G73","v":0},{"$f":"'81-państw.osoba prawna'!H73","v":0},{"$f":"'81-państw.osoba prawna'!I73","v":0},{"$f":"'81-państw.osoba prawna'!J73","v":0},{"$f":"'81-państw.osoba prawna'!D74","v":0},{"$f":"'81-państw.osoba prawna'!E74","v":0},{"$f":"'81-państw.osoba prawna'!F74","v":0},{"$f":"'81-państw.osoba prawna'!G74","v":0},{"$f":"'81-państw.osoba prawna'!H74","v":0},{"$f":"'81-państw.osoba prawna'!I74","v":0},{"$f":"'81-państw.osoba prawna'!J74","v":0},{"$f":"'81-państw.osoba prawna'!D75","v":0},{"$f":"'81-państw.osoba prawna'!E75","v":0},{"$f":"'81-państw.osoba prawna'!F75","v":0},{"$f":"'81-państw.osoba prawna'!G75","v":0},{"$f":"'81-państw.osoba prawna'!H75","v":0},{"$f":"'81-państw.osoba prawna'!I75","v":0},{"$f":"'81-państw.osoba prawna'!J75","v":0}]
[{"$f":"'82-samorz.osoba prawna'!A8","v":0},null,null,null,null,{"$f":"'82-samorz.osoba prawna'!L11","v":82},{"$f":"'82-samorz.osoba prawna'!K8","v":0},{"$f":"'82-samorz.osoba prawna'!H8","v":0},{"$f":"'82-samorz.osoba prawna'!M11","v":0},null,null,{"$f":"'82-samorz.osoba prawna'!F56","v":0},{"$f":"'82-samorz.osoba prawna'!G56","v":0},{"$f":"'82-samorz.osoba prawna'!H56","v":0},{"$f":"'82-samorz.osoba prawna'!I56","v":0},{"$f":"'82-samorz.osoba prawna'!H57","v":0},{"$f":"'82-samorz.osoba prawna'!I57","v":0},{"$f":"'82-samorz.osoba prawna'!D62","v":0},{"$f":"'82-samorz.osoba prawna'!E62","v":0},{"$f":"'82-samorz.osoba prawna'!D69","v":0},{"$f":"'82-samorz.osoba prawna'!E69","v":0},{"$f":"'82-samorz.osoba prawna'!F69","v":0},{"$f":"'82-samorz.osoba prawna'!G69","v":0},{"$f":"'82-samorz.osoba prawna'!H69","v":0},{"$f":"'82-samorz.osoba prawna'!I69","v":0},{"$f":"'82-samorz.osoba prawna'!J69","v":0},{"$f":"'82-samorz.osoba prawna'!D70","v":0},{"$f":"'82-samorz.osoba prawna'!E70","v":0},{"$f":"'82-samorz.osoba prawna'!F70","v":0},{"$f":"'82-samorz.osoba prawna'!G70","v":0},{"$f":"'82-samorz.osoba prawna'!H70","v":0},{"$f":"'82-samorz.osoba prawna'!I70","v":0},{"$f":"'82-samorz.osoba prawna'!J70","v":0},{"$f":"'82-samorz.osoba prawna'!D71","v":0},{"$f":"'82-samorz.osoba prawna'!E71","v":0},{"$f":"'82-samorz.osoba prawna'!F71","v":0},{"$f":"'82-samorz.osoba prawna'!G71","v":0},{"$f":"'82-samorz.osoba prawna'!H71","v":0},{"$f":"'82-samorz.osoba prawna'!I71","v":0},{"$f":"'82-samorz.osoba prawna'!J71","v":0},{"$f":"'82-samorz.osoba prawna'!D72","v":0},{"$f":"'82-samorz.osoba prawna'!E72","v":0},{"$f":"'82-samorz.osoba prawna'!F72","v":0},{"$f":"'82-samorz.osoba prawna'!G72","v":0},{"$f":"'82-samorz.osoba prawna'!H72","v":0},{"$f":"'82-samorz.osoba prawna'!I72","v":0},{"$f":"'82-samorz.osoba prawna'!J72","v":0},{"$f":"'82-samorz.osoba prawna'!D73","v":0},{"$f":"'82-samorz.osoba prawna'!E73","v":0},{"$f":"'82-samorz.osoba prawna'!F73","v":0},{"$f":"'82-samorz.osoba prawna'!G73","v":0},{"$f":"'82-samorz.osoba prawna'!H73","v":0},{"$f":"'82-samorz.osoba prawna'!I73","v":0},{"$f":"'82-samorz.osoba prawna'!J73","v":0},{"$f":"'82-samorz.osoba prawna'!D74","v":0},{"$f":"'82-samorz.osoba prawna'!E74","v":0},{"$f":"'82-samorz.osoba prawna'!F74","v":0},{"$f":"'82-samorz.osoba prawna'!G74","v":0},{"$f":"'82-samorz.osoba prawna'!H74","v":0},{"$f":"'82-samorz.osoba prawna'!I74","v":0},{"$f":"'82-samorz.osoba prawna'!J74","v":0},{"$f":"'82-samorz.osoba prawna'!D75","v":0},{"$f":"'82-samorz.osoba prawna'!E75","v":0},{"$f":"'82-samorz.osoba prawna'!F75","v":0},{"$f":"'82-samorz.osoba prawna'!G75","v":0},{"$f":"'82-samorz.osoba prawna'!H75","v":0},{"$f":"'82-samorz.osoba prawna'!I75","v":0},{"$f":"'82-samorz.osoba prawna'!J75","v":0}]
[{"$f":"'90-agencja wykonawcza'!A8","v":0},null,null,null,null,{"$f":"'90-agencja wykonawcza'!L11","v":90},{"$f":"'90-agencja wykonawcza'!K8","v":0},{"$f":"'90-agencja wykonawcza'!H8","v":0},{"$f":"'90-agencja wykonawcza'!M11","v":0},null,null,{"$f":"'90-agencja wykonawcza'!F56","v":0},{"$f":"'90-agencja wykonawcza'!G56","v":0},{"$f":"'90-agencja wykonawcza'!H56","v":0},{"$f":"'90-agencja wykonawcza'!I56","v":0},{"$f":"'90-agencja wykonawcza'!H57","v":0},{"$f":"'90-agencja wykonawcza'!I57","v":0},{"$f":"'90-agencja wykonawcza'!D62","v":0},{"$f":"'90-agencja wykonawcza'!E62","v":0},{"$f":"'90-agencja wykonawcza'!D69","v":0},{"$f":"'90-agencja wykonawcza'!E69","v":0},{"$f":"'90-agencja wykonawcza'!F69","v":0},{"$f":"'90-agencja wykonawcza'!G69","v":0},{"$f":"'90-agencja wykonawcza'!H69","v":0},{"$f":"'90-agencja wykonawcza'!I69","v":0},{"$f":"'90-agencja wykonawcza'!J69","v":0},{"$f":"'90-agencja wykonawcza'!D70","v":0},{"$f":"'90-agencja wykonawcza'!E70","v":0},{"$f":"'90-agencja wykonawcza'!F70","v":0},{"$f":"'90-agencja wykonawcza'!G70","v":0},{"$f":"'90-agencja wykonawcza'!H70","v":0},{"$f":"'90-agencja wykonawcza'!I70","v":0},{"$f":"'90-agencja wykonawcza'!J70","v":0},{"$f":"'90-agencja wykonawcza'!D71","v":0},{"$f":"'90-agencja wykonawcza'!E71","v":0},{"$f":"'90-agencja wykonawcza'!F71","v":0},{"$f":"'90-agencja wykonawcza'!G71","v":0},{"$f":"'90-agencja wykonawcza'!H71","v":0},{"$f":"'90-agencja wykonawcza'!I71","v":0},{"$f":"'90-agencja wykonawcza'!J71","v":0},{"$f":"'90-agencja wykonawcza'!D72","v":0},{"$f":"'90-agencja wykonawcza'!E72","v":0},{"$f":"'90-agencja wykonawcza'!F72","v":0},{"$f":"'90-agencja wykonawcza'!G72","v":0},{"$f":"'90-agencja wykonawcza'!H72","v":0},{"$f":"'90-agencja wykonawcza'!I72","v":0},{"$f":"'90-agencja wykonawcza'!J72","v":0},{"$f":"'90-agencja wykonawcza'!D73","v":0},{"$f":"'90-agencja wykonawcza'!E73","v":0},{"$f":"'90-agencja wykonawcza'!F73","v":0},{"$f":"'90-agencja wykonawcza'!G73","v":0},{"$f":"'90-agencja wykonawcza'!H73","v":0},{"$f":"'90-agencja wykonawcza'!I73","v":0},{"$f":"'90-agencja wykonawcza'!J73","v":0},{"$f":"'90-agencja wykonawcza'!D74","v":0},{"$f":"'90-agencja wykonawcza'!E74","v":0},{"$f":"'90-agencja wykonawcza'!F74","v":0},{"$f":"'90-agencja wykonawcza'!G74","v":0},{"$f":"'90-agencja wykonawcza'!H74","v":0},{"$f":"'90-agencja wykonawcza'!I74","v":0},{"$f":"'90-agencja wykonawcza'!J74","v":0},{"$f":"'90-agencja wykonawcza'!D75","v":0},{"$f":"'90-agencja wykonawcza'!E75","v":0},{"$f":"'90-agencja wykonawcza'!F75","v":0},{"$f":"'90-agencja wykonawcza'!G75","v":0},{"$f":"'90-agencja wykonawcza'!H75","v":0},{"$f":"'90-agencja wykonawcza'!I75","v":0},{"$f":"'90-agencja wykonawcza'!J75","v":0}]
[{"$f":"'99-zbiorczo'!A8","v":"Brak nr REGON"},null,null,null,null,{"$f":"'99-zbiorczo'!L11","v":99},{"$f":"'99-zbiorczo'!K8","v":"Brak roku"},{"$f":"'99-zbiorczo'!H8","v":"Brak nr kwartału"},{"$f":"'99-zbiorczo'!M11","v":0},null,null,{"$f":"'99-zbiorczo'!F56","v":0},{"$f":"'99-zbiorczo'!G56","v":0},{"$f":"'99-zbiorczo'!H56","v":0},{"$f":"'99-zbiorczo'!I56","v":0},{"$f":"'99-zbiorczo'!H57","v":0},{"$f":"'99-zbiorczo'!I57","v":0},{"$f":"'99-zbiorczo'!D62","v":0},{"$f":"'99-zbiorczo'!E62","v":0},{"$f":"'99-zbiorczo'!D69","v":0},{"$f":"'99-zbiorczo'!E69","v":0},{"$f":"'99-zbiorczo'!F69","v":0},{"$f":"'99-zbiorczo'!G69","v":0},{"$f":"'99-zbiorczo'!H69","v":0},{"$f":"'99-zbiorczo'!I69","v":0},{"$f":"'99-zbiorczo'!J69","v":0},{"$f":"'99-zbiorczo'!D70","v":0},{"$f":"'99-zbiorczo'!E70","v":0},{"$f":"'99-zbiorczo'!F70","v":0},{"$f":"'99-zbiorczo'!G70","v":0},{"$f":"'99-zbiorczo'!H70","v":0},{"$f":"'99-zbiorczo'!I70","v":0},{"$f":"'99-zbiorczo'!J70","v":0},{"$f":"'99-zbiorczo'!D71","v":0},{"$f":"'99-zbiorczo'!E71","v":0},{"$f":"'99-zbiorczo'!F71","v":0},{"$f":"'99-zbiorczo'!G71","v":0},{"$f":"'99-zbiorczo'!H71","v":0},{"$f":"'99-zbiorczo'!I71","v":0},{"$f":"'99-zbiorczo'!J71","v":0},{"$f":"'99-zbiorczo'!D72","v":0},{"$f":"'99-zbiorczo'!E72","v":0},{"$f":"'99-zbiorczo'!F72","v":0},{"$f":"'99-zbiorczo'!G72","v":0},{"$f":"'99-zbiorczo'!H72","v":0},{"$f":"'99-zbiorczo'!I72","v":0},{"$f":"'99-zbiorczo'!J72","v":0},{"$f":"'99-zbiorczo'!D73","v":0},{"$f":"'99-zbiorczo'!E73","v":0},{"$f":"'99-zbiorczo'!F73","v":0},{"$f":"'99-zbiorczo'!G73","v":0},{"$f":"'99-zbiorczo'!H73","v":0},{"$f":"'99-zbiorczo'!I73","v":0},{"$f":"'99-zbiorczo'!J73","v":0},{"$f":"'99-zbiorczo'!D74","v":0},{"$f":"'99-zbiorczo'!E74","v":0},{"$f":"'99-zbiorczo'!F74","v":0},{"$f":"'99-zbiorczo'!G74","v":0},{"$f":"'99-zbiorczo'!H74","v":0},{"$f":"'99-zbiorczo'!I74","v":0},{"$f":"'99-zbiorczo'!J74","v":0},{"$f":"'99-zbiorczo'!D75","v":0},{"$f":"'99-zbiorczo'!E75","v":0},{"$f":"'99-zbiorczo'!F75","v":0},{"$f":"'99-zbiorczo'!G75","v":0},{"$f":"'99-zbiorczo'!H75","v":0},{"$f":"'99-zbiorczo'!I75","v":0},{"$f":"'99-zbiorczo'!J75","v":0}]

{"sheet":"RBZD","index":20,"n_rows":17,"n_cols":13,"rows_kept":17,"cut":false,"hidden":true,"merged":[]}
["REGON","WK","PK","GK","GT","PT","ROK","KWARTAL","CZ_BU","DAT_SKW","UWAGI","D0001","D0002"]
[{"$f":"'11-państw.fund.cel.'!A8","v":0},null,null,null,null,{"$f":"'11-państw.fund.cel.'!L11","v":11},{"$f":"'11-państw.fund.cel.'!K8","v":0},{"$f":"'11-państw.fund.cel.'!H8","v":0},{"$f":"'11-państw.fund.cel.'!M11","v":0},null,null,{"$f":"'11-państw.fund.cel.'!C81","v":0},{"$f":"'11-państw.fund.cel.'!C82","v":0}]
[{"$f":"'20-państw.szk.wyż.'!A8","v":0},null,null,null,null,{"$f":"'20-państw.szk.wyż.'!L11","v":20},{"$f":"'20-państw.szk.wyż.'!K8","v":0},{"$f":"'20-państw.szk.wyż.'!H8","v":0},{"$f":"'20-państw.szk.wyż.'!M11","v":0},null,null,{"$f":"'20-państw.szk.wyż.'!C81","v":0},{"$f":"'20-państw.szk.wyż.'!C82","v":0}]
[{"$f":"'31-instytucje gosp budż'!A8","v":0},null,null,null,null,{"$f":"'31-instytucje gosp budż'!L11","v":31},{"$f":"'31-instytucje gosp budż'!K8","v":0},{"$f":"'31-instytucje gosp budż'!H8","v":0},{"$f":"'31-instytucje gosp budż'!M11","v":0},null,null,{"$f":"'31-instytucje gosp budż'!C81","v":0},{"$f":"'31-instytucje gosp budż'!C82","v":0}]
[{"$f":"'41-państw.inst.kult.'!A8","v":0},null,null,null,null,{"$f":"'41-państw.inst.kult.'!L11","v":41},{"$f":"'41-państw.inst.kult.'!K8","v":0},{"$f":"'41-państw.inst.kult.'!H8","v":0},{"$f":"'41-państw.inst.kult.'!M11","v":0},null,null,{"$f":"'41-państw.inst.kult.'!C81","v":0},{"$f":"'41-państw.inst.kult.'!C82","v":0}]
[{"$f":"'42-samorz.inst.kult.'!A8","v":0},null,null,null,null,{"$f":"'42-samorz.inst.kult.'!L11","v":42},{"$f":"'42-samorz.inst.kult.'!K8","v":0},{"$f":"'42-samorz.inst.kult.'!H8","v":0},{"$f":"'42-samorz.inst.kult.'!M11","v":0},null,null,{"$f":"'42-samorz.inst.kult.'!C81","v":0},{"$f":"'42-samorz.inst.kult.'!C82","v":0}]
[{"$f":"'50-PAN i jedn.tworz.przez PAN'!A8","v":0},null,null,null,null,{"$f":"'50-PAN i jedn.tworz.przez PAN'!L11","v":50},{"$f":"'50-PAN i jedn.tworz.przez PAN'!K8","v":0},{"$f":"'50-PAN i jedn.tworz.przez PAN'!H8","v":0},{"$f":"'50-PAN i jedn.tworz.przez PAN'!M11","v":0},null,null,{"$f":"'50-PAN i jedn.tworz.przez PAN'!C81","v":0},{"$f":"'50-PAN i jedn.tworz.przez PAN'!C82","v":0}]
[{"$f":"'61-samodz.publ.ZOZ państw.'!A8","v":0},null,null,null,null,{"$f":"'61-samodz.publ.ZOZ państw.'!L11","v":61},{"$f":"'61-samodz.publ.ZOZ państw.'!K8","v":0},{"$f":"'61-samodz.publ.ZOZ państw.'!H8","v":0},{"$f":"'61-samodz.publ.ZOZ państw.'!M11","v":0},null,null,{"$f":"'61-samodz.publ.ZOZ państw.'!C81","v":0},{"$f":"'61-samodz.publ.ZOZ państw.'!C82","v":0}]
[{"$f":"'62-samodz.publ.ZOZ samorz.'!A8","v":0},null,null,null,null,{"$f":"'62-samodz.publ.ZOZ samorz.'!L11","v":62},{"$f":"'62-samodz.publ.ZOZ samorz.'!K8","v":0},{"$f":"'62-samodz.publ.ZOZ samorz.'!H8","v":0},{"$f":"'62-samodz.publ.ZOZ samorz.'!M11","v":0},null,null,{"$f":"'62-samodz.publ.ZOZ samorz.'!C81","v":0},{"$f":"'62-samodz.publ.ZOZ samorz.'!C82","v":0}]
[{"$f":"'63-Narodowy Fundusz Zdrowia'!A8","v":0},null,null,null,null,{"$f":"'63-Narodowy Fundusz Zdrowia'!L11","v":63},{"$f":"'63-Narodowy Fundusz Zdrowia'!K8","v":0},{"$f":"'63-Narodowy Fundusz Zdrowia'!H8","v":0},{"$f":"'63-Narodowy Fundusz Zdrowia'!M11","v":0},null,null,{"$f":"'63-Narodowy Fundusz Zdrowia'!C81","v":0},{"$f":"'63-Narodowy Fundusz Zdrowia'!C82","v":0}]
[{"$f":"'71-ZUS'!A8","v":0},null,null,null,null,{"$f":"'71-ZUS'!L11","v":71},{"$f":"'71-ZUS'!K8","v":0},{"$f":"'71-ZUS'!H8","v":0},{"$f":"'71-ZUS'!M11","v":0},null,null,{"$f":"'71-ZUS'!C81","v":0},{"$f":"'71-ZUS'!C82","v":0}]
[{"$f":"'72-fund.zarz.przez ZUS'!A8:B8","v":0},null,null,null,null,{"$f":"'72-fund.zarz.przez ZUS'!L11","v":72},{"$f":"'72-fund.zarz.przez ZUS'!K8","v":0},{"$f":"'72-fund.zarz.przez ZUS'!H8","v":0},{"$f":"'72-fund.zarz.przez ZUS'!M11","v":0},null,null,{"$f":"'72-fund.zarz.przez ZUS'!C81","v":0},{"$f":"'72-fund.zarz.przez ZUS'!C82","v":0}]
[{"$f":"'73-KRUS'!A8:B8","v":0},null,null,null,null,{"$f":"'73-KRUS'!L11","v":73},{"$f":"'73-KRUS'!K8","v":0},{"$f":"'73-KRUS'!H8","v":0},{"$f":"'73-KRUS'!M11","v":0},null,null,{"$f":"'73-KRUS'!C81","v":0},{"$f":"'73-KRUS'!C82","v":0}]
[{"$f":"'81-państw.osoba prawna'!A8","v":0},null,null,null,null,{"$f":"'81-państw.osoba prawna'!L11","v":81},{"$f":"'81-państw.osoba prawna'!K8","v":0},{"$f":"'81-państw.osoba prawna'!H8","v":0},{"$f":"'81-państw.osoba prawna'!M11","v":0},null,null,{"$f":"'81-państw.osoba prawna'!C81","v":0},{"$f":"'81-państw.osoba prawna'!C82","v":0}]
[{"$f":"'82-samorz.osoba prawna'!A8","v":0},null,null,null,null,{"$f":"'82-samorz.osoba prawna'!L11","v":82},{"$f":"'82-samorz.osoba prawna'!K8","v":0},{"$f":"'82-samorz.osoba prawna'!H8","v":0},{"$f":"'82-samorz.osoba prawna'!M11","v":0},null,null,{"$f":"'82-samorz.osoba prawna'!C81","v":0},{"$f":"'82-samorz.osoba prawna'!C82","v":0}]
[{"$f":"'90-agencja wykonawcza'!A8","v":0},null,null,null,null,{"$f":"'90-agencja wykonawcza'!L11","v":90},{"$f":"'90-agencja wykonawcza'!K8","v":0},{"$f":"'90-agencja wykonawcza'!H8","v":0},{"$f":"'90-agencja wykonawcza'!M11","v":0},null,null,{"$f":"'90-agencja wykonawcza'!C81","v":0},{"$f":"'90-agencja wykonawcza'!C82","v":0}]
[{"$f":"'99-zbiorczo'!A8","v":"Brak nr REGON"},null,null,null,null,{"$f":"'99-zbiorczo'!L11","v":99},{"$f":"'99-zbiorczo'!K8","v":"Brak roku"},{"$f":"'99-zbiorczo'!H8","v":"Brak nr kwartału"},{"$f":"'99-zbiorczo'!M11","v":0},null,null,{"$f":"'99-zbiorczo'!C81","v":0},{"$f":"'99-zbiorczo'!C82","v":0}]